Workbook

Sheet Front Sheet
B3: National Grid
B5: Transmission Services Charges - calculation model
B6: including the calculation of Reference Prices and Reserve Prices for NTS Entry Capacity and NTS Exit Capacity Charges
B7: Contact for any questions: box.NTSGasCharges@nationalgrid.com
C9: Comments | F9: This is a copy of the NTS Transmission Services Model that calculates charges associated to Transmission Services. This version is published to provide Users with the information used to set the charges for October 2021 and to test sentivities of various combinations of potential changes. This modelshould not be used as any indication of actual charges.
C17: Disclaimer: This NTS Transmission Services Model is provided to you by National Grid Gas plc (“NGG”) solely for the purposes of study in connection with the charge setting process and is not to be used for any commercial purpose. The information that it contains is for guidance purposes only and is given in good faith. However, no warranty or representation or other obligation or commitment of any kind is given by NGG, its employees or advisors as to the accuracy or completeness of any such information. Neither NGG nor its employees or advisors shall be under any liability for any error or misstatement in the information provided. While certain precautions have been taken to detect computer viruses, we cannot guarantee that the Tariff Model is virus-free and NGG shall not be liable for any loss or damage which occurs as a result of any virus. Your use of the Tariff Model shall constitute your acceptance of the above.
B24: Model Software Change History
E27: Version | F27: Date | I27: Produced by | K27: Description
E28: 1.0 | F28: August 2021 | I28: National Grid | K28: Version created in connection with the October 2021 charge

Sheet Tariff Network Code Calculation (hidden)

Sheet Drop Down Inputs (hidden)
G1: Yes_or_No | M1: Model_Type
G2: Yes | M2: CWD
G3: No | M3: PS
A9: Entry_Sheet_Lookup | B9: Exit_Sheet_Lookup
A10: =VLOOKUP('User Inputs'!$C$7,$A$14:$F$27,5,FALSE) -> 21-22 FCC - Entry | B10: =VLOOKUP('User Inputs'!$C$7,$A$14:$F$27,6,FALSE) -> 21-22 FCC - Exit
A14: Gas Year | B14: Gas Year Start | C14: Gas Year End | D14: Number of days in Gas Year | E14: Entry Forecast Sheet | F14: Exit Forecast Sheet
A15: 01-Oct-2018 to 30-Sep-2019 | B15: 2018-10-01 | C15: 2019-09-30 | D15: =C15-B15+1 -> 365 | E15: 18-19 FCC - Entry | F15: 18-19 FCC - Exit
A16: 01-Oct-2019 to 30-Sep-2020 | B16: 2019-10-01 | C16: 2020-09-30 | D16: =C16-B16+1 -> 366 | E16: 19-20 FCC - Entry | F16: 19-20 FCC - Exit
A17: 01-Oct-2020 to 30-Sep-2021 | B17: 2020-10-01 | C17: 2021-09-30 | D17: =C17-B17+1 -> 365 | E17: 20-21 FCC - Entry | F17: 20-21 FCC - Exit
A18: 01-Oct-2021 to 30-Sep-2022 | B18: 2021-10-01 | C18: 2022-09-30 | D18: =C18-B18+1 -> 365 | E18: 21-22 FCC - Entry | F18: 21-22 FCC - Exit
A19: 01-Oct-2022 to 30-Sep-2023 | B19: 2022-10-01 | C19: 2023-09-30 | D19: =C19-B19+1 -> 365 | E19: 22-23 FCC - Entry | F19: 22-23 FCC - Exit
A20: 01-Oct-2023 to 30-Sep-2024 | B20: 2023-10-01 | C20: 2024-09-30 | D20: 366 | E20: 23-24 FCC - Entry | F20: 23-24 FCC - Exit
A21: 01-Oct-2024 to 30-Sep-2025 | B21: 2024-10-01 | C21: 2025-09-30 | D21: 365 | E21: 24-25 FCC - Entry | F21: 24-25 FCC - Exit
A22: 01-Oct-2025 to 30-Sep-2026 | B22: 2025-10-01 | C22: 2026-09-30 | D22: 365 | E22: 24-25 FCC - Entry | F22: 24-25 FCC - Exit
A23: 01-Oct-2026 to 30-Sep-2027 | B23: 2026-10-01 | C23: 2027-09-30 | D23: 365 | E23: 24-25 FCC - Entry | F23: 24-25 FCC - Exit
A24: 01-Oct-2027 to 30-Sep-2028 | B24: 2027-10-01 | C24: 2028-09-30 | D24: 366 | E24: 24-25 FCC - Entry | F24: 24-25 FCC - Exit
A25: 01-Oct-2028 to 30-Sep-2029 | B25: 2028-10-01 | C25: 2029-09-30 | D25: 365 | E25: 24-25 FCC - Entry | F25: 24-25 FCC - Exit
A26: 01-Oct-2029 to 30-Sep-2030 | B26: 2029-10-01 | C26: 2030-09-30 | D26: 365 | E26: 24-25 FCC - Entry | F26: 24-25 FCC - Exit
A27: 01-Oct-2030 to 30-Sep-2031 | B27: 2030-10-01 | C27: 2031-09-30 | D27: 365 | E27: 24-25 FCC - Entry | F27: 24-25 FCC - Exit
A36: Entry_Forecast_Inputs | B36: Exit_Forecast_Inputs
A37: Forecasted Contracted Capacity | B37: Forecasted Contracted Capacity

Sheet Revenue Input (hidden)
A1: Revenue Inputs
A2: Part of the transmission services revenue to be recovered from capacity-based transmission tariffs (£m) | B2: ='User Inputs'!$C$10 -> 860.2263976
A3: Part of the transmission services revenue to be recovered from capacity-based transmission tariffs (£) | B3: =B2*1000000 -> 860226397.6 | E3: Revenue associated to Historical Contracts for Entry Capacity (£) | F3: =HLOOKUP('User Inputs'!$C$7,'Existing Contracts - Entry'!$A$1:$L$31,31,FALSE) -> 46463173.5
A4: Part of the transmission services revenue to be recovered from capacity-based transmission tariffs (p) | B4: =B3*100 -> 8.602263976e+10 | E4: Revenue associated to Historical Contracts for Entry Capacity (p) | F4: =F3*100 -> 4646317350
A5: Part of the transmission services revenue to be recovered from capacity-based transmission tariffs at all entry points (R_∑En) - WITHOUT EXITING CONTRACTS IF APPLICABLE | B5: =(IF('User Inputs'!C23="Yes",((('User Inputs'!C13/100)*B4)-F4),('User Inputs'!C13/100)*B4))+100*(F6+'User Inputs'!C16) -> 4.892367136e+10
A6: Part of the transmission services revenue to be recovered from capacity-based transmission tariffs at all exit points (R_∑Ex) | B6: =(('User Inputs'!D13/100)*B4)+100*(F7+'User Inputs'!D16) -> 4.101172276e+10 | E6: Entry Revenue Adjustment (£) | F6: ='User Inputs'!C64 -> 49558646.93
E7: Exit Revenue Adjustment (£) | F7: ='User Inputs'!D64 -> 36032070.17
A10: Gas Year | B10: Part of the transmission services revenue to be recovered from capacity-based transmission tariffs (£m)
A11: 01-Oct-2018 to 30-Sep-2019 | B11: 657.5568483 | E11: % Entry
A12: 01-Oct-2019 to 30-Sep-2020 | B12: 675.6463812
A13: 01-Oct-2020 to 30-Sep-2021 | B13: 948.832824 | E13: 53.21555551
A14: 01-Oct-2021 to 30-Sep-2022 | B14: 860.2263976 | E14: 56.51317392
A15: 01-Oct-2022 to 30-Sep-2023 | B15: 945.3235219 | E15: 48.31106183
A16: 01-Oct-2023 to 30-Sep-2024 | B16: 831.9740551 | E16: 51.2980003
A17: 01-Oct-2024 to 30-Sep-2025 | B17: 833.7032793 | E17: 48.09342266
A18: 01-Oct-2025 to 30-Sep-2026 | B18: 1076.263949
A19: 01-Oct-2026 to 30-Sep-2027 | B19: =B18*C19 -> 1076.263949 | C19: 1
A20: 01-Oct-2027 to 30-Sep-2028 | B20: 1076.263949 | C20: 1
A21: 01-Oct-2028 to 30-Sep-2029 | B21: 1076.263949 | C21: 1
A22: 01-Oct-2029 to 30-Sep-2030 | B22: 1076.263949 | C22: 1
A23: 01-Oct-2030 to 30-Sep-2031 | B23: 1076.263949 | C23: 1

Sheet User Inputs
A1: Tx Charge Model - October 2020
C3: Reset Model Parameters | D3: Select Base Reference Price Model
A4: Reset Model | B4: Please click on the Reset button before the initial interation of the model (reset will default to CWD) | D4: PS
C6: Gas Year | D6: Number of Days in Gas Year
A7: Gas Year | B7: Please select relevant Gas Year from drop down list | C7: 01-Oct-2021 to 30-Sep-2022 | D7: =VLOOKUP(C7,'Drop Down Inputs'!$A$14:$D$29,4,FALSE) -> 365
C9: Revenue (£m)
A10: Revenue | B10: Part of the transmission services revenue to be recovered from capacity-based transmission tariffs (£m) | C10: =VLOOKUP(C7,'Revenue Input'!A10:B25,2,FALSE) -> 860.2263976
C12: Entry | D12: Exit
A13: Revenue Split | B13: Entry/Exit Split: Percentage of Revenue associated to capacity-based transmission tariffs at entry points (note: Exit percentage will automatically calculate) | C13: 56.51317392 | D13: =100-C13 -> 43.48682608
C15: Entry | D15: Exit
A16: Revenue Reconcilliation | B16: Please enter the relevant Entry or Exit 'K' adjustment figure from year t-2 (£) | C16: 0 | D16: 0
C18: Entry | D18: Exit
A19: Forecast Contracted Capacity | B19: Select scenario from drop down list | C19: Forecasted Contracted Capacity | D19: Forecasted Contracted Capacity
B20: Select a percentage multiplier to apply to the FCC for each NTS Entry/Exit point | C20: 100 | D20: 100
C22: Entry | D22: Exit
A23: Exclude Existing Contracts | B23: Removes Revenue and Capacity levels associated with Historical Contracts from the Target Revenue and Forecast Contracted Capacity respectively. Please note this only adjusts the values included into the RPM. Revenue Recovery charges will be calculated as prescribed in the Rev. Recovery tabs. | C23: Yes | D23: Not Applicable
C25: Entry | D25: Exit
A26: Non-IP Multipliers | B26: Entry: MSEC | C26: 1 | D26: Not Applicable
B27: Entry: DADSEC Exit: Firm | C27: 1 | D27: 1
B28: Entry: WDDSEC | C28: 1 | D28: Not Applicable
C30: Entry | D30: Exit
A31: IP Multipliers | B31: Quarterly standard capacity products | C31: 1 | D31: 1
B32: Monthly standard capacity products | C32: 1 | D32: 1
B33: Daily standard capacity products | C33: 1 | D33: 1
B34: Within-day standard capacity products | C34: 1 | D34: 1
C36: Entry | D36: Exit
A37: Storage Discount | B37: Percentage Discount | C37: 80 | D37: 80
A38: LNG Discount | B38: Percentage Discount | C38: 0 | D38: Not Applicable
C41: Entry | D41: Exit
A42: Probability of Interruption | B42: Please select the relevant tab to complete any required probabilities of interruption
A45: Calculate Prices | B45: Please click on the 'Calculate Prices' button once your inputs have been selected and before proceeding to view the outputs in the following tabs
B46: Once you have received a message to say that prices have been calculated, please click on the relevant button to see the initial Entry or Exit Prices. Please note that these will be overwritten once adjustments have been applied.
C48: Entry | D48: Exit
A49: Estimated Capacity Booking Split | B49: Please select the revelevant tav to adjust the split of the Forecasted Contracted capacity into different auction type
C51: Entry | D51: Exit
A52: Expected Revenue Recovery Results | B52: Total Revenue Recovered (£): | C52: =SUM('Entry Anticipated Rev. Recovery'!Y:Y)+SUM('All Routes'!$I$3:$I$6185)+('Revenue Input'!$F$3) -> 486141240.2 | D52: =SUM('Exit Anticipated Rev. Recovery'!Y:Y)+SUM('All Routes'!$J$3:$J$6185) -> 374085157.4
B53: Target Revenue Recovery for Entry/Exit (£): | C53: =($C$13/100)* 'Revenue Input'!$B$3+C16 -> 486141240.2 | D53: =($D$13/100)* 'Revenue Input'!$B$3+$D$16 -> 374085157.4
B54: Difference to Target Recovery (£): | C54: =C52-C53 -> 0 | D54: =D52-D53 -> 9.536743164e-07
B55: Difference to Target Recovery (£m): | C55: =C54/1000000 -> 0 | D55: =D54/1000000 -> 9.536743164e-13
C57: Entry | D57: Exit
A58: Adjustments | B58: Type of adjustment: | C58: Revenue | D58: Revenue
B61: Calculate adjusted prices: | C61: No
C63: Entry | D63: Exit
A64: Outputs | B64: Revenue Input Figure Adjustment (£): | C64: 49558646.93 | D64: 36032070.17
A68: Adjusted Prices | B68: Please click on the relevant button to see the initial Entry or Exit Prices.
C71: Entry | D71: Exit
A72: If you have reason to believe that your selected FCC is not reflective of anticipated bookings then please use the following tabs to apply further adjustments:

Sheet Entry Interruption Prob's (hidden)
A1: Entry Point | B1: Entry Point Type | C1: Pro | D1: A | E1: Di_ex-ante (%)
A2: Avonmouth | B2: =VLOOKUP(A2,'Locations & Types'!$A:$B,2,FALSE) -> STORAGE SITE | C2: 0.1 | D2: 1 | E2: =C2*D2*100 -> 10
A3: Bacton IP | B3: =VLOOKUP(A3,'Locations & Types'!$A:$B,2,FALSE) -> INTERCONNECTION POINT | C3: 0.1 | D3: 1 | E3: =C3*D3*100 -> 10
A4: Bacton UKCS | B4: =VLOOKUP(A4,'Locations & Types'!$A:$B,2,FALSE) -> BEACH TERMINAL | C4: 0.1 | D4: 1 | E4: 10
A5: Burton Point | B5: =VLOOKUP(A5,'Locations & Types'!$A:$B,2,FALSE) -> ONSHORE FIELD | C5: 0.1 | D5: 1 | E5: 10
A6: Barrow | B6: =VLOOKUP(A6,'Locations & Types'!$A:$B,2,FALSE) -> BEACH TERMINAL | C6: 0.1 | D6: 1 | E6: 10
A7: Barton Stacey | B7: =VLOOKUP(A7,'Locations & Types'!$A:$B,2,FALSE) -> STORAGE SITE | C7: 0.1 | D7: 1 | E7: 10
A8: Canonbie | B8: =VLOOKUP(A8,'Locations & Types'!$A:$B,2,FALSE) -> ONSHORE FIELD | C8: 0.1 | D8: 1 | E8: 10
A9: Cheshire | B9: =VLOOKUP(A9,'Locations & Types'!$A:$B,2,FALSE) -> STORAGE SITE | C9: 0.1 | D9: 1 | E9: 10
A10: Caythorpe | B10: =VLOOKUP(A10,'Locations & Types'!$A:$B,2,FALSE) -> STORAGE SITE | C10: 0.1 | D10: 1 | E10: 10
A11: Dynevor Arms | B11: =VLOOKUP(A11,'Locations & Types'!$A:$B,2,FALSE) -> STORAGE SITE | C11: 0.1 | D11: 1 | E11: 10
A12: Easington | B12: =VLOOKUP(A12,'Locations & Types'!$A:$B,2,FALSE) -> BEACH TERMINAL | C12: 0.1 | D12: 1 | E12: 10
A13: Fleetwood | B13: =VLOOKUP(A13,'Locations & Types'!$A:$B,2,FALSE) -> STORAGE SITE | C13: 0.1 | D13: 1 | E13: 10
A14: Glenmavis | B14: =VLOOKUP(A14,'Locations & Types'!$A:$B,2,FALSE) -> STORAGE SITE | C14: 0.1 | D14: 1 | E14: 10
A15: Garton | B15: =VLOOKUP(A15,'Locations & Types'!$A:$B,2,FALSE) -> STORAGE SITE | C15: 0.1 | D15: 1 | E15: 10
A16: Hole House Farm | B16: =VLOOKUP(A16,'Locations & Types'!$A:$B,2,FALSE) -> STORAGE SITE | C16: 0.1 | D16: 1 | E16: 10
A17: Hatfield Moor (onshore) | B17: =VLOOKUP(A17,'Locations & Types'!$A:$B,2,FALSE) -> ONSHORE FIELD | C17: 0.1 | D17: 1 | E17: 10
A18: Hornsea | B18: =VLOOKUP(A18,'Locations & Types'!$A:$B,2,FALSE) -> STORAGE SITE | C18: 0.1 | D18: 1 | E18: 10
A19: Hatfield Moor (storage) | B19: =VLOOKUP(A19,'Locations & Types'!$A:$B,2,FALSE) -> STORAGE SITE | C19: 0.1 | D19: 1 | E19: 10
A20: Isle of Grain | B20: =VLOOKUP(A20,'Locations & Types'!$A:$B,2,FALSE) -> LNG IMPORTATION TERMINAL | C20: 0.1 | D20: 1 | E20: 10
A21: Milford Haven | B21: =VLOOKUP(A21,'Locations & Types'!$A:$B,2,FALSE) -> LNG IMPORTATION TERMINAL | C21: 0.1 | D21: 1 | E21: 10
A22: Partington | B22: =VLOOKUP(A22,'Locations & Types'!$A:$B,2,FALSE) -> STORAGE SITE | C22: 0.1 | D22: 1 | E22: 10
A23: Moffat (irish Interconnector) | B23: =VLOOKUP(A23,'Locations & Types'!$A:$B,2,FALSE) -> INTERCONNECTION POINT | C23: 0.1 | D23: 1 | E23: 10
A24: MURROW | C24: 0.1 | D24: 1 | E24: =C24*D24*100 -> 10
A25: St Fergus | B25: =VLOOKUP(A25,'Locations & Types'!$A:$B,2,FALSE) -> BEACH TERMINAL | C25: 0.1 | D25: 1 | E25: 10
A26: Teesside | B26: =VLOOKUP(A26,'Locations & Types'!$A:$B,2,FALSE) -> BEACH TERMINAL | C26: 0.1 | D26: 1 | E26: 10
A27: Theddlethorpe | B27: =VLOOKUP(A27,'Locations & Types'!$A:$B,2,FALSE) -> BEACH TERMINAL | C27: 0.1 | D27: 1 | E27: 10
A28: Wytch Farm | B28: =VLOOKUP(A28,'Locations & Types'!$A:$B,2,FALSE) -> ONSHORE FIELD | C28: 0.1 | D28: 1 | E28: 10

Sheet Exit Interruption Prob's (hidden)
A1: Exit Point | B1: Exit Point Type | C1: Pro | D1: A | E1: Di_ex-ante (%) | F1: site type
A2: Aberdeen | B2: =VLOOKUP(A2,'Locations & Types'!$E:$F,2,FALSE) -> GDN (SC) | C2: 0.1 | D2: 1 | E2: =C2*D2*100 -> 10 | F2: =VLOOKUP(A2,'Exit Prices'!$A:$B,2,FALSE) -> DNO
A3: Abson (Seabank Power Station phase I) | B3: =VLOOKUP(A3,'Locations & Types'!$E:$F,2,FALSE) -> DC | C3: 0.1 | D3: 1 | E3: =C3*D3*100 -> 10 | F3: =VLOOKUP(A3,'Exit Prices'!$A:$B,2,FALSE) -> POWER STATION
A4: Alrewas (EM) | B4: =VLOOKUP(A4,'Locations & Types'!$E:$F,2,FALSE) -> GDN (EM) | C4: 0.1 | D4: 1 | E4: 10 | F4: =VLOOKUP(A4,'Exit Prices'!$A:$B,2,FALSE) -> DNO
A5: Alrewas (WM) | B5: =VLOOKUP(A5,'Locations & Types'!$E:$F,2,FALSE) -> GDN (WM) | C5: 0.1 | D5: 1 | E5: 10 | F5: =VLOOKUP(A5,'Exit Prices'!$A:$B,2,FALSE) -> DNO
A6: Apache (Sage Black Start) | B6: =VLOOKUP(A6,'Locations & Types'!$E:$F,2,FALSE) -> DC | C6: 0.1 | D6: 1 | E6: 10 | F6: =VLOOKUP(A6,'Exit Prices'!$A:$B,2,FALSE) -> INDUSTRIAL
A7: Armadale | B7: =VLOOKUP(A7,'Locations & Types'!$E:$F,2,FALSE) -> GDN (SC) | C7: 0.1 | D7: 1 | E7: 10 | F7: =VLOOKUP(A7,'Exit Prices'!$A:$B,2,FALSE) -> DNO
A8: Aspley | B8: =VLOOKUP(A8,'Locations & Types'!$E:$F,2,FALSE) -> GDN (WM) | C8: 0.1 | D8: 1 | E8: 10 | F8: =VLOOKUP(A8,'Exit Prices'!$A:$B,2,FALSE) -> DNO
A9: Asselby | B9: =VLOOKUP(A9,'Locations & Types'!$E:$F,2,FALSE) -> GDN (NE) | C9: 0.1 | D9: 1 | E9: 10 | F9: =VLOOKUP(A9,'Exit Prices'!$A:$B,2,FALSE) -> DNO
A10: Audley (NW) | B10: =VLOOKUP(A10,'Locations & Types'!$E:$F,2,FALSE) -> GDN (NW) | C10: 0.1 | D10: 1 | E10: 10 | F10: =VLOOKUP(A10,'Exit Prices'!$A:$B,2,FALSE) -> DNO
A11: Audley (WM) | B11: =VLOOKUP(A11,'Locations & Types'!$E:$F,2,FALSE) -> GDN (WM) | C11: 0.1 | D11: 1 | E11: 10 | F11: =VLOOKUP(A11,'Exit Prices'!$A:$B,2,FALSE) -> DNO
A12: Austrey | B12: =VLOOKUP(A12,'Locations & Types'!$E:$F,2,FALSE) -> GDN (WM) | C12: 0.1 | D12: 1 | E12: 10 | F12: =VLOOKUP(A12,'Exit Prices'!$A:$B,2,FALSE) -> DNO
A13: Avonmouth Max Refill | B13: =VLOOKUP(A13,'Locations & Types'!$E:$F,2,FALSE) -> STORAGE SITE | C13: 0.1 | D13: 1 | E13: 10 | F13: =VLOOKUP(A13,'Exit Prices'!$A:$B,2,FALSE) -> STORAGE SITE
A14: Aylesbeare | B14: =VLOOKUP(A14,'Locations & Types'!$E:$F,2,FALSE) -> GDN (SW) | C14: 0.1 | D14: 1 | E14: 10 | F14: =VLOOKUP(A14,'Exit Prices'!$A:$B,2,FALSE) -> DNO
A15: Bacton | B15: =VLOOKUP(A15,'Locations & Types'!$E:$F,2,FALSE) -> GDN (EA) | C15: 0.1 | D15: 1 | E15: 10 | F15: =VLOOKUP(A15,'Exit Prices'!$A:$B,2,FALSE) -> DNO
A16: Bacton (Baird) | B16: =VLOOKUP(A16,'Locations & Types'!$E:$F,2,FALSE) -> STORAGE SITE | C16: 0.1 | D16: 1 | E16: 10 | F16: =VLOOKUP(A16,'Exit Prices'!$A:$B,2,FALSE) -> STORAGE SITE
A17: Bacton (BBL) | B17: =VLOOKUP(A17,'Locations & Types'!$E:$F,2,FALSE) -> INTERCONNECTOR | C17: 0.1 | D17: 1 | E17: 10 | F17: =VLOOKUP(A17,'Exit Prices'!$A:$B,2,FALSE) -> INTERCONNECTOR
A18: Bacton (Great Yarmouth) | B18: =VLOOKUP(A18,'Locations & Types'!$E:$F,2,FALSE) -> DC | C18: 0.1 | D18: 1 | E18: 10 | F18: =VLOOKUP(A18,'Exit Prices'!$A:$B,2,FALSE) -> POWER STATION
A19: Bacton (IUK) | B19: =VLOOKUP(A19,'Locations & Types'!$E:$F,2,FALSE) -> INTERCONNECTOR | C19: 0.1 | D19: 1 | E19: 10 | F19: =VLOOKUP(A19,'Exit Prices'!$A:$B,2,FALSE) -> INTERCONNECTOR
A20: Baldersby | B20: =VLOOKUP(A20,'Locations & Types'!$E:$F,2,FALSE) -> GDN (NE) | C20: 0.1 | D20: 1 | E20: 10 | F20: =VLOOKUP(A20,'Exit Prices'!$A:$B,2,FALSE) -> DNO
A21: Balgray | B21: =VLOOKUP(A21,'Locations & Types'!$E:$F,2,FALSE) -> GDN (SC) | C21: 0.1 | D21: 1 | E21: 10 | F21: =VLOOKUP(A21,'Exit Prices'!$A:$B,2,FALSE) -> DNO
A22: Barking (Horndon) | B22: =VLOOKUP(A22,'Locations & Types'!$E:$F,2,FALSE) -> DC | C22: 0.1 | D22: 1 | E22: 10 | F22: =VLOOKUP(A22,'Exit Prices'!$A:$B,2,FALSE) -> POWER STATION
A23: Barrow (Bains) | B23: =VLOOKUP(A23,'Locations & Types'!$E:$F,2,FALSE) -> STORAGE SITE | C23: 0.1 | D23: 1 | E23: 10 | F23: =VLOOKUP(A23,'Exit Prices'!$A:$B,2,FALSE) -> STORAGE SITE
A24: Barrow (Black Start) | B24: =VLOOKUP(A24,'Locations & Types'!$E:$F,2,FALSE) -> DC | C24: 0.1 | D24: 1 | E24: 10 | F24: =VLOOKUP(A24,'Exit Prices'!$A:$B,2,FALSE) -> INDUSTRIAL
A25: Barrow (Gateway) | B25: =VLOOKUP(A25,'Locations & Types'!$E:$F,2,FALSE) -> STORAGE SITE | C25: 0.1 | D25: 1 | E25: 10 | F25: =VLOOKUP(A25,'Exit Prices'!$A:$B,2,FALSE) -> STORAGE SITE
A26: Barton Stacey Max Refill (Humbly Grove) | B26: =VLOOKUP(A26,'Locations & Types'!$E:$F,2,FALSE) -> STORAGE SITE | C26: 0.1 | D26: 1 | E26: 10 | F26: =VLOOKUP(A26,'Exit Prices'!$A:$B,2,FALSE) -> STORAGE SITE
A27: Bathgate | B27: =VLOOKUP(A27,'Locations & Types'!$E:$F,2,FALSE) -> GDN (SC) | C27: 0.1 | D27: 1 | E27: 10 | F27: =VLOOKUP(A27,'Exit Prices'!$A:$B,2,FALSE) -> DNO
A28: Billingham ICI (Terra Billingham) | B28: =VLOOKUP(A28,'Locations & Types'!$E:$F,2,FALSE) -> DC | C28: 0.1 | D28: 1 | E28: 10 | F28: =VLOOKUP(A28,'Exit Prices'!$A:$B,2,FALSE) -> INDUSTRIAL
A29: Bishop Auckland | B29: =VLOOKUP(A29,'Locations & Types'!$E:$F,2,FALSE) -> GDN (NO) | C29: 0.1 | D29: 1 | E29: 10 | F29: =VLOOKUP(A29,'Exit Prices'!$A:$B,2,FALSE) -> DNO
A30: Bishop Auckland (test facility) | B30: =VLOOKUP(A30,'Locations & Types'!$E:$F,2,FALSE) -> DC | C30: 0.1 | D30: 1 | E30: 10 | F30: =VLOOKUP(A30,'Exit Prices'!$A:$B,2,FALSE) -> INDUSTRIAL
A31: Blaby | B31: =VLOOKUP(A31,'Locations & Types'!$E:$F,2,FALSE) -> GDN (EM) | C31: 0.1 | D31: 1 | E31: 10 | F31: =VLOOKUP(A31,'Exit Prices'!$A:$B,2,FALSE) -> DNO
A32: Blackness (BP Grangemouth) | B32: =VLOOKUP(A32,'Locations & Types'!$E:$F,2,FALSE) -> DC | C32: 0.1 | D32: 1 | E32: 10 | F32: =VLOOKUP(A32,'Exit Prices'!$A:$B,2,FALSE) -> INDUSTRIAL
A33: Blackrod | B33: =VLOOKUP(A33,'Locations & Types'!$E:$F,2,FALSE) -> GDN (NW) | C33: 0.1 | D33: 1 | E33: 10 | F33: =VLOOKUP(A33,'Exit Prices'!$A:$B,2,FALSE) -> DNO
A34: Blyborough | B34: =VLOOKUP(A34,'Locations & Types'!$E:$F,2,FALSE) -> GDN (EM) | C34: 0.1 | D34: 1 | E34: 10 | F34: =VLOOKUP(A34,'Exit Prices'!$A:$B,2,FALSE) -> DNO
A35: Blyborough (Brigg) | B35: =VLOOKUP(A35,'Locations & Types'!$E:$F,2,FALSE) -> DC | C35: 0.1 | D35: 1 | E35: 10 | F35: =VLOOKUP(A35,'Exit Prices'!$A:$B,2,FALSE) -> POWER STATION
A36: Blyborough (Cottam) | B36: =VLOOKUP(A36,'Locations & Types'!$E:$F,2,FALSE) -> DC | C36: 0.1 | D36: 1 | E36: 10 | F36: =VLOOKUP(A36,'Exit Prices'!$A:$B,2,FALSE) -> POWER STATION
A37: Braishfield A | B37: =VLOOKUP(A37,'Locations & Types'!$E:$F,2,FALSE) -> GDN (SO) | C37: 0.1 | D37: 1 | E37: 10 | F37: =VLOOKUP(A37,'Exit Prices'!$A:$B,2,FALSE) -> DNO
A38: Braishfield B | B38: =VLOOKUP(A38,'Locations & Types'!$E:$F,2,FALSE) -> GDN (SO) | C38: 0.1 | D38: 1 | E38: 10 | F38: =VLOOKUP(A38,'Exit Prices'!$A:$B,2,FALSE) -> DNO
A39: Brine Field (Teesside) Power Station | B39: =VLOOKUP(A39,'Locations & Types'!$E:$F,2,FALSE) -> DC | C39: 0.1 | D39: 1 | E39: 10 | F39: =VLOOKUP(A39,'Exit Prices'!$A:$B,2,FALSE) -> POWER STATION
A40: Brisley | B40: =VLOOKUP(A40,'Locations & Types'!$E:$F,2,FALSE) -> GDN (EA) | C40: 0.1 | D40: 1 | E40: 10 | F40: =VLOOKUP(A40,'Exit Prices'!$A:$B,2,FALSE) -> DNO
A41: Broxburn | B41: =VLOOKUP(A41,'Locations & Types'!$E:$F,2,FALSE) -> GDN (SC) | C41: 0.1 | D41: 1 | E41: 10 | F41: =VLOOKUP(A41,'Exit Prices'!$A:$B,2,FALSE) -> DNO
A42: Burley Bank | B42: =VLOOKUP(A42,'Locations & Types'!$E:$F,2,FALSE) -> GDN (NE) | C42: 0.1 | D42: 1 | E42: 10 | F42: =VLOOKUP(A42,'Exit Prices'!$A:$B,2,FALSE) -> DNO
A43: Burnhervie | B43: =VLOOKUP(A43,'Locations & Types'!$E:$F,2,FALSE) -> GDN (SC) | C43: 0.1 | D43: 1 | E43: 10 | F43: =VLOOKUP(A43,'Exit Prices'!$A:$B,2,FALSE) -> DNO
A44: Burton Point (Connahs Quay) | B44: =VLOOKUP(A44,'Locations & Types'!$E:$F,2,FALSE) -> DC | C44: 0.1 | D44: 1 | E44: 10 | F44: =VLOOKUP(A44,'Exit Prices'!$A:$B,2,FALSE) -> POWER STATION
A45: Caldecott | B45: =VLOOKUP(A45,'Locations & Types'!$E:$F,2,FALSE) -> GDN (EM) | C45: 0.1 | D45: 1 | E45: 10 | F45: =VLOOKUP(A45,'Exit Prices'!$A:$B,2,FALSE) -> DNO
A46: Caldecott (Corby Power Station) | B46: =VLOOKUP(A46,'Locations & Types'!$E:$F,2,FALSE) -> DC | C46: 0.1 | D46: 1 | E46: 10 | F46: =VLOOKUP(A46,'Exit Prices'!$A:$B,2,FALSE) -> POWER STATION
A47: Cambridge | B47: =VLOOKUP(A47,'Locations & Types'!$E:$F,2,FALSE) -> GDN (EA) | C47: 0.1 | D47: 1 | E47: 10 | F47: =VLOOKUP(A47,'Exit Prices'!$A:$B,2,FALSE) -> DNO
A48: Careston | B48: =VLOOKUP(A48,'Locations & Types'!$E:$F,2,FALSE) -> GDN (SC) | C48: 0.1 | D48: 1 | E48: 10 | F48: =VLOOKUP(A48,'Exit Prices'!$A:$B,2,FALSE) -> DNO
A49: Carrington (Partington) Power Station | B49: =VLOOKUP(A49,'Locations & Types'!$E:$F,2,FALSE) -> DC | C49: 0.1 | D49: 1 | E49: 10 | F49: =VLOOKUP(A49,'Exit Prices'!$A:$B,2,FALSE) -> POWER STATION
A50: Caythorpe | B50: =VLOOKUP(A50,'Locations & Types'!$E:$F,2,FALSE) -> STORAGE SITE | C50: 0.1 | D50: 1 | E50: 10 | F50: =VLOOKUP(A50,'Exit Prices'!$A:$B,2,FALSE) -> STORAGE SITE
A51: Centrax Industrial | B51: =VLOOKUP(A51,'Locations & Types'!$E:$F,2,FALSE) -> DC | C51: 0.1 | D51: 1 | E51: 10 | F51: =VLOOKUP(A51,'Exit Prices'!$A:$B,2,FALSE) -> INDUSTRIAL
A52: Cirencester | B52: =VLOOKUP(A52,'Locations & Types'!$E:$F,2,FALSE) -> GDN (SW) | C52: 0.1 | D52: 1 | E52: 10 | F52: =VLOOKUP(A52,'Exit Prices'!$A:$B,2,FALSE) -> DNO
A53: Cockenzie Power Station | B53: =VLOOKUP(A53,'Locations & Types'!$E:$F,2,FALSE) -> DC | C53: 0.1 | D53: 1 | E53: 10 | F53: =VLOOKUP(A53,'Exit Prices'!$A:$B,2,FALSE) -> POWER STATION
A54: Coffinswell | B54: =VLOOKUP(A54,'Locations & Types'!$E:$F,2,FALSE) -> GDN (SW) | C54: 0.1 | D54: 1 | E54: 10 | F54: =VLOOKUP(A54,'Exit Prices'!$A:$B,2,FALSE) -> DNO
A55: Coldstream | B55: =VLOOKUP(A55,'Locations & Types'!$E:$F,2,FALSE) -> GDN (NO) | C55: 0.1 | D55: 1 | E55: 10 | F55: =VLOOKUP(A55,'Exit Prices'!$A:$B,2,FALSE) -> DNO
A56: Corbridge | B56: =VLOOKUP(A56,'Locations & Types'!$E:$F,2,FALSE) -> GDN (NO) | C56: 0.1 | D56: 1 | E56: 10 | F56: =VLOOKUP(A56,'Exit Prices'!$A:$B,2,FALSE) -> DNO
A57: Coryton 2 (Thames Haven) Power Station | B57: =VLOOKUP(A57,'Locations & Types'!$E:$F,2,FALSE) -> DC | C57: 0.1 | D57: 1 | E57: 10 | F57: =VLOOKUP(A57,'Exit Prices'!$A:$B,2,FALSE) -> POWER STATION
A58: Cowpen Bewley | B58: =VLOOKUP(A58,'Locations & Types'!$E:$F,2,FALSE) -> GDN (NO) | C58: 0.1 | D58: 1 | E58: 10 | F58: =VLOOKUP(A58,'Exit Prices'!$A:$B,2,FALSE) -> DNO
A59: Crawley Down | B59: =VLOOKUP(A59,'Locations & Types'!$E:$F,2,FALSE) -> GDN (SO) | C59: 0.1 | D59: 1 | E59: 10 | F59: =VLOOKUP(A59,'Exit Prices'!$A:$B,2,FALSE) -> DNO
A60: Deborah Storage (Bacton) | B60: =VLOOKUP(A60,'Locations & Types'!$E:$F,2,FALSE) -> STORAGE SITE | C60: 0.1 | D60: 1 | E60: 10 | F60: =VLOOKUP(A60,'Exit Prices'!$A:$B,2,FALSE) -> STORAGE SITE
A61: Deeside | B61: =VLOOKUP(A61,'Locations & Types'!$E:$F,2,FALSE) -> DC | C61: 0.1 | D61: 1 | E61: 10 | F61: =VLOOKUP(A61,'Exit Prices'!$A:$B,2,FALSE) -> POWER STATION
A62: Didcot | B62: =VLOOKUP(A62,'Locations & Types'!$E:$F,2,FALSE) -> DC | C62: 0.1 | D62: 1 | E62: 10 | F62: =VLOOKUP(A62,'Exit Prices'!$A:$B,2,FALSE) -> POWER STATION
A63: Dowlais | B63: =VLOOKUP(A63,'Locations & Types'!$E:$F,2,FALSE) -> GDN (WS) | C63: 0.1 | D63: 1 | E63: 10 | F63: =VLOOKUP(A63,'Exit Prices'!$A:$B,2,FALSE) -> DNO
A64: Drakelow Power Station | B64: =VLOOKUP(A64,'Locations & Types'!$E:$F,2,FALSE) -> DC | C64: 0.1 | D64: 1 | E64: 10 | F64: =VLOOKUP(A64,'Exit Prices'!$A:$B,2,FALSE) -> POWER STATION
A65: Drointon | B65: =VLOOKUP(A65,'Locations & Types'!$E:$F,2,FALSE) -> GDN (EM) | C65: 0.1 | D65: 1 | E65: 10 | F65: =VLOOKUP(A65,'Exit Prices'!$A:$B,2,FALSE) -> DNO
A66: Drum | B66: =VLOOKUP(A66,'Locations & Types'!$E:$F,2,FALSE) -> GDN (SC) | C66: 0.1 | D66: 1 | E66: 10 | F66: =VLOOKUP(A66,'Exit Prices'!$A:$B,2,FALSE) -> DNO
A67: Dyffryn Clydach | B67: =VLOOKUP(A67,'Locations & Types'!$E:$F,2,FALSE) -> GDN (WS) | C67: 0.1 | D67: 1 | E67: =C67*D67*100 -> 10 | F67: =VLOOKUP(A67,'Exit Prices'!$A:$B,2,FALSE) -> DNO
A68: Dynevor Max Refill | B68: =VLOOKUP(A68,'Locations & Types'!$E:$F,2,FALSE) -> STORAGE SITE | C68: 0.1 | D68: 1 | E68: 10 | F68: =VLOOKUP(A68,'Exit Prices'!$A:$B,2,FALSE) -> STORAGE SITE
A69: Eastoft (Keadby Blackstart) | B69: =VLOOKUP(A69,'Locations & Types'!$E:$F,2,FALSE) -> DC | C69: 0.1 | D69: 1 | E69: 10 | F69: =VLOOKUP(A69,'Exit Prices'!$A:$B,2,FALSE) -> POWER STATION
A70: Eastoft (Keadby) | B70: =VLOOKUP(A70,'Locations & Types'!$E:$F,2,FALSE) -> DC | C70: 0.1 | D70: 1 | E70: 10 | F70: =VLOOKUP(A70,'Exit Prices'!$A:$B,2,FALSE) -> POWER STATION
A71: Easton Grey | B71: =VLOOKUP(A71,'Locations & Types'!$E:$F,2,FALSE) -> GDN (SW) | C71: 0.1 | D71: 1 | E71: 10 | F71: =VLOOKUP(A71,'Exit Prices'!$A:$B,2,FALSE) -> DNO
A72: Ecclestone | B72: =VLOOKUP(A72,'Locations & Types'!$E:$F,2,FALSE) -> GDN (NW) | C72: 0.1 | D72: 1 | E72: 10 | F72: =VLOOKUP(A72,'Exit Prices'!$A:$B,2,FALSE) -> DNO
A73: Elton | B73: =VLOOKUP(A73,'Locations & Types'!$E:$F,2,FALSE) -> GDN (NO) | C73: 0.1 | D73: 1 | E73: 10 | F73: =VLOOKUP(A73,'Exit Prices'!$A:$B,2,FALSE) -> DNO
A74: Enron Billingham | B74: =VLOOKUP(A74,'Locations & Types'!$E:$F,2,FALSE) -> DC | C74: 0.1 | D74: 1 | E74: 10 | F74: =VLOOKUP(A74,'Exit Prices'!$A:$B,2,FALSE) -> POWER STATION
A75: Epping Green (Enfield Energy, aka Brimsdown) | B75: =VLOOKUP(A75,'Locations & Types'!$E:$F,2,FALSE) -> DC | C75: 0.1 | D75: 1 | E75: 10 | F75: =VLOOKUP(A75,'Exit Prices'!$A:$B,2,FALSE) -> POWER STATION
A76: Evesham | B76: =VLOOKUP(A76,'Locations & Types'!$E:$F,2,FALSE) -> GDN (SW) | C76: 0.1 | D76: 1 | E76: 10 | F76: =VLOOKUP(A76,'Exit Prices'!$A:$B,2,FALSE) -> DNO
A77: Farningham | B77: =VLOOKUP(A77,'Locations & Types'!$E:$F,2,FALSE) -> GDN (SE) | C77: 0.1 | D77: 1 | E77: 10 | F77: =VLOOKUP(A77,'Exit Prices'!$A:$B,2,FALSE) -> DNO
A78: Farningham B | B78: =VLOOKUP(A78,'Locations & Types'!$E:$F,2,FALSE) -> GDN (SE) | C78: 0.1 | D78: 1 | E78: 10 | F78: =VLOOKUP(A78,'Exit Prices'!$A:$B,2,FALSE) -> DNO
A79: Ferny Knoll (AM Paper) | B79: =VLOOKUP(A79,'Locations & Types'!$E:$F,2,FALSE) -> DC | C79: 0.1 | D79: 1 | E79: 10 | F79: =VLOOKUP(A79,'Exit Prices'!$A:$B,2,FALSE) -> INDUSTRIAL
A80: Fiddington | B80: =VLOOKUP(A80,'Locations & Types'!$E:$F,2,FALSE) -> GDN (SW) | C80: 0.1 | D80: 1 | E80: 10 | F80: =VLOOKUP(A80,'Exit Prices'!$A:$B,2,FALSE) -> DNO
A81: Ganstead | B81: =VLOOKUP(A81,'Locations & Types'!$E:$F,2,FALSE) -> GDN (NE) | C81: 0.1 | D81: 1 | E81: 10 | F81: =VLOOKUP(A81,'Exit Prices'!$A:$B,2,FALSE) -> DNO
A82: Garton Max Refill (Aldbrough) | B82: =VLOOKUP(A82,'Locations & Types'!$E:$F,2,FALSE) -> STORAGE SITE | C82: 0.1 | D82: 1 | E82: 10 | F82: =VLOOKUP(A82,'Exit Prices'!$A:$B,2,FALSE) -> STORAGE SITE
A83: Gilwern | B83: =VLOOKUP(A83,'Locations & Types'!$E:$F,2,FALSE) -> GDN (WS) | C83: 0.1 | D83: 1 | E83: 10 | F83: =VLOOKUP(A83,'Exit Prices'!$A:$B,2,FALSE) -> DNO
A84: Glenmavis | B84: =VLOOKUP(A84,'Locations & Types'!$E:$F,2,FALSE) -> GDN (SC) | C84: 0.1 | D84: 1 | E84: 10 | F84: =VLOOKUP(A84,'Exit Prices'!$A:$B,2,FALSE) -> DNO
A85: Glenmavis Max Refill | B85: =VLOOKUP(A85,'Locations & Types'!$E:$F,2,FALSE) -> STORAGE SITE | C85: 0.1 | D85: 1 | E85: 10 | F85: =VLOOKUP(A85,'Exit Prices'!$A:$B,2,FALSE) -> STORAGE SITE
A86: Goole (Guardian Glass) | B86: =VLOOKUP(A86,'Locations & Types'!$E:$F,2,FALSE) -> DC | C86: 0.1 | D86: 1 | E86: 10 | F86: =VLOOKUP(A86,'Exit Prices'!$A:$B,2,FALSE) -> INDUSTRIAL
A87: Gosberton | B87: =VLOOKUP(A87,'Locations & Types'!$E:$F,2,FALSE) -> GDN (EM) | C87: 0.1 | D87: 1 | E87: 10 | F87: =VLOOKUP(A87,'Exit Prices'!$A:$B,2,FALSE) -> DNO
A88: Gowkhall (Longannet) | B88: =VLOOKUP(A88,'Locations & Types'!$E:$F,2,FALSE) -> DC | C88: 0.1 | D88: 1 | E88: 10 | F88: =VLOOKUP(A88,'Exit Prices'!$A:$B,2,FALSE) -> POWER STATION
A89: Grain Power Station | B89: =VLOOKUP(A89,'Locations & Types'!$E:$F,2,FALSE) -> DC | C89: 0.1 | D89: 1 | E89: 10 | F89: =VLOOKUP(A89,'Exit Prices'!$A:$B,2,FALSE) -> POWER STATION
A90: Great Wilbraham | B90: =VLOOKUP(A90,'Locations & Types'!$E:$F,2,FALSE) -> GDN (EA) | C90: 0.1 | D90: 1 | E90: 10 | F90: =VLOOKUP(A90,'Exit Prices'!$A:$B,2,FALSE) -> DNO
A91: Guyzance | B91: =VLOOKUP(A91,'Locations & Types'!$E:$F,2,FALSE) -> GDN (NO) | C91: 0.1 | D91: 1 | E91: 10 | F91: =VLOOKUP(A91,'Exit Prices'!$A:$B,2,FALSE) -> DNO
A92: Hardwick | B92: =VLOOKUP(A92,'Locations & Types'!$E:$F,2,FALSE) -> GDN (SO) | C92: 0.1 | D92: 1 | E92: 10 | F92: =VLOOKUP(A92,'Exit Prices'!$A:$B,2,FALSE) -> DNO
A93: Harwarden (Shotton, aka Shotton Paper) | B93: =VLOOKUP(A93,'Locations & Types'!$E:$F,2,FALSE) -> DC | C93: 0.1 | D93: 1 | E93: 10 | F93: =VLOOKUP(A93,'Exit Prices'!$A:$B,2,FALSE) -> INDUSTRIAL
A94: Hatfield Moor Max Refill | B94: =VLOOKUP(A94,'Locations & Types'!$E:$F,2,FALSE) -> STORAGE SITE | C94: 0.1 | D94: 1 | E94: 10 | F94: =VLOOKUP(A94,'Exit Prices'!$A:$B,2,FALSE) -> STORAGE SITE
A95: Hatfield Power Station | B95: =VLOOKUP(A95,'Locations & Types'!$E:$F,2,FALSE) -> DC | C95: 0.1 | D95: 1 | E95: 10 | F95: =VLOOKUP(A95,'Exit Prices'!$A:$B,2,FALSE) -> POWER STATION
A96: Hill Top Farm (Hole House Farm) | B96: =VLOOKUP(A96,'Locations & Types'!$E:$F,2,FALSE) -> STORAGE SITE | C96: 0.1 | D96: 1 | E96: 10 | F96: =VLOOKUP(A96,'Exit Prices'!$A:$B,2,FALSE) -> STORAGE SITE
A97: Hole House Max Refill | B97: =VLOOKUP(A97,'Locations & Types'!$E:$F,2,FALSE) -> STORAGE SITE | C97: 0.1 | D97: 1 | E97: 10 | F97: =VLOOKUP(A97,'Exit Prices'!$A:$B,2,FALSE) -> STORAGE SITE
A98: Holford | B98: =VLOOKUP(A98,'Locations & Types'!$E:$F,2,FALSE) -> STORAGE SITE | C98: 0.1 | D98: 1 | E98: 10 | F98: =VLOOKUP(A98,'Exit Prices'!$A:$B,2,FALSE) -> STORAGE SITE
A99: Hollingsgreen (Hays Chemicals) | B99: =VLOOKUP(A99,'Locations & Types'!$E:$F,2,FALSE) -> DC | C99: 0.1 | D99: 1 | E99: 10 | F99: =VLOOKUP(A99,'Exit Prices'!$A:$B,2,FALSE) -> INDUSTRIAL
A100: Holmes Chapel | B100: =VLOOKUP(A100,'Locations & Types'!$E:$F,2,FALSE) -> GDN (NW) | C100: 0.1 | D100: 1 | E100: 10 | F100: =VLOOKUP(A100,'Exit Prices'!$A:$B,2,FALSE) -> DNO
A101: Horndon | B101: =VLOOKUP(A101,'Locations & Types'!$E:$F,2,FALSE) -> GDN (NT) | C101: 0.1 | D101: 1 | E101: 10 | F101: =VLOOKUP(A101,'Exit Prices'!$A:$B,2,FALSE) -> DNO
A102: Hornsea Max Refill | B102: =VLOOKUP(A102,'Locations & Types'!$E:$F,2,FALSE) -> STORAGE SITE | C102: 0.1 | D102: 1 | E102: 10 | F102: =VLOOKUP(A102,'Exit Prices'!$A:$B,2,FALSE) -> STORAGE SITE
A103: Humbleton | B103: =VLOOKUP(A103,'Locations & Types'!$E:$F,2,FALSE) -> GDN (NO) | C103: 0.1 | D103: 1 | E103: 10 | F103: =VLOOKUP(A103,'Exit Prices'!$A:$B,2,FALSE) -> DNO
A104: Hume | B104: =VLOOKUP(A104,'Locations & Types'!$E:$F,2,FALSE) -> GDN (SC) | C104: 0.1 | D104: 1 | E104: 10 | F104: =VLOOKUP(A104,'Exit Prices'!$A:$B,2,FALSE) -> DNO
A105: Ilchester | B105: =VLOOKUP(A105,'Locations & Types'!$E:$F,2,FALSE) -> GDN (SW) | C105: 0.1 | D105: 1 | E105: 10 | F105: =VLOOKUP(A105,'Exit Prices'!$A:$B,2,FALSE) -> DNO
A106: Ipsden | B106: =VLOOKUP(A106,'Locations & Types'!$E:$F,2,FALSE) -> GDN (SO) | C106: 0.1 | D106: 1 | E106: 10 | F106: =VLOOKUP(A106,'Exit Prices'!$A:$B,2,FALSE) -> DNO
A107: Ipsden 2 | B107: =VLOOKUP(A107,'Locations & Types'!$E:$F,2,FALSE) -> GDN (SO) | C107: 0.1 | D107: 1 | E107: 10 | F107: =VLOOKUP(A107,'Exit Prices'!$A:$B,2,FALSE) -> DNO
A108: Keld | B108: =VLOOKUP(A108,'Locations & Types'!$E:$F,2,FALSE) -> GDN (NO) | C108: 0.1 | D108: 1 | E108: 10 | F108: =VLOOKUP(A108,'Exit Prices'!$A:$B,2,FALSE) -> DNO
A109: Kenn | B109: =VLOOKUP(A109,'Locations & Types'!$E:$F,2,FALSE) -> GDN (SW) | C109: 0.1 | D109: 1 | E109: 10 | F109: =VLOOKUP(A109,'Exit Prices'!$A:$B,2,FALSE) -> DNO
A110: Kinknockie | B110: =VLOOKUP(A110,'Locations & Types'!$E:$F,2,FALSE) -> GDN (SC) | C110: 0.1 | D110: 1 | E110: 10 | F110: =VLOOKUP(A110,'Exit Prices'!$A:$B,2,FALSE) -> DNO
A111: Kirkstead | B111: =VLOOKUP(A111,'Locations & Types'!$E:$F,2,FALSE) -> GDN (EM) | C111: 0.1 | D111: 1 | E111: 10 | F111: =VLOOKUP(A111,'Exit Prices'!$A:$B,2,FALSE) -> DNO
A112: Langage Power Station | B112: =VLOOKUP(A112,'Locations & Types'!$E:$F,2,FALSE) -> DC | C112: 0.1 | D112: 1 | E112: 10 | F112: =VLOOKUP(A112,'Exit Prices'!$A:$B,2,FALSE) -> POWER STATION
A113: Langholm | B113: =VLOOKUP(A113,'Locations & Types'!$E:$F,2,FALSE) -> GDN (SC) | C113: 0.1 | D113: 1 | E113: 10 | F113: =VLOOKUP(A113,'Exit Prices'!$A:$B,2,FALSE) -> DNO
A114: Lauderhill | B114: =VLOOKUP(A114,'Locations & Types'!$E:$F,2,FALSE) -> GDN (SC) | C114: 0.1 | D114: 1 | E114: 10 | F114: =VLOOKUP(A114,'Exit Prices'!$A:$B,2,FALSE) -> DNO
A115: Leamington | B115: =VLOOKUP(A115,'Locations & Types'!$E:$F,2,FALSE) -> GDN (WM) | C115: 0.1 | D115: 1 | E115: 10 | F115: =VLOOKUP(A115,'Exit Prices'!$A:$B,2,FALSE) -> DNO
A116: Little Burdon | B116: =VLOOKUP(A116,'Locations & Types'!$E:$F,2,FALSE) -> GDN (NO) | C116: 0.1 | D116: 1 | E116: 10 | F116: =VLOOKUP(A116,'Exit Prices'!$A:$B,2,FALSE) -> DNO
A117: Littleton Drew | B117: =VLOOKUP(A117,'Locations & Types'!$E:$F,2,FALSE) -> GDN (SW) | C117: 0.1 | D117: 1 | E117: 10 | F117: =VLOOKUP(A117,'Exit Prices'!$A:$B,2,FALSE) -> DNO
A118: Lockerbie | B118: =VLOOKUP(A118,'Locations & Types'!$E:$F,2,FALSE) -> GDN (SC) | C118: 0.1 | D118: 1 | E118: 10 | F118: =VLOOKUP(A118,'Exit Prices'!$A:$B,2,FALSE) -> DNO
A119: Lower Quinton | B119: =VLOOKUP(A119,'Locations & Types'!$E:$F,2,FALSE) -> GDN (WM) | C119: 0.1 | D119: 1 | E119: 10 | F119: =VLOOKUP(A119,'Exit Prices'!$A:$B,2,FALSE) -> DNO
A120: Lupton | B120: =VLOOKUP(A120,'Locations & Types'!$E:$F,2,FALSE) -> GDN (NW) | C120: 0.1 | D120: 1 | E120: 10 | F120: =VLOOKUP(A120,'Exit Prices'!$A:$B,2,FALSE) -> DNO
A121: Luxborough Lane | B121: =VLOOKUP(A121,'Locations & Types'!$E:$F,2,FALSE) -> GDN (NT) | C121: 0.1 | D121: 1 | E121: 10 | F121: =VLOOKUP(A121,'Exit Prices'!$A:$B,2,FALSE) -> DNO
A122: Lyneham (Choakford) | B122: =VLOOKUP(A122,'Locations & Types'!$E:$F,2,FALSE) -> GDN (SW) | C122: 0.1 | D122: 1 | E122: 10 | F122: =VLOOKUP(A122,'Exit Prices'!$A:$B,2,FALSE) -> DNO
A123: Maelor | B123: =VLOOKUP(A123,'Locations & Types'!$E:$F,2,FALSE) -> GDN (WN) | C123: 0.1 | D123: 1 | E123: 10 | F123: =VLOOKUP(A123,'Exit Prices'!$A:$B,2,FALSE) -> DNO
A124: Malpas | B124: =VLOOKUP(A124,'Locations & Types'!$E:$F,2,FALSE) -> GDN (NW) | C124: 0.1 | D124: 1 | E124: 10 | F124: =VLOOKUP(A124,'Exit Prices'!$A:$B,2,FALSE) -> DNO
A125: Mappowder | B125: =VLOOKUP(A125,'Locations & Types'!$E:$F,2,FALSE) -> GDN (SO) | C125: 0.1 | D125: 1 | E125: 10 | F125: =VLOOKUP(A125,'Exit Prices'!$A:$B,2,FALSE) -> DNO
A126: Marchwood Power Station | B126: =VLOOKUP(A126,'Locations & Types'!$E:$F,2,FALSE) -> DC | C126: 0.1 | D126: 1 | E126: 10 | F126: =VLOOKUP(A126,'Exit Prices'!$A:$B,2,FALSE) -> POWER STATION
A127: Market Harborough | B127: =VLOOKUP(A127,'Locations & Types'!$E:$F,2,FALSE) -> GDN (EM) | C127: 0.1 | D127: 1 | E127: 10 | F127: =VLOOKUP(A127,'Exit Prices'!$A:$B,2,FALSE) -> DNO
A128: Matching Green | B128: =VLOOKUP(A128,'Locations & Types'!$E:$F,2,FALSE) -> GDN (EA) | C128: 0.1 | D128: 1 | E128: 10 | F128: =VLOOKUP(A128,'Exit Prices'!$A:$B,2,FALSE) -> DNO
A129: Medway (aka Isle of Grain Power Station, NOT Grain Power) | B129: =VLOOKUP(A129,'Locations & Types'!$E:$F,2,FALSE) -> DC | C129: 0.1 | D129: 1 | E129: 10 | F129: =VLOOKUP(A129,'Exit Prices'!$A:$B,2,FALSE) -> POWER STATION
A130: Melkinthorpe | B130: =VLOOKUP(A130,'Locations & Types'!$E:$F,2,FALSE) -> GDN (NO) | C130: 0.1 | D130: 1 | E130: 10 | F130: =VLOOKUP(A130,'Exit Prices'!$A:$B,2,FALSE) -> DNO
A131: Mickle Trafford | B131: =VLOOKUP(A131,'Locations & Types'!$E:$F,2,FALSE) -> GDN (NW) | C131: 0.1 | D131: 1 | E131: =C131*D131*100 -> 10 | F131: =VLOOKUP(A131,'Exit Prices'!$A:$B,2,FALSE) -> DNO
A132: Middle Stoke (Damhead Creek, aka Kingsnorth Power Station) | B132: =VLOOKUP(A132,'Locations & Types'!$E:$F,2,FALSE) -> DC | C132: 0.1 | D132: 1 | E132: 10 | F132: =VLOOKUP(A132,'Exit Prices'!$A:$B,2,FALSE) -> POWER STATION
A133: Milwich | B133: =VLOOKUP(A133,'Locations & Types'!$E:$F,2,FALSE) -> GDN (WM) | C133: 0.1 | D133: 1 | E133: 10 | F133: =VLOOKUP(A133,'Exit Prices'!$A:$B,2,FALSE) -> DNO
A134: Moffat (Irish Interconnector) | B134: =VLOOKUP(A134,'Locations & Types'!$E:$F,2,FALSE) -> INTERCONNECTOR | C134: 0.1 | D134: 1 | E134: 10 | F134: =VLOOKUP(A134,'Exit Prices'!$A:$B,2,FALSE) -> INTERCONNECTOR
A135: Netherhowcleugh | B135: =VLOOKUP(A135,'Locations & Types'!$E:$F,2,FALSE) -> GDN (SC) | C135: 0.1 | D135: 1 | E135: 10 | F135: =VLOOKUP(A135,'Exit Prices'!$A:$B,2,FALSE) -> DNO
A136: Pannal | B136: =VLOOKUP(A136,'Locations & Types'!$E:$F,2,FALSE) -> GDN (NE) | C136: 0.1 | D136: 1 | E136: 10 | F136: =VLOOKUP(A136,'Exit Prices'!$A:$B,2,FALSE) -> DNO
A137: Partington | B137: =VLOOKUP(A137,'Locations & Types'!$E:$F,2,FALSE) -> GDN (NW) | C137: 0.1 | D137: 1 | E137: 10 | F137: =VLOOKUP(A137,'Exit Prices'!$A:$B,2,FALSE) -> DNO
A138: Partington Max Refill | B138: =VLOOKUP(A138,'Locations & Types'!$E:$F,2,FALSE) -> STORAGE SITE | C138: 0.1 | D138: 1 | E138: 10 | F138: =VLOOKUP(A138,'Exit Prices'!$A:$B,2,FALSE) -> STORAGE SITE
A139: Paull | B139: =VLOOKUP(A139,'Locations & Types'!$E:$F,2,FALSE) -> GDN (NE) | C139: 0.1 | D139: 1 | E139: 10 | F139: =VLOOKUP(A139,'Exit Prices'!$A:$B,2,FALSE) -> DNO
A140: Pembroke Power Station | B140: =VLOOKUP(A140,'Locations & Types'!$E:$F,2,FALSE) -> DC | C140: 0.1 | D140: 1 | E140: 10 | F140: =VLOOKUP(A140,'Exit Prices'!$A:$B,2,FALSE) -> POWER STATION
A141: Peterborough (Peterborough Power Station) | B141: =VLOOKUP(A141,'Locations & Types'!$E:$F,2,FALSE) -> DC | C141: 0.1 | D141: 1 | E141: 10 | F141: =VLOOKUP(A141,'Exit Prices'!$A:$B,2,FALSE) -> POWER STATION
A142: Peterborough Eye (Tee) | B142: =VLOOKUP(A142,'Locations & Types'!$E:$F,2,FALSE) -> GDN (EA) | C142: 0.1 | D142: 1 | E142: 10 | F142: =VLOOKUP(A142,'Exit Prices'!$A:$B,2,FALSE) -> DNO
A143: Peters Green | B143: =VLOOKUP(A143,'Locations & Types'!$E:$F,2,FALSE) -> GDN (NT) | C143: 0.1 | D143: 1 | E143: 10 | F143: =VLOOKUP(A143,'Exit Prices'!$A:$B,2,FALSE) -> DNO
A144: Peters Green South Mimms | B144: =VLOOKUP(A144,'Locations & Types'!$E:$F,2,FALSE) -> GDN (NT) | C144: 0.1 | D144: 1 | E144: 10 | F144: =VLOOKUP(A144,'Exit Prices'!$A:$B,2,FALSE) -> DNO
A145: Phillips Petroleum, Teesside | B145: =VLOOKUP(A145,'Locations & Types'!$E:$F,2,FALSE) -> DC | C145: 0.1 | D145: 1 | E145: 10 | F145: =VLOOKUP(A145,'Exit Prices'!$A:$B,2,FALSE) -> INDUSTRIAL
A146: Pickering | B146: =VLOOKUP(A146,'Locations & Types'!$E:$F,2,FALSE) -> GDN (NE) | C146: 0.1 | D146: 1 | E146: 10 | F146: =VLOOKUP(A146,'Exit Prices'!$A:$B,2,FALSE) -> DNO
A147: Pickmere (Winnington Power, aka Brunner Mond) | B147: =VLOOKUP(A147,'Locations & Types'!$E:$F,2,FALSE) -> DC | C147: 0.1 | D147: 1 | E147: 10 | F147: =VLOOKUP(A147,'Exit Prices'!$A:$B,2,FALSE) -> INDUSTRIAL
A148: Pitcairngreen | B148: =VLOOKUP(A148,'Locations & Types'!$E:$F,2,FALSE) -> GDN (SC) | C148: 0.1 | D148: 1 | E148: 10 | F148: =VLOOKUP(A148,'Exit Prices'!$A:$B,2,FALSE) -> DNO
A149: Pucklechurch | B149: =VLOOKUP(A149,'Locations & Types'!$E:$F,2,FALSE) -> GDN (SW) | C149: 0.1 | D149: 1 | E149: 10 | F149: =VLOOKUP(A149,'Exit Prices'!$A:$B,2,FALSE) -> DNO
A150: Rawcliffe | B150: =VLOOKUP(A150,'Locations & Types'!$E:$F,2,FALSE) -> GDN (NE) | C150: 0.1 | D150: 1 | E150: 10 | F150: =VLOOKUP(A150,'Exit Prices'!$A:$B,2,FALSE) -> DNO
A151: Glasgoforest | B151: =VLOOKUP(A151,'Locations & Types'!$E:$F,2,FALSE) -> DC | C151: 0.1 | D151: 1 | E151: 10 | F151: =VLOOKUP(A151,'Exit Prices'!$A:$B,2,FALSE) -> INDUSTRIAL
A152: Roosecote Power Station (Barrow) | B152: =VLOOKUP(A152,'Locations & Types'!$E:$F,2,FALSE) -> DC | C152: 0.1 | D152: 1 | E152: 10 | F152: =VLOOKUP(A152,'Exit Prices'!$A:$B,2,FALSE) -> POWER STATION
A153: Rosehill (Saltend Power Station) | B153: =VLOOKUP(A153,'Locations & Types'!$E:$F,2,FALSE) -> DC | C153: 0.1 | D153: 1 | E153: 10 | F153: =VLOOKUP(A153,'Exit Prices'!$A:$B,2,FALSE) -> POWER STATION
A154: Ross (SW) | B154: =VLOOKUP(A154,'Locations & Types'!$E:$F,2,FALSE) -> GDN (SW) | C154: 0.1 | D154: 1 | E154: 10 | F154: =VLOOKUP(A154,'Exit Prices'!$A:$B,2,FALSE) -> DNO
A155: Ross (WM) | B155: =VLOOKUP(A155,'Locations & Types'!$E:$F,2,FALSE) -> GDN (WM) | C155: 0.1 | D155: 1 | E155: 10 | F155: =VLOOKUP(A155,'Exit Prices'!$A:$B,2,FALSE) -> DNO
A156: Roudham Heath | B156: =VLOOKUP(A156,'Locations & Types'!$E:$F,2,FALSE) -> GDN (EA) | C156: 0.1 | D156: 1 | E156: 10 | F156: =VLOOKUP(A156,'Exit Prices'!$A:$B,2,FALSE) -> DNO
A157: Royston | B157: =VLOOKUP(A157,'Locations & Types'!$E:$F,2,FALSE) -> GDN (EA) | C157: 0.1 | D157: 1 | E157: 10 | F157: =VLOOKUP(A157,'Exit Prices'!$A:$B,2,FALSE) -> DNO
A158: Rugby | B158: =VLOOKUP(A158,'Locations & Types'!$E:$F,2,FALSE) -> GDN (WM) | C158: 0.1 | D158: 1 | E158: 10 | F158: =VLOOKUP(A158,'Exit Prices'!$A:$B,2,FALSE) -> DNO
A159: Ryehouse | B159: =VLOOKUP(A159,'Locations & Types'!$E:$F,2,FALSE) -> DC | C159: 0.1 | D159: 1 | E159: 10 | F159: =VLOOKUP(A159,'Exit Prices'!$A:$B,2,FALSE) -> POWER STATION
A160: Saddle Bow (Kings Lynn) | B160: =VLOOKUP(A160,'Locations & Types'!$E:$F,2,FALSE) -> DC | C160: 0.1 | D160: 1 | E160: 10 | F160: =VLOOKUP(A160,'Exit Prices'!$A:$B,2,FALSE) -> POWER STATION
A161: Saltend BPHP (BP Saltend HP) | B161: =VLOOKUP(A161,'Locations & Types'!$E:$F,2,FALSE) -> DC | C161: 0.1 | D161: 1 | E161: 10 | F161: =VLOOKUP(A161,'Exit Prices'!$A:$B,2,FALSE) -> INDUSTRIAL
A162: Saltfleetby Storage (Theddlethorpe) | B162: =VLOOKUP(A162,'Locations & Types'!$E:$F,2,FALSE) -> STORAGE SITE | C162: 0.1 | D162: 1 | E162: 10 | F162: =VLOOKUP(A162,'Exit Prices'!$A:$B,2,FALSE) -> STORAGE SITE
A163: Saltwick Pressure Controlled | B163: =VLOOKUP(A163,'Locations & Types'!$E:$F,2,FALSE) -> GDN (NO) | C163: 0.1 | D163: 1 | E163: 10 | F163: =VLOOKUP(A163,'Exit Prices'!$A:$B,2,FALSE) -> DNO
A164: Saltwick Volumetric Controlled | B164: =VLOOKUP(A164,'Locations & Types'!$E:$F,2,FALSE) -> GDN (NO) | C164: 0.1 | D164: 1 | E164: 10 | F164: =VLOOKUP(A164,'Exit Prices'!$A:$B,2,FALSE) -> DNO
A165: Samlesbury | B165: =VLOOKUP(A165,'Locations & Types'!$E:$F,2,FALSE) -> GDN (NW) | C165: 0.1 | D165: 1 | E165: 10 | F165: =VLOOKUP(A165,'Exit Prices'!$A:$B,2,FALSE) -> DNO
A166: Sandy Lane (Blackburn CHP, aka Sappi Paper Mill) | B166: =VLOOKUP(A166,'Locations & Types'!$E:$F,2,FALSE) -> DC | C166: 0.1 | D166: 1 | E166: 10 | F166: =VLOOKUP(A166,'Exit Prices'!$A:$B,2,FALSE) -> INDUSTRIAL
A167: Seabank (DN) | B167: =VLOOKUP(A167,'Locations & Types'!$E:$F,2,FALSE) -> GDN (SW) | C167: 0.1 | D167: 1 | E167: 10 | F167: =VLOOKUP(A167,'Exit Prices'!$A:$B,2,FALSE) -> DNO
A168: Seabank (Seabank Power Station phase II) | B168: =VLOOKUP(A168,'Locations & Types'!$E:$F,2,FALSE) -> DC | C168: 0.1 | D168: 1 | E168: 10 | F168: =VLOOKUP(A168,'Exit Prices'!$A:$B,2,FALSE) -> POWER STATION
A169: Seal Sands TGPP | B169: =VLOOKUP(A169,'Locations & Types'!$E:$F,2,FALSE) -> DC | C169: 0.1 | D169: 1 | E169: 10 | F169: =VLOOKUP(A169,'Exit Prices'!$A:$B,2,FALSE) -> INDUSTRIAL
A170: Sellafield Power Station | B170: =VLOOKUP(A170,'Locations & Types'!$E:$F,2,FALSE) -> DC | C170: 0.1 | D170: 1 | E170: 10 | F170: =VLOOKUP(A170,'Exit Prices'!$A:$B,2,FALSE) -> POWER STATION
A171: Shellstar (aka Kemira, not Kemira CHP) | B171: =VLOOKUP(A171,'Locations & Types'!$E:$F,2,FALSE) -> DC | C171: 0.1 | D171: 1 | E171: 10 | F171: =VLOOKUP(A171,'Exit Prices'!$A:$B,2,FALSE) -> INDUSTRIAL
A172: Shorne | B172: =VLOOKUP(A172,'Locations & Types'!$E:$F,2,FALSE) -> GDN (SE) | C172: 0.1 | D172: 1 | E172: 10 | F172: =VLOOKUP(A172,'Exit Prices'!$A:$B,2,FALSE) -> DNO
A173: Shotwick (Bridgewater Paper) | B173: =VLOOKUP(A173,'Locations & Types'!$E:$F,2,FALSE) -> DC | C173: 0.1 | D173: 1 | E173: 10 | F173: =VLOOKUP(A173,'Exit Prices'!$A:$B,2,FALSE) -> INDUSTRIAL
A174: Shustoke | B174: =VLOOKUP(A174,'Locations & Types'!$E:$F,2,FALSE) -> GDN (WM) | C174: 0.1 | D174: 1 | E174: 10 | F174: =VLOOKUP(A174,'Exit Prices'!$A:$B,2,FALSE) -> DNO
A175: Silk Willoughby | B175: =VLOOKUP(A175,'Locations & Types'!$E:$F,2,FALSE) -> GDN (EM) | C175: 0.1 | D175: 1 | E175: 10 | F175: =VLOOKUP(A175,'Exit Prices'!$A:$B,2,FALSE) -> DNO
A176: Soutra | B176: =VLOOKUP(A176,'Locations & Types'!$E:$F,2,FALSE) -> GDN (SC) | C176: 0.1 | D176: 1 | E176: 10 | F176: =VLOOKUP(A176,'Exit Prices'!$A:$B,2,FALSE) -> DNO
A177: Spalding 2 (South Holland) Power Station | B177: =VLOOKUP(A177,'Locations & Types'!$E:$F,2,FALSE) -> DC | C177: 0.1 | D177: 1 | E177: 10 | F177: =VLOOKUP(A177,'Exit Prices'!$A:$B,2,FALSE) -> POWER STATION
A178: St Fergus | B178: =VLOOKUP(A178,'Locations & Types'!$E:$F,2,FALSE) -> GDN (SC) | C178: 0.1 | D178: 1 | E178: 10 | F178: =VLOOKUP(A178,'Exit Prices'!$A:$B,2,FALSE) -> DNO
A179: St. Fergus (Peterhead) | B179: =VLOOKUP(A179,'Locations & Types'!$E:$F,2,FALSE) -> DC | C179: 0.1 | D179: 1 | E179: 10 | F179: =VLOOKUP(A179,'Exit Prices'!$A:$B,2,FALSE) -> POWER STATION
A180: St. Fergus (Shell Blackstart) | B180: =VLOOKUP(A180,'Locations & Types'!$E:$F,2,FALSE) -> DC | C180: 0.1 | D180: 1 | E180: 10 | F180: =VLOOKUP(A180,'Exit Prices'!$A:$B,2,FALSE) -> INDUSTRIAL
A181: St. Neots (Little Barford) | B181: =VLOOKUP(A181,'Locations & Types'!$E:$F,2,FALSE) -> DC | C181: 0.1 | D181: 1 | E181: 10 | F181: =VLOOKUP(A181,'Exit Prices'!$A:$B,2,FALSE) -> POWER STATION
A182: Stallingborough | B182: =VLOOKUP(A182,'Locations & Types'!$E:$F,2,FALSE) -> DC | C182: 0.1 | D182: 1 | E182: 10 | F182: =VLOOKUP(A182,'Exit Prices'!$A:$B,2,FALSE) -> POWER STATION
A183: Stanford Le Hope (Coryton) | B183: =VLOOKUP(A183,'Locations & Types'!$E:$F,2,FALSE) -> DC | C183: 0.1 | D183: 1 | E183: 10 | F183: =VLOOKUP(A183,'Exit Prices'!$A:$B,2,FALSE) -> POWER STATION
A184: Staythorpe | B184: =VLOOKUP(A184,'Locations & Types'!$E:$F,2,FALSE) -> DC | C184: 0.1 | D184: 1 | E184: 10 | F184: =VLOOKUP(A184,'Exit Prices'!$A:$B,2,FALSE) -> POWER STATION
A185: Stranraer | B185: =VLOOKUP(A185,'Locations & Types'!$E:$F,2,FALSE) -> GDN (SC) | C185: 0.1 | D185: 1 | E185: 10 | F185: =VLOOKUP(A185,'Exit Prices'!$A:$B,2,FALSE) -> DNO
A186: Stratford-upon-Avon | B186: =VLOOKUP(A186,'Locations & Types'!$E:$F,2,FALSE) -> GDN (WM) | C186: 0.1 | D186: 1 | E186: 10 | F186: =VLOOKUP(A186,'Exit Prices'!$A:$B,2,FALSE) -> DNO
A187: Stublach (Cheshire) | B187: =VLOOKUP(A187,'Locations & Types'!$E:$F,2,FALSE) -> STORAGE SITE | C187: 0.1 | D187: 1 | E187: 10 | F187: =VLOOKUP(A187,'Exit Prices'!$A:$B,2,FALSE) -> STORAGE SITE
A188: Sutton Bridge | B188: =VLOOKUP(A188,'Locations & Types'!$E:$F,2,FALSE) -> GDN (EM) | C188: 0.1 | D188: 1 | E188: 10 | F188: =VLOOKUP(A188,'Exit Prices'!$A:$B,2,FALSE) -> DNO
A189: Sutton Bridge Power Station | B189: =VLOOKUP(A189,'Locations & Types'!$E:$F,2,FALSE) -> DC | C189: 0.1 | D189: 1 | E189: 10 | F189: =VLOOKUP(A189,'Exit Prices'!$A:$B,2,FALSE) -> POWER STATION
A190: Tatsfield | B190: =VLOOKUP(A190,'Locations & Types'!$E:$F,2,FALSE) -> GDN (SE) | C190: 0.1 | D190: 1 | E190: 10 | F190: =VLOOKUP(A190,'Exit Prices'!$A:$B,2,FALSE) -> DNO
A191: Teesside (BASF, aka BASF Teesside) | B191: =VLOOKUP(A191,'Locations & Types'!$E:$F,2,FALSE) -> DC | C191: 0.1 | D191: 1 | E191: 10 | F191: =VLOOKUP(A191,'Exit Prices'!$A:$B,2,FALSE) -> INDUSTRIAL
A192: Teesside Hydrogen | B192: =VLOOKUP(A192,'Locations & Types'!$E:$F,2,FALSE) -> DC | C192: 0.1 | D192: 1 | E192: 10 | F192: =VLOOKUP(A192,'Exit Prices'!$A:$B,2,FALSE) -> INDUSTRIAL
A193: Terra Nitrogen (aka ICI, Terra Severnside) | B193: =VLOOKUP(A193,'Locations & Types'!$E:$F,2,FALSE) -> DC | C193: 0.1 | D193: 1 | E193: 10 | F193: =VLOOKUP(A193,'Exit Prices'!$A:$B,2,FALSE) -> INDUSTRIAL
A194: Thornton Curtis (DN) | B194: =VLOOKUP(A194,'Locations & Types'!$E:$F,2,FALSE) -> GDN (EM) | C194: 0.1 | D194: 1 | E194: 10 | F194: =VLOOKUP(A194,'Exit Prices'!$A:$B,2,FALSE) -> DNO
A195: Thornton Curtis (Humber Refinery, aka Immingham) | B195: =VLOOKUP(A195,'Locations & Types'!$E:$F,2,FALSE) -> DC | C195: 0.1 | D195: 1 | E195: =C195*D195*100 -> 10 | F195: =VLOOKUP(A195,'Exit Prices'!$A:$B,2,FALSE) -> INDUSTRIAL
A196: Thornton Curtis (Killingholme) | B196: =VLOOKUP(A196,'Locations & Types'!$E:$F,2,FALSE) -> DC | C196: 0.1 | D196: 1 | E196: 10 | F196: =VLOOKUP(A196,'Exit Prices'!$A:$B,2,FALSE) -> POWER STATION
A197: Thrintoft | B197: =VLOOKUP(A197,'Locations & Types'!$E:$F,2,FALSE) -> GDN (NO) | C197: 0.1 | D197: 1 | E197: 10 | F197: =VLOOKUP(A197,'Exit Prices'!$A:$B,2,FALSE) -> DNO
A198: Tilbury Power Station | B198: =VLOOKUP(A198,'Locations & Types'!$E:$F,2,FALSE) -> DC | C198: 0.1 | D198: 1 | E198: 10 | F198: =VLOOKUP(A198,'Exit Prices'!$A:$B,2,FALSE) -> POWER STATION
A199: Tonna (Baglan Bay) | B199: =VLOOKUP(A199,'Locations & Types'!$E:$F,2,FALSE) -> DC | C199: 0.1 | D199: 1 | E199: 10 | F199: =VLOOKUP(A199,'Exit Prices'!$A:$B,2,FALSE) -> POWER STATION
A200: Towlaw | B200: =VLOOKUP(A200,'Locations & Types'!$E:$F,2,FALSE) -> GDN (NO) | C200: 0.1 | D200: 1 | E200: 10 | F200: =VLOOKUP(A200,'Exit Prices'!$A:$B,2,FALSE) -> DNO
... 30 more rows

Sheet Locations & Types (hidden)
A1: Entry Point | B1: Location Type | E1: Exit Point | F1: Location Type | G1: Exit Zone (if applicable) | H1: Location Type | I1: Location Type
A2: Avonmouth | B2: STORAGE SITE | E2: Aberdeen | F2: GDN (SC) | G2: SC1 | H2: GDN (SC) | I2: DNO
A3: Bacton IP | B3: INTERCONNECTION POINT | E3: Abson (Seabank Power Station phase I) | F3: DC | G3: Other | H3: POWER STATION | I3: POWER STATION
A4: Bacton UKCS | B4: BEACH TERMINAL | E4: Alrewas (EM) | F4: GDN (EM) | G4: EM3 | H4: GDN (EM) | I4: DNO
A5: Barrow | B5: BEACH TERMINAL | E5: Alrewas (WM) | F5: GDN (WM) | G5: WM2 | H5: GDN (WM) | I5: DNO
A6: Barton Stacey | B6: STORAGE SITE | E6: Apache (Sage Black Start) | F6: DC | G6: Other | H6: INDUSTRIAL | I6: INDUSTRIAL
A7: Burton Point | B7: ONSHORE FIELD | E7: Armadale | F7: GDN (SC) | G7: SC2 | H7: GDN (SC) | I7: DNO
A8: Canonbie | B8: ONSHORE FIELD | E8: Aspley | F8: GDN (WM) | G8: WM1 | H8: GDN (WM) | I8: DNO
A9: Caythorpe | B9: STORAGE SITE | E9: Asselby | F9: GDN (NE) | G9: NE1 | H9: GDN (NE) | I9: DNO
A10: Cheshire | B10: STORAGE SITE | E10: Audley (NW) | F10: GDN (NW) | G10: NW2 | H10: GDN (NW) | I10: DNO
A11: Dynevor Arms | B11: STORAGE SITE | E11: Audley (WM) | F11: GDN (WM) | G11: WM1 | H11: GDN (WM) | I11: DNO
A12: Easington | B12: BEACH TERMINAL | E12: Austrey | F12: GDN (WM) | G12: WM2 | H12: GDN (WM) | I12: DNO
A13: Fleetwood | B13: STORAGE SITE | E13: Avonmouth Max Refill | F13: STORAGE SITE | G13: Other | H13: STORAGE SITE | I13: STORAGE SITE
A14: Garton | B14: STORAGE SITE | E14: Aylesbeare | F14: GDN (SW) | G14: SW3 | H14: GDN (SW) | I14: DNO
A15: Glenmavis | B15: STORAGE SITE | E15: Bacton | F15: GDN (EA) | G15: EA1 | H15: GDN (EA) | I15: DNO
A16: Hatfield Moor (onshore) | B16: ONSHORE FIELD | E16: Bacton (Baird) | F16: STORAGE SITE | G16: Other | H16: STORAGE SITE | I16: STORAGE SITE
A17: Hatfield Moor (storage) | B17: STORAGE SITE | E17: Bacton (BBL) | F17: INTERCONNECTOR | G17: Other | H17: INTERCONNECTOR | I17: INTERCONNECTOR
A18: Hole House Farm | B18: STORAGE SITE | E18: Bacton (Great Yarmouth) | F18: DC | G18: Other | H18: POWER STATION | I18: POWER STATION
A19: Hornsea | B19: STORAGE SITE | E19: Bacton (IUK) | F19: INTERCONNECTOR | G19: Other | H19: INTERCONNECTOR | I19: INTERCONNECTOR
A20: Isle of Grain | B20: LNG IMPORTATION TERMINAL | E20: Baldersby | F20: GDN (NE) | G20: NE1 | H20: GDN (NE) | I20: DNO
A21: Milford Haven | B21: LNG IMPORTATION TERMINAL | E21: Balgray | F21: GDN (SC) | G21: SC1 | H21: GDN (SC) | I21: DNO
A22: Partington | B22: STORAGE SITE | E22: Barking (Horndon) | F22: DC | G22: Other | H22: POWER STATION | I22: POWER STATION
A23: Moffat (Irish Interconnector) | B23: INTERCONNECTION POINT | E23: Barrow (Bains) | F23: STORAGE SITE | G23: Other | H23: STORAGE SITE | I23: STORAGE SITE
A24: St Fergus | B24: BEACH TERMINAL | E24: Barrow (Black Start) | F24: DC | G24: Other | H24: INDUSTRIAL | I24: INDUSTRIAL
A25: Teesside | B25: BEACH TERMINAL | E25: Barrow (Gateway) | F25: STORAGE SITE | G25: Other | H25: STORAGE SITE | I25: STORAGE SITE
A26: Theddlethorpe | B26: BEACH TERMINAL | E26: Barton Stacey Max Refill (Humbly Grove) | F26: STORAGE SITE | G26: Other | H26: STORAGE SITE | I26: STORAGE SITE
A27: Wytch Farm | B27: ONSHORE FIELD | E27: Bathgate | F27: GDN (SC) | G27: SC4 | H27: GDN (SC) | I27: DNO
A28: Murrow | B28: BIOMETHANE PLANT | E28: Billingham ICI (Terra Billingham) | F28: DC | G28: Other | H28: INDUSTRIAL | I28: INDUSTRIAL
E29: Bishop Auckland | F29: GDN (NO) | G29: NO1 | H29: GDN (NO) | I29: DNO
E30: Bishop Auckland (test facility) | F30: DC | G30: Other | H30: INDUSTRIAL | I30: INDUSTRIAL
E31: Blaby | F31: GDN (EM) | G31: EM3 | H31: GDN (EM) | I31: DNO
E32: Blackness (BP Grangemouth) | F32: DC | G32: Other | H32: INDUSTRIAL | I32: INDUSTRIAL
E33: Blackrod | F33: GDN (NW) | G33: NW1 | H33: GDN (NW) | I33: DNO
E34: Blyborough | F34: GDN (EM) | G34: EM2 | H34: GDN (EM) | I34: DNO
E35: Blyborough (Brigg) | F35: DC | G35: Other | H35: POWER STATION | I35: POWER STATION
E36: Blyborough (Cottam) | F36: DC | G36: Other | H36: POWER STATION | I36: POWER STATION
E37: Braishfield A | F37: GDN (SO) | G37: SO2 | H37: GDN (SO) | I37: DNO
E38: Braishfield B | F38: GDN (SO) | G38: SO2 | H38: GDN (SO) | I38: DNO
E39: Brine Field (Teesside) Power Station | F39: DC | G39: Other | H39: POWER STATION | I39: POWER STATION
E40: Brisley | F40: GDN (EA) | G40: EA1 | H40: GDN (EA) | I40: DNO
E41: Broxburn | F41: GDN (SC) | G41: SC2 | H41: GDN (SC) | I41: DNO
E42: Burley Bank | F42: GDN (NE) | G42: NE1 | H42: GDN (NE) | I42: DNO
E43: Burnhervie | F43: GDN (SC) | G43: SC1 | H43: GDN (SC) | I43: DNO
E44: Burton Point (Connahs Quay) | F44: DC | G44: Other | H44: POWER STATION | I44: POWER STATION
E45: Caldecott | F45: GDN (EM) | G45: EM4 | H45: GDN (EM) | I45: DNO
E46: Caldecott (Corby Power Station) | F46: DC | G46: Other | H46: POWER STATION | I46: POWER STATION
E47: Cambridge | F47: GDN (EA) | G47: EA4 | H47: GDN (EA) | I47: DNO
E48: Careston | F48: GDN (SC) | G48: SC1 | H48: GDN (SC) | I48: DNO
E49: Carrington (Partington) Power Station | F49: DC | G49: Other | H49: POWER STATION | I49: POWER STATION
E50: Caythorpe | F50: STORAGE SITE | G50: Other | H50: STORAGE SITE | I50: STORAGE SITE
E51: Centrax Industrial | F51: DC | G51: Other | H51: INDUSTRIAL | I51: INDUSTRIAL
E52: Cirencester | F52: GDN (SW) | G52: SW2 | H52: GDN (SW) | I52: DNO
E53: Cockenzie Power Station | F53: DC | G53: Other | H53: POWER STATION | I53: POWER STATION
E54: Coffinswell | F54: GDN (SW) | G54: SW3 | H54: GDN (SW) | I54: DNO
E55: Coldstream | F55: GDN (NO) | G55: NO1 | H55: GDN (NO) | I55: DNO
E56: Corbridge | F56: GDN (NO) | G56: NO1 | H56: GDN (NO) | I56: DNO
E57: Coryton 2 (Thames Haven) Power Station | F57: DC | G57: Other | H57: POWER STATION | I57: POWER STATION
E58: Cowpen Bewley | F58: GDN (NO) | G58: NO1 | H58: GDN (NO) | I58: DNO
E59: Crawley Down | F59: GDN (SO) | G59: SO2 | H59: GDN (SO) | I59: DNO
E60: Deborah Storage (Bacton) | F60: STORAGE SITE | G60: Other | H60: STORAGE SITE | I60: STORAGE SITE
E61: Deeside | F61: DC | G61: Other | H61: POWER STATION | I61: POWER STATION
E62: Didcot | F62: DC | G62: Other | H62: POWER STATION | I62: POWER STATION
E63: Dowlais | F63: GDN (WS) | G63: WS | H63: GDN (WS) | I63: DNO
E64: Drakelow Power Station | F64: DC | G64: Other | H64: POWER STATION | I64: POWER STATION
E65: Drointon | F65: GDN (EM) | G65: EM3 | H65: GDN (EM) | I65: DNO
E66: Drum | F66: GDN (SC) | G66: SC4 | H66: GDN (SC) | I66: DNO
E67: Dyffryn Clydach | F67: GDN (WS) | G67: WS | H67: GDN (WS) | I67: DNO
E68: Dynevor Max Refill | F68: STORAGE SITE | G68: Other | H68: STORAGE SITE | I68: STORAGE SITE
E69: Eastoft (Keadby Blackstart) | F69: DC | G69: Other | H69: POWER STATION | I69: POWER STATION
E70: Eastoft (Keadby) | F70: DC | G70: Other | H70: POWER STATION | I70: POWER STATION
E71: Easton Grey | F71: GDN (SW) | G71: SW2 | H71: GDN (SW) | I71: DNO
E72: Ecclestone | F72: GDN (NW) | G72: NW2 | H72: GDN (NW) | I72: DNO
E73: Elton | F73: GDN (NO) | G73: NO1 | H73: GDN (NO) | I73: DNO
E74: Enron Billingham | F74: DC | G74: Other | H74: POWER STATION | I74: POWER STATION
E75: Epping Green (Enfield Energy, aka Brimsdown) | F75: DC | G75: Other | H75: POWER STATION | I75: POWER STATION
E76: Evesham | F76: GDN (SW) | G76: SW1 | H76: GDN (SW) | I76: DNO
E77: Farningham | F77: GDN (SE) | G77: SE1 | H77: GDN (SE) | I77: DNO
E78: Farningham B | F78: GDN (SE) | G78: SE1 | H78: GDN (SE) | I78: DNO
E79: Ferny Knoll (AM Paper) | F79: DC | G79: Other | H79: INDUSTRIAL | I79: INDUSTRIAL
E80: Fiddington | F80: GDN (SW) | G80: SW1 | H80: GDN (SW) | I80: DNO
E81: Ganstead | F81: GDN (NE) | G81: NE2 | H81: GDN (NE) | I81: DNO
E82: Garton Max Refill (Aldbrough) | F82: STORAGE SITE | G82: Other | H82: STORAGE SITE | I82: STORAGE SITE
E83: Gilwern | F83: GDN (WS) | G83: WS | H83: GDN (WS) | I83: DNO
E84: Glenmavis | F84: GDN (SC) | G84: SC4 | H84: GDN (SC) | I84: DNO
E85: Glenmavis Max Refill | F85: STORAGE SITE | G85: Other | H85: STORAGE SITE | I85: STORAGE SITE
E86: Goole (Guardian Glass) | F86: DC | G86: Other | H86: INDUSTRIAL | I86: INDUSTRIAL
E87: Gosberton | F87: GDN (EM) | G87: EM2 | H87: GDN (EM) | I87: DNO
E88: Gowkhall (Longannet) | F88: DC | G88: Other | H88: POWER STATION | I88: POWER STATION
E89: Grain Power Station | F89: DC | G89: Other | H89: POWER STATION | I89: POWER STATION
E90: Great Wilbraham | F90: GDN (EA) | G90: EA2 | H90: GDN (EA) | I90: DNO
E91: Guyzance | F91: GDN (NO) | G91: NO1 | H91: GDN (NO) | I91: DNO
E92: Hardwick | F92: GDN (SO) | G92: SO1 | H92: GDN (SO) | I92: DNO
E93: Harwarden (Shotton, aka Shotton Paper) | F93: DC | G93: Other | H93: INDUSTRIAL | I93: INDUSTRIAL
E94: Hatfield Moor Max Refill | F94: STORAGE SITE | G94: Other | H94: STORAGE SITE | I94: STORAGE SITE
E95: Hatfield Power Station | F95: DC | G95: Other | H95: POWER STATION | I95: POWER STATION
E96: Hill Top Farm (Hole House Farm) | F96: STORAGE SITE | G96: Other | H96: STORAGE SITE | I96: STORAGE SITE
E97: Hole House Max Refill | F97: STORAGE SITE | G97: Other | H97: STORAGE SITE | I97: STORAGE SITE
E98: Holford | F98: STORAGE SITE | G98: Other | H98: STORAGE SITE | I98: STORAGE SITE
E99: Hollingsgreen (Hays Chemicals) | F99: DC | G99: Other | H99: INDUSTRIAL | I99: INDUSTRIAL
E100: Holmes Chapel | F100: GDN (NW) | G100: NW2 | H100: GDN (NW) | I100: DNO
E101: Horndon | F101: GDN (NT) | G101: NT2 | H101: GDN (NT) | I101: DNO
E102: Hornsea Max Refill | F102: STORAGE SITE | G102: Other | H102: STORAGE SITE | I102: STORAGE SITE
E103: Humbleton | F103: GDN (NO) | G103: NO1 | H103: GDN (NO) | I103: DNO
E104: Hume | F104: GDN (SC) | G104: SC2 | H104: GDN (SC) | I104: DNO
E105: Ilchester | F105: GDN (SW) | G105: SW2 | H105: GDN (SW) | I105: DNO
E106: Ipsden | F106: GDN (SO) | G106: SO2 | H106: GDN (SO) | I106: DNO
E107: Ipsden 2 | F107: GDN (SO) | G107: SO2 | H107: GDN (SO) | I107: DNO
E108: Keld | F108: GDN (NO) | G108: NO2 | H108: GDN (NO) | I108: DNO
E109: Kenn | F109: GDN (SW) | G109: SW3 | H109: GDN (SW) | I109: DNO
E110: Kinknockie | F110: GDN (SC) | G110: SC1 | H110: GDN (SC) | I110: DNO
E111: Kirkstead | F111: GDN (EM) | G111: EM2 | H111: GDN (EM) | I111: DNO
E112: Langage Power Station | F112: DC | G112: Other | H112: POWER STATION | I112: POWER STATION
E113: Langholm | F113: GDN (SC) | G113: SC4 | H113: GDN (SC) | I113: DNO
E114: Lauderhill | F114: GDN (SC) | G114: SC2 | H114: GDN (SC) | I114: DNO
E115: Leamington | F115: GDN (WM) | G115: WM3 | H115: GDN (WM) | I115: DNO
E116: Little Burdon | F116: GDN (NO) | G116: NO1 | H116: GDN (NO) | I116: DNO
E117: Littleton Drew | F117: GDN (SW) | G117: SW2 | H117: GDN (SW) | I117: DNO
E118: Lockerbie | F118: GDN (SC) | G118: SC4 | H118: GDN (SC) | I118: DNO
E119: Lower Quinton | F119: GDN (WM) | G119: WM3 | H119: GDN (WM) | I119: DNO
E120: Lupton | F120: GDN (NW) | G120: NW1 | H120: GDN (NW) | I120: DNO
E121: Luxborough Lane | F121: GDN (NT) | G121: NT2 | H121: GDN (NT) | I121: DNO
E122: Lyneham (Choakford) | F122: GDN (SW) | G122: SW3 | H122: GDN (SW) | I122: DNO
E123: Maelor | F123: GDN (WN) | G123: WN | H123: GDN (WN) | I123: DNO
E124: Malpas | F124: GDN (NW) | G124: NW2 | H124: GDN (NW) | I124: DNO
E125: Mappowder | F125: GDN (SO) | G125: SO2 | H125: GDN (SO) | I125: DNO
E126: Marchwood Power Station | F126: DC | G126: Other | H126: POWER STATION | I126: POWER STATION
E127: Market Harborough | F127: GDN (EM) | G127: EM4 | H127: GDN (EM) | I127: DNO
E128: Matching Green | F128: GDN (EA) | G128: EA4 | H128: GDN (EA) | I128: DNO
E129: Medway (aka Isle of Grain Power Station, NOT Grain Power) | F129: DC | G129: Other | H129: POWER STATION | I129: POWER STATION
E130: Melkinthorpe | F130: GDN (NO) | G130: NO2 | H130: GDN (NO) | I130: DNO
E131: Mickle Trafford | F131: GDN (NW) | G131: NW2 | H131: GDN (NW) | I131: DNO
E132: Middle Stoke (Damhead Creek, aka Kingsnorth Power Station) | F132: DC | G132: Other | H132: POWER STATION | I132: POWER STATION
E133: Milwich | F133: GDN (WM) | G133: WM1 | H133: GDN (WM) | I133: DNO
E134: Moffat (Irish Interconnector) | F134: INTERCONNECTOR | G134: Other | H134: INTERCONNECTOR | I134: INTERCONNECTOR
E135: Netherhowcleugh | F135: GDN (SC) | G135: SC4 | H135: GDN (SC) | I135: DNO
E136: Pannal | F136: GDN (NE) | G136: NE1 | H136: GDN (NE) | I136: DNO
E137: Partington | F137: GDN (NW) | G137: NW2 | H137: GDN (NW) | I137: DNO
E138: Partington Max Refill | F138: STORAGE SITE | G138: Other | H138: STORAGE SITE | I138: STORAGE SITE
E139: Paull | F139: GDN (NE) | G139: NE3 | H139: GDN (NE) | I139: DNO
E140: Pembroke Power Station | F140: DC | G140: Other | H140: POWER STATION | I140: POWER STATION
E141: Peterborough (Peterborough Power Station) | F141: DC | G141: Other | H141: POWER STATION | I141: POWER STATION
E142: Peterborough Eye (Tee) | F142: GDN (EA) | G142: EA1 | H142: GDN (EA) | I142: DNO
E143: Peters Green | F143: GDN (NT) | G143: NT3 | H143: GDN (NT) | I143: DNO
E144: Peters Green South Mimms | F144: GDN (NT) | G144: NT3 | H144: GDN (NT) | I144: DNO
E145: Phillips Petroleum, Teesside | F145: DC | G145: Other | H145: INDUSTRIAL | I145: INDUSTRIAL
E146: Pickering | F146: GDN (NE) | G146: NE2 | H146: GDN (NE) | I146: DNO
E147: Pickmere (Winnington Power, aka Brunner Mond) | F147: DC | G147: Other | H147: INDUSTRIAL | I147: INDUSTRIAL
E148: Pitcairngreen | F148: GDN (SC) | G148: SC1 | H148: GDN (SC) | I148: DNO
E149: Pucklechurch | F149: GDN (SW) | G149: SW2 | H149: GDN (SW) | I149: DNO
E150: Rawcliffe | F150: GDN (NE) | G150: NE1 | H150: GDN (NE) | I150: DNO
E151: Glasgoforest | F151: DC | G151: Other | H151: INDUSTRIAL | I151: INDUSTRIAL
E152: Roosecote Power Station (Barrow) | F152: DC | G152: Other | H152: POWER STATION | I152: POWER STATION
E153: Rosehill (Saltend Power Station) | F153: DC | G153: Other | H153: POWER STATION | I153: POWER STATION
E154: Ross (SW) | F154: GDN (SW) | G154: SW1 | H154: GDN (SW) | I154: DNO
E155: Ross (WM) | F155: GDN (WM) | G155: WM3 | H155: GDN (WM) | I155: DNO
E156: Roudham Heath | F156: GDN (EA) | G156: EA2 | H156: GDN (EA) | I156: DNO
E157: Royston | F157: GDN (EA) | G157: EA4 | H157: GDN (EA) | I157: DNO
E158: Rugby | F158: GDN (WM) | G158: WM3 | H158: GDN (WM) | I158: DNO
E159: Ryehouse | F159: DC | G159: Other | H159: POWER STATION | I159: POWER STATION
E160: Saddle Bow (Kings Lynn) | F160: DC | G160: Other | H160: POWER STATION | I160: POWER STATION
E161: Saltend BPHP (BP Saltend HP) | F161: DC | G161: Other | H161: INDUSTRIAL | I161: INDUSTRIAL
E162: Saltfleetby Storage (Theddlethorpe) | F162: STORAGE SITE | G162: Other | H162: STORAGE SITE | I162: STORAGE SITE
E163: Saltwick Pressure Controlled | F163: GDN (NO) | G163: NO1 | H163: GDN (NO) | I163: DNO
E164: Saltwick Volumetric Controlled | F164: GDN (NO) | G164: NO1 | H164: GDN (NO) | I164: DNO
E165: Samlesbury | F165: GDN (NW) | G165: NW1 | H165: GDN (NW) | I165: DNO
E166: Sandy Lane (Blackburn CHP, aka Sappi Paper Mill) | F166: DC | G166: Other | H166: INDUSTRIAL | I166: INDUSTRIAL
E167: Seabank (DN) | F167: GDN (SW) | G167: SW2 | H167: GDN (SW) | I167: DNO
E168: Seabank (Seabank Power Station phase II) | F168: DC | G168: Other | H168: POWER STATION | I168: POWER STATION
E169: Seal Sands TGPP | F169: DC | G169: Other | H169: INDUSTRIAL | I169: INDUSTRIAL
E170: Sellafield Power Station | F170: DC | G170: Other | H170: POWER STATION | I170: POWER STATION
E171: Shellstar (aka Kemira, not Kemira CHP) | F171: DC | G171: Other | H171: INDUSTRIAL | I171: INDUSTRIAL
E172: Shorne | F172: GDN (SE) | G172: SE1 | H172: GDN (SE) | I172: DNO
E173: Shotwick (Bridgewater Paper) | F173: DC | G173: Other | H173: INDUSTRIAL | I173: INDUSTRIAL
E174: Shustoke | F174: GDN (WM) | G174: WM2 | H174: GDN (WM) | I174: DNO
E175: Silk Willoughby | F175: GDN (EM) | G175: EM2 | H175: GDN (EM) | I175: DNO
E176: Soutra | F176: GDN (SC) | G176: SC2 | H176: GDN (SC) | I176: DNO
E177: Spalding 2 (South Holland) Power Station | F177: DC | G177: Other | H177: POWER STATION | I177: POWER STATION
E178: St Fergus | F178: GDN (SC) | G178: SC1 | H178: GDN (SC) | I178: DNO
E179: St. Fergus (Peterhead) | F179: DC | G179: Other | H179: POWER STATION | I179: POWER STATION
E180: St. Fergus (Shell Blackstart) | F180: DC | G180: Other | H180: INDUSTRIAL | I180: INDUSTRIAL
E181: St. Neots (Little Barford) | F181: DC | G181: Other | H181: POWER STATION | I181: POWER STATION
E182: Stallingborough | F182: DC | G182: Other | H182: POWER STATION | I182: POWER STATION
E183: Stanford Le Hope (Coryton) | F183: DC | G183: Other | H183: POWER STATION | I183: POWER STATION
E184: Staythorpe | F184: DC | G184: Other | H184: POWER STATION | I184: POWER STATION
E185: Stranraer | F185: GDN (SC) | G185: SC4 | H185: GDN (SC) | I185: DNO
E186: Stratford-upon-Avon | F186: GDN (WM) | G186: WM3 | H186: GDN (WM) | I186: DNO
E187: Stublach (Cheshire) | F187: STORAGE SITE | G187: Other | H187: STORAGE SITE | I187: STORAGE SITE
E188: Sutton Bridge | F188: GDN (EM) | G188: EM2 | H188: GDN (EM) | I188: DNO
E189: Sutton Bridge Power Station | F189: DC | G189: Other | H189: POWER STATION | I189: POWER STATION
E190: Tatsfield | F190: GDN (SE) | G190: SE1 | H190: GDN (SE) | I190: DNO
E191: Teesside (BASF, aka BASF Teesside) | F191: DC | G191: Other | H191: INDUSTRIAL | I191: INDUSTRIAL
E192: Teesside Hydrogen | F192: DC | G192: Other | H192: INDUSTRIAL | I192: INDUSTRIAL
E193: Terra Nitrogen (aka ICI, Terra Severnside) | F193: DC | G193: Other | H193: INDUSTRIAL | I193: INDUSTRIAL
E194: Thornton Curtis (DN) | F194: GDN (EM) | G194: EM1 | H194: GDN (EM) | I194: DNO
E195: Thornton Curtis (Humber Refinery, aka Immingham) | F195: DC | G195: Other | H195: INDUSTRIAL | I195: INDUSTRIAL
E196: Thornton Curtis (Killingholme) | F196: DC | G196: Other | H196: POWER STATION | I196: POWER STATION
E197: Thrintoft | F197: GDN (NO) | G197: NO1 | H197: GDN (NO) | I197: DNO
E198: Tilbury Power Station | F198: DC | G198: Other | H198: POWER STATION | I198: POWER STATION
E199: Tonna (Baglan Bay) | F199: DC | G199: Other | H199: POWER STATION | I199: POWER STATION
E200: Towlaw | F200: GDN (NO) | G200: NO2 | H200: GDN (NO) | I200: DNO
... 30 more rows

Sheet Existing Contracts - Entry
A1: Gas Year | B1: ='Drop Down Inputs'!A17 -> 01-Oct-2020 to 30-Sep-2021 | C1: ='Drop Down Inputs'!A18 -> 01-Oct-2021 to 30-Sep-2022 | D1: 01-Oct-2022 to 30-Sep-2023 | E1: 01-Oct-2023 to 30-Sep-2024 | F1: 01-Oct-2024 to 30-Sep-2025 | G1: 01-Oct-2025 to 30-Sep-2026 | H1: 01-Oct-2026 to 30-Sep-2027 | I1: 01-Oct-2027 to 30-Sep-2028 | J1: 01-Oct-2028 to 30-Sep-2029 | K1: 01-Oct-2029 to 30-Sep-2030 | L1: 01-Oct-2030 to 30-Sep-2031 | M1: 01-Oct-2031 to 30-Sep-2032 | N1: 01-Oct-2032 to 30-Sep-2033 | O1: 01-Oct-2033 to 30-Sep-2034
A2: Entry Point | B2: Existing Contracts (kWh/d) | C2: Existing Contracts (kWh/d) | D2: Existing Contracts (kWh/d) | E2: Existing Contracts (kWh/d) | F2: Existing Contracts (kWh/d) | G2: Existing Contracts (kWh/d) | H2: Existing Contracts (kWh/d) | I2: Existing Contracts (kWh/d) | J2: Existing Contracts (kWh/d) | K2: Existing Contracts (kWh/d) | L2: Existing Contracts (kWh/d) | M2: Existing Contracts (kWh/d) | N2: Existing Contracts (kWh/d) | O2: Existing Contracts (kWh/d)
A3: Avonmouth | D3: 0 | F3: 0 | G3: 0 | H3: 0 | I3: 0 | J3: 0 | K3: 0 | L3: 0 | M3: 0 | N3: 0 | O3: 0
A4: Bacton IP | B4: 92108469.92 | C4: 44200041.86 | D4: 28676367.86 | E4: 28837386.07 | F4: 28598630.05 | G4: 0 | H4: 0 | I4: 0 | J4: 0 | K4: 0 | L4: 0 | M4: 0 | N4: 0 | O4: 0
A5: Bacton UKCS | B5: 209685086.1 | C5: 202955250.5 | D5: 198902231.4 | E5: 197629157 | F5: 196760730.5 | G5: 152373059.2 | H5: 0 | I5: 0 | J5: 0 | K5: 0 | L5: 0 | M5: 0 | N5: 0 | O5: 0
A6: Burton Point | B6: 7134731.107 | D6: 0 | F6: 0 | G6: 0 | H6: 0 | I6: 0 | J6: 0 | K6: 0 | L6: 0 | M6: 0 | N6: 0 | O6: 0
A7: Barrow | B7: 28613480.99 | C7: 25140906.36 | D7: 17878570.79 | E7: 15793118.19 | F7: 372130.674 | G7: 0 | H7: 0 | I7: 0 | J7: 0 | K7: 0 | L7: 0 | M7: 0 | N7: 0 | O7: 0
A8: Barton Stacey | B8: 80975342.47 | C8: 35901369.86 | D8: 0 | F8: 0 | G8: 0 | H8: 0 | I8: 0 | J8: 0 | K8: 0 | L8: 0 | M8: 0 | N8: 0 | O8: 0
A9: Canonbie | D9: 0 | F9: 0 | G9: 0 | H9: 0 | I9: 0 | J9: 0 | K9: 0 | L9: 0 | M9: 0 | N9: 0 | O9: 0
A10: Cheshire | B10: 514110000 | C10: 514110000 | D10: 514110000 | E10: 514110000 | F10: 514110000 | G10: 514110000 | H10: 514110000 | I10: 514110000 | J10: 514110000 | K10: 514110000 | L10: 514110000 | M10: 514110000 | N10: 0 | O10: 0
A11: Caythorpe | B11: 90000000 | C11: 90000000 | D11: 90000000 | E11: 90000000 | F11: 44876712.33 | G11: 0 | H11: 0 | I11: 0 | J11: 0 | K11: 0 | L11: 0 | M11: 0 | N11: 0 | O11: 0
A12: Dynevor Arms | D12: 0 | F12: 0 | G12: 0 | H12: 0 | I12: 0 | J12: 0 | K12: 0 | L12: 0 | M12: 0 | N12: 0 | O12: 0
A13: Easington | B13: 672206895 | C13: 583361098.4 | D13: 584865279.7 | E13: 491393907.2 | F13: 439116023.8 | G13: 393349125.9 | H13: 326978082.2 | I13: 241000000 | J13: 0 | K13: 0 | L13: 0 | M13: 0 | N13: 0 | O13: 0
A14: Fleetwood | D14: 0 | F14: 86301369.86 | G14: 0 | H14: 0 | I14: 0 | J14: 0 | K14: 0 | L14: 0 | M14: 0 | N14: 0 | O14: 0
A15: Glenmavis | D15: 0 | F15: 0 | G15: 0 | H15: 0 | I15: 0 | J15: 0 | K15: 0 | L15: 0 | M15: 0 | N15: 0 | O15: 0
A16: Garton | B16: 420000000 | C16: 420000000 | D16: 279616438.4 | E16: 70000000 | F16: 0 | G16: 0 | H16: 0 | I16: 0 | J16: 0 | K16: 0 | L16: 0 | M16: 0 | N16: 0 | O16: 0
A17: Hole House Farm | B17: 283440000 | C17: 283440000 | D17: 283440000 | E17: 283440000 | F17: 283440000 | G17: 283440000 | H17: 118440000 | I17: 118440000 | J17: 118440000 | K17: 0 | L17: 0 | M17: 0 | N17: 0 | O17: 0
A18: Hatfield Moor (onshore) | D18: 0 | F18: 0 | G18: 0 | H18: 0 | I18: 0 | J18: 0 | K18: 0 | L18: 0 | M18: 0 | N18: 0 | O18: 0
A19: Hornsea | B19: 50742739.73 | C19: 50742739.73 | D19: 50742739.73 | F19: 0 | G19: 0 | H19: 0 | I19: 0 | J19: 0 | K19: 0 | L19: 0 | M19: 0 | N19: 0 | O19: 0
A20: Hatfield Moor (storage) | B20: 5424657.534 | C20: 5424657.534 | D20: 0 | E20: 5469945.355 | F20: 5424657.534 | G20: 0 | H20: 0 | I20: 0 | J20: 0 | K20: 0 | L20: 0 | M20: 0 | N20: 0 | O20: 0
A21: Isle of Grain | B21: 643392876.7 | C21: 623338082.2 | D21: 623338082.2 | E21: 593450000 | F21: 482435616.4 | G21: 422600000 | H21: 422600000 | I21: 422600000 | J21: 350000000 | K21: 0 | L21: 0 | M21: 0 | N21: 0 | O21: 0
A22: Milford Haven | B22: 649178082.2 | C22: 574383561.6 | D22: 398904109.6 | E22: 392333333.3 | F22: 361095890.4 | G22: 361095890.4 | H22: 361095890.4 | I22: 198907103.8 | J22: 197260274 | K22: 160273972.6 | L22: 0 | M22: 0 | N22: 0 | O22: 0
A23: Partington | D23: 0 | F23: 0 | G23: 0 | H23: 0 | I23: 0 | J23: 0 | K23: 0 | L23: 0 | M23: 0 | N23: 0 | O23: 0
A24: Moffat (Irish Interconnector) | D24: 0 | F24: 0 | G24: 0 | H24: 0 | I24: 0 | J24: 0 | K24: 0 | L24: 0 | M24: 0 | N24: 0 | O24: 0
A25: Murrow | D25: 0 | F25: 0 | G25: 0 | H25: 0 | I25: 0 | J25: 0 | K25: 0 | L25: 0 | M25: 0 | N25: 0 | O25: 0
A26: St Fergus | B26: 52255259.46 | C26: 26676365.96 | D26: 22649389.36 | E26: 15524157.39 | F26: 5236705.808 | G26: 3005859.545 | H26: 0 | I26: 0 | J26: 0 | K26: 0 | L26: 0 | M26: 0 | N26: 0 | O26: 0
A27: Teesside | B27: 51244459.52 | C27: 34038113.08 | D27: 9764066.775 | E27: 1861378.011 | F27: 863413.6274 | G27: 181819.726 | H27: 0 | I27: 0 | J27: 0 | K27: 0 | L27: 0 | M27: 0 | N27: 0 | O27: 0
A28: Theddlethorpe | D28: 0 | F28: 0 | G28: 0 | H28: 0 | I28: 0 | J28: 0 | K28: 0 | L28: 0 | M28: 0 | N28: 0 | O28: 0
A29: Wytch Farm | D29: 0 | F29: 0 | G29: 0 | H29: 0 | I29: 0 | J29: 0 | K29: 0 | L29: 0 | M29: 0 | N29: 0 | O29: 0
A30: Total Capacity (kWh/d) | B30: =SUM(B3:B29) -> 3850512081 | C30: 3513712187 | D30: 3102887276 | E30: 2699842383 | F30: 2448631881 | G30: 2130155755 | H30: 1743223973 | I30: 1495057104 | J30: 1179810274 | K30: 674383972.6 | L30: 514110000 | M30: 514110000 | N30: 0 | O30: 0
A31: Total Revenue (£/annum) | B31: 50705990.07 | C31: 46463173.5 | D31: 45766922.07 | E31: 58082314.44 | F31: 50338823.78 | G31: 45066118.26 | H31: 37394005.75 | I31: 25210526.9 | J31: 15151880.75 | K31: 12180150.15 | L31: 187650.15 | M31: 188164.26 | N31: 0 | O31: 0
A33: (Updated from 20/21 onwards)

Sheet 18-19 FCC - Entry (hidden)
A1: Entry Point | B1: Entry Point Type | C1: Forecasted Contracted Capacity
C2: (kWh/d)
A3: Avonmouth | B3: =VLOOKUP(A3,'Locations & Types'!$A:$B,2,FALSE) -> STORAGE SITE | C3: 0
A4: Bacton IP | B4: =VLOOKUP(A4,'Locations & Types'!$A:$B,2,FALSE) -> INTERCONNECTION POINT | C4: 242349238.1
A5: Bacton UKCS | B5: =VLOOKUP(A5,'Locations & Types'!$A:$B,2,FALSE) -> BEACH TERMINAL | C5: 674940457.3
A6: Burton Point | B6: =VLOOKUP(A6,'Locations & Types'!$A:$B,2,FALSE) -> ONSHORE FIELD | C6: 31388848.35
A7: Barrow | B7: =VLOOKUP(A7,'Locations & Types'!$A:$B,2,FALSE) -> BEACH TERMINAL | C7: 83866773.67
A8: Barton Stacey | B8: =VLOOKUP(A8,'Locations & Types'!$A:$B,2,FALSE) -> STORAGE SITE | C8: 90000000
A9: Canonbie | B9: =VLOOKUP(A9,'Locations & Types'!$A:$B,2,FALSE) -> ONSHORE FIELD | C9: 0
A10: Cheshire | B10: =VLOOKUP(A10,'Locations & Types'!$A:$B,2,FALSE) -> STORAGE SITE | C10: 514110000
A11: Caythorpe | B11: =VLOOKUP(A11,'Locations & Types'!$A:$B,2,FALSE) -> STORAGE SITE | C11: 90000000
A12: Dynevor Arms | B12: =VLOOKUP(A12,'Locations & Types'!$A:$B,2,FALSE) -> STORAGE SITE | C12: 0
A13: Easington | B13: =VLOOKUP(A13,'Locations & Types'!$A:$B,2,FALSE) -> BEACH TERMINAL | C13: 923976213.2
A14: Fleetwood | B14: =VLOOKUP(A14,'Locations & Types'!$A:$B,2,FALSE) -> STORAGE SITE | C14: 0
A15: Glenmavis | B15: =VLOOKUP(A15,'Locations & Types'!$A:$B,2,FALSE) -> STORAGE SITE | C15: 0
A16: Garton | B16: =VLOOKUP(A16,'Locations & Types'!$A:$B,2,FALSE) -> STORAGE SITE | C16: 420000000
A17: Hole House Farm | B17: =VLOOKUP(A17,'Locations & Types'!$A:$B,2,FALSE) -> STORAGE SITE | C17: 283440000
A18: Hatfield Moor (onshore) | B18: =VLOOKUP(A18,'Locations & Types'!$A:$B,2,FALSE) -> ONSHORE FIELD | C18: 0
A19: Hornsea | B19: =VLOOKUP(A19,'Locations & Types'!$A:$B,2,FALSE) -> STORAGE SITE | C19: 108866575.3
A20: Hatfield Moor (storage) | B20: =VLOOKUP(A20,'Locations & Types'!$A:$B,2,FALSE) -> STORAGE SITE | C20: 5424657.534
A21: Isle of Grain | B21: =VLOOKUP(A21,'Locations & Types'!$A:$B,2,FALSE) -> LNG IMPORTATION TERMINAL | C21: 643612054.3
A22: Milford Haven | B22: =VLOOKUP(A22,'Locations & Types'!$A:$B,2,FALSE) -> LNG IMPORTATION TERMINAL | C22: 876298630.1
A23: Partington | B23: =VLOOKUP(A23,'Locations & Types'!$A:$B,2,FALSE) -> STORAGE SITE | C23: 0
A24: Moffat (Irish Interconnector) | B24: =VLOOKUP(A24,'Locations & Types'!$A:$B,2,FALSE) -> INTERCONNECTION POINT | C24: 5969.098677
A25: Murrow | B25: BIOMETHANE PLANT | C25: 0
A26: St Fergus | B26: =VLOOKUP(A26,'Locations & Types'!$A:$B,2,FALSE) -> BEACH TERMINAL | C26: 845897745.5
A27: Teesside | B27: =VLOOKUP(A27,'Locations & Types'!$A:$B,2,FALSE) -> BEACH TERMINAL | C27: 280182870.2
A28: Theddlethorpe | B28: =VLOOKUP(A28,'Locations & Types'!$A:$B,2,FALSE) -> BEACH TERMINAL | C28: 52721441.07
A29: Wytch Farm | B29: =VLOOKUP(A29,'Locations & Types'!$A:$B,2,FALSE) -> ONSHORE FIELD | C29: 0

Sheet 19-20 FCC - Entry (hidden)
A1: Entry Point | B1: Entry Point Type | C1: Forecasted Contracted Capacity
C2: (kWh/d)
A3: Avonmouth | B3: =VLOOKUP(A3,'Locations & Types'!$A:$B,2,FALSE) -> STORAGE SITE | C3: 0
A4: Bacton IP | B4: =VLOOKUP(A4,'Locations & Types'!$A:$B,2,FALSE) -> INTERCONNECTION POINT | C4: 242349238.1
A5: Bacton UKCS | B5: =VLOOKUP(A5,'Locations & Types'!$A:$B,2,FALSE) -> BEACH TERMINAL | C5: 674940457.3
A6: Burton Point | B6: =VLOOKUP(A6,'Locations & Types'!$A:$B,2,FALSE) -> ONSHORE FIELD | C6: 31388848.35
A7: Barrow | B7: =VLOOKUP(A7,'Locations & Types'!$A:$B,2,FALSE) -> BEACH TERMINAL | C7: 83866773.67
A8: Barton Stacey | B8: =VLOOKUP(A8,'Locations & Types'!$A:$B,2,FALSE) -> STORAGE SITE | C8: 90000000
A9: Canonbie | B9: =VLOOKUP(A9,'Locations & Types'!$A:$B,2,FALSE) -> ONSHORE FIELD | C9: 0
A10: Cheshire | B10: =VLOOKUP(A10,'Locations & Types'!$A:$B,2,FALSE) -> STORAGE SITE | C10: 514110000
A11: Caythorpe | B11: =VLOOKUP(A11,'Locations & Types'!$A:$B,2,FALSE) -> STORAGE SITE | C11: 90000000
A12: Dynevor Arms | B12: =VLOOKUP(A12,'Locations & Types'!$A:$B,2,FALSE) -> STORAGE SITE | C12: 0
A13: Easington | B13: =VLOOKUP(A13,'Locations & Types'!$A:$B,2,FALSE) -> BEACH TERMINAL | C13: 923976213.2
A14: Fleetwood | B14: =VLOOKUP(A14,'Locations & Types'!$A:$B,2,FALSE) -> STORAGE SITE | C14: 0
A15: Glenmavis | B15: =VLOOKUP(A15,'Locations & Types'!$A:$B,2,FALSE) -> STORAGE SITE | C15: 0
A16: Garton | B16: =VLOOKUP(A16,'Locations & Types'!$A:$B,2,FALSE) -> STORAGE SITE | C16: 420000000
A17: Hole House Farm | B17: =VLOOKUP(A17,'Locations & Types'!$A:$B,2,FALSE) -> STORAGE SITE | C17: 283440000
A18: Hatfield Moor (onshore) | B18: =VLOOKUP(A18,'Locations & Types'!$A:$B,2,FALSE) -> ONSHORE FIELD | C18: 0
A19: Hornsea | B19: =VLOOKUP(A19,'Locations & Types'!$A:$B,2,FALSE) -> STORAGE SITE | C19: 108866575.3
A20: Hatfield Moor (storage) | B20: =VLOOKUP(A20,'Locations & Types'!$A:$B,2,FALSE) -> STORAGE SITE | C20: 5469945.355
A21: Isle of Grain | B21: =VLOOKUP(A21,'Locations & Types'!$A:$B,2,FALSE) -> LNG IMPORTATION TERMINAL | C21: 643612054.3
A22: Milford Haven | B22: =VLOOKUP(A22,'Locations & Types'!$A:$B,2,FALSE) -> LNG IMPORTATION TERMINAL | C22: 926500000
A23: Partington | B23: =VLOOKUP(A23,'Locations & Types'!$A:$B,2,FALSE) -> STORAGE SITE | C23: 0
A24: Moffat (Irish Interconnector) | B24: =VLOOKUP(A24,'Locations & Types'!$A:$B,2,FALSE) -> INTERCONNECTION POINT | C24: 5969.098677
A25: Murrow | B25: BIOMETHANE PLANT | C25: 0
A26: St Fergus | B26: =VLOOKUP(A26,'Locations & Types'!$A:$B,2,FALSE) -> BEACH TERMINAL | C26: 845897745.5
A27: Teesside | B27: =VLOOKUP(A27,'Locations & Types'!$A:$B,2,FALSE) -> BEACH TERMINAL | C27: 349329734
A28: Theddlethorpe | B28: =VLOOKUP(A28,'Locations & Types'!$A:$B,2,FALSE) -> BEACH TERMINAL | C28: 43243983.56
A29: Wytch Farm | B29: =VLOOKUP(A29,'Locations & Types'!$A:$B,2,FALSE) -> ONSHORE FIELD | C29: 0

Sheet 20-21 FCC - Entry (hidden)
A1: Entry Point | B1: Entry Point Type | C1: Forecasted Contracted Capacity
C2: (kWh/d)
A3: Avonmouth | B3: =VLOOKUP(A3,'Locations & Types'!$A:$B,2,FALSE) -> STORAGE SITE | C3: 0
A4: Bacton IP | B4: =VLOOKUP(A4,'Locations & Types'!$A:$B,2,FALSE) -> INTERCONNECTION POINT | C4: 178627069.6
A5: Bacton UKCS | B5: =VLOOKUP(A5,'Locations & Types'!$A:$B,2,FALSE) -> BEACH TERMINAL | C5: 648603335.9
A6: Burton Point | B6: =VLOOKUP(A6,'Locations & Types'!$A:$B,2,FALSE) -> ONSHORE FIELD | C6: 14936970.81
A7: Barrow | B7: =VLOOKUP(A7,'Locations & Types'!$A:$B,2,FALSE) -> BEACH TERMINAL | C7: 75553005.9
A8: Barton Stacey | B8: =VLOOKUP(A8,'Locations & Types'!$A:$B,2,FALSE) -> STORAGE SITE | C8: 80975342.47
A9: Canonbie | B9: =VLOOKUP(A9,'Locations & Types'!$A:$B,2,FALSE) -> ONSHORE FIELD | C9: 0
A10: Cheshire | B10: =VLOOKUP(A10,'Locations & Types'!$A:$B,2,FALSE) -> STORAGE SITE | C10: 541245000
A11: Caythorpe | B11: =VLOOKUP(A11,'Locations & Types'!$A:$B,2,FALSE) -> STORAGE SITE | C11: 90000000
A12: Dynevor Arms | B12: =VLOOKUP(A12,'Locations & Types'!$A:$B,2,FALSE) -> STORAGE SITE | C12: 0
A13: Easington | B13: =VLOOKUP(A13,'Locations & Types'!$A:$B,2,FALSE) -> BEACH TERMINAL | C13: 833294280
A14: Fleetwood | B14: =VLOOKUP(A14,'Locations & Types'!$A:$B,2,FALSE) -> STORAGE SITE | C14: 0
A15: Glenmavis | B15: =VLOOKUP(A15,'Locations & Types'!$A:$B,2,FALSE) -> STORAGE SITE | C15: 0
A16: Garton | B16: =VLOOKUP(A16,'Locations & Types'!$A:$B,2,FALSE) -> STORAGE SITE | C16: 420000000
A17: Hole House Farm | B17: =VLOOKUP(A17,'Locations & Types'!$A:$B,2,FALSE) -> STORAGE SITE | C17: 283440000
A18: Hatfield Moor (onshore) | B18: =VLOOKUP(A18,'Locations & Types'!$A:$B,2,FALSE) -> ONSHORE FIELD | C18: 0
A19: Hornsea | B19: =VLOOKUP(A19,'Locations & Types'!$A:$B,2,FALSE) -> STORAGE SITE | C19: 77588014.98
A20: Hatfield Moor (storage) | B20: =VLOOKUP(A20,'Locations & Types'!$A:$B,2,FALSE) -> STORAGE SITE | C20: 5424657.534
A21: Isle of Grain | B21: =VLOOKUP(A21,'Locations & Types'!$A:$B,2,FALSE) -> LNG IMPORTATION TERMINAL | C21: 643590137
A22: Milford Haven | B22: =VLOOKUP(A22,'Locations & Types'!$A:$B,2,FALSE) -> LNG IMPORTATION TERMINAL | C22: 649178082.2
A23: Partington | B23: =VLOOKUP(A23,'Locations & Types'!$A:$B,2,FALSE) -> STORAGE SITE | C23: 40146.71233
A24: Moffat (Irish Interconnector) | B24: =VLOOKUP(A24,'Locations & Types'!$A:$B,2,FALSE) -> INTERCONNECTION POINT | C24: 0
A25: Murrow | B25: BIOMETHANE PLANT | C25: 500000
A26: St Fergus | B26: =VLOOKUP(A26,'Locations & Types'!$A:$B,2,FALSE) -> BEACH TERMINAL | C26: 786035942.6
A27: Teesside | B27: =VLOOKUP(A27,'Locations & Types'!$A:$B,2,FALSE) -> BEACH TERMINAL | C27: 293042284.4
A28: Theddlethorpe | B28: =VLOOKUP(A28,'Locations & Types'!$A:$B,2,FALSE) -> BEACH TERMINAL | C28: 10723835.62
A29: Wytch Farm | B29: =VLOOKUP(A29,'Locations & Types'!$A:$B,2,FALSE) -> ONSHORE FIELD | C29: 0

Sheet 21-22 FCC - Entry
A1: Entry Point | B1: Entry Point Type | C1: Forecasted Contracted Capacity
C2: (kWh/d)
A3: Avonmouth | B3: =VLOOKUP(A3,'Locations & Types'!$A:$B,2,FALSE) -> STORAGE SITE | C3: 0 | E3: Avonmouth | F3: 0 | G3: 0 | H3: 0 | I3: 0 | J3: 0 | K3: 0 | L3: 0 | M3: 0 | N3: 0 | O3: 0 | P3: 0 | Q3: 0 | R3: =SUM((F3*31)+(G3*30)+(H3*31)+(I3*31)+(J3*28)+(K3*31)+(L3*30)+(M3*31)+(N3*30)+(O3*31)+(P3*31)+(Q3*30))/365 -> 0
A4: Bacton IP | B4: =VLOOKUP(A4,'Locations & Types'!$A:$B,2,FALSE) -> INTERCONNECTION POINT | C4: 128027209.4 | E4: Bacton IP | F4: 37195570.96 | G4: 193732392.7 | H4: 351658210.7 | I4: 407344993 | J4: 323330079 | K4: 172755008.2 | L4: 39699710.98 | M4: 2155194.054 | N4: 3818965.658 | O4: 247441.5709 | P4: 2862054.562 | Q4: 4309914.508 | R4: =SUM((F4*31)+(G4*30)+(H4*31)+(I4*31)+(J4*28)+(K4*31)+(L4*30)+(M4*31)+(N4*30)+(O4*31)+(P4*31)+(Q4*30))/365 -> 127399573.7
A5: Bacton UKCS | B5: =VLOOKUP(A5,'Locations & Types'!$A:$B,2,FALSE) -> BEACH TERMINAL | C5: 365263182.3 | E5: Bacton UKCS | F5: 341146340.2 | G5: 344923086.3 | H5: 349538506.6 | I5: 485600000 | J5: 485600000 | K5: 485600000 | L5: 349858624.2 | M5: 316668758.9 | N5: 339315221.6 | O5: 316901079.9 | P5: 268985029.8 | Q5: 301317149.6 | R5: 364813297.6
A6: Burton Point | B6: =VLOOKUP(A6,'Locations & Types'!$A:$B,2,FALSE) -> ONSHORE FIELD | C6: 19583466.13 | E6: Burton Point | F6: 20944476.33 | G6: 27073515.45 | H6: 23740649.42 | I6: 24685934.34 | J6: 23326502.72 | K6: 15551352.78 | L6: 10813878.14 | M6: 18078835.7 | N6: 19337342.84 | O6: 13404187.19 | P6: 17192181.97 | Q6: 17440578.05 | R6: 19272952.49
A7: Barrow | B7: =VLOOKUP(A7,'Locations & Types'!$A:$B,2,FALSE) -> BEACH TERMINAL | C7: 37304693.5 | E7: Barrow | F7: 13203302.53 | G7: 34827154.63 | H7: 45685622.26 | I7: 70068930 | J7: 70068930 | K7: 70068930 | L7: 36135295.98 | M7: 33516771.44 | N7: 32006105.4 | O7: 20455013.71 | P7: 12252303.62 | Q7: 10992320 | R7: 37269954.52
A8: Barton Stacey | B8: =VLOOKUP(A8,'Locations & Types'!$A:$B,2,FALSE) -> STORAGE SITE | C8: 37055534.21 | E8: Barton Stacey | F8: 72000000 | G8: 72000000 | H8: 72000000 | I8: 72000000 | J8: 72000000 | K8: 72000000 | L8: 7522105.506 | M8: 676150.1426 | N8: 2457305.474 | O8: 462595.3432 | P8: 245935.3058 | Q8: 2300422.549 | R8: 37028274.28
A9: Canonbie | B9: =VLOOKUP(A9,'Locations & Types'!$A:$B,2,FALSE) -> ONSHORE FIELD | C9: 0 | E9: Canonbie | F9: 0 | G9: 0 | H9: 0 | I9: 0 | J9: 0 | K9: 0 | L9: 0 | M9: 0 | N9: 0 | O9: 0 | P9: 0 | Q9: 0 | R9: 0
A10: Cheshire | B10: =VLOOKUP(A10,'Locations & Types'!$A:$B,2,FALSE) -> STORAGE SITE | C10: 541245000 | E10: Cheshire | F10: 541245000 | G10: 541245000 | H10: 541245000 | I10: 541245000 | J10: 541245000 | K10: 541245000 | L10: 541245000 | M10: 541245000 | N10: 541245000 | O10: 541245000 | P10: 541245000 | Q10: 541245000 | R10: 541245000
A11: Caythorpe | B11: =VLOOKUP(A11,'Locations & Types'!$A:$B,2,FALSE) -> STORAGE SITE | C11: 90000000 | E11: Caythorpe | F11: 90000000 | G11: 90000000 | H11: 90000000 | I11: 90000000 | J11: 90000000 | K11: 90000000 | L11: 90000000 | M11: 90000000 | N11: 90000000 | O11: 90000000 | P11: 90000000 | Q11: 90000000 | R11: 90000000
A12: Dynevor Arms | B12: =VLOOKUP(A12,'Locations & Types'!$A:$B,2,FALSE) -> STORAGE SITE | C12: 0 | E12: Dynevor Arms | F12: 0 | G12: 0 | H12: 0 | I12: 0 | J12: 0 | K12: 0 | L12: 0 | M12: 0 | N12: 0 | O12: 0 | P12: 0 | Q12: 0 | R12: 0
A13: Easington | B13: =VLOOKUP(A13,'Locations & Types'!$A:$B,2,FALSE) -> BEACH TERMINAL | C13: 768771691.1 | E13: Easington | F13: 1017755291 | G13: 1017755291 | H13: 1017755291 | I13: 1266435000 | J13: 1266435000 | K13: 1266435000 | L13: 530191692.4 | M13: 362611369.1 | N13: 399928408.9 | O13: 360992525.5 | P13: 416078332.5 | Q13: 320630456.5 | R13: 768398089.2
A14: Fleetwood | B14: =VLOOKUP(A14,'Locations & Types'!$A:$B,2,FALSE) -> STORAGE SITE | C14: 20374657.53 | E14: Fleetwood | F14: 20350000 | G14: 20350000 | H14: 20350000 | I14: 20450000 | J14: 20450000 | K14: 20450000 | L14: 20350000 | M14: 20350000 | N14: 20350000 | O14: 20350000 | P14: 20350000 | Q14: 20350000 | R14: 20374657.53
A15: Glenmavis | B15: =VLOOKUP(A15,'Locations & Types'!$A:$B,2,FALSE) -> STORAGE SITE | C15: 0 | E15: Glenmavis | F15: 0 | G15: 0 | H15: 0 | I15: 0 | J15: 0 | K15: 0 | L15: 0 | M15: 0 | N15: 0 | O15: 0 | P15: 0 | Q15: 0 | R15: 0
A16: Garton | B16: =VLOOKUP(A16,'Locations & Types'!$A:$B,2,FALSE) -> STORAGE SITE | C16: 420000000 | E16: Garton | F16: 420000000 | G16: 420000000 | H16: 420000000 | I16: 420000000 | J16: 420000000 | K16: 420000000 | L16: 420000000 | M16: 420000000 | N16: 420000000 | O16: 420000000 | P16: 420000000 | Q16: 420000000 | R16: 420000000
A17: Hole House Farm | B17: =VLOOKUP(A17,'Locations & Types'!$A:$B,2,FALSE) -> STORAGE SITE | C17: 283440000 | E17: Hole House Farm | F17: 283440000 | G17: 283440000 | H17: 283440000 | I17: 283440000 | J17: 283440000 | K17: 283440000 | L17: 283440000 | M17: 283440000 | N17: 283440000 | O17: 283440000 | P17: 283440000 | Q17: 283440000 | R17: 283440000
A18: Hatfield Moor (onshore) | B18: =VLOOKUP(A18,'Locations & Types'!$A:$B,2,FALSE) -> ONSHORE FIELD | C18: 0 | E18: Hatfield Moor (onshore) | F18: 0 | G18: 0 | H18: 0 | I18: 0 | J18: 0 | K18: 0 | L18: 0 | M18: 0 | N18: 0 | O18: 0 | P18: 0 | Q18: 0 | R18: 0
A19: Hornsea | B19: =VLOOKUP(A19,'Locations & Types'!$A:$B,2,FALSE) -> STORAGE SITE | C19: 54717626.17 | E19: Hornsea | F19: 2799854.991 | G19: 4251168.852 | H19: 11188268.38 | I19: 205790000 | J19: 205790000 | K19: 205790000 | L19: 9000805.729 | M19: 6203959.022 | N19: 1611898.99 | O19: 792252.2965 | P19: 2538024.362 | Q19: 8048577.273 | R19: 54623744.26
A20: Hatfield Moor (storage) | B20: =VLOOKUP(A20,'Locations & Types'!$A:$B,2,FALSE) -> STORAGE SITE | C20: 6452320.093 | E20: Hatfield Moor (storage) | F20: 691002.1 | G20: 963712.8394 | H20: 2589779.082 | I20: 22000000 | J20: 22000000 | K20: 22000000 | L20: 3289836.494 | M20: 837984.8744 | N20: 1374724.242 | O20: 134168.5825 | P20: 383905.9592 | Q20: 1788241.456 | R20: 6428047.971
A21: Isle of Grain | B21: =VLOOKUP(A21,'Locations & Types'!$A:$B,2,FALSE) -> LNG IMPORTATION TERMINAL | C21: 623338082.2 | E21: Isle of Grain | F21: 664300000 | G21: 664300000 | H21: 664300000 | I21: 664300000 | J21: 664300000 | K21: 664300000 | L21: 582600000 | M21: 582600000 | N21: 582600000 | O21: 582600000 | P21: 582600000 | Q21: 582600000 | R21: 623338082.2
A22: Milford Haven | B22: =VLOOKUP(A22,'Locations & Types'!$A:$B,2,FALSE) -> LNG IMPORTATION TERMINAL | C22: 610030492.4 | E22: Milford Haven | F22: 855000000 | G22: 855000000 | H22: 855000000 | I22: 855000000 | J22: 855000000 | K22: 855000000 | L22: 402947737.3 | M22: 356635405.6 | N22: 350000000 | O22: 350000000 | P22: 350000000 | Q22: 350000000 | R22: 606723643
A23: Partington | B23: =VLOOKUP(A23,'Locations & Types'!$A:$B,2,FALSE) -> STORAGE SITE | C23: 0 | E23: Partington | F23: 0 | G23: 0 | H23: 0 | I23: 0 | J23: 0 | K23: 0 | L23: 0 | M23: 0 | N23: 0 | O23: 0 | P23: 0 | Q23: 0 | R23: 0
A24: Moffat (Irish Interconnector) | B24: =VLOOKUP(A24,'Locations & Types'!$A:$B,2,FALSE) -> INTERCONNECTION POINT | C24: 0 | E24: Moffat (Irish Interconnector) | F24: 0 | G24: 0 | H24: 0 | I24: 0 | J24: 0 | K24: 0 | L24: 0 | M24: 0 | N24: 0 | O24: 0 | P24: 0 | Q24: 0 | R24: 0
A25: Murrow | B25: BIOMETHANE PLANT | C25: 500000 | E25: Murrow | F25: 500000 | G25: 500000 | H25: 500000 | I25: 500000 | J25: 500000 | K25: 500000 | L25: 500000 | M25: 500000 | N25: 500000 | O25: 500000 | P25: 500000 | Q25: 500000 | R25: 500000
A26: St Fergus | B26: =VLOOKUP(A26,'Locations & Types'!$A:$B,2,FALSE) -> BEACH TERMINAL | C26: 761502171.8 | E26: St Fergus | F26: 766987786.6 | G26: 870648629.4 | H26: 921276923.4 | I26: 939535556.9 | J26: 906845129.8 | K26: 813300974.8 | L26: 692853065.6 | M26: 616090133.6 | N26: 643482277 | O26: 646563577.8 | P26: 607212271.5 | Q26: 706692613 | R26: 760114918.2
A27: Teesside | B27: =VLOOKUP(A27,'Locations & Types'!$A:$B,2,FALSE) -> BEACH TERMINAL | C27: 191450178.9 | E27: Teesside | F27: 196347864.1 | G27: 214494859.9 | H27: 221100735.6 | I27: 210838484.7 | J27: 218000769.5 | K27: 198978835.9 | L27: 185363383 | M27: 172454005.1 | N27: 137971152.2 | O27: 153907776.1 | P27: 184519106 | Q27: 201773288.7 | R27: 191163433.1
A28: Theddlethorpe | B28: =VLOOKUP(A28,'Locations & Types'!$A:$B,2,FALSE) -> BEACH TERMINAL | C28: 0 | E28: Theddlethorpe | F28: 0 | G28: 0 | H28: 0 | I28: 0 | J28: 0 | K28: 0 | L28: 0 | M28: 0 | N28: 0 | O28: 0 | P28: 0 | Q28: 0 | R28: 0
A29: Wytch Farm | B29: =VLOOKUP(A29,'Locations & Types'!$A:$B,2,FALSE) -> ONSHORE FIELD | C29: 0 | E29: Wytch Farm | F29: 0 | G29: 0 | H29: 0 | I29: 0 | J29: 0 | K29: 0 | L29: 0 | M29: 0 | N29: 0 | O29: 0 | P29: 0 | Q29: 0 | R29: 0
C31: =SUM(C3:C30) -> 4959056306

Sheet 22-23 FCC - Entry
A1: Entry Point | B1: Entry Point Type | C1: Forecasted Contracted Capacity
C2: (kWh/d)
A3: Avonmouth | B3: =VLOOKUP(A3,'Locations & Types'!$A:$B,2,FALSE) -> STORAGE SITE | C3: 0
A4: Bacton IP | B4: =VLOOKUP(A4,'Locations & Types'!$A:$B,2,FALSE) -> INTERCONNECTION POINT | C4: 128659132.8
A5: Bacton UKCS | B5: =VLOOKUP(A5,'Locations & Types'!$A:$B,2,FALSE) -> BEACH TERMINAL | C5: 367807959
A6: Burton Point | B6: =VLOOKUP(A6,'Locations & Types'!$A:$B,2,FALSE) -> ONSHORE FIELD | C6: 19788110.71
A7: Barrow | B7: =VLOOKUP(A7,'Locations & Types'!$A:$B,2,FALSE) -> BEACH TERMINAL | C7: 34568950.36
A8: Barton Stacey | B8: =VLOOKUP(A8,'Locations & Types'!$A:$B,2,FALSE) -> STORAGE SITE | C8: 9386209.412
A9: Canonbie | B9: =VLOOKUP(A9,'Locations & Types'!$A:$B,2,FALSE) -> ONSHORE FIELD | C9: 0
A10: Cheshire | B10: =VLOOKUP(A10,'Locations & Types'!$A:$B,2,FALSE) -> STORAGE SITE | C10: 514110000
A11: Caythorpe | B11: =VLOOKUP(A11,'Locations & Types'!$A:$B,2,FALSE) -> STORAGE SITE | C11: 90000000
A12: Dynevor Arms | B12: =VLOOKUP(A12,'Locations & Types'!$A:$B,2,FALSE) -> STORAGE SITE | C12: 0
A13: Easington | B13: =VLOOKUP(A13,'Locations & Types'!$A:$B,2,FALSE) -> BEACH TERMINAL | C13: 770299209.3
A14: Fleetwood | B14: =VLOOKUP(A14,'Locations & Types'!$A:$B,2,FALSE) -> STORAGE SITE | C14: 0
A15: Glenmavis | B15: =VLOOKUP(A15,'Locations & Types'!$A:$B,2,FALSE) -> STORAGE SITE | C15: 0
A16: Garton | B16: =VLOOKUP(A16,'Locations & Types'!$A:$B,2,FALSE) -> STORAGE SITE | C16: 279616438.4
A17: Hole House Farm | B17: =VLOOKUP(A17,'Locations & Types'!$A:$B,2,FALSE) -> STORAGE SITE | C17: 283440000
A18: Hatfield Moor (onshore) | B18: =VLOOKUP(A18,'Locations & Types'!$A:$B,2,FALSE) -> ONSHORE FIELD | C18: 0
A19: Hornsea | B19: =VLOOKUP(A19,'Locations & Types'!$A:$B,2,FALSE) -> STORAGE SITE | C19: 54717626.17
A20: Hatfield Moor (storage) | B20: =VLOOKUP(A20,'Locations & Types'!$A:$B,2,FALSE) -> STORAGE SITE | C20: 2884607.123
A21: Isle of Grain | B21: =VLOOKUP(A21,'Locations & Types'!$A:$B,2,FALSE) -> LNG IMPORTATION TERMINAL | C21: 623338082.2
A22: Milford Haven | B22: =VLOOKUP(A22,'Locations & Types'!$A:$B,2,FALSE) -> LNG IMPORTATION TERMINAL | C22: 532212501.2
A23: Partington | B23: =VLOOKUP(A23,'Locations & Types'!$A:$B,2,FALSE) -> STORAGE SITE | C23: 0
A24: Moffat (Irish Interconnector) | B24: =VLOOKUP(A24,'Locations & Types'!$A:$B,2,FALSE) -> INTERCONNECTION POINT | C24: 0
A25: Murrow | B25: BIOMETHANE PLANT | C25: 3657.128579
A26: St Fergus | B26: =VLOOKUP(A26,'Locations & Types'!$A:$B,2,FALSE) -> BEACH TERMINAL | C26: 769817608.4
A27: Teesside | B27: =VLOOKUP(A27,'Locations & Types'!$A:$B,2,FALSE) -> BEACH TERMINAL | C27: 193563125.5
A28: Theddlethorpe | B28: =VLOOKUP(A28,'Locations & Types'!$A:$B,2,FALSE) -> BEACH TERMINAL | C28: 0
A29: Wytch Farm | B29: =VLOOKUP(A29,'Locations & Types'!$A:$B,2,FALSE) -> ONSHORE FIELD | C29: 0
C31: =SUM(C3:C30) -> 4674213218

Sheet 18-19 FCC - Exit (hidden)
A1: Exit Point | B1: Exit Point Type | C1: Forecasted Contracted Capacity
C2: (kWh/d)
A3: Aberdeen | B3: =VLOOKUP(A3,'Locations & Types'!$E:$F,2,FALSE) -> GDN (SC) | C3: 21639348
A4: Abson (Seabank Power Station phase I) | B4: =VLOOKUP(A4,'Locations & Types'!$E:$F,2,FALSE) -> DC | C4: 27843799.79
A5: Alrewas (EM) | B5: =VLOOKUP(A5,'Locations & Types'!$E:$F,2,FALSE) -> GDN (EM) | C5: 59229584
A6: Alrewas (WM) | B6: =VLOOKUP(A6,'Locations & Types'!$E:$F,2,FALSE) -> GDN (WM) | C6: 72462290
A7: Apache (Sage Black Start) | B7: =VLOOKUP(A7,'Locations & Types'!$E:$F,2,FALSE) -> DC | C7: 9073.673973
A8: Armadale | B8: =VLOOKUP(A8,'Locations & Types'!$E:$F,2,FALSE) -> GDN (SC) | C8: 7519525
A9: Aspley | B9: =VLOOKUP(A9,'Locations & Types'!$E:$F,2,FALSE) -> GDN (WM) | C9: 50894176
A10: Asselby | B10: =VLOOKUP(A10,'Locations & Types'!$E:$F,2,FALSE) -> GDN (NE) | C10: 3586201
A11: Audley (NW) | B11: =VLOOKUP(A11,'Locations & Types'!$E:$F,2,FALSE) -> GDN (NW) | C11: 8037574
A12: Audley (WM) | B12: =VLOOKUP(A12,'Locations & Types'!$E:$F,2,FALSE) -> GDN (WM) | C12: 13572412
A13: Austrey | B13: =VLOOKUP(A13,'Locations & Types'!$E:$F,2,FALSE) -> GDN (WM) | C13: 59601211
A14: Avonmouth Max Refill | B14: =VLOOKUP(A14,'Locations & Types'!$E:$F,2,FALSE) -> STORAGE SITE | C14: 661.2054795
A15: Aylesbeare | B15: =VLOOKUP(A15,'Locations & Types'!$E:$F,2,FALSE) -> GDN (SW) | C15: 19128874
A16: Bacton | B16: =VLOOKUP(A16,'Locations & Types'!$E:$F,2,FALSE) -> GDN (EA) | C16: 2844268
A17: Bacton (Baird) | B17: =VLOOKUP(A17,'Locations & Types'!$E:$F,2,FALSE) -> STORAGE SITE | C17: 0
A18: Bacton (BBL) | B18: =VLOOKUP(A18,'Locations & Types'!$E:$F,2,FALSE) -> INTERCONNECTOR | C18: 0
A19: Bacton (Great Yarmouth) | B19: =VLOOKUP(A19,'Locations & Types'!$E:$F,2,FALSE) -> DC | C19: 20000000
A20: Bacton (IUK) | B20: =VLOOKUP(A20,'Locations & Types'!$E:$F,2,FALSE) -> INTERCONNECTOR | C20: 185430316.3
A21: Baldersby | B21: =VLOOKUP(A21,'Locations & Types'!$E:$F,2,FALSE) -> GDN (NE) | C21: 1126642
A22: Balgray | B22: =VLOOKUP(A22,'Locations & Types'!$E:$F,2,FALSE) -> GDN (SC) | C22: 15057981
A23: Barking (Horndon) | B23: =VLOOKUP(A23,'Locations & Types'!$E:$F,2,FALSE) -> DC | C23: 0
A24: Barrow (Bains) | B24: =VLOOKUP(A24,'Locations & Types'!$E:$F,2,FALSE) -> STORAGE SITE | C24: 0
A25: Barrow (Black Start) | B25: =VLOOKUP(A25,'Locations & Types'!$E:$F,2,FALSE) -> DC | C25: 1001369.863
A26: Barrow (Gateway) | B26: =VLOOKUP(A26,'Locations & Types'!$E:$F,2,FALSE) -> STORAGE SITE | C26: 0
A27: Barton Stacey Max Refill (Humbly Grove) | B27: =VLOOKUP(A27,'Locations & Types'!$E:$F,2,FALSE) -> STORAGE SITE | C27: 10181399.89
A28: Bathgate | B28: =VLOOKUP(A28,'Locations & Types'!$E:$F,2,FALSE) -> GDN (SC) | C28: 21081766
A29: Billingham ICI (Terra Billingham) | B29: =VLOOKUP(A29,'Locations & Types'!$E:$F,2,FALSE) -> DC | C29: 33644543
A30: Bishop Auckland | B30: =VLOOKUP(A30,'Locations & Types'!$E:$F,2,FALSE) -> GDN (NO) | C30: 56287977
A31: Bishop Auckland (test facility) | B31: =VLOOKUP(A31,'Locations & Types'!$E:$F,2,FALSE) -> DC | C31: 781914.3562
A32: Blaby | B32: =VLOOKUP(A32,'Locations & Types'!$E:$F,2,FALSE) -> GDN (EM) | C32: 9867513
A33: Blackness (BP Grangemouth) | B33: =VLOOKUP(A33,'Locations & Types'!$E:$F,2,FALSE) -> DC | C33: 27290000
A34: Blackrod | B34: =VLOOKUP(A34,'Locations & Types'!$E:$F,2,FALSE) -> GDN (NW) | C34: 123939267
A35: Blyborough | B35: =VLOOKUP(A35,'Locations & Types'!$E:$F,2,FALSE) -> GDN (EM) | C35: 55825856
A36: Blyborough (Brigg) | B36: =VLOOKUP(A36,'Locations & Types'!$E:$F,2,FALSE) -> DC | C36: 1600000
A37: Blyborough (Cottam) | B37: =VLOOKUP(A37,'Locations & Types'!$E:$F,2,FALSE) -> DC | C37: 12767838.63
A38: Braishfield A | B38: =VLOOKUP(A38,'Locations & Types'!$E:$F,2,FALSE) -> GDN (SO) | C38: 84161130
A39: Braishfield B | B39: =VLOOKUP(A39,'Locations & Types'!$E:$F,2,FALSE) -> GDN (SO) | C39: 64947171
A40: Brine Field (Teesside) Power Station | B40: =VLOOKUP(A40,'Locations & Types'!$E:$F,2,FALSE) -> DC | C40: 50816.9863
A41: Brisley | B41: =VLOOKUP(A41,'Locations & Types'!$E:$F,2,FALSE) -> GDN (EA) | C41: 2077837
A42: Broxburn | B42: =VLOOKUP(A42,'Locations & Types'!$E:$F,2,FALSE) -> GDN (SC) | C42: 56250554
A43: Burley Bank | B43: =VLOOKUP(A43,'Locations & Types'!$E:$F,2,FALSE) -> GDN (NE) | C43: 13868151
A44: Burnhervie | B44: =VLOOKUP(A44,'Locations & Types'!$E:$F,2,FALSE) -> GDN (SC) | C44: 22372861
A45: Burton Point (Connahs Quay) | B45: =VLOOKUP(A45,'Locations & Types'!$E:$F,2,FALSE) -> DC | C45: 13734651.61
A46: Caldecott | B46: =VLOOKUP(A46,'Locations & Types'!$E:$F,2,FALSE) -> GDN (EM) | C46: 8977861
A47: Caldecott (Corby Power Station) | B47: =VLOOKUP(A47,'Locations & Types'!$E:$F,2,FALSE) -> DC | C47: 663937.0959
A48: Cambridge | B48: =VLOOKUP(A48,'Locations & Types'!$E:$F,2,FALSE) -> GDN (EA) | C48: 0
A49: Careston | B49: =VLOOKUP(A49,'Locations & Types'!$E:$F,2,FALSE) -> GDN (SC) | C49: 4112924
A50: Carrington (Partington) Power Station | B50: =VLOOKUP(A50,'Locations & Types'!$E:$F,2,FALSE) -> DC | C50: 28568650.53
A51: Caythorpe | B51: =VLOOKUP(A51,'Locations & Types'!$E:$F,2,FALSE) -> STORAGE SITE | C51: 0
A52: Centrax Industrial | B52: =VLOOKUP(A52,'Locations & Types'!$E:$F,2,FALSE) -> DC | C52: 85000
A53: Cirencester | B53: =VLOOKUP(A53,'Locations & Types'!$E:$F,2,FALSE) -> GDN (SW) | C53: 7417140
A54: Cockenzie Power Station | B54: =VLOOKUP(A54,'Locations & Types'!$E:$F,2,FALSE) -> DC | C54: 0
A55: Coffinswell | B55: =VLOOKUP(A55,'Locations & Types'!$E:$F,2,FALSE) -> GDN (SW) | C55: 5150000
A56: Coldstream | B56: =VLOOKUP(A56,'Locations & Types'!$E:$F,2,FALSE) -> GDN (NO) | C56: 2848927
A57: Corbridge | B57: =VLOOKUP(A57,'Locations & Types'!$E:$F,2,FALSE) -> GDN (NO) | C57: 57846
A58: Coryton 2 (Thames Haven) Power Station | B58: =VLOOKUP(A58,'Locations & Types'!$E:$F,2,FALSE) -> DC | C58: 0
A59: Cowpen Bewley | B59: =VLOOKUP(A59,'Locations & Types'!$E:$F,2,FALSE) -> GDN (NO) | C59: 38498554
A60: Crawley Down | B60: =VLOOKUP(A60,'Locations & Types'!$E:$F,2,FALSE) -> GDN (SO) | C60: 0
A61: Deborah Storage (Bacton) | B61: =VLOOKUP(A61,'Locations & Types'!$E:$F,2,FALSE) -> STORAGE SITE | C61: 0
A62: Deeside | B62: =VLOOKUP(A62,'Locations & Types'!$E:$F,2,FALSE) -> DC | C62: 4448282.164
A63: Didcot | B63: =VLOOKUP(A63,'Locations & Types'!$E:$F,2,FALSE) -> DC | C63: 33674184.27
A64: Dowlais | B64: =VLOOKUP(A64,'Locations & Types'!$E:$F,2,FALSE) -> GDN (WS) | C64: 91369207
A65: Drakelow Power Station | B65: =VLOOKUP(A65,'Locations & Types'!$E:$F,2,FALSE) -> DC | C65: 0
A66: Drointon | B66: =VLOOKUP(A66,'Locations & Types'!$E:$F,2,FALSE) -> GDN (EM) | C66: 54670979
A67: Drum | B67: =VLOOKUP(A67,'Locations & Types'!$E:$F,2,FALSE) -> GDN (SC) | C67: 66956781
A68: Dyffryn Clydach | B68: =VLOOKUP(A68,'Locations & Types'!$E:$F,2,FALSE) -> GDN (WS) | C68: 40231974
A69: Dynevor Max Refill | B69: =VLOOKUP(A69,'Locations & Types'!$E:$F,2,FALSE) -> STORAGE SITE | C69: 23931
A70: Eastoft (Keadby Blackstart) | B70: =VLOOKUP(A70,'Locations & Types'!$E:$F,2,FALSE) -> DC | C70: 1457215
A71: Eastoft (Keadby) | B71: =VLOOKUP(A71,'Locations & Types'!$E:$F,2,FALSE) -> DC | C71: 16099880.27
A72: Easton Grey | B72: =VLOOKUP(A72,'Locations & Types'!$E:$F,2,FALSE) -> GDN (SW) | C72: 27391725
A73: Ecclestone | B73: =VLOOKUP(A73,'Locations & Types'!$E:$F,2,FALSE) -> GDN (NW) | C73: 16370887
A74: Elton | B74: =VLOOKUP(A74,'Locations & Types'!$E:$F,2,FALSE) -> GDN (NO) | C74: 52818145
A75: Enron Billingham | B75: =VLOOKUP(A75,'Locations & Types'!$E:$F,2,FALSE) -> DC | C75: 0
A76: Epping Green (Enfield Energy, aka Brimsdown) | B76: =VLOOKUP(A76,'Locations & Types'!$E:$F,2,FALSE) -> DC | C76: 9323287.671
A77: Evesham | B77: =VLOOKUP(A77,'Locations & Types'!$E:$F,2,FALSE) -> GDN (SW) | C77: 6441859
A78: Farningham | B78: =VLOOKUP(A78,'Locations & Types'!$E:$F,2,FALSE) -> GDN (SE) | C78: 89921069
A79: Farningham B | B79: =VLOOKUP(A79,'Locations & Types'!$E:$F,2,FALSE) -> GDN (SE) | C79: 94634400
A80: Ferny Knoll (AM Paper) | B80: =VLOOKUP(A80,'Locations & Types'!$E:$F,2,FALSE) -> DC | C80: 0
A81: Fiddington | B81: =VLOOKUP(A81,'Locations & Types'!$E:$F,2,FALSE) -> GDN (SW) | C81: 21293234
A82: Ganstead | B82: =VLOOKUP(A82,'Locations & Types'!$E:$F,2,FALSE) -> GDN (NE) | C82: 16610330
A83: Garton Max Refill (Aldbrough) | B83: =VLOOKUP(A83,'Locations & Types'!$E:$F,2,FALSE) -> STORAGE SITE | C83: 325510000
A84: Gilwern | B84: =VLOOKUP(A84,'Locations & Types'!$E:$F,2,FALSE) -> GDN (WS) | C84: 75404154
A85: Glenmavis | B85: =VLOOKUP(A85,'Locations & Types'!$E:$F,2,FALSE) -> GDN (SC) | C85: 128262344
A86: Glenmavis Max Refill | B86: =VLOOKUP(A86,'Locations & Types'!$E:$F,2,FALSE) -> STORAGE SITE | C86: 128720
A87: Goole (Guardian Glass) | B87: =VLOOKUP(A87,'Locations & Types'!$E:$F,2,FALSE) -> DC | C87: 1700000
A88: Gosberton | B88: =VLOOKUP(A88,'Locations & Types'!$E:$F,2,FALSE) -> GDN (EM) | C88: 12321120
A89: Gowkhall (Longannet) | B89: =VLOOKUP(A89,'Locations & Types'!$E:$F,2,FALSE) -> DC | C89: 43320000
A90: Grain Power Station | B90: =VLOOKUP(A90,'Locations & Types'!$E:$F,2,FALSE) -> DC | C90: 52305854.59
A91: Great Wilbraham | B91: =VLOOKUP(A91,'Locations & Types'!$E:$F,2,FALSE) -> GDN (EA) | C91: 23677521
A92: Guyzance | B92: =VLOOKUP(A92,'Locations & Types'!$E:$F,2,FALSE) -> GDN (NO) | C92: 1806988
A93: Hardwick | B93: =VLOOKUP(A93,'Locations & Types'!$E:$F,2,FALSE) -> GDN (SO) | C93: 103540577
A94: Harwarden (Shotton, aka Shotton Paper) | B94: =VLOOKUP(A94,'Locations & Types'!$E:$F,2,FALSE) -> DC | C94: 0
A95: Hatfield Moor Max Refill | B95: =VLOOKUP(A95,'Locations & Types'!$E:$F,2,FALSE) -> STORAGE SITE | C95: 30210000
A96: Hatfield Power Station | B96: =VLOOKUP(A96,'Locations & Types'!$E:$F,2,FALSE) -> DC | C96: 0
A97: Hill Top Farm (Hole House Farm) | B97: =VLOOKUP(A97,'Locations & Types'!$E:$F,2,FALSE) -> STORAGE SITE | C97: 4588175.342
A98: Hole House Max Refill | B98: =VLOOKUP(A98,'Locations & Types'!$E:$F,2,FALSE) -> STORAGE SITE | C98: 684999.2329
A99: Holford | B99: =VLOOKUP(A99,'Locations & Types'!$E:$F,2,FALSE) -> STORAGE SITE | C99: 41731254.82
A100: Hollingsgreen (Hays Chemicals) | B100: =VLOOKUP(A100,'Locations & Types'!$E:$F,2,FALSE) -> DC | C100: 555000
A101: Holmes Chapel | B101: =VLOOKUP(A101,'Locations & Types'!$E:$F,2,FALSE) -> GDN (NW) | C101: 21678773
A102: Horndon | B102: =VLOOKUP(A102,'Locations & Types'!$E:$F,2,FALSE) -> GDN (NT) | C102: 33307669
A103: Hornsea Max Refill | B103: =VLOOKUP(A103,'Locations & Types'!$E:$F,2,FALSE) -> STORAGE SITE | C103: 40337921.03
A104: Humbleton | B104: =VLOOKUP(A104,'Locations & Types'!$E:$F,2,FALSE) -> GDN (NO) | C104: 148471
A105: Hume | B105: =VLOOKUP(A105,'Locations & Types'!$E:$F,2,FALSE) -> GDN (SC) | C105: 1684385
A106: Ilchester | B106: =VLOOKUP(A106,'Locations & Types'!$E:$F,2,FALSE) -> GDN (SW) | C106: 31408565
A107: Ipsden | B107: =VLOOKUP(A107,'Locations & Types'!$E:$F,2,FALSE) -> GDN (SO) | C107: 5760836.036
A108: Ipsden 2 | B108: =VLOOKUP(A108,'Locations & Types'!$E:$F,2,FALSE) -> GDN (SO) | C108: 7429155.345
A109: Keld | B109: =VLOOKUP(A109,'Locations & Types'!$E:$F,2,FALSE) -> GDN (NO) | C109: 1424555
A110: Kenn | B110: =VLOOKUP(A110,'Locations & Types'!$E:$F,2,FALSE) -> GDN (SW) | C110: 14000883
A111: Kinknockie | B111: =VLOOKUP(A111,'Locations & Types'!$E:$F,2,FALSE) -> GDN (SC) | C111: 3068392
A112: Kirkstead | B112: =VLOOKUP(A112,'Locations & Types'!$E:$F,2,FALSE) -> GDN (EM) | C112: 858703
A113: Langage Power Station | B113: =VLOOKUP(A113,'Locations & Types'!$E:$F,2,FALSE) -> DC | C113: 31708219.18
A114: Langholm | B114: =VLOOKUP(A114,'Locations & Types'!$E:$F,2,FALSE) -> GDN (SC) | C114: 255319
A115: Lauderhill | B115: =VLOOKUP(A115,'Locations & Types'!$E:$F,2,FALSE) -> GDN (SC) | C115: 0
A116: Leamington | B116: =VLOOKUP(A116,'Locations & Types'!$E:$F,2,FALSE) -> GDN (WM) | C116: 3634748
A117: Little Burdon | B117: =VLOOKUP(A117,'Locations & Types'!$E:$F,2,FALSE) -> GDN (NO) | C117: 20919521
A118: Littleton Drew | B118: =VLOOKUP(A118,'Locations & Types'!$E:$F,2,FALSE) -> GDN (SW) | C118: 2299463
A119: Lockerbie | B119: =VLOOKUP(A119,'Locations & Types'!$E:$F,2,FALSE) -> GDN (SC) | C119: 7131838
A120: Lower Quinton | B120: =VLOOKUP(A120,'Locations & Types'!$E:$F,2,FALSE) -> GDN (WM) | C120: 29910000
A121: Lupton | B121: =VLOOKUP(A121,'Locations & Types'!$E:$F,2,FALSE) -> GDN (NW) | C121: 19815980
A122: Luxborough Lane | B122: =VLOOKUP(A122,'Locations & Types'!$E:$F,2,FALSE) -> GDN (NT) | C122: 76147689
A123: Lyneham (Choakford) | B123: =VLOOKUP(A123,'Locations & Types'!$E:$F,2,FALSE) -> GDN (SW) | C123: 40420636
A124: Maelor | B124: =VLOOKUP(A124,'Locations & Types'!$E:$F,2,FALSE) -> GDN (WN) | C124: 49258990
A125: Malpas | B125: =VLOOKUP(A125,'Locations & Types'!$E:$F,2,FALSE) -> GDN (NW) | C125: 685222
A126: Mappowder | B126: =VLOOKUP(A126,'Locations & Types'!$E:$F,2,FALSE) -> GDN (SO) | C126: 23569309.04
A127: Marchwood Power Station | B127: =VLOOKUP(A127,'Locations & Types'!$E:$F,2,FALSE) -> DC | C127: 39840000
A128: Market Harborough | B128: =VLOOKUP(A128,'Locations & Types'!$E:$F,2,FALSE) -> GDN (EM) | C128: 6965982
A129: Matching Green | B129: =VLOOKUP(A129,'Locations & Types'!$E:$F,2,FALSE) -> GDN (EA) | C129: 50470504
A130: Medway (aka Isle of Grain Power Station, NOT Grain Power) | B130: =VLOOKUP(A130,'Locations & Types'!$E:$F,2,FALSE) -> DC | C130: 32771084
A131: Melkinthorpe | B131: =VLOOKUP(A131,'Locations & Types'!$E:$F,2,FALSE) -> GDN (NO) | C131: 2432914
A132: Mickle Trafford | B132: =VLOOKUP(A132,'Locations & Types'!$E:$F,2,FALSE) -> GDN (NW) | C132: 29209411
A133: Middle Stoke (Damhead Creek, aka Kingsnorth Power Station) | B133: =VLOOKUP(A133,'Locations & Types'!$E:$F,2,FALSE) -> DC | C133: 95336184
A134: Milwich | B134: =VLOOKUP(A134,'Locations & Types'!$E:$F,2,FALSE) -> GDN (WM) | C134: 18949988
A135: Moffat (Irish Interconnector) | B135: =VLOOKUP(A135,'Locations & Types'!$E:$F,2,FALSE) -> INTERCONNECTOR | C135: 212920231
A136: Netherhowcleugh | B136: =VLOOKUP(A136,'Locations & Types'!$E:$F,2,FALSE) -> GDN (SC) | C136: 322112
A137: Pannal | B137: =VLOOKUP(A137,'Locations & Types'!$E:$F,2,FALSE) -> GDN (NE) | C137: 120179959
A138: Partington | B138: =VLOOKUP(A138,'Locations & Types'!$E:$F,2,FALSE) -> GDN (NW) | C138: 43675148
A139: Partington Max Refill | B139: =VLOOKUP(A139,'Locations & Types'!$E:$F,2,FALSE) -> STORAGE SITE | C139: 0
A140: Paull | B140: =VLOOKUP(A140,'Locations & Types'!$E:$F,2,FALSE) -> GDN (NE) | C140: 46858561
A141: Pembroke Power Station | B141: =VLOOKUP(A141,'Locations & Types'!$E:$F,2,FALSE) -> DC | C141: 121200000
A142: Peterborough (Peterborough Power Station) | B142: =VLOOKUP(A142,'Locations & Types'!$E:$F,2,FALSE) -> DC | C142: 2800000
A143: Peterborough Eye (Tee) | B143: =VLOOKUP(A143,'Locations & Types'!$E:$F,2,FALSE) -> GDN (EA) | C143: 20325523
A144: Peters Green | B144: =VLOOKUP(A144,'Locations & Types'!$E:$F,2,FALSE) -> GDN (NT) | C144: 111963144
A145: Peters Green South Mimms | B145: =VLOOKUP(A145,'Locations & Types'!$E:$F,2,FALSE) -> GDN (NT) | C145: 164876045
A146: Phillips Petroleum, Teesside | B146: =VLOOKUP(A146,'Locations & Types'!$E:$F,2,FALSE) -> DC | C146: 3690000
A147: Pickering | B147: =VLOOKUP(A147,'Locations & Types'!$E:$F,2,FALSE) -> GDN (NE) | C147: 8332710
A148: Pickmere (Winnington Power, aka Brunner Mond) | B148: =VLOOKUP(A148,'Locations & Types'!$E:$F,2,FALSE) -> DC | C148: 8000000
A149: Pitcairngreen | B149: =VLOOKUP(A149,'Locations & Types'!$E:$F,2,FALSE) -> GDN (SC) | C149: 1915791
A150: Pucklechurch | B150: =VLOOKUP(A150,'Locations & Types'!$E:$F,2,FALSE) -> GDN (SW) | C150: 23885892
A151: Rawcliffe | B151: =VLOOKUP(A151,'Locations & Types'!$E:$F,2,FALSE) -> GDN (NE) | C151: 3229202
A152: Glasgoforest | B152: =VLOOKUP(A152,'Locations & Types'!$E:$F,2,FALSE) -> DC | C152: 0
A153: Roosecote Power Station (Barrow) | B153: =VLOOKUP(A153,'Locations & Types'!$E:$F,2,FALSE) -> DC | C153: 0
A154: Rosehill (Saltend Power Station) | B154: =VLOOKUP(A154,'Locations & Types'!$E:$F,2,FALSE) -> DC | C154: 57830000
A155: Ross (SW) | B155: =VLOOKUP(A155,'Locations & Types'!$E:$F,2,FALSE) -> GDN (SW) | C155: 4023357
A156: Ross (WM) | B156: =VLOOKUP(A156,'Locations & Types'!$E:$F,2,FALSE) -> GDN (WM) | C156: 9937704
A157: Roudham Heath | B157: =VLOOKUP(A157,'Locations & Types'!$E:$F,2,FALSE) -> GDN (EA) | C157: 20129094
A158: Royston | B158: =VLOOKUP(A158,'Locations & Types'!$E:$F,2,FALSE) -> GDN (EA) | C158: 2367780
A159: Rugby | B159: =VLOOKUP(A159,'Locations & Types'!$E:$F,2,FALSE) -> GDN (WM) | C159: 60380901
A160: Ryehouse | B160: =VLOOKUP(A160,'Locations & Types'!$E:$F,2,FALSE) -> DC | C160: 38660000
A161: Saddle Bow (Kings Lynn) | B161: =VLOOKUP(A161,'Locations & Types'!$E:$F,2,FALSE) -> DC | C161: 14500000
A162: Saltend BPHP (BP Saltend HP) | B162: =VLOOKUP(A162,'Locations & Types'!$E:$F,2,FALSE) -> DC | C162: 9055895
A163: Saltfleetby Storage (Theddlethorpe) | B163: =VLOOKUP(A163,'Locations & Types'!$E:$F,2,FALSE) -> STORAGE SITE | C163: 0
A164: Saltwick Pressure Controlled | B164: =VLOOKUP(A164,'Locations & Types'!$E:$F,2,FALSE) -> GDN (NO) | C164: 0
A165: Saltwick Volumetric Controlled | B165: =VLOOKUP(A165,'Locations & Types'!$E:$F,2,FALSE) -> GDN (NO) | C165: 40011158
A166: Samlesbury | B166: =VLOOKUP(A166,'Locations & Types'!$E:$F,2,FALSE) -> GDN (NW) | C166: 99858652
A167: Sandy Lane (Blackburn CHP, aka Sappi Paper Mill) | B167: =VLOOKUP(A167,'Locations & Types'!$E:$F,2,FALSE) -> DC | C167: 3433103
A168: Seabank (DN) | B168: =VLOOKUP(A168,'Locations & Types'!$E:$F,2,FALSE) -> GDN (SW) | C168: 50365514
A169: Seabank (Seabank Power Station phase II) | B169: =VLOOKUP(A169,'Locations & Types'!$E:$F,2,FALSE) -> DC | C169: 18316938
A170: Seal Sands TGPP | B170: =VLOOKUP(A170,'Locations & Types'!$E:$F,2,FALSE) -> DC | C170: 46571.43097
A171: Sellafield Power Station | B171: =VLOOKUP(A171,'Locations & Types'!$E:$F,2,FALSE) -> DC | C171: 12349999
A172: Shellstar (aka Kemira, not Kemira CHP) | B172: =VLOOKUP(A172,'Locations & Types'!$E:$F,2,FALSE) -> DC | C172: 11732444
A173: Shorne | B173: =VLOOKUP(A173,'Locations & Types'!$E:$F,2,FALSE) -> GDN (SE) | C173: 19826107
A174: Shotwick (Bridgewater Paper) | B174: =VLOOKUP(A174,'Locations & Types'!$E:$F,2,FALSE) -> DC | C174: 310479.4521
A175: Shustoke | B175: =VLOOKUP(A175,'Locations & Types'!$E:$F,2,FALSE) -> GDN (WM) | C175: 100000
A176: Silk Willoughby | B176: =VLOOKUP(A176,'Locations & Types'!$E:$F,2,FALSE) -> GDN (EM) | C176: 2203090
A177: Soutra | B177: =VLOOKUP(A177,'Locations & Types'!$E:$F,2,FALSE) -> GDN (SC) | C177: 10726995
A178: Spalding 2 (South Holland) Power Station | B178: =VLOOKUP(A178,'Locations & Types'!$E:$F,2,FALSE) -> DC | C178: 0
A179: St Fergus | B179: =VLOOKUP(A179,'Locations & Types'!$E:$F,2,FALSE) -> GDN (SC) | C179: 1267112
A180: St. Fergus (Peterhead) | B180: =VLOOKUP(A180,'Locations & Types'!$E:$F,2,FALSE) -> DC | C180: 73267750
A181: St. Fergus (Shell Blackstart) | B181: =VLOOKUP(A181,'Locations & Types'!$E:$F,2,FALSE) -> DC | C181: 2583336
A182: St. Neots (Little Barford) | B182: =VLOOKUP(A182,'Locations & Types'!$E:$F,2,FALSE) -> DC | C182: 26775065.04
A183: Stallingborough | B183: =VLOOKUP(A183,'Locations & Types'!$E:$F,2,FALSE) -> DC | C183: 52700000
A184: Stanford Le Hope (Coryton) | B184: =VLOOKUP(A184,'Locations & Types'!$E:$F,2,FALSE) -> DC | C184: 8267935.726
A185: Staythorpe | B185: =VLOOKUP(A185,'Locations & Types'!$E:$F,2,FALSE) -> DC | C185: 42949104.61
A186: Stranraer | B186: =VLOOKUP(A186,'Locations & Types'!$E:$F,2,FALSE) -> GDN (SC) | C186: 886809
A187: Stratford-upon-Avon | B187: =VLOOKUP(A187,'Locations & Types'!$E:$F,2,FALSE) -> GDN (WM) | C187: 3735040
A188: Stublach (Cheshire) | B188: =VLOOKUP(A188,'Locations & Types'!$E:$F,2,FALSE) -> STORAGE SITE | C188: 30343940
A189: Sutton Bridge | B189: =VLOOKUP(A189,'Locations & Types'!$E:$F,2,FALSE) -> GDN (EM) | C189: 1079269
A190: Sutton Bridge Power Station | B190: =VLOOKUP(A190,'Locations & Types'!$E:$F,2,FALSE) -> DC | C190: 42637000
A191: Tatsfield | B191: =VLOOKUP(A191,'Locations & Types'!$E:$F,2,FALSE) -> GDN (SE) | C191: 213058400
A192: Teesside (BASF, aka BASF Teesside) | B192: =VLOOKUP(A192,'Locations & Types'!$E:$F,2,FALSE) -> DC | C192: 9750000
A193: Teesside Hydrogen | B193: =VLOOKUP(A193,'Locations & Types'!$E:$F,2,FALSE) -> DC | C193: 13276800
A194: Terra Nitrogen (aka ICI, Terra Severnside) | B194: =VLOOKUP(A194,'Locations & Types'!$E:$F,2,FALSE) -> DC | C194: 0
A195: Thornton Curtis (DN) | B195: =VLOOKUP(A195,'Locations & Types'!$E:$F,2,FALSE) -> GDN (EM) | C195: 118190411
A196: Thornton Curtis (Humber Refinery, aka Immingham) | B196: =VLOOKUP(A196,'Locations & Types'!$E:$F,2,FALSE) -> DC | C196: 67000000
A197: Thornton Curtis (Killingholme) | B197: =VLOOKUP(A197,'Locations & Types'!$E:$F,2,FALSE) -> DC | C197: 48268493.15
A198: Thrintoft | B198: =VLOOKUP(A198,'Locations & Types'!$E:$F,2,FALSE) -> GDN (NO) | C198: 6921484
A199: Tilbury Power Station | B199: =VLOOKUP(A199,'Locations & Types'!$E:$F,2,FALSE) -> DC | C199: 0
A200: Tonna (Baglan Bay) | B200: =VLOOKUP(A200,'Locations & Types'!$E:$F,2,FALSE) -> DC | C200: 26750000
... 31 more rows

Sheet 19-20 FCC - Exit (hidden)
A1: Exit Point | B1: Exit Point Type | C1: Forecasted Contracted Capacity
C2: (kWh/d)
A3: Aberdeen | B3: =VLOOKUP(A3,'Locations & Types'!$E:$F,2,FALSE) -> GDN (SC) | C3: 21639348
A4: Abson (Seabank Power Station phase I) | B4: =VLOOKUP(A4,'Locations & Types'!$E:$F,2,FALSE) -> DC | C4: 27843799.79
A5: Alrewas (EM) | B5: =VLOOKUP(A5,'Locations & Types'!$E:$F,2,FALSE) -> GDN (EM) | C5: 59229584
A6: Alrewas (WM) | B6: =VLOOKUP(A6,'Locations & Types'!$E:$F,2,FALSE) -> GDN (WM) | C6: 72462290
A7: Apache (Sage Black Start) | B7: =VLOOKUP(A7,'Locations & Types'!$E:$F,2,FALSE) -> DC | C7: 9073.673973
A8: Armadale | B8: =VLOOKUP(A8,'Locations & Types'!$E:$F,2,FALSE) -> GDN (SC) | C8: 7519525
A9: Aspley | B9: =VLOOKUP(A9,'Locations & Types'!$E:$F,2,FALSE) -> GDN (WM) | C9: 50894176
A10: Asselby | B10: =VLOOKUP(A10,'Locations & Types'!$E:$F,2,FALSE) -> GDN (NE) | C10: 3586201
A11: Audley (NW) | B11: =VLOOKUP(A11,'Locations & Types'!$E:$F,2,FALSE) -> GDN (NW) | C11: 8037574
A12: Audley (WM) | B12: =VLOOKUP(A12,'Locations & Types'!$E:$F,2,FALSE) -> GDN (WM) | C12: 13572412
A13: Austrey | B13: =VLOOKUP(A13,'Locations & Types'!$E:$F,2,FALSE) -> GDN (WM) | C13: 59601211
A14: Avonmouth Max Refill | B14: =VLOOKUP(A14,'Locations & Types'!$E:$F,2,FALSE) -> STORAGE SITE | C14: 661.2054795
A15: Aylesbeare | B15: =VLOOKUP(A15,'Locations & Types'!$E:$F,2,FALSE) -> GDN (SW) | C15: 19128874
A16: Bacton | B16: =VLOOKUP(A16,'Locations & Types'!$E:$F,2,FALSE) -> GDN (EA) | C16: 2844268
A17: Bacton (Baird) | B17: =VLOOKUP(A17,'Locations & Types'!$E:$F,2,FALSE) -> STORAGE SITE | C17: 0
A18: Bacton (BBL) | B18: =VLOOKUP(A18,'Locations & Types'!$E:$F,2,FALSE) -> INTERCONNECTOR | C18: 0
A19: Bacton (Great Yarmouth) | B19: =VLOOKUP(A19,'Locations & Types'!$E:$F,2,FALSE) -> DC | C19: 20000000
A20: Bacton (IUK) | B20: =VLOOKUP(A20,'Locations & Types'!$E:$F,2,FALSE) -> INTERCONNECTOR | C20: 185430316.3
A21: Baldersby | B21: =VLOOKUP(A21,'Locations & Types'!$E:$F,2,FALSE) -> GDN (NE) | C21: 1126642
A22: Balgray | B22: =VLOOKUP(A22,'Locations & Types'!$E:$F,2,FALSE) -> GDN (SC) | C22: 15057981
A23: Barking (Horndon) | B23: =VLOOKUP(A23,'Locations & Types'!$E:$F,2,FALSE) -> DC | C23: 0
A24: Barrow (Bains) | B24: =VLOOKUP(A24,'Locations & Types'!$E:$F,2,FALSE) -> STORAGE SITE | C24: 0
A25: Barrow (Black Start) | B25: =VLOOKUP(A25,'Locations & Types'!$E:$F,2,FALSE) -> DC | C25: 1001369.863
A26: Barrow (Gateway) | B26: =VLOOKUP(A26,'Locations & Types'!$E:$F,2,FALSE) -> STORAGE SITE | C26: 0
A27: Barton Stacey Max Refill (Humbly Grove) | B27: =VLOOKUP(A27,'Locations & Types'!$E:$F,2,FALSE) -> STORAGE SITE | C27: 10181399.89
A28: Bathgate | B28: =VLOOKUP(A28,'Locations & Types'!$E:$F,2,FALSE) -> GDN (SC) | C28: 21081766
A29: Billingham ICI (Terra Billingham) | B29: =VLOOKUP(A29,'Locations & Types'!$E:$F,2,FALSE) -> DC | C29: 33644543
A30: Bishop Auckland | B30: =VLOOKUP(A30,'Locations & Types'!$E:$F,2,FALSE) -> GDN (NO) | C30: 56287977
A31: Bishop Auckland (test facility) | B31: =VLOOKUP(A31,'Locations & Types'!$E:$F,2,FALSE) -> DC | C31: 781914.3562
A32: Blaby | B32: =VLOOKUP(A32,'Locations & Types'!$E:$F,2,FALSE) -> GDN (EM) | C32: 9867513
A33: Blackness (BP Grangemouth) | B33: =VLOOKUP(A33,'Locations & Types'!$E:$F,2,FALSE) -> DC | C33: 27290000
A34: Blackrod | B34: =VLOOKUP(A34,'Locations & Types'!$E:$F,2,FALSE) -> GDN (NW) | C34: 123939267
A35: Blyborough | B35: =VLOOKUP(A35,'Locations & Types'!$E:$F,2,FALSE) -> GDN (EM) | C35: 55825856
A36: Blyborough (Brigg) | B36: =VLOOKUP(A36,'Locations & Types'!$E:$F,2,FALSE) -> DC | C36: 1600000
A37: Blyborough (Cottam) | B37: =VLOOKUP(A37,'Locations & Types'!$E:$F,2,FALSE) -> DC | C37: 12767838.63
A38: Braishfield A | B38: =VLOOKUP(A38,'Locations & Types'!$E:$F,2,FALSE) -> GDN (SO) | C38: 84161130
A39: Braishfield B | B39: =VLOOKUP(A39,'Locations & Types'!$E:$F,2,FALSE) -> GDN (SO) | C39: 64947171
A40: Brine Field (Teesside) Power Station | B40: =VLOOKUP(A40,'Locations & Types'!$E:$F,2,FALSE) -> DC | C40: 50816.9863
A41: Brisley | B41: =VLOOKUP(A41,'Locations & Types'!$E:$F,2,FALSE) -> GDN (EA) | C41: 2077837
A42: Broxburn | B42: =VLOOKUP(A42,'Locations & Types'!$E:$F,2,FALSE) -> GDN (SC) | C42: 56250554
A43: Burley Bank | B43: =VLOOKUP(A43,'Locations & Types'!$E:$F,2,FALSE) -> GDN (NE) | C43: 13868151
A44: Burnhervie | B44: =VLOOKUP(A44,'Locations & Types'!$E:$F,2,FALSE) -> GDN (SC) | C44: 22372861
A45: Burton Point (Connahs Quay) | B45: =VLOOKUP(A45,'Locations & Types'!$E:$F,2,FALSE) -> DC | C45: 12329187.43
A46: Caldecott | B46: =VLOOKUP(A46,'Locations & Types'!$E:$F,2,FALSE) -> GDN (EM) | C46: 8977861
A47: Caldecott (Corby Power Station) | B47: =VLOOKUP(A47,'Locations & Types'!$E:$F,2,FALSE) -> DC | C47: 663937.0959
A48: Cambridge | B48: =VLOOKUP(A48,'Locations & Types'!$E:$F,2,FALSE) -> GDN (EA) | C48: 0
A49: Careston | B49: =VLOOKUP(A49,'Locations & Types'!$E:$F,2,FALSE) -> GDN (SC) | C49: 4112924
A50: Carrington (Partington) Power Station | B50: =VLOOKUP(A50,'Locations & Types'!$E:$F,2,FALSE) -> DC | C50: 26438120.58
A51: Caythorpe | B51: =VLOOKUP(A51,'Locations & Types'!$E:$F,2,FALSE) -> STORAGE SITE | C51: 0
A52: Centrax Industrial | B52: =VLOOKUP(A52,'Locations & Types'!$E:$F,2,FALSE) -> DC | C52: 85000
A53: Cirencester | B53: =VLOOKUP(A53,'Locations & Types'!$E:$F,2,FALSE) -> GDN (SW) | C53: 7417140
A54: Cockenzie Power Station | B54: =VLOOKUP(A54,'Locations & Types'!$E:$F,2,FALSE) -> DC | C54: 0
A55: Coffinswell | B55: =VLOOKUP(A55,'Locations & Types'!$E:$F,2,FALSE) -> GDN (SW) | C55: 5150000
A56: Coldstream | B56: =VLOOKUP(A56,'Locations & Types'!$E:$F,2,FALSE) -> GDN (NO) | C56: 2848927
A57: Corbridge | B57: =VLOOKUP(A57,'Locations & Types'!$E:$F,2,FALSE) -> GDN (NO) | C57: 57846
A58: Coryton 2 (Thames Haven) Power Station | B58: =VLOOKUP(A58,'Locations & Types'!$E:$F,2,FALSE) -> DC | C58: 0
A59: Cowpen Bewley | B59: =VLOOKUP(A59,'Locations & Types'!$E:$F,2,FALSE) -> GDN (NO) | C59: 38498554
A60: Crawley Down | B60: =VLOOKUP(A60,'Locations & Types'!$E:$F,2,FALSE) -> GDN (SO) | C60: 0
A61: Deborah Storage (Bacton) | B61: =VLOOKUP(A61,'Locations & Types'!$E:$F,2,FALSE) -> STORAGE SITE | C61: 0
A62: Deeside | B62: =VLOOKUP(A62,'Locations & Types'!$E:$F,2,FALSE) -> DC | C62: 4448282.164
A63: Didcot | B63: =VLOOKUP(A63,'Locations & Types'!$E:$F,2,FALSE) -> DC | C63: 33674184.27
A64: Dowlais | B64: =VLOOKUP(A64,'Locations & Types'!$E:$F,2,FALSE) -> GDN (WS) | C64: 91369207
A65: Drakelow Power Station | B65: =VLOOKUP(A65,'Locations & Types'!$E:$F,2,FALSE) -> DC | C65: 0
A66: Drointon | B66: =VLOOKUP(A66,'Locations & Types'!$E:$F,2,FALSE) -> GDN (EM) | C66: 54670979
A67: Drum | B67: =VLOOKUP(A67,'Locations & Types'!$E:$F,2,FALSE) -> GDN (SC) | C67: 66956781
A68: Dyffryn Clydach | B68: =VLOOKUP(A68,'Locations & Types'!$E:$F,2,FALSE) -> GDN (WS) | C68: 40231974
A69: Dynevor Max Refill | B69: =VLOOKUP(A69,'Locations & Types'!$E:$F,2,FALSE) -> STORAGE SITE | C69: 23931
A70: Eastoft (Keadby Blackstart) | B70: =VLOOKUP(A70,'Locations & Types'!$E:$F,2,FALSE) -> DC | C70: 1457215
A71: Eastoft (Keadby) | B71: =VLOOKUP(A71,'Locations & Types'!$E:$F,2,FALSE) -> DC | C71: 16099880.27
A72: Easton Grey | B72: =VLOOKUP(A72,'Locations & Types'!$E:$F,2,FALSE) -> GDN (SW) | C72: 27391725
A73: Ecclestone | B73: =VLOOKUP(A73,'Locations & Types'!$E:$F,2,FALSE) -> GDN (NW) | C73: 16370887
A74: Elton | B74: =VLOOKUP(A74,'Locations & Types'!$E:$F,2,FALSE) -> GDN (NO) | C74: 52818145
A75: Enron Billingham | B75: =VLOOKUP(A75,'Locations & Types'!$E:$F,2,FALSE) -> DC | C75: 0
A76: Epping Green (Enfield Energy, aka Brimsdown) | B76: =VLOOKUP(A76,'Locations & Types'!$E:$F,2,FALSE) -> DC | C76: 9323287.671
A77: Evesham | B77: =VLOOKUP(A77,'Locations & Types'!$E:$F,2,FALSE) -> GDN (SW) | C77: 6441859
A78: Farningham | B78: =VLOOKUP(A78,'Locations & Types'!$E:$F,2,FALSE) -> GDN (SE) | C78: 89921069
A79: Farningham B | B79: =VLOOKUP(A79,'Locations & Types'!$E:$F,2,FALSE) -> GDN (SE) | C79: 94634400
A80: Ferny Knoll (AM Paper) | B80: =VLOOKUP(A80,'Locations & Types'!$E:$F,2,FALSE) -> DC | C80: 0
A81: Fiddington | B81: =VLOOKUP(A81,'Locations & Types'!$E:$F,2,FALSE) -> GDN (SW) | C81: 21293234
A82: Ganstead | B82: =VLOOKUP(A82,'Locations & Types'!$E:$F,2,FALSE) -> GDN (NE) | C82: 16610330
A83: Garton Max Refill (Aldbrough) | B83: =VLOOKUP(A83,'Locations & Types'!$E:$F,2,FALSE) -> STORAGE SITE | C83: 325510000
A84: Gilwern | B84: =VLOOKUP(A84,'Locations & Types'!$E:$F,2,FALSE) -> GDN (WS) | C84: 75404154
A85: Glenmavis | B85: =VLOOKUP(A85,'Locations & Types'!$E:$F,2,FALSE) -> GDN (SC) | C85: 128262344
A86: Glenmavis Max Refill | B86: =VLOOKUP(A86,'Locations & Types'!$E:$F,2,FALSE) -> STORAGE SITE | C86: 128720
A87: Goole (Guardian Glass) | B87: =VLOOKUP(A87,'Locations & Types'!$E:$F,2,FALSE) -> DC | C87: 1700000
A88: Gosberton | B88: =VLOOKUP(A88,'Locations & Types'!$E:$F,2,FALSE) -> GDN (EM) | C88: 12321120
A89: Gowkhall (Longannet) | B89: =VLOOKUP(A89,'Locations & Types'!$E:$F,2,FALSE) -> DC | C89: 43320000
A90: Grain Power Station | B90: =VLOOKUP(A90,'Locations & Types'!$E:$F,2,FALSE) -> DC | C90: 48815174.45
A91: Great Wilbraham | B91: =VLOOKUP(A91,'Locations & Types'!$E:$F,2,FALSE) -> GDN (EA) | C91: 23677521
A92: Guyzance | B92: =VLOOKUP(A92,'Locations & Types'!$E:$F,2,FALSE) -> GDN (NO) | C92: 1806988
A93: Hardwick | B93: =VLOOKUP(A93,'Locations & Types'!$E:$F,2,FALSE) -> GDN (SO) | C93: 103540577
A94: Harwarden (Shotton, aka Shotton Paper) | B94: =VLOOKUP(A94,'Locations & Types'!$E:$F,2,FALSE) -> DC | C94: 0
A95: Hatfield Moor Max Refill | B95: =VLOOKUP(A95,'Locations & Types'!$E:$F,2,FALSE) -> STORAGE SITE | C95: 30210000
A96: Hatfield Power Station | B96: =VLOOKUP(A96,'Locations & Types'!$E:$F,2,FALSE) -> DC | C96: 0
A97: Hill Top Farm (Hole House Farm) | B97: =VLOOKUP(A97,'Locations & Types'!$E:$F,2,FALSE) -> STORAGE SITE | C97: 4588175.342
A98: Hole House Max Refill | B98: =VLOOKUP(A98,'Locations & Types'!$E:$F,2,FALSE) -> STORAGE SITE | C98: 684999.2329
A99: Holford | B99: =VLOOKUP(A99,'Locations & Types'!$E:$F,2,FALSE) -> STORAGE SITE | C99: 41731254.82
A100: Hollingsgreen (Hays Chemicals) | B100: =VLOOKUP(A100,'Locations & Types'!$E:$F,2,FALSE) -> DC | C100: 555000
A101: Holmes Chapel | B101: =VLOOKUP(A101,'Locations & Types'!$E:$F,2,FALSE) -> GDN (NW) | C101: 21678773
A102: Horndon | B102: =VLOOKUP(A102,'Locations & Types'!$E:$F,2,FALSE) -> GDN (NT) | C102: 33307669
A103: Hornsea Max Refill | B103: =VLOOKUP(A103,'Locations & Types'!$E:$F,2,FALSE) -> STORAGE SITE | C103: 40337921.03
A104: Humbleton | B104: =VLOOKUP(A104,'Locations & Types'!$E:$F,2,FALSE) -> GDN (NO) | C104: 148471
A105: Hume | B105: =VLOOKUP(A105,'Locations & Types'!$E:$F,2,FALSE) -> GDN (SC) | C105: 1684385
A106: Ilchester | B106: =VLOOKUP(A106,'Locations & Types'!$E:$F,2,FALSE) -> GDN (SW) | C106: 31408565
A107: Ipsden | B107: =VLOOKUP(A107,'Locations & Types'!$E:$F,2,FALSE) -> GDN (SO) | C107: 5760836.036
A108: Ipsden 2 | B108: =VLOOKUP(A108,'Locations & Types'!$E:$F,2,FALSE) -> GDN (SO) | C108: 7429155.345
A109: Keld | B109: =VLOOKUP(A109,'Locations & Types'!$E:$F,2,FALSE) -> GDN (NO) | C109: 1424555
A110: Kenn | B110: =VLOOKUP(A110,'Locations & Types'!$E:$F,2,FALSE) -> GDN (SW) | C110: 14000883
A111: Kinknockie | B111: =VLOOKUP(A111,'Locations & Types'!$E:$F,2,FALSE) -> GDN (SC) | C111: 3068392
A112: Kirkstead | B112: =VLOOKUP(A112,'Locations & Types'!$E:$F,2,FALSE) -> GDN (EM) | C112: 858703
A113: Langage Power Station | B113: =VLOOKUP(A113,'Locations & Types'!$E:$F,2,FALSE) -> DC | C113: 31708219.18
A114: Langholm | B114: =VLOOKUP(A114,'Locations & Types'!$E:$F,2,FALSE) -> GDN (SC) | C114: 255319
A115: Lauderhill | B115: =VLOOKUP(A115,'Locations & Types'!$E:$F,2,FALSE) -> GDN (SC) | C115: 0
A116: Leamington | B116: =VLOOKUP(A116,'Locations & Types'!$E:$F,2,FALSE) -> GDN (WM) | C116: 3634748
A117: Little Burdon | B117: =VLOOKUP(A117,'Locations & Types'!$E:$F,2,FALSE) -> GDN (NO) | C117: 20919521
A118: Littleton Drew | B118: =VLOOKUP(A118,'Locations & Types'!$E:$F,2,FALSE) -> GDN (SW) | C118: 2299463
A119: Lockerbie | B119: =VLOOKUP(A119,'Locations & Types'!$E:$F,2,FALSE) -> GDN (SC) | C119: 7131838
A120: Lower Quinton | B120: =VLOOKUP(A120,'Locations & Types'!$E:$F,2,FALSE) -> GDN (WM) | C120: 29910000
A121: Lupton | B121: =VLOOKUP(A121,'Locations & Types'!$E:$F,2,FALSE) -> GDN (NW) | C121: 19815980
A122: Luxborough Lane | B122: =VLOOKUP(A122,'Locations & Types'!$E:$F,2,FALSE) -> GDN (NT) | C122: 76147689
A123: Lyneham (Choakford) | B123: =VLOOKUP(A123,'Locations & Types'!$E:$F,2,FALSE) -> GDN (SW) | C123: 40420636
A124: Maelor | B124: =VLOOKUP(A124,'Locations & Types'!$E:$F,2,FALSE) -> GDN (WN) | C124: 49258990
A125: Malpas | B125: =VLOOKUP(A125,'Locations & Types'!$E:$F,2,FALSE) -> GDN (NW) | C125: 685222
A126: Mappowder | B126: =VLOOKUP(A126,'Locations & Types'!$E:$F,2,FALSE) -> GDN (SO) | C126: 23569309.04
A127: Marchwood Power Station | B127: =VLOOKUP(A127,'Locations & Types'!$E:$F,2,FALSE) -> DC | C127: 39840000
A128: Market Harborough | B128: =VLOOKUP(A128,'Locations & Types'!$E:$F,2,FALSE) -> GDN (EM) | C128: 6965982
A129: Matching Green | B129: =VLOOKUP(A129,'Locations & Types'!$E:$F,2,FALSE) -> GDN (EA) | C129: 50470504
A130: Medway (aka Isle of Grain Power Station, NOT Grain Power) | B130: =VLOOKUP(A130,'Locations & Types'!$E:$F,2,FALSE) -> DC | C130: 32771084
A131: Melkinthorpe | B131: =VLOOKUP(A131,'Locations & Types'!$E:$F,2,FALSE) -> GDN (NO) | C131: 2432914
A132: Mickle Trafford | B132: =VLOOKUP(A132,'Locations & Types'!$E:$F,2,FALSE) -> GDN (NW) | C132: 29209411
A133: Middle Stoke (Damhead Creek, aka Kingsnorth Power Station) | B133: =VLOOKUP(A133,'Locations & Types'!$E:$F,2,FALSE) -> DC | C133: 95336184
A134: Milwich | B134: =VLOOKUP(A134,'Locations & Types'!$E:$F,2,FALSE) -> GDN (WM) | C134: 18949988
A135: Moffat (Irish Interconnector) | B135: =VLOOKUP(A135,'Locations & Types'!$E:$F,2,FALSE) -> INTERCONNECTOR | C135: 212920231
A136: Netherhowcleugh | B136: =VLOOKUP(A136,'Locations & Types'!$E:$F,2,FALSE) -> GDN (SC) | C136: 322112
A137: Pannal | B137: =VLOOKUP(A137,'Locations & Types'!$E:$F,2,FALSE) -> GDN (NE) | C137: 120179959
A138: Partington | B138: =VLOOKUP(A138,'Locations & Types'!$E:$F,2,FALSE) -> GDN (NW) | C138: 43675148
A139: Partington Max Refill | B139: =VLOOKUP(A139,'Locations & Types'!$E:$F,2,FALSE) -> STORAGE SITE | C139: 0
A140: Paull | B140: =VLOOKUP(A140,'Locations & Types'!$E:$F,2,FALSE) -> GDN (NE) | C140: 46858561
A141: Pembroke Power Station | B141: =VLOOKUP(A141,'Locations & Types'!$E:$F,2,FALSE) -> DC | C141: 121200000
A142: Peterborough (Peterborough Power Station) | B142: =VLOOKUP(A142,'Locations & Types'!$E:$F,2,FALSE) -> DC | C142: 2800000
A143: Peterborough Eye (Tee) | B143: =VLOOKUP(A143,'Locations & Types'!$E:$F,2,FALSE) -> GDN (EA) | C143: 20325523
A144: Peters Green | B144: =VLOOKUP(A144,'Locations & Types'!$E:$F,2,FALSE) -> GDN (NT) | C144: 111963144
A145: Peters Green South Mimms | B145: =VLOOKUP(A145,'Locations & Types'!$E:$F,2,FALSE) -> GDN (NT) | C145: 164876045
A146: Phillips Petroleum, Teesside | B146: =VLOOKUP(A146,'Locations & Types'!$E:$F,2,FALSE) -> DC | C146: 3690000
A147: Pickering | B147: =VLOOKUP(A147,'Locations & Types'!$E:$F,2,FALSE) -> GDN (NE) | C147: 8332710
A148: Pickmere (Winnington Power, aka Brunner Mond) | B148: =VLOOKUP(A148,'Locations & Types'!$E:$F,2,FALSE) -> DC | C148: 8000000
A149: Pitcairngreen | B149: =VLOOKUP(A149,'Locations & Types'!$E:$F,2,FALSE) -> GDN (SC) | C149: 1915791
A150: Pucklechurch | B150: =VLOOKUP(A150,'Locations & Types'!$E:$F,2,FALSE) -> GDN (SW) | C150: 23885892
A151: Rawcliffe | B151: =VLOOKUP(A151,'Locations & Types'!$E:$F,2,FALSE) -> GDN (NE) | C151: 3229202
A152: Glasgoforest | B152: =VLOOKUP(A152,'Locations & Types'!$E:$F,2,FALSE) -> DC | C152: 0
A153: Roosecote Power Station (Barrow) | B153: =VLOOKUP(A153,'Locations & Types'!$E:$F,2,FALSE) -> DC | C153: 0
A154: Rosehill (Saltend Power Station) | B154: =VLOOKUP(A154,'Locations & Types'!$E:$F,2,FALSE) -> DC | C154: 57830000
A155: Ross (SW) | B155: =VLOOKUP(A155,'Locations & Types'!$E:$F,2,FALSE) -> GDN (SW) | C155: 4023357
A156: Ross (WM) | B156: =VLOOKUP(A156,'Locations & Types'!$E:$F,2,FALSE) -> GDN (WM) | C156: 9937704
A157: Roudham Heath | B157: =VLOOKUP(A157,'Locations & Types'!$E:$F,2,FALSE) -> GDN (EA) | C157: 20129094
A158: Royston | B158: =VLOOKUP(A158,'Locations & Types'!$E:$F,2,FALSE) -> GDN (EA) | C158: 2367780
A159: Rugby | B159: =VLOOKUP(A159,'Locations & Types'!$E:$F,2,FALSE) -> GDN (WM) | C159: 60380901
A160: Ryehouse | B160: =VLOOKUP(A160,'Locations & Types'!$E:$F,2,FALSE) -> DC | C160: 38660000
A161: Saddle Bow (Kings Lynn) | B161: =VLOOKUP(A161,'Locations & Types'!$E:$F,2,FALSE) -> DC | C161: 14500000
A162: Saltend BPHP (BP Saltend HP) | B162: =VLOOKUP(A162,'Locations & Types'!$E:$F,2,FALSE) -> DC | C162: 9055895
A163: Saltfleetby Storage (Theddlethorpe) | B163: =VLOOKUP(A163,'Locations & Types'!$E:$F,2,FALSE) -> STORAGE SITE | C163: 0
A164: Saltwick Pressure Controlled | B164: =VLOOKUP(A164,'Locations & Types'!$E:$F,2,FALSE) -> GDN (NO) | C164: 0
A165: Saltwick Volumetric Controlled | B165: =VLOOKUP(A165,'Locations & Types'!$E:$F,2,FALSE) -> GDN (NO) | C165: 40011158
A166: Samlesbury | B166: =VLOOKUP(A166,'Locations & Types'!$E:$F,2,FALSE) -> GDN (NW) | C166: 99858652
A167: Sandy Lane (Blackburn CHP, aka Sappi Paper Mill) | B167: =VLOOKUP(A167,'Locations & Types'!$E:$F,2,FALSE) -> DC | C167: 3433103
A168: Seabank (DN) | B168: =VLOOKUP(A168,'Locations & Types'!$E:$F,2,FALSE) -> GDN (SW) | C168: 50365514
A169: Seabank (Seabank Power Station phase II) | B169: =VLOOKUP(A169,'Locations & Types'!$E:$F,2,FALSE) -> DC | C169: 18316938
A170: Seal Sands TGPP | B170: =VLOOKUP(A170,'Locations & Types'!$E:$F,2,FALSE) -> DC | C170: 46487.95244
A171: Sellafield Power Station | B171: =VLOOKUP(A171,'Locations & Types'!$E:$F,2,FALSE) -> DC | C171: 12349999
A172: Shellstar (aka Kemira, not Kemira CHP) | B172: =VLOOKUP(A172,'Locations & Types'!$E:$F,2,FALSE) -> DC | C172: 11732444
A173: Shorne | B173: =VLOOKUP(A173,'Locations & Types'!$E:$F,2,FALSE) -> GDN (SE) | C173: 19826107
A174: Shotwick (Bridgewater Paper) | B174: =VLOOKUP(A174,'Locations & Types'!$E:$F,2,FALSE) -> DC | C174: 310479.4521
A175: Shustoke | B175: =VLOOKUP(A175,'Locations & Types'!$E:$F,2,FALSE) -> GDN (WM) | C175: 100000
A176: Silk Willoughby | B176: =VLOOKUP(A176,'Locations & Types'!$E:$F,2,FALSE) -> GDN (EM) | C176: 2203090
A177: Soutra | B177: =VLOOKUP(A177,'Locations & Types'!$E:$F,2,FALSE) -> GDN (SC) | C177: 10726995
A178: Spalding 2 (South Holland) Power Station | B178: =VLOOKUP(A178,'Locations & Types'!$E:$F,2,FALSE) -> DC | C178: 0
A179: St Fergus | B179: =VLOOKUP(A179,'Locations & Types'!$E:$F,2,FALSE) -> GDN (SC) | C179: 1267112
A180: St. Fergus (Peterhead) | B180: =VLOOKUP(A180,'Locations & Types'!$E:$F,2,FALSE) -> DC | C180: 73267750
A181: St. Fergus (Shell Blackstart) | B181: =VLOOKUP(A181,'Locations & Types'!$E:$F,2,FALSE) -> DC | C181: 2583336
A182: St. Neots (Little Barford) | B182: =VLOOKUP(A182,'Locations & Types'!$E:$F,2,FALSE) -> DC | C182: 26775065.04
A183: Stallingborough | B183: =VLOOKUP(A183,'Locations & Types'!$E:$F,2,FALSE) -> DC | C183: 52700000
A184: Stanford Le Hope (Coryton) | B184: =VLOOKUP(A184,'Locations & Types'!$E:$F,2,FALSE) -> DC | C184: 8267935.726
A185: Staythorpe | B185: =VLOOKUP(A185,'Locations & Types'!$E:$F,2,FALSE) -> DC | C185: 41505935.34
A186: Stranraer | B186: =VLOOKUP(A186,'Locations & Types'!$E:$F,2,FALSE) -> GDN (SC) | C186: 886809
A187: Stratford-upon-Avon | B187: =VLOOKUP(A187,'Locations & Types'!$E:$F,2,FALSE) -> GDN (WM) | C187: 3735040
A188: Stublach (Cheshire) | B188: =VLOOKUP(A188,'Locations & Types'!$E:$F,2,FALSE) -> STORAGE SITE | C188: 30343940
A189: Sutton Bridge | B189: =VLOOKUP(A189,'Locations & Types'!$E:$F,2,FALSE) -> GDN (EM) | C189: 1079269
A190: Sutton Bridge Power Station | B190: =VLOOKUP(A190,'Locations & Types'!$E:$F,2,FALSE) -> DC | C190: 42637000
A191: Tatsfield | B191: =VLOOKUP(A191,'Locations & Types'!$E:$F,2,FALSE) -> GDN (SE) | C191: 213058400
A192: Teesside (BASF, aka BASF Teesside) | B192: =VLOOKUP(A192,'Locations & Types'!$E:$F,2,FALSE) -> DC | C192: 9750000
A193: Teesside Hydrogen | B193: =VLOOKUP(A193,'Locations & Types'!$E:$F,2,FALSE) -> DC | C193: 13276800
A194: Terra Nitrogen (aka ICI, Terra Severnside) | B194: =VLOOKUP(A194,'Locations & Types'!$E:$F,2,FALSE) -> DC | C194: 0
A195: Thornton Curtis (DN) | B195: =VLOOKUP(A195,'Locations & Types'!$E:$F,2,FALSE) -> GDN (EM) | C195: 118190411
A196: Thornton Curtis (Humber Refinery, aka Immingham) | B196: =VLOOKUP(A196,'Locations & Types'!$E:$F,2,FALSE) -> DC | C196: 67000000
A197: Thornton Curtis (Killingholme) | B197: =VLOOKUP(A197,'Locations & Types'!$E:$F,2,FALSE) -> DC | C197: 48268493.15
A198: Thrintoft | B198: =VLOOKUP(A198,'Locations & Types'!$E:$F,2,FALSE) -> GDN (NO) | C198: 6921484
A199: Tilbury Power Station | B199: =VLOOKUP(A199,'Locations & Types'!$E:$F,2,FALSE) -> DC | C199: 0
A200: Tonna (Baglan Bay) | B200: =VLOOKUP(A200,'Locations & Types'!$E:$F,2,FALSE) -> DC | C200: 26750000
... 31 more rows

Sheet 23-24 FCC - Entry
A1: Entry Point | B1: Entry Point Type | C1: Forecasted Contracted Capacity
C2: (kWh/d)
A3: Avonmouth | B3: =VLOOKUP(A3,'Locations & Types'!$A:$B,2,FALSE) -> STORAGE SITE | C3: 0
A4: Bacton IP | B4: =VLOOKUP(A4,'Locations & Types'!$A:$B,2,FALSE) -> INTERCONNECTION POINT | C4: 129341926.2
A5: Bacton UKCS | B5: =VLOOKUP(A5,'Locations & Types'!$A:$B,2,FALSE) -> BEACH TERMINAL | C5: 369167027.9
A6: Burton Point | B6: =VLOOKUP(A6,'Locations & Types'!$A:$B,2,FALSE) -> ONSHORE FIELD | C6: 19842129.69
A7: Barrow | B7: =VLOOKUP(A7,'Locations & Types'!$A:$B,2,FALSE) -> BEACH TERMINAL | C7: 34671245.03
A8: Barton Stacey | B8: =VLOOKUP(A8,'Locations & Types'!$A:$B,2,FALSE) -> STORAGE SITE | C8: 9386209.412
A9: Canonbie | B9: =VLOOKUP(A9,'Locations & Types'!$A:$B,2,FALSE) -> ONSHORE FIELD | C9: 0
A10: Cheshire | B10: =VLOOKUP(A10,'Locations & Types'!$A:$B,2,FALSE) -> STORAGE SITE | C10: 514110000
A11: Caythorpe | B11: =VLOOKUP(A11,'Locations & Types'!$A:$B,2,FALSE) -> STORAGE SITE | C11: 90000000
A12: Dynevor Arms | B12: =VLOOKUP(A12,'Locations & Types'!$A:$B,2,FALSE) -> STORAGE SITE | C12: 0
A13: Easington | B13: =VLOOKUP(A13,'Locations & Types'!$A:$B,2,FALSE) -> BEACH TERMINAL | C13: 683040317.2
A14: Fleetwood | B14: =VLOOKUP(A14,'Locations & Types'!$A:$B,2,FALSE) -> STORAGE SITE | C14: 0
A15: Glenmavis | B15: =VLOOKUP(A15,'Locations & Types'!$A:$B,2,FALSE) -> STORAGE SITE | C15: 0
A16: Garton | B16: =VLOOKUP(A16,'Locations & Types'!$A:$B,2,FALSE) -> STORAGE SITE | C16: 81596622.87
A17: Hole House Farm | B17: =VLOOKUP(A17,'Locations & Types'!$A:$B,2,FALSE) -> STORAGE SITE | C17: 283440000
A18: Hatfield Moor (onshore) | B18: =VLOOKUP(A18,'Locations & Types'!$A:$B,2,FALSE) -> ONSHORE FIELD | C18: 0
A19: Hornsea | B19: =VLOOKUP(A19,'Locations & Types'!$A:$B,2,FALSE) -> STORAGE SITE | C19: 9007842.337
A20: Hatfield Moor (storage) | B20: =VLOOKUP(A20,'Locations & Types'!$A:$B,2,FALSE) -> STORAGE SITE | C20: 6452320.093
A21: Isle of Grain | B21: =VLOOKUP(A21,'Locations & Types'!$A:$B,2,FALSE) -> LNG IMPORTATION TERMINAL | C21: 593255890.4
A22: Milford Haven | B22: =VLOOKUP(A22,'Locations & Types'!$A:$B,2,FALSE) -> LNG IMPORTATION TERMINAL | C22: 524449237.8
A23: Partington | B23: =VLOOKUP(A23,'Locations & Types'!$A:$B,2,FALSE) -> STORAGE SITE | C23: 0
A24: Moffat (Irish Interconnector) | B24: =VLOOKUP(A24,'Locations & Types'!$A:$B,2,FALSE) -> INTERCONNECTION POINT | C24: 0
A25: Murrow | B25: BIOMETHANE PLANT | C25: 3644.058174
A26: St Fergus | B26: =VLOOKUP(A26,'Locations & Types'!$A:$B,2,FALSE) -> BEACH TERMINAL | C26: 771907779.6
A27: Teesside | B27: =VLOOKUP(A27,'Locations & Types'!$A:$B,2,FALSE) -> BEACH TERMINAL | C27: 193999699.5
A28: Theddlethorpe | B28: =VLOOKUP(A28,'Locations & Types'!$A:$B,2,FALSE) -> BEACH TERMINAL | C28: 0
A29: Wytch Farm | B29: =VLOOKUP(A29,'Locations & Types'!$A:$B,2,FALSE) -> ONSHORE FIELD | C29: 0
C31: =SUM(C3:C30) -> 4313671892

Sheet 24-25 FCC - Entry
A1: Entry Point | B1: Entry Point Type | C1: Forecasted Contracted Capacity
C2: (kWh/d)
A3: Avonmouth | B3: =VLOOKUP(A3,'Locations & Types'!$A:$B,2,FALSE) -> STORAGE SITE | C3: 0
A4: Bacton IP | B4: =VLOOKUP(A4,'Locations & Types'!$A:$B,2,FALSE) -> INTERCONNECTION POINT | C4: 126177328.3
A5: Bacton UKCS | B5: =VLOOKUP(A5,'Locations & Types'!$A:$B,2,FALSE) -> BEACH TERMINAL | C5: 354580573.7
A6: Burton Point | B6: =VLOOKUP(A6,'Locations & Types'!$A:$B,2,FALSE) -> ONSHORE FIELD | C6: 18907760.44
A7: Barrow | B7: =VLOOKUP(A7,'Locations & Types'!$A:$B,2,FALSE) -> BEACH TERMINAL | C7: 30272105.45
A8: Barton Stacey | B8: =VLOOKUP(A8,'Locations & Types'!$A:$B,2,FALSE) -> STORAGE SITE | C8: 9386209.412
A9: Canonbie | B9: =VLOOKUP(A9,'Locations & Types'!$A:$B,2,FALSE) -> ONSHORE FIELD | C9: 0
A10: Cheshire | B10: =VLOOKUP(A10,'Locations & Types'!$A:$B,2,FALSE) -> STORAGE SITE | C10: 514110000
A11: Caythorpe | B11: =VLOOKUP(A11,'Locations & Types'!$A:$B,2,FALSE) -> STORAGE SITE | C11: 44876712.33
A12: Dynevor Arms | B12: =VLOOKUP(A12,'Locations & Types'!$A:$B,2,FALSE) -> STORAGE SITE | C12: 0
A13: Easington | B13: =VLOOKUP(A13,'Locations & Types'!$A:$B,2,FALSE) -> BEACH TERMINAL | C13: 636630726.5
A14: Fleetwood | B14: =VLOOKUP(A14,'Locations & Types'!$A:$B,2,FALSE) -> STORAGE SITE | C14: 86301369.86
A15: Glenmavis | B15: =VLOOKUP(A15,'Locations & Types'!$A:$B,2,FALSE) -> STORAGE SITE | C15: 0
A16: Garton | B16: =VLOOKUP(A16,'Locations & Types'!$A:$B,2,FALSE) -> STORAGE SITE | C16: 26346043.09
A17: Hole House Farm | B17: =VLOOKUP(A17,'Locations & Types'!$A:$B,2,FALSE) -> STORAGE SITE | C17: 283440000
A18: Hatfield Moor (onshore) | B18: =VLOOKUP(A18,'Locations & Types'!$A:$B,2,FALSE) -> ONSHORE FIELD | C18: 0
A19: Hornsea | B19: =VLOOKUP(A19,'Locations & Types'!$A:$B,2,FALSE) -> STORAGE SITE | C19: 9007842.337
A20: Hatfield Moor (storage) | B20: =VLOOKUP(A20,'Locations & Types'!$A:$B,2,FALSE) -> STORAGE SITE | C20: 6452320.093
A21: Isle of Grain | B21: =VLOOKUP(A21,'Locations & Types'!$A:$B,2,FALSE) -> LNG IMPORTATION TERMINAL | C21: 482435616.4
A22: Milford Haven | B22: =VLOOKUP(A22,'Locations & Types'!$A:$B,2,FALSE) -> LNG IMPORTATION TERMINAL | C22: 483856912.9
A23: Partington | B23: =VLOOKUP(A23,'Locations & Types'!$A:$B,2,FALSE) -> STORAGE SITE | C23: 0
A24: Moffat (Irish Interconnector) | B24: =VLOOKUP(A24,'Locations & Types'!$A:$B,2,FALSE) -> INTERCONNECTION POINT | C24: 0
A25: Murrow | B25: BIOMETHANE PLANT | C25: 3309.280297
A26: St Fergus | B26: =VLOOKUP(A26,'Locations & Types'!$A:$B,2,FALSE) -> BEACH TERMINAL | C26: 735378084.8
A27: Teesside | B27: =VLOOKUP(A27,'Locations & Types'!$A:$B,2,FALSE) -> BEACH TERMINAL | C27: 184524969.2
A28: Theddlethorpe | B28: =VLOOKUP(A28,'Locations & Types'!$A:$B,2,FALSE) -> BEACH TERMINAL | C28: 0
A29: Wytch Farm | B29: =VLOOKUP(A29,'Locations & Types'!$A:$B,2,FALSE) -> ONSHORE FIELD | C29: 0
C31: =SUM(C3:C30) -> 4032687884

Sheet 20-21 FCC - Exit (hidden)
A1: Exit Point | B1: Exit Point Type | C1: Forecasted Contracted Capacity
C2: (kWh/d)
A3: Aberdeen | B3: =VLOOKUP(A3,'Locations & Types'!$E:$F,2,FALSE) -> GDN (SC) | C3: 21639348
A4: Abson (Seabank Power Station phase I) | B4: =VLOOKUP(A4,'Locations & Types'!$E:$F,2,FALSE) -> DC | C4: 27992295.18
A5: Alrewas (EM) | B5: =VLOOKUP(A5,'Locations & Types'!$E:$F,2,FALSE) -> GDN (EM) | C5: 64721087
A6: Alrewas (WM) | B6: =VLOOKUP(A6,'Locations & Types'!$E:$F,2,FALSE) -> GDN (WM) | C6: 72462290
A7: Apache (Sage Black Start) | B7: =VLOOKUP(A7,'Locations & Types'!$E:$F,2,FALSE) -> DC
A8: Armadale | B8: =VLOOKUP(A8,'Locations & Types'!$E:$F,2,FALSE) -> GDN (SC) | C8: 7519525
A9: Aspley | B9: =VLOOKUP(A9,'Locations & Types'!$E:$F,2,FALSE) -> GDN (WM) | C9: 50894176
A10: Asselby | B10: =VLOOKUP(A10,'Locations & Types'!$E:$F,2,FALSE) -> GDN (NE) | C10: 3586201
A11: Audley (NW) | B11: =VLOOKUP(A11,'Locations & Types'!$E:$F,2,FALSE) -> GDN (NW) | C11: 8037574
A12: Audley (WM) | B12: =VLOOKUP(A12,'Locations & Types'!$E:$F,2,FALSE) -> GDN (WM) | C12: 13572412
A13: Austrey | B13: =VLOOKUP(A13,'Locations & Types'!$E:$F,2,FALSE) -> GDN (WM) | C13: 59601211
A14: Avonmouth Max Refill | B14: =VLOOKUP(A14,'Locations & Types'!$E:$F,2,FALSE) -> STORAGE SITE | C14: 0
A15: Aylesbeare | B15: =VLOOKUP(A15,'Locations & Types'!$E:$F,2,FALSE) -> GDN (SW) | C15: 19275940
A16: Bacton | B16: =VLOOKUP(A16,'Locations & Types'!$E:$F,2,FALSE) -> GDN (EA) | C16: 2844268
A17: Bacton (Baird) | B17: =VLOOKUP(A17,'Locations & Types'!$E:$F,2,FALSE) -> STORAGE SITE | C17: 0
A18: Bacton (BBL) | B18: =VLOOKUP(A18,'Locations & Types'!$E:$F,2,FALSE) -> INTERCONNECTOR | C18: 281930.3014
A19: Bacton (Great Yarmouth) | B19: =VLOOKUP(A19,'Locations & Types'!$E:$F,2,FALSE) -> DC | C19: 20000000
A20: Bacton (IUK) | B20: =VLOOKUP(A20,'Locations & Types'!$E:$F,2,FALSE) -> INTERCONNECTOR | C20: 174391001.3
A21: Baldersby | B21: =VLOOKUP(A21,'Locations & Types'!$E:$F,2,FALSE) -> GDN (NE) | C21: 1126642
A22: Balgray | B22: =VLOOKUP(A22,'Locations & Types'!$E:$F,2,FALSE) -> GDN (SC) | C22: 14957981
A23: Barking (Horndon) | B23: =VLOOKUP(A23,'Locations & Types'!$E:$F,2,FALSE) -> DC | C23: 0
A24: Barrow (Bains) | B24: =VLOOKUP(A24,'Locations & Types'!$E:$F,2,FALSE) -> STORAGE SITE | C24: 0
A25: Barrow (Black Start) | B25: =VLOOKUP(A25,'Locations & Types'!$E:$F,2,FALSE) -> DC | C25: 1000000
A26: Barrow (Gateway) | B26: =VLOOKUP(A26,'Locations & Types'!$E:$F,2,FALSE) -> STORAGE SITE | C26: 0
A27: Barton Stacey Max Refill (Humbly Grove) | B27: =VLOOKUP(A27,'Locations & Types'!$E:$F,2,FALSE) -> STORAGE SITE | C27: 6270352.301
A28: Bathgate | B28: =VLOOKUP(A28,'Locations & Types'!$E:$F,2,FALSE) -> GDN (SC) | C28: 24494907
A29: Billingham ICI (Terra Billingham) | B29: =VLOOKUP(A29,'Locations & Types'!$E:$F,2,FALSE) -> DC | C29: 43231850
A30: Bishop Auckland | B30: =VLOOKUP(A30,'Locations & Types'!$E:$F,2,FALSE) -> GDN (NO) | C30: 55604210
A31: Bishop Auckland (test facility) | B31: =VLOOKUP(A31,'Locations & Types'!$E:$F,2,FALSE) -> DC | C31: 1151040
A32: Blaby | B32: =VLOOKUP(A32,'Locations & Types'!$E:$F,2,FALSE) -> GDN (EM) | C32: 9867513
A33: Blackness (BP Grangemouth) | B33: =VLOOKUP(A33,'Locations & Types'!$E:$F,2,FALSE) -> DC | C33: 27291369.86
A34: Blackrod | B34: =VLOOKUP(A34,'Locations & Types'!$E:$F,2,FALSE) -> GDN (NW) | C34: 126130731
A35: Blyborough | B35: =VLOOKUP(A35,'Locations & Types'!$E:$F,2,FALSE) -> GDN (EM) | C35: 63346076
A36: Blyborough (Brigg) | B36: =VLOOKUP(A36,'Locations & Types'!$E:$F,2,FALSE) -> DC | C36: 1605479.452
A37: Blyborough (Cottam) | B37: =VLOOKUP(A37,'Locations & Types'!$E:$F,2,FALSE) -> DC | C37: 13982362.49
A38: Braishfield A | B38: =VLOOKUP(A38,'Locations & Types'!$E:$F,2,FALSE) -> GDN (SO) | C38: 94132349
A39: Braishfield B | B39: =VLOOKUP(A39,'Locations & Types'!$E:$F,2,FALSE) -> GDN (SO) | C39: 65767083
A40: Brine Field (Teesside) Power Station | B40: =VLOOKUP(A40,'Locations & Types'!$E:$F,2,FALSE) -> DC | C40: 105652.4384
A41: Brisley | B41: =VLOOKUP(A41,'Locations & Types'!$E:$F,2,FALSE) -> GDN (EA) | C41: 2077837
A42: Broxburn | B42: =VLOOKUP(A42,'Locations & Types'!$E:$F,2,FALSE) -> GDN (SC) | C42: 56250554
A43: Burley Bank | B43: =VLOOKUP(A43,'Locations & Types'!$E:$F,2,FALSE) -> GDN (NE) | C43: 13868151
A44: Burnhervie | B44: =VLOOKUP(A44,'Locations & Types'!$E:$F,2,FALSE) -> GDN (SC) | C44: 20624435
A45: Burton Point (Connahs Quay) | B45: =VLOOKUP(A45,'Locations & Types'!$E:$F,2,FALSE) -> DC | C45: 13827622.45
A46: Caldecott | B46: =VLOOKUP(A46,'Locations & Types'!$E:$F,2,FALSE) -> GDN (EM) | C46: 8977861
A47: Caldecott (Corby Power Station) | B47: =VLOOKUP(A47,'Locations & Types'!$E:$F,2,FALSE) -> DC | C47: 343312.7123
A48: Cambridge | B48: =VLOOKUP(A48,'Locations & Types'!$E:$F,2,FALSE) -> GDN (EA) | C48: 0
A49: Careston | B49: =VLOOKUP(A49,'Locations & Types'!$E:$F,2,FALSE) -> GDN (SC) | C49: 4137186
A50: Carrington (Partington) Power Station | B50: =VLOOKUP(A50,'Locations & Types'!$E:$F,2,FALSE) -> DC | C50: 22847239.89
A51: Caythorpe | B51: =VLOOKUP(A51,'Locations & Types'!$E:$F,2,FALSE) -> STORAGE SITE | C51: 0
A52: Centrax Industrial | B52: =VLOOKUP(A52,'Locations & Types'!$E:$F,2,FALSE) -> DC | C52: 85000
A53: Cirencester | B53: =VLOOKUP(A53,'Locations & Types'!$E:$F,2,FALSE) -> GDN (SW) | C53: 7417140
A54: Cockenzie Power Station | B54: =VLOOKUP(A54,'Locations & Types'!$E:$F,2,FALSE) -> DC | C54: 0
A55: Coffinswell | B55: =VLOOKUP(A55,'Locations & Types'!$E:$F,2,FALSE) -> GDN (SW) | C55: 5150000
A56: Coldstream | B56: =VLOOKUP(A56,'Locations & Types'!$E:$F,2,FALSE) -> GDN (NO) | C56: 2848927
A57: Corbridge | B57: =VLOOKUP(A57,'Locations & Types'!$E:$F,2,FALSE) -> GDN (NO) | C57: 57846
A58: Coryton 2 (Thames Haven) Power Station | B58: =VLOOKUP(A58,'Locations & Types'!$E:$F,2,FALSE) -> DC | C58: 0
A59: Cowpen Bewley | B59: =VLOOKUP(A59,'Locations & Types'!$E:$F,2,FALSE) -> GDN (NO) | C59: 40002877
A60: Crawley Down | B60: =VLOOKUP(A60,'Locations & Types'!$E:$F,2,FALSE) -> GDN (SO) | C60: 0
A61: Deborah Storage (Bacton) | B61: =VLOOKUP(A61,'Locations & Types'!$E:$F,2,FALSE) -> STORAGE SITE | C61: 0
A62: Deeside | B62: =VLOOKUP(A62,'Locations & Types'!$E:$F,2,FALSE) -> DC | C62: 0
A63: Didcot | B63: =VLOOKUP(A63,'Locations & Types'!$E:$F,2,FALSE) -> DC | C63: 37798322.96
A64: Dowlais | B64: =VLOOKUP(A64,'Locations & Types'!$E:$F,2,FALSE) -> GDN (WS) | C64: 91369207
A65: Drakelow Power Station | B65: =VLOOKUP(A65,'Locations & Types'!$E:$F,2,FALSE) -> DC | C65: 0
A66: Drointon | B66: =VLOOKUP(A66,'Locations & Types'!$E:$F,2,FALSE) -> GDN (EM) | C66: 54670979
A67: Drum | B67: =VLOOKUP(A67,'Locations & Types'!$E:$F,2,FALSE) -> GDN (SC) | C67: 66956781
A68: Dyffryn Clydach | B68: =VLOOKUP(A68,'Locations & Types'!$E:$F,2,FALSE) -> GDN (WS) | C68: 40231974
A69: Dynevor Max Refill | B69: =VLOOKUP(A69,'Locations & Types'!$E:$F,2,FALSE) -> STORAGE SITE | C69: 23931
A70: Eastoft (Keadby Blackstart) | B70: =VLOOKUP(A70,'Locations & Types'!$E:$F,2,FALSE) -> DC | C70: 1457215
A71: Eastoft (Keadby) | B71: =VLOOKUP(A71,'Locations & Types'!$E:$F,2,FALSE) -> DC | C71: 36060000
A72: Easton Grey | B72: =VLOOKUP(A72,'Locations & Types'!$E:$F,2,FALSE) -> GDN (SW) | C72: 27391725
A73: Ecclestone | B73: =VLOOKUP(A73,'Locations & Types'!$E:$F,2,FALSE) -> GDN (NW) | C73: 16370887
A74: Elton | B74: =VLOOKUP(A74,'Locations & Types'!$E:$F,2,FALSE) -> GDN (NO) | C74: 56000000
A75: Enron Billingham | B75: =VLOOKUP(A75,'Locations & Types'!$E:$F,2,FALSE) -> DC | C75: 0
A76: Epping Green (Enfield Energy, aka Brimsdown) | B76: =VLOOKUP(A76,'Locations & Types'!$E:$F,2,FALSE) -> DC | C76: 12313242.34
A77: Evesham | B77: =VLOOKUP(A77,'Locations & Types'!$E:$F,2,FALSE) -> GDN (SW) | C77: 6523465
A78: Farningham | B78: =VLOOKUP(A78,'Locations & Types'!$E:$F,2,FALSE) -> GDN (SE) | C78: 91587931
A79: Farningham B | B79: =VLOOKUP(A79,'Locations & Types'!$E:$F,2,FALSE) -> GDN (SE) | C79: 98294599
A80: Ferny Knoll (AM Paper) | B80: =VLOOKUP(A80,'Locations & Types'!$E:$F,2,FALSE) -> DC | C80: 0
A81: Fiddington | B81: =VLOOKUP(A81,'Locations & Types'!$E:$F,2,FALSE) -> GDN (SW) | C81: 21741989
A82: Ganstead | B82: =VLOOKUP(A82,'Locations & Types'!$E:$F,2,FALSE) -> GDN (NE) | C82: 16610330
A83: Garton Max Refill (Aldbrough) | B83: =VLOOKUP(A83,'Locations & Types'!$E:$F,2,FALSE) -> STORAGE SITE | C83: 326003150.7
A84: Gilwern | B84: =VLOOKUP(A84,'Locations & Types'!$E:$F,2,FALSE) -> GDN (WS) | C84: 75404154
A85: Glenmavis | B85: =VLOOKUP(A85,'Locations & Types'!$E:$F,2,FALSE) -> GDN (SC) | C85: 128262344
A86: Glenmavis Max Refill | B86: =VLOOKUP(A86,'Locations & Types'!$E:$F,2,FALSE) -> STORAGE SITE | C86: 128720
A87: Goole (Guardian Glass) | B87: =VLOOKUP(A87,'Locations & Types'!$E:$F,2,FALSE) -> DC | C87: 1700273.973
A88: Gosberton | B88: =VLOOKUP(A88,'Locations & Types'!$E:$F,2,FALSE) -> GDN (EM) | C88: 12321120
A89: Gowkhall (Longannet) | B89: =VLOOKUP(A89,'Locations & Types'!$E:$F,2,FALSE) -> DC | C89: 43320000
A90: Grain Power Station | B90: =VLOOKUP(A90,'Locations & Types'!$E:$F,2,FALSE) -> DC | C90: 42000640.99
A91: Great Wilbraham | B91: =VLOOKUP(A91,'Locations & Types'!$E:$F,2,FALSE) -> GDN (EA) | C91: 23677521
A92: Guyzance | B92: =VLOOKUP(A92,'Locations & Types'!$E:$F,2,FALSE) -> GDN (NO) | C92: 1806988
A93: Hardwick | B93: =VLOOKUP(A93,'Locations & Types'!$E:$F,2,FALSE) -> GDN (SO) | C93: 106654165
A94: Harwarden (Shotton, aka Shotton Paper) | B94: =VLOOKUP(A94,'Locations & Types'!$E:$F,2,FALSE) -> DC | C94: 0
A95: Hatfield Moor Max Refill | B95: =VLOOKUP(A95,'Locations & Types'!$E:$F,2,FALSE) -> STORAGE SITE | C95: 30210000
A96: Hatfield Power Station | B96: =VLOOKUP(A96,'Locations & Types'!$E:$F,2,FALSE) -> DC | C96: 0
A97: Hill Top Farm (Hole House Farm) | B97: =VLOOKUP(A97,'Locations & Types'!$E:$F,2,FALSE) -> STORAGE SITE | C97: 6017436.685
A98: Hole House Max Refill | B98: =VLOOKUP(A98,'Locations & Types'!$E:$F,2,FALSE) -> STORAGE SITE | C98: 584777.4795
A99: Holford | B99: =VLOOKUP(A99,'Locations & Types'!$E:$F,2,FALSE) -> STORAGE SITE | C99: 31829848.33
A100: Hollingsgreen (Hays Chemicals) | B100: =VLOOKUP(A100,'Locations & Types'!$E:$F,2,FALSE) -> DC | C100: 454343.1952
A101: Holmes Chapel | B101: =VLOOKUP(A101,'Locations & Types'!$E:$F,2,FALSE) -> GDN (NW) | C101: 21678773
A102: Horndon | B102: =VLOOKUP(A102,'Locations & Types'!$E:$F,2,FALSE) -> GDN (NT) | C102: 33307669
A103: Hornsea Max Refill | B103: =VLOOKUP(A103,'Locations & Types'!$E:$F,2,FALSE) -> STORAGE SITE | C103: 41511502.97
A104: Humbleton | B104: =VLOOKUP(A104,'Locations & Types'!$E:$F,2,FALSE) -> GDN (NO) | C104: 148471
A105: Hume | B105: =VLOOKUP(A105,'Locations & Types'!$E:$F,2,FALSE) -> GDN (SC) | C105: 1684385
A106: Ilchester | B106: =VLOOKUP(A106,'Locations & Types'!$E:$F,2,FALSE) -> GDN (SW) | C106: 32494518
A107: Ipsden | B107: =VLOOKUP(A107,'Locations & Types'!$E:$F,2,FALSE) -> GDN (SO) | C107: 8915734
A108: Ipsden 2 | B108: =VLOOKUP(A108,'Locations & Types'!$E:$F,2,FALSE) -> GDN (SO) | C108: 12083873
A109: Keld | B109: =VLOOKUP(A109,'Locations & Types'!$E:$F,2,FALSE) -> GDN (NO) | C109: 1156178
A110: Kenn | B110: =VLOOKUP(A110,'Locations & Types'!$E:$F,2,FALSE) -> GDN (SW) | C110: 14000883
A111: Kinknockie | B111: =VLOOKUP(A111,'Locations & Types'!$E:$F,2,FALSE) -> GDN (SC) | C111: 3068392
A112: Kirkstead | B112: =VLOOKUP(A112,'Locations & Types'!$E:$F,2,FALSE) -> GDN (EM) | C112: 858703
A113: Langage Power Station | B113: =VLOOKUP(A113,'Locations & Types'!$E:$F,2,FALSE) -> DC | C113: 31700000
A114: Langholm | B114: =VLOOKUP(A114,'Locations & Types'!$E:$F,2,FALSE) -> GDN (SC) | C114: 155319
A115: Lauderhill | B115: =VLOOKUP(A115,'Locations & Types'!$E:$F,2,FALSE) -> GDN (SC) | C115: 0
A116: Leamington | B116: =VLOOKUP(A116,'Locations & Types'!$E:$F,2,FALSE) -> GDN (WM) | C116: 3634748
A117: Little Burdon | B117: =VLOOKUP(A117,'Locations & Types'!$E:$F,2,FALSE) -> GDN (NO) | C117: 14089321
A118: Littleton Drew | B118: =VLOOKUP(A118,'Locations & Types'!$E:$F,2,FALSE) -> GDN (SW) | C118: 2299463
A119: Lockerbie | B119: =VLOOKUP(A119,'Locations & Types'!$E:$F,2,FALSE) -> GDN (SC) | C119: 6757111
A120: Lower Quinton | B120: =VLOOKUP(A120,'Locations & Types'!$E:$F,2,FALSE) -> GDN (WM) | C120: 29910000
A121: Lupton | B121: =VLOOKUP(A121,'Locations & Types'!$E:$F,2,FALSE) -> GDN (NW) | C121: 19815980
A122: Luxborough Lane | B122: =VLOOKUP(A122,'Locations & Types'!$E:$F,2,FALSE) -> GDN (NT) | C122: 76147689
A123: Lyneham (Choakford) | B123: =VLOOKUP(A123,'Locations & Types'!$E:$F,2,FALSE) -> GDN (SW) | C123: 45817300
A124: Maelor | B124: =VLOOKUP(A124,'Locations & Types'!$E:$F,2,FALSE) -> GDN (WN) | C124: 49258990
A125: Malpas | B125: =VLOOKUP(A125,'Locations & Types'!$E:$F,2,FALSE) -> GDN (NW) | C125: 685222
A126: Mappowder | B126: =VLOOKUP(A126,'Locations & Types'!$E:$F,2,FALSE) -> GDN (SO) | C126: 38538881
A127: Marchwood Power Station | B127: =VLOOKUP(A127,'Locations & Types'!$E:$F,2,FALSE) -> DC | C127: 39840000
A128: Market Harborough | B128: =VLOOKUP(A128,'Locations & Types'!$E:$F,2,FALSE) -> GDN (EM) | C128: 6965982
A129: Matching Green | B129: =VLOOKUP(A129,'Locations & Types'!$E:$F,2,FALSE) -> GDN (EA) | C129: 50470504
A130: Medway (aka Isle of Grain Power Station, NOT Grain Power) | B130: =VLOOKUP(A130,'Locations & Types'!$E:$F,2,FALSE) -> DC | C130: 32771084
A131: Melkinthorpe | B131: =VLOOKUP(A131,'Locations & Types'!$E:$F,2,FALSE) -> GDN (NO) | C131: 949364
A132: Mickle Trafford | B132: =VLOOKUP(A132,'Locations & Types'!$E:$F,2,FALSE) -> GDN (NW) | C132: 29209411
A133: Middle Stoke (Damhead Creek, aka Kingsnorth Power Station) | B133: =VLOOKUP(A133,'Locations & Types'!$E:$F,2,FALSE) -> DC | C133: 95336184
A134: Milwich | B134: =VLOOKUP(A134,'Locations & Types'!$E:$F,2,FALSE) -> GDN (WM) | C134: 18949988
A135: Moffat (Irish Interconnector) | B135: =VLOOKUP(A135,'Locations & Types'!$E:$F,2,FALSE) -> INTERCONNECTOR | C135: 243649428.5
A136: Netherhowcleugh | B136: =VLOOKUP(A136,'Locations & Types'!$E:$F,2,FALSE) -> GDN (SC) | C136: 322112
A137: Pannal | B137: =VLOOKUP(A137,'Locations & Types'!$E:$F,2,FALSE) -> GDN (NE) | C137: 120179959
A138: Partington | B138: =VLOOKUP(A138,'Locations & Types'!$E:$F,2,FALSE) -> GDN (NW) | C138: 39994219
A139: Partington Max Refill | B139: =VLOOKUP(A139,'Locations & Types'!$E:$F,2,FALSE) -> STORAGE SITE | C139: 0
A140: Paull | B140: =VLOOKUP(A140,'Locations & Types'!$E:$F,2,FALSE) -> GDN (NE) | C140: 46858561
A141: Pembroke Power Station | B141: =VLOOKUP(A141,'Locations & Types'!$E:$F,2,FALSE) -> DC | C141: 121200000
A142: Peterborough (Peterborough Power Station) | B142: =VLOOKUP(A142,'Locations & Types'!$E:$F,2,FALSE) -> DC | C142: 2805479.452
A143: Peterborough Eye (Tee) | B143: =VLOOKUP(A143,'Locations & Types'!$E:$F,2,FALSE) -> GDN (EA) | C143: 20325523
A144: Peters Green | B144: =VLOOKUP(A144,'Locations & Types'!$E:$F,2,FALSE) -> GDN (NT) | C144: 111963144
A145: Peters Green South Mimms | B145: =VLOOKUP(A145,'Locations & Types'!$E:$F,2,FALSE) -> GDN (NT) | C145: 164876045
A146: Phillips Petroleum, Teesside | B146: =VLOOKUP(A146,'Locations & Types'!$E:$F,2,FALSE) -> DC | C146: 3690000
A147: Pickering | B147: =VLOOKUP(A147,'Locations & Types'!$E:$F,2,FALSE) -> GDN (NE) | C147: 8332710
A148: Pickmere (Winnington Power, aka Brunner Mond) | B148: =VLOOKUP(A148,'Locations & Types'!$E:$F,2,FALSE) -> DC | C148: 8000000
A149: Pitcairngreen | B149: =VLOOKUP(A149,'Locations & Types'!$E:$F,2,FALSE) -> GDN (SC) | C149: 1915791
A150: Pucklechurch | B150: =VLOOKUP(A150,'Locations & Types'!$E:$F,2,FALSE) -> GDN (SW) | C150: 25023750
A151: Rawcliffe | B151: =VLOOKUP(A151,'Locations & Types'!$E:$F,2,FALSE) -> GDN (NE) | C151: 5080452
A152: Glasgoforest | B152: =VLOOKUP(A152,'Locations & Types'!$E:$F,2,FALSE) -> DC | C152: 0
A153: Roosecote Power Station (Barrow) | B153: =VLOOKUP(A153,'Locations & Types'!$E:$F,2,FALSE) -> DC | C153: 0
A154: Rosehill (Saltend Power Station) | B154: =VLOOKUP(A154,'Locations & Types'!$E:$F,2,FALSE) -> DC | C154: 57830000
A155: Ross (SW) | B155: =VLOOKUP(A155,'Locations & Types'!$E:$F,2,FALSE) -> GDN (SW) | C155: 4023357
A156: Ross (WM) | B156: =VLOOKUP(A156,'Locations & Types'!$E:$F,2,FALSE) -> GDN (WM) | C156: 9937704
A157: Roudham Heath | B157: =VLOOKUP(A157,'Locations & Types'!$E:$F,2,FALSE) -> GDN (EA) | C157: 20129094
A158: Royston | B158: =VLOOKUP(A158,'Locations & Types'!$E:$F,2,FALSE) -> GDN (EA) | C158: 2367780
A159: Rugby | B159: =VLOOKUP(A159,'Locations & Types'!$E:$F,2,FALSE) -> GDN (WM) | C159: 60380901
A160: Ryehouse | B160: =VLOOKUP(A160,'Locations & Types'!$E:$F,2,FALSE) -> DC | C160: 38660000
A161: Saddle Bow (Kings Lynn) | B161: =VLOOKUP(A161,'Locations & Types'!$E:$F,2,FALSE) -> DC | C161: 17980000
A162: Saltend BPHP (BP Saltend HP) | B162: =VLOOKUP(A162,'Locations & Types'!$E:$F,2,FALSE) -> DC | C162: 9055895
A163: Saltfleetby Storage (Theddlethorpe) | B163: =VLOOKUP(A163,'Locations & Types'!$E:$F,2,FALSE) -> STORAGE SITE | C163: 0
A164: Saltwick Pressure Controlled | B164: =VLOOKUP(A164,'Locations & Types'!$E:$F,2,FALSE) -> GDN (NO) | C164: 0
A165: Saltwick Volumetric Controlled | B165: =VLOOKUP(A165,'Locations & Types'!$E:$F,2,FALSE) -> GDN (NO) | C165: 39506950
A166: Samlesbury | B166: =VLOOKUP(A166,'Locations & Types'!$E:$F,2,FALSE) -> GDN (NW) | C166: 99858652
A167: Sandy Lane (Blackburn CHP, aka Sappi Paper Mill) | B167: =VLOOKUP(A167,'Locations & Types'!$E:$F,2,FALSE) -> DC | C167: 3433103
A168: Seabank (DN) | B168: =VLOOKUP(A168,'Locations & Types'!$E:$F,2,FALSE) -> GDN (SW) | C168: 53316903
A169: Seabank (Seabank Power Station phase II) | B169: =VLOOKUP(A169,'Locations & Types'!$E:$F,2,FALSE) -> DC | C169: 18316938
A170: Seal Sands TGPP | B170: =VLOOKUP(A170,'Locations & Types'!$E:$F,2,FALSE) -> DC | C170: 49277.06899
A171: Sellafield Power Station | B171: =VLOOKUP(A171,'Locations & Types'!$E:$F,2,FALSE) -> DC | C171: 12349999
A172: Shellstar (aka Kemira, not Kemira CHP) | B172: =VLOOKUP(A172,'Locations & Types'!$E:$F,2,FALSE) -> DC | C172: 11732444
A173: Shorne | B173: =VLOOKUP(A173,'Locations & Types'!$E:$F,2,FALSE) -> GDN (SE) | C173: 29781236
A174: Shotwick (Bridgewater Paper) | B174: =VLOOKUP(A174,'Locations & Types'!$E:$F,2,FALSE) -> DC | C174: 247671.2329
A175: Shustoke | B175: =VLOOKUP(A175,'Locations & Types'!$E:$F,2,FALSE) -> GDN (WM) | C175: 100000
A176: Silk Willoughby | B176: =VLOOKUP(A176,'Locations & Types'!$E:$F,2,FALSE) -> GDN (EM) | C176: 2203090
A177: Soutra | B177: =VLOOKUP(A177,'Locations & Types'!$E:$F,2,FALSE) -> GDN (SC) | C177: 10726995
A178: Spalding 2 (South Holland) Power Station | B178: =VLOOKUP(A178,'Locations & Types'!$E:$F,2,FALSE) -> DC | C178: 178806.3562
A179: St Fergus | B179: =VLOOKUP(A179,'Locations & Types'!$E:$F,2,FALSE) -> GDN (SC) | C179: 1316850
A180: St. Fergus (Peterhead) | B180: =VLOOKUP(A180,'Locations & Types'!$E:$F,2,FALSE) -> DC | C180: 73267750
A181: St. Fergus (Shell Blackstart) | B181: =VLOOKUP(A181,'Locations & Types'!$E:$F,2,FALSE) -> DC | C181: 2583336
A182: St. Neots (Little Barford) | B182: =VLOOKUP(A182,'Locations & Types'!$E:$F,2,FALSE) -> DC | C182: 17811878.08
A183: Stallingborough | B183: =VLOOKUP(A183,'Locations & Types'!$E:$F,2,FALSE) -> DC | C183: 52700000
A184: Stanford Le Hope (Coryton) | B184: =VLOOKUP(A184,'Locations & Types'!$E:$F,2,FALSE) -> DC | C184: 11676634.11
A185: Staythorpe | B185: =VLOOKUP(A185,'Locations & Types'!$E:$F,2,FALSE) -> DC | C185: 61331506.85
A186: Stranraer | B186: =VLOOKUP(A186,'Locations & Types'!$E:$F,2,FALSE) -> GDN (SC) | C186: 917516
A187: Stratford-upon-Avon | B187: =VLOOKUP(A187,'Locations & Types'!$E:$F,2,FALSE) -> GDN (WM) | C187: 3735040
A188: Stublach (Cheshire) | B188: =VLOOKUP(A188,'Locations & Types'!$E:$F,2,FALSE) -> STORAGE SITE | C188: 29584634.41
A189: Sutton Bridge | B189: =VLOOKUP(A189,'Locations & Types'!$E:$F,2,FALSE) -> GDN (EM) | C189: 1079269
A190: Sutton Bridge Power Station | B190: =VLOOKUP(A190,'Locations & Types'!$E:$F,2,FALSE) -> DC | C190: 42637000
A191: Tatsfield | B191: =VLOOKUP(A191,'Locations & Types'!$E:$F,2,FALSE) -> GDN (SE) | C191: 207723314
A192: Teesside (BASF, aka BASF Teesside) | B192: =VLOOKUP(A192,'Locations & Types'!$E:$F,2,FALSE) -> DC | C192: 8369000
A193: Teesside Hydrogen | B193: =VLOOKUP(A193,'Locations & Types'!$E:$F,2,FALSE) -> DC | C193: 13276800
A194: Terra Nitrogen (aka ICI, Terra Severnside) | B194: =VLOOKUP(A194,'Locations & Types'!$E:$F,2,FALSE) -> DC | C194: 0
A195: Thornton Curtis (DN) | B195: =VLOOKUP(A195,'Locations & Types'!$E:$F,2,FALSE) -> GDN (EM) | C195: 118190411
A196: Thornton Curtis (Humber Refinery, aka Immingham) | B196: =VLOOKUP(A196,'Locations & Types'!$E:$F,2,FALSE) -> DC | C196: 67000000
A197: Thornton Curtis (Killingholme) | B197: =VLOOKUP(A197,'Locations & Types'!$E:$F,2,FALSE) -> DC | C197: 40032876.71
A198: Thrintoft | B198: =VLOOKUP(A198,'Locations & Types'!$E:$F,2,FALSE) -> GDN (NO) | C198: 4490616
A199: Tilbury Power Station | B199: =VLOOKUP(A199,'Locations & Types'!$E:$F,2,FALSE) -> DC | C199: 0
A200: Tonna (Baglan Bay) | B200: =VLOOKUP(A200,'Locations & Types'!$E:$F,2,FALSE) -> DC | C200: 26750000
... 31 more rows

Sheet 21-22 FCC - Exit
A1: Exit Point | B1: Exit Point Type | C1: Forecasted Contracted Capacity
C2: (kWh/d)
A3: Aberdeen | B3: =VLOOKUP(A3,'Locations & Types'!$E:$F,2,FALSE) -> GDN (SC) | C3: 20156186.25
A4: Abson (Seabank Power Station phase I) | B4: =VLOOKUP(A4,'Locations & Types'!$E:$F,2,FALSE) -> DC | C4: 13935836.56
A5: Alrewas (EM) | B5: =VLOOKUP(A5,'Locations & Types'!$E:$F,2,FALSE) -> GDN (EM) | C5: 65689960.31
A6: Alrewas (WM) | B6: =VLOOKUP(A6,'Locations & Types'!$E:$F,2,FALSE) -> GDN (WM) | C6: 77545321.34
A7: Apache (Sage Black Start) | B7: =VLOOKUP(A7,'Locations & Types'!$E:$F,2,FALSE) -> DC | C7: 1176.655032
A8: Armadale | B8: =VLOOKUP(A8,'Locations & Types'!$E:$F,2,FALSE) -> GDN (SC) | C8: 7639415.446
A9: Aspley | B9: =VLOOKUP(A9,'Locations & Types'!$E:$F,2,FALSE) -> GDN (WM) | C9: 58109278.92
A10: Asselby | B10: =VLOOKUP(A10,'Locations & Types'!$E:$F,2,FALSE) -> GDN (NE) | C10: 3178444.823
A11: Audley (NW) | B11: =VLOOKUP(A11,'Locations & Types'!$E:$F,2,FALSE) -> GDN (NW) | C11: 7945443.91
A12: Audley (WM) | B12: =VLOOKUP(A12,'Locations & Types'!$E:$F,2,FALSE) -> GDN (WM) | C12: 14524479.56
A13: Austrey | B13: =VLOOKUP(A13,'Locations & Types'!$E:$F,2,FALSE) -> GDN (WM) | C13: 63782072.84
A14: Avonmouth Max Refill | B14: =VLOOKUP(A14,'Locations & Types'!$E:$F,2,FALSE) -> STORAGE SITE | C14: 0
A15: Aylesbeare | B15: =VLOOKUP(A15,'Locations & Types'!$E:$F,2,FALSE) -> GDN (SW) | C15: 17780791.45
A16: Bacton | B16: =VLOOKUP(A16,'Locations & Types'!$E:$F,2,FALSE) -> GDN (EA) | C16: 2851493.674
A17: Bacton (Baird) | B17: =VLOOKUP(A17,'Locations & Types'!$E:$F,2,FALSE) -> STORAGE SITE | C17: 0
A18: Bacton (BBL) | B18: =VLOOKUP(A18,'Locations & Types'!$E:$F,2,FALSE) -> INTERCONNECTOR | C18: 46480171.04
A19: Bacton (Great Yarmouth) | B19: =VLOOKUP(A19,'Locations & Types'!$E:$F,2,FALSE) -> DC | C19: 7755082.487
A20: Bacton (IUK) | B20: =VLOOKUP(A20,'Locations & Types'!$E:$F,2,FALSE) -> INTERCONNECTOR | C20: 219101965.9
A21: Baldersby | B21: =VLOOKUP(A21,'Locations & Types'!$E:$F,2,FALSE) -> GDN (NE) | C21: 998541.1951
A22: Balgray | B22: =VLOOKUP(A22,'Locations & Types'!$E:$F,2,FALSE) -> GDN (SC) | C22: 13932760.4
A23: Barking (Horndon) | B23: =VLOOKUP(A23,'Locations & Types'!$E:$F,2,FALSE) -> DC | C23: 0
A24: Barrow (Bains) | B24: =VLOOKUP(A24,'Locations & Types'!$E:$F,2,FALSE) -> STORAGE SITE | C24: 0
A25: Barrow (Black Start) | B25: =VLOOKUP(A25,'Locations & Types'!$E:$F,2,FALSE) -> DC | C25: 11253.53553
A26: Barrow (Gateway) | B26: =VLOOKUP(A26,'Locations & Types'!$E:$F,2,FALSE) -> STORAGE SITE | C26: 0
A27: Barton Stacey Max Refill (Humbly Grove) | B27: =VLOOKUP(A27,'Locations & Types'!$E:$F,2,FALSE) -> STORAGE SITE | C27: 8958267.465
A28: Bathgate | B28: =VLOOKUP(A28,'Locations & Types'!$E:$F,2,FALSE) -> GDN (SC) | C28: 19636820.94
A29: Billingham ICI (Terra Billingham) | B29: =VLOOKUP(A29,'Locations & Types'!$E:$F,2,FALSE) -> DC | C29: 17276377.78
A30: Bishop Auckland | B30: =VLOOKUP(A30,'Locations & Types'!$E:$F,2,FALSE) -> GDN (NO) | C30: 48580107.47
A31: Bishop Auckland (test facility) | B31: =VLOOKUP(A31,'Locations & Types'!$E:$F,2,FALSE) -> DC | C31: 1247400.444
A32: Blaby | B32: =VLOOKUP(A32,'Locations & Types'!$E:$F,2,FALSE) -> GDN (EM) | C32: 10015229.46
A33: Blackness (BP Grangemouth) | B33: =VLOOKUP(A33,'Locations & Types'!$E:$F,2,FALSE) -> DC | C33: 23909293.61
A34: Blackrod | B34: =VLOOKUP(A34,'Locations & Types'!$E:$F,2,FALSE) -> GDN (NW) | C34: 129509007.6
A35: Blyborough | B35: =VLOOKUP(A35,'Locations & Types'!$E:$F,2,FALSE) -> GDN (EM) | C35: 64294365.43
A36: Blyborough (Brigg) | B36: =VLOOKUP(A36,'Locations & Types'!$E:$F,2,FALSE) -> DC | C36: 230590.3214
A37: Blyborough (Cottam) | B37: =VLOOKUP(A37,'Locations & Types'!$E:$F,2,FALSE) -> DC | C37: 9851576.477
A38: Braishfield A | B38: =VLOOKUP(A38,'Locations & Types'!$E:$F,2,FALSE) -> GDN (SO) | C38: 78570814.09
A39: Braishfield B | B39: =VLOOKUP(A39,'Locations & Types'!$E:$F,2,FALSE) -> GDN (SO) | C39: 51274027.96
A40: Brine Field (Teesside) Power Station | B40: =VLOOKUP(A40,'Locations & Types'!$E:$F,2,FALSE) -> DC | C40: 55022.3495
A41: Brisley | B41: =VLOOKUP(A41,'Locations & Types'!$E:$F,2,FALSE) -> GDN (EA) | C41: 1977445.943
A42: Broxburn | B42: =VLOOKUP(A42,'Locations & Types'!$E:$F,2,FALSE) -> GDN (SC) | C42: 52395138.85
A43: Burley Bank | B43: =VLOOKUP(A43,'Locations & Types'!$E:$F,2,FALSE) -> GDN (NE) | C43: 12291322.42
A44: Burnhervie | B44: =VLOOKUP(A44,'Locations & Types'!$E:$F,2,FALSE) -> GDN (SC) | C44: 19210835.43
A45: Burton Point (Connahs Quay) | B45: =VLOOKUP(A45,'Locations & Types'!$E:$F,2,FALSE) -> DC | C45: 11541446.77
A46: Caldecott | B46: =VLOOKUP(A46,'Locations & Types'!$E:$F,2,FALSE) -> GDN (EM) | C46: 9112259.391
A47: Caldecott (Corby Power Station) | B47: =VLOOKUP(A47,'Locations & Types'!$E:$F,2,FALSE) -> DC | C47: 203566.024
A48: Cambridge | B48: =VLOOKUP(A48,'Locations & Types'!$E:$F,2,FALSE) -> GDN (EA) | C48: 0
A49: Careston | B49: =VLOOKUP(A49,'Locations & Types'!$E:$F,2,FALSE) -> GDN (SC) | C49: 3590219.275
A50: Carrington (Partington) Power Station | B50: =VLOOKUP(A50,'Locations & Types'!$E:$F,2,FALSE) -> DC | C50: 14275297.53
A51: Caythorpe | B51: =VLOOKUP(A51,'Locations & Types'!$E:$F,2,FALSE) -> STORAGE SITE | C51: 0
A52: Centrax Industrial | B52: =VLOOKUP(A52,'Locations & Types'!$E:$F,2,FALSE) -> DC | C52: 28291.45894
A53: Cirencester | B53: =VLOOKUP(A53,'Locations & Types'!$E:$F,2,FALSE) -> GDN (SW) | C53: 7781763.675
A54: Cockenzie Power Station | B54: =VLOOKUP(A54,'Locations & Types'!$E:$F,2,FALSE) -> DC | C54: 0
A55: Coffinswell | B55: =VLOOKUP(A55,'Locations & Types'!$E:$F,2,FALSE) -> GDN (SW) | C55: 4749069.855
A56: Coldstream | B56: =VLOOKUP(A56,'Locations & Types'!$E:$F,2,FALSE) -> GDN (NO) | C56: 2489041.384
A57: Corbridge | B57: =VLOOKUP(A57,'Locations & Types'!$E:$F,2,FALSE) -> GDN (NO) | C57: 137906.3859
A58: Coryton 2 (Thames Haven) Power Station | B58: =VLOOKUP(A58,'Locations & Types'!$E:$F,2,FALSE) -> DC | C58: 0
A59: Cowpen Bewley | B59: =VLOOKUP(A59,'Locations & Types'!$E:$F,2,FALSE) -> GDN (NO) | C59: 34949585
A60: Crawley Down | B60: =VLOOKUP(A60,'Locations & Types'!$E:$F,2,FALSE) -> GDN (SO) | C60: 0
A61: Deborah Storage (Bacton) | B61: =VLOOKUP(A61,'Locations & Types'!$E:$F,2,FALSE) -> STORAGE SITE | C61: 0
A62: Deeside | B62: =VLOOKUP(A62,'Locations & Types'!$E:$F,2,FALSE) -> DC | C62: 1787711.688
A63: Didcot | B63: =VLOOKUP(A63,'Locations & Types'!$E:$F,2,FALSE) -> DC | C63: 26183149.97
A64: Dowlais | B64: =VLOOKUP(A64,'Locations & Types'!$E:$F,2,FALSE) -> GDN (WS) | C64: 96822657.74
A65: Drakelow Power Station | B65: =VLOOKUP(A65,'Locations & Types'!$E:$F,2,FALSE) -> DC | C65: 0
A66: Drointon | B66: =VLOOKUP(A66,'Locations & Types'!$E:$F,2,FALSE) -> GDN (EM) | C66: 52251583.22
A67: Drum | B67: =VLOOKUP(A67,'Locations & Types'!$E:$F,2,FALSE) -> GDN (SC) | C67: 62367560.64
A68: Dyffryn Clydach | B68: =VLOOKUP(A68,'Locations & Types'!$E:$F,2,FALSE) -> GDN (WS) | C68: 36781794.77
A69: Dynevor Max Refill | B69: =VLOOKUP(A69,'Locations & Types'!$E:$F,2,FALSE) -> STORAGE SITE | C69: 23931
A70: Eastoft (Keadby Blackstart) | B70: =VLOOKUP(A70,'Locations & Types'!$E:$F,2,FALSE) -> DC | C70: 318.0453024
A71: Eastoft (Keadby) | B71: =VLOOKUP(A71,'Locations & Types'!$E:$F,2,FALSE) -> DC | C71: 12274414.16
A72: Easton Grey | B72: =VLOOKUP(A72,'Locations & Types'!$E:$F,2,FALSE) -> GDN (SW) | C72: 25965240.39
A73: Ecclestone | B73: =VLOOKUP(A73,'Locations & Types'!$E:$F,2,FALSE) -> GDN (NW) | C73: 16183236.93
A74: Elton | B74: =VLOOKUP(A74,'Locations & Types'!$E:$F,2,FALSE) -> GDN (NO) | C74: 48925900
A75: Enron Billingham | B75: =VLOOKUP(A75,'Locations & Types'!$E:$F,2,FALSE) -> DC | C75: 0
A76: Epping Green (Enfield Energy, aka Brimsdown) | B76: =VLOOKUP(A76,'Locations & Types'!$E:$F,2,FALSE) -> DC | C76: 9524476.161
A77: Evesham | B77: =VLOOKUP(A77,'Locations & Types'!$E:$F,2,FALSE) -> GDN (SW) | C77: 5685993.517
A78: Farningham | B78: =VLOOKUP(A78,'Locations & Types'!$E:$F,2,FALSE) -> GDN (SE) | C78: 80842941.67
A79: Farningham B | B79: =VLOOKUP(A79,'Locations & Types'!$E:$F,2,FALSE) -> GDN (SE) | C79: 75010536.7
A80: Ferny Knoll (AM Paper) | B80: =VLOOKUP(A80,'Locations & Types'!$E:$F,2,FALSE) -> DC | C80: 0
A81: Fiddington | B81: =VLOOKUP(A81,'Locations & Types'!$E:$F,2,FALSE) -> GDN (SW) | C81: 18858792.25
A82: Ganstead | B82: =VLOOKUP(A82,'Locations & Types'!$E:$F,2,FALSE) -> GDN (NE) | C82: 14721711.75
A83: Garton Max Refill (Aldbrough) | B83: =VLOOKUP(A83,'Locations & Types'!$E:$F,2,FALSE) -> STORAGE SITE | C83: 105510000
A84: Gilwern | B84: =VLOOKUP(A84,'Locations & Types'!$E:$F,2,FALSE) -> GDN (WS) | C84: 74596979.55
A85: Glenmavis | B85: =VLOOKUP(A85,'Locations & Types'!$E:$F,2,FALSE) -> GDN (SC) | C85: 119471238
A86: Glenmavis Max Refill | B86: =VLOOKUP(A86,'Locations & Types'!$E:$F,2,FALSE) -> STORAGE SITE | C86: 128720
A87: Goole (Guardian Glass) | B87: =VLOOKUP(A87,'Locations & Types'!$E:$F,2,FALSE) -> DC | C87: 1530269.542
A88: Gosberton | B88: =VLOOKUP(A88,'Locations & Types'!$E:$F,2,FALSE) -> GDN (EM) | C88: 12505566.91
A89: Gowkhall (Longannet) | B89: =VLOOKUP(A89,'Locations & Types'!$E:$F,2,FALSE) -> DC | C89: 228286.3408
A90: Grain Power Station | B90: =VLOOKUP(A90,'Locations & Types'!$E:$F,2,FALSE) -> DC | C90: 27520640.66
A91: Great Wilbraham | B91: =VLOOKUP(A91,'Locations & Types'!$E:$F,2,FALSE) -> GDN (EA) | C91: 22533537.44
A92: Guyzance | B92: =VLOOKUP(A92,'Locations & Types'!$E:$F,2,FALSE) -> GDN (NO) | C92: 1578723.468
A93: Hardwick | B93: =VLOOKUP(A93,'Locations & Types'!$E:$F,2,FALSE) -> GDN (SO) | C93: 92898933.83
A94: Harwarden (Shotton, aka Shotton Paper) | B94: =VLOOKUP(A94,'Locations & Types'!$E:$F,2,FALSE) -> DC | C94: 0
A95: Hatfield Moor Max Refill | B95: =VLOOKUP(A95,'Locations & Types'!$E:$F,2,FALSE) -> STORAGE SITE | C95: 30210000
A96: Hatfield Power Station | B96: =VLOOKUP(A96,'Locations & Types'!$E:$F,2,FALSE) -> DC | C96: 0
A97: Hill Top Farm (Hole House Farm) | B97: =VLOOKUP(A97,'Locations & Types'!$E:$F,2,FALSE) -> STORAGE SITE | C97: 5382569.585
A98: Hole House Max Refill | B98: =VLOOKUP(A98,'Locations & Types'!$E:$F,2,FALSE) -> STORAGE SITE | C98: 2346671.036
A99: Holford | B99: =VLOOKUP(A99,'Locations & Types'!$E:$F,2,FALSE) -> STORAGE SITE | C99: 35603909.78
A100: Hollingsgreen (Hays Chemicals) | B100: =VLOOKUP(A100,'Locations & Types'!$E:$F,2,FALSE) -> DC | C100: 0
A101: Holmes Chapel | B101: =VLOOKUP(A101,'Locations & Types'!$E:$F,2,FALSE) -> GDN (NW) | C101: 21430281.69
A102: Horndon | B102: =VLOOKUP(A102,'Locations & Types'!$E:$F,2,FALSE) -> GDN (NT) | C102: 35005625.09
A103: Hornsea Max Refill | B103: =VLOOKUP(A103,'Locations & Types'!$E:$F,2,FALSE) -> STORAGE SITE | C103: 9872159.694
A104: Humbleton | B104: =VLOOKUP(A104,'Locations & Types'!$E:$F,2,FALSE) -> GDN (NO) | C104: 129715.6661
A105: Hume | B105: =VLOOKUP(A105,'Locations & Types'!$E:$F,2,FALSE) -> GDN (SC) | C105: 1568937.187
A106: Ilchester | B106: =VLOOKUP(A106,'Locations & Types'!$E:$F,2,FALSE) -> GDN (SW) | C106: 28761980.48
A107: Ipsden | B107: =VLOOKUP(A107,'Locations & Types'!$E:$F,2,FALSE) -> GDN (SO) | C107: 7325659.374
A108: Ipsden 2 | B108: =VLOOKUP(A108,'Locations & Types'!$E:$F,2,FALSE) -> GDN (SO) | C108: 10525410.97
A109: Keld | B109: =VLOOKUP(A109,'Locations & Types'!$E:$F,2,FALSE) -> GDN (NO) | C109: 1010125.879
A110: Kenn | B110: =VLOOKUP(A110,'Locations & Types'!$E:$F,2,FALSE) -> GDN (SW) | C110: 13821488.28
A111: Kinknockie | B111: =VLOOKUP(A111,'Locations & Types'!$E:$F,2,FALSE) -> GDN (SC) | C111: 2858084.294
A112: Kirkstead | B112: =VLOOKUP(A112,'Locations & Types'!$E:$F,2,FALSE) -> GDN (EM) | C112: 871557.7659
A113: Langage Power Station | B113: =VLOOKUP(A113,'Locations & Types'!$E:$F,2,FALSE) -> DC | C113: 11321885.3
A114: Langholm | B114: =VLOOKUP(A114,'Locations & Types'!$E:$F,2,FALSE) -> GDN (SC) | C114: 144673.4297
A115: Lauderhill | B115: =VLOOKUP(A115,'Locations & Types'!$E:$F,2,FALSE) -> GDN (SC) | C115: 0
A116: Leamington | B116: =VLOOKUP(A116,'Locations & Types'!$E:$F,2,FALSE) -> GDN (WM) | C116: 3889715.625
A117: Little Burdon | B117: =VLOOKUP(A117,'Locations & Types'!$E:$F,2,FALSE) -> GDN (NO) | C117: 12309512.68
A118: Littleton Drew | B118: =VLOOKUP(A118,'Locations & Types'!$E:$F,2,FALSE) -> GDN (SW) | C118: 2671277.342
A119: Lockerbie | B119: =VLOOKUP(A119,'Locations & Types'!$E:$F,2,FALSE) -> GDN (SC) | C119: 6446075.516
A120: Lower Quinton | B120: =VLOOKUP(A120,'Locations & Types'!$E:$F,2,FALSE) -> GDN (WM) | C120: 30625108.39
A121: Lupton | B121: =VLOOKUP(A121,'Locations & Types'!$E:$F,2,FALSE) -> GDN (NW) | C121: 19588840.81
A122: Luxborough Lane | B122: =VLOOKUP(A122,'Locations & Types'!$E:$F,2,FALSE) -> GDN (NT) | C122: 80029540.73
A123: Lyneham (Choakford) | B123: =VLOOKUP(A123,'Locations & Types'!$E:$F,2,FALSE) -> GDN (SW) | C123: 40813610.7
A124: Maelor | B124: =VLOOKUP(A124,'Locations & Types'!$E:$F,2,FALSE) -> GDN (WN) | C124: 42862282.61
A125: Malpas | B125: =VLOOKUP(A125,'Locations & Types'!$E:$F,2,FALSE) -> GDN (NW) | C125: 677367.6941
A126: Mappowder | B126: =VLOOKUP(A126,'Locations & Types'!$E:$F,2,FALSE) -> GDN (SO) | C126: 33568505.79
A127: Marchwood Power Station | B127: =VLOOKUP(A127,'Locations & Types'!$E:$F,2,FALSE) -> DC | C127: 29973554.51
A128: Market Harborough | B128: =VLOOKUP(A128,'Locations & Types'!$E:$F,2,FALSE) -> GDN (EM) | C128: 7070262.604
A129: Matching Green | B129: =VLOOKUP(A129,'Locations & Types'!$E:$F,2,FALSE) -> GDN (EA) | C129: 48032012.8
A130: Medway (aka Isle of Grain Power Station, NOT Grain Power) | B130: =VLOOKUP(A130,'Locations & Types'!$E:$F,2,FALSE) -> DC | C130: 10490693.68
A131: Melkinthorpe | B131: =VLOOKUP(A131,'Locations & Types'!$E:$F,2,FALSE) -> GDN (NO) | C131: 916804.9666
A132: Mickle Trafford | B132: =VLOOKUP(A132,'Locations & Types'!$E:$F,2,FALSE) -> GDN (NW) | C132: 28874600.31
A133: Middle Stoke (Damhead Creek, aka Kingsnorth Power Station) | B133: =VLOOKUP(A133,'Locations & Types'!$E:$F,2,FALSE) -> DC | C133: 16635766.92
A134: Milwich | B134: =VLOOKUP(A134,'Locations & Types'!$E:$F,2,FALSE) -> GDN (WM) | C134: 20279277.8
A135: Moffat (Irish Interconnector) | B135: =VLOOKUP(A135,'Locations & Types'!$E:$F,2,FALSE) -> INTERCONNECTOR | C135: 150181441.6
A136: Netherhowcleugh | B136: =VLOOKUP(A136,'Locations & Types'!$E:$F,2,FALSE) -> GDN (SC) | C136: 300034.4311
A137: Pannal | B137: =VLOOKUP(A137,'Locations & Types'!$E:$F,2,FALSE) -> GDN (NE) | C137: 106515326
A138: Partington | B138: =VLOOKUP(A138,'Locations & Types'!$E:$F,2,FALSE) -> GDN (NW) | C138: 39535788.26
A139: Partington Max Refill | B139: =VLOOKUP(A139,'Locations & Types'!$E:$F,2,FALSE) -> STORAGE SITE | C139: 0
A140: Paull | B140: =VLOOKUP(A140,'Locations & Types'!$E:$F,2,FALSE) -> GDN (NE) | C140: 41530675.67
A141: Pembroke Power Station | B141: =VLOOKUP(A141,'Locations & Types'!$E:$F,2,FALSE) -> DC | C141: 55904610.64
A142: Peterborough (Peterborough Power Station) | B142: =VLOOKUP(A142,'Locations & Types'!$E:$F,2,FALSE) -> DC | C142: 231256.9249
A143: Peterborough Eye (Tee) | B143: =VLOOKUP(A143,'Locations & Types'!$E:$F,2,FALSE) -> GDN (EA) | C143: 20354887.41
A144: Peters Green | B144: =VLOOKUP(A144,'Locations & Types'!$E:$F,2,FALSE) -> GDN (NT) | C144: 117670793.6
A145: Peters Green South Mimms | B145: =VLOOKUP(A145,'Locations & Types'!$E:$F,2,FALSE) -> GDN (NT) | C145: 174226965
A146: Phillips Petroleum, Teesside | B146: =VLOOKUP(A146,'Locations & Types'!$E:$F,2,FALSE) -> DC | C146: 158746.5006
A147: Pickering | B147: =VLOOKUP(A147,'Locations & Types'!$E:$F,2,FALSE) -> GDN (NE) | C147: 7385268.969
A148: Pickmere (Winnington Power, aka Brunner Mond) | B148: =VLOOKUP(A148,'Locations & Types'!$E:$F,2,FALSE) -> DC | C148: 8000000
A149: Pitcairngreen | B149: =VLOOKUP(A149,'Locations & Types'!$E:$F,2,FALSE) -> GDN (SC) | C149: 1784482.611
A150: Pucklechurch | B150: =VLOOKUP(A150,'Locations & Types'!$E:$F,2,FALSE) -> GDN (SW) | C150: 23448362.29
A151: Rawcliffe | B151: =VLOOKUP(A151,'Locations & Types'!$E:$F,2,FALSE) -> GDN (NE) | C151: 4502797.35
A152: Glasgoforest | B152: =VLOOKUP(A152,'Locations & Types'!$E:$F,2,FALSE) -> DC | C152: 0
A153: Roosecote Power Station (Barrow) | B153: =VLOOKUP(A153,'Locations & Types'!$E:$F,2,FALSE) -> DC | C153: 0
A154: Rosehill (Saltend Power Station) | B154: =VLOOKUP(A154,'Locations & Types'!$E:$F,2,FALSE) -> DC | C154: 30100657.92
A155: Ross (SW) | B155: =VLOOKUP(A155,'Locations & Types'!$E:$F,2,FALSE) -> GDN (SW) | C155: 3858860.834
A156: Ross (WM) | B156: =VLOOKUP(A156,'Locations & Types'!$E:$F,2,FALSE) -> GDN (WM) | C156: 10634806.74
A157: Roudham Heath | B157: =VLOOKUP(A157,'Locations & Types'!$E:$F,2,FALSE) -> GDN (EA) | C157: 19156553.31
A158: Royston | B158: =VLOOKUP(A158,'Locations & Types'!$E:$F,2,FALSE) -> GDN (EA) | C158: 2253380.296
A159: Rugby | B159: =VLOOKUP(A159,'Locations & Types'!$E:$F,2,FALSE) -> GDN (WM) | C159: 64616455.96
A160: Ryehouse | B160: =VLOOKUP(A160,'Locations & Types'!$E:$F,2,FALSE) -> DC | C160: 3844954.052
A161: Saddle Bow (Kings Lynn) | B161: =VLOOKUP(A161,'Locations & Types'!$E:$F,2,FALSE) -> DC | C161: 1364307.946
A162: Saltend BPHP (BP Saltend HP) | B162: =VLOOKUP(A162,'Locations & Types'!$E:$F,2,FALSE) -> DC | C162: 7906943.606
A163: Saltfleetby Storage (Theddlethorpe) | B163: =VLOOKUP(A163,'Locations & Types'!$E:$F,2,FALSE) -> STORAGE SITE | C163: 0
A164: Saltwick Pressure Controlled | B164: =VLOOKUP(A164,'Locations & Types'!$E:$F,2,FALSE) -> GDN (NO) | C164: 34516305.09
A165: Saltwick Volumetric Controlled | B165: =VLOOKUP(A165,'Locations & Types'!$E:$F,2,FALSE) -> GDN (NO) | C165: 0
A166: Samlesbury | B166: =VLOOKUP(A166,'Locations & Types'!$E:$F,2,FALSE) -> GDN (NW) | C166: 98714029.68
A167: Sandy Lane (Blackburn CHP, aka Sappi Paper Mill) | B167: =VLOOKUP(A167,'Locations & Types'!$E:$F,2,FALSE) -> DC | C167: 837768.1126
A168: Seabank (DN) | B168: =VLOOKUP(A168,'Locations & Types'!$E:$F,2,FALSE) -> GDN (SW) | C168: 54042352.55
A169: Seabank (Seabank Power Station phase II) | B169: =VLOOKUP(A169,'Locations & Types'!$E:$F,2,FALSE) -> DC | C169: 4063102.766
A170: Seal Sands TGPP | B170: =VLOOKUP(A170,'Locations & Types'!$E:$F,2,FALSE) -> DC | C170: 0
A171: Sellafield Power Station | B171: =VLOOKUP(A171,'Locations & Types'!$E:$F,2,FALSE) -> DC | C171: 4167835.514
A172: Shellstar (aka Kemira, not Kemira CHP) | B172: =VLOOKUP(A172,'Locations & Types'!$E:$F,2,FALSE) -> DC | C172: 11732444
A173: Shorne | B173: =VLOOKUP(A173,'Locations & Types'!$E:$F,2,FALSE) -> GDN (SE) | C173: 18503091.34
A174: Shotwick (Bridgewater Paper) | B174: =VLOOKUP(A174,'Locations & Types'!$E:$F,2,FALSE) -> DC | C174: 188606.8882
A175: Shustoke | B175: =VLOOKUP(A175,'Locations & Types'!$E:$F,2,FALSE) -> GDN (WM) | C175: 107014.7263
A176: Silk Willoughby | B176: =VLOOKUP(A176,'Locations & Types'!$E:$F,2,FALSE) -> GDN (EM) | C176: 2388863.703
A177: Soutra | B177: =VLOOKUP(A177,'Locations & Types'!$E:$F,2,FALSE) -> GDN (SC) | C177: 9991766.348
A178: Spalding 2 (South Holland) Power Station | B178: =VLOOKUP(A178,'Locations & Types'!$E:$F,2,FALSE) -> DC | C178: 61680.88153
A179: St Fergus | B179: =VLOOKUP(A179,'Locations & Types'!$E:$F,2,FALSE) -> GDN (SC) | C179: 1172940.956
A180: St. Fergus (Peterhead) | B180: =VLOOKUP(A180,'Locations & Types'!$E:$F,2,FALSE) -> DC | C180: 15401168.45
A181: St. Fergus (Shell Blackstart) | B181: =VLOOKUP(A181,'Locations & Types'!$E:$F,2,FALSE) -> DC | C181: 10650.58958
A182: St. Neots (Little Barford) | B182: =VLOOKUP(A182,'Locations & Types'!$E:$F,2,FALSE) -> DC | C182: 14677333.77
A183: Stallingborough | B183: =VLOOKUP(A183,'Locations & Types'!$E:$F,2,FALSE) -> DC | C183: 19524849.66
A184: Stanford Le Hope (Coryton) | B184: =VLOOKUP(A184,'Locations & Types'!$E:$F,2,FALSE) -> DC | C184: 9685320.29
A185: Staythorpe | B185: =VLOOKUP(A185,'Locations & Types'!$E:$F,2,FALSE) -> DC | C185: 82000000
A186: Stranraer | B186: =VLOOKUP(A186,'Locations & Types'!$E:$F,2,FALSE) -> GDN (SC) | C186: 691548.4764
A187: Stratford-upon-Avon | B187: =VLOOKUP(A187,'Locations & Types'!$E:$F,2,FALSE) -> GDN (WM) | C187: 3997042.834
A188: Stublach (Cheshire) | B188: =VLOOKUP(A188,'Locations & Types'!$E:$F,2,FALSE) -> STORAGE SITE | C188: 24527159.13
A189: Sutton Bridge | B189: =VLOOKUP(A189,'Locations & Types'!$E:$F,2,FALSE) -> GDN (EM) | C189: 1095425.634
A190: Sutton Bridge Power Station | B190: =VLOOKUP(A190,'Locations & Types'!$E:$F,2,FALSE) -> DC | C190: 8972008.597
A191: Tatsfield | B191: =VLOOKUP(A191,'Locations & Types'!$E:$F,2,FALSE) -> GDN (SE) | C191: 179910591.7
A192: Teesside (BASF, aka BASF Teesside) | B192: =VLOOKUP(A192,'Locations & Types'!$E:$F,2,FALSE) -> DC | C192: 5047442.858
A193: Teesside Hydrogen | B193: =VLOOKUP(A193,'Locations & Types'!$E:$F,2,FALSE) -> DC | C193: 11488400
A194: Terra Nitrogen (aka ICI, Terra Severnside) | B194: =VLOOKUP(A194,'Locations & Types'!$E:$F,2,FALSE) -> DC | C194: 0
A195: Thornton Curtis (DN) | B195: =VLOOKUP(A195,'Locations & Types'!$E:$F,2,FALSE) -> GDN (EM) | C195: 119959719
A196: Thornton Curtis (Humber Refinery, aka Immingham) | B196: =VLOOKUP(A196,'Locations & Types'!$E:$F,2,FALSE) -> DC | C196: 36150919.85
A197: Thornton Curtis (Killingholme) | B197: =VLOOKUP(A197,'Locations & Types'!$E:$F,2,FALSE) -> DC | C197: 11797490.81
A198: Thrintoft | B198: =VLOOKUP(A198,'Locations & Types'!$E:$F,2,FALSE) -> GDN (NO) | C198: 3923346.953
A199: Tilbury Power Station | B199: =VLOOKUP(A199,'Locations & Types'!$E:$F,2,FALSE) -> DC | C199: 0
A200: Tonna (Baglan Bay) | B200: =VLOOKUP(A200,'Locations & Types'!$E:$F,2,FALSE) -> DC | C200: 5824830.966
... 32 more rows

Sheet 22-23 FCC - Exit
A1: Exit Point | B1: Exit Point Type | C1: Forecasted Contracted Capacity
C2: (kWh/d)
A3: Aberdeen | B3: =VLOOKUP(A3,'Locations & Types'!$E:$F,2,FALSE) -> GDN (SC) | C3: 20161577.63
A4: Abson (Seabank Power Station phase I) | B4: =VLOOKUP(A4,'Locations & Types'!$E:$F,2,FALSE) -> DC | C4: 14558276.48
A5: Alrewas (EM) | B5: =VLOOKUP(A5,'Locations & Types'!$E:$F,2,FALSE) -> GDN (EM) | C5: 65950151.67
A6: Alrewas (WM) | B6: =VLOOKUP(A6,'Locations & Types'!$E:$F,2,FALSE) -> GDN (WM) | C6: 77598430.33
A7: Apache (Sage Black Start) | B7: =VLOOKUP(A7,'Locations & Types'!$E:$F,2,FALSE) -> DC | C7: 1177.834378
A8: Armadale | B8: =VLOOKUP(A8,'Locations & Types'!$E:$F,2,FALSE) -> GDN (SC) | C8: 7641458.839
A9: Aspley | B9: =VLOOKUP(A9,'Locations & Types'!$E:$F,2,FALSE) -> GDN (WM) | C9: 58149076.61
A10: Asselby | B10: =VLOOKUP(A10,'Locations & Types'!$E:$F,2,FALSE) -> GDN (NE) | C10: 3182570.195
A11: Audley (NW) | B11: =VLOOKUP(A11,'Locations & Types'!$E:$F,2,FALSE) -> GDN (NW) | C11: 7970008.517
A12: Audley (WM) | B12: =VLOOKUP(A12,'Locations & Types'!$E:$F,2,FALSE) -> GDN (WM) | C12: 14534427.04
A13: Austrey | B13: =VLOOKUP(A13,'Locations & Types'!$E:$F,2,FALSE) -> GDN (WM) | C13: 63825755.7
A14: Avonmouth Max Refill | B14: =VLOOKUP(A14,'Locations & Types'!$E:$F,2,FALSE) -> STORAGE SITE | C14: 0
A15: Aylesbeare | B15: =VLOOKUP(A15,'Locations & Types'!$E:$F,2,FALSE) -> GDN (SW) | C15: 17801088.06
A16: Bacton | B16: =VLOOKUP(A16,'Locations & Types'!$E:$F,2,FALSE) -> GDN (EA) | C16: 2854317.258
A17: Bacton (Baird) | B17: =VLOOKUP(A17,'Locations & Types'!$E:$F,2,FALSE) -> STORAGE SITE | C17: 0
A18: Bacton (BBL) | B18: =VLOOKUP(A18,'Locations & Types'!$E:$F,2,FALSE) -> INTERCONNECTOR | C18: 46490752.06
A19: Bacton (Great Yarmouth) | B19: =VLOOKUP(A19,'Locations & Types'!$E:$F,2,FALSE) -> DC | C19: 8101460.897
A20: Bacton (IUK) | B20: =VLOOKUP(A20,'Locations & Types'!$E:$F,2,FALSE) -> INTERCONNECTOR | C20: 219151843.5
A21: Baldersby | B21: =VLOOKUP(A21,'Locations & Types'!$E:$F,2,FALSE) -> GDN (NE) | C21: 999837.2231
A22: Balgray | B22: =VLOOKUP(A22,'Locations & Types'!$E:$F,2,FALSE) -> GDN (SC) | C22: 13936487.14
A23: Barking (Horndon) | B23: =VLOOKUP(A23,'Locations & Types'!$E:$F,2,FALSE) -> DC | C23: 0
A24: Barrow (Bains) | B24: =VLOOKUP(A24,'Locations & Types'!$E:$F,2,FALSE) -> STORAGE SITE | C24: 0
A25: Barrow (Black Start) | B25: =VLOOKUP(A25,'Locations & Types'!$E:$F,2,FALSE) -> DC | C25: 11264.8148
A26: Barrow (Gateway) | B26: =VLOOKUP(A26,'Locations & Types'!$E:$F,2,FALSE) -> STORAGE SITE | C26: 0
A27: Barton Stacey Max Refill (Humbly Grove) | B27: =VLOOKUP(A27,'Locations & Types'!$E:$F,2,FALSE) -> STORAGE SITE | C27: 8958267.465
A28: Bathgate | B28: =VLOOKUP(A28,'Locations & Types'!$E:$F,2,FALSE) -> GDN (SC) | C28: 19642073.4
A29: Billingham ICI (Terra Billingham) | B29: =VLOOKUP(A29,'Locations & Types'!$E:$F,2,FALSE) -> DC | C29: 17293693.66
A30: Bishop Auckland | B30: =VLOOKUP(A30,'Locations & Types'!$E:$F,2,FALSE) -> GDN (NO) | C30: 48515913.2
A31: Bishop Auckland (test facility) | B31: =VLOOKUP(A31,'Locations & Types'!$E:$F,2,FALSE) -> DC | C31: 1248650.697
A32: Blaby | B32: =VLOOKUP(A32,'Locations & Types'!$E:$F,2,FALSE) -> GDN (EM) | C32: 10054898.78
A33: Blackness (BP Grangemouth) | B33: =VLOOKUP(A33,'Locations & Types'!$E:$F,2,FALSE) -> DC | C33: 23933257.58
A34: Blackrod | B34: =VLOOKUP(A34,'Locations & Types'!$E:$F,2,FALSE) -> GDN (NW) | C34: 129909405.3
A35: Blyborough | B35: =VLOOKUP(A35,'Locations & Types'!$E:$F,2,FALSE) -> GDN (EM) | C35: 64549028.98
A36: Blyborough (Brigg) | B36: =VLOOKUP(A36,'Locations & Types'!$E:$F,2,FALSE) -> DC | C36: 240889.5682
A37: Blyborough (Cottam) | B37: =VLOOKUP(A37,'Locations & Types'!$E:$F,2,FALSE) -> DC | C37: 10291594.16
A38: Braishfield A | B38: =VLOOKUP(A38,'Locations & Types'!$E:$F,2,FALSE) -> GDN (SO) | C38: 78593143.89
A39: Braishfield B | B39: =VLOOKUP(A39,'Locations & Types'!$E:$F,2,FALSE) -> GDN (SO) | C39: 51288600.02
A40: Brine Field (Teesside) Power Station | B40: =VLOOKUP(A40,'Locations & Types'!$E:$F,2,FALSE) -> DC | C40: 57479.90607
A41: Brisley | B41: =VLOOKUP(A41,'Locations & Types'!$E:$F,2,FALSE) -> GDN (EA) | C41: 1979404.035
A42: Broxburn | B42: =VLOOKUP(A42,'Locations & Types'!$E:$F,2,FALSE) -> GDN (SC) | C42: 52409153.52
A43: Burley Bank | B43: =VLOOKUP(A43,'Locations & Types'!$E:$F,2,FALSE) -> GDN (NE) | C43: 12307275.59
A44: Burnhervie | B44: =VLOOKUP(A44,'Locations & Types'!$E:$F,2,FALSE) -> GDN (SC) | C44: 19215973.95
A45: Burton Point (Connahs Quay) | B45: =VLOOKUP(A45,'Locations & Types'!$E:$F,2,FALSE) -> DC | C45: 12056941.99
A46: Caldecott | B46: =VLOOKUP(A46,'Locations & Types'!$E:$F,2,FALSE) -> GDN (EM) | C46: 9148352.138
A47: Caldecott (Corby Power Station) | B47: =VLOOKUP(A47,'Locations & Types'!$E:$F,2,FALSE) -> DC | C47: 212658.2388
A48: Cambridge | B48: =VLOOKUP(A48,'Locations & Types'!$E:$F,2,FALSE) -> GDN (EA) | C48: 0
A49: Careston | B49: =VLOOKUP(A49,'Locations & Types'!$E:$F,2,FALSE) -> GDN (SC) | C49: 3591179.588
A50: Carrington (Partington) Power Station | B50: =VLOOKUP(A50,'Locations & Types'!$E:$F,2,FALSE) -> DC | C50: 14912899.36
A51: Caythorpe | B51: =VLOOKUP(A51,'Locations & Types'!$E:$F,2,FALSE) -> STORAGE SITE | C51: 0
A52: Centrax Industrial | B52: =VLOOKUP(A52,'Locations & Types'!$E:$F,2,FALSE) -> DC | C52: 28319.8151
A53: Cirencester | B53: =VLOOKUP(A53,'Locations & Types'!$E:$F,2,FALSE) -> GDN (SW) | C53: 7790646.489
A54: Cockenzie Power Station | B54: =VLOOKUP(A54,'Locations & Types'!$E:$F,2,FALSE) -> DC | C54: 0
A55: Coffinswell | B55: =VLOOKUP(A55,'Locations & Types'!$E:$F,2,FALSE) -> GDN (SW) | C55: 4754490.876
A56: Coldstream | B56: =VLOOKUP(A56,'Locations & Types'!$E:$F,2,FALSE) -> GDN (NO) | C56: 2485752.338
A57: Corbridge | B57: =VLOOKUP(A57,'Locations & Types'!$E:$F,2,FALSE) -> GDN (NO) | C57: 137724.155
A58: Coryton 2 (Thames Haven) Power Station | B58: =VLOOKUP(A58,'Locations & Types'!$E:$F,2,FALSE) -> DC | C58: 0
A59: Cowpen Bewley | B59: =VLOOKUP(A59,'Locations & Types'!$E:$F,2,FALSE) -> GDN (NO) | C59: 34903402.25
A60: Crawley Down | B60: =VLOOKUP(A60,'Locations & Types'!$E:$F,2,FALSE) -> GDN (SO) | C60: 0
A61: Deborah Storage (Bacton) | B61: =VLOOKUP(A61,'Locations & Types'!$E:$F,2,FALSE) -> STORAGE SITE | C61: 0
A62: Deeside | B62: =VLOOKUP(A62,'Locations & Types'!$E:$F,2,FALSE) -> DC | C62: 1867559.289
A63: Didcot | B63: =VLOOKUP(A63,'Locations & Types'!$E:$F,2,FALSE) -> DC | C63: 27352612.43
A64: Dowlais | B64: =VLOOKUP(A64,'Locations & Types'!$E:$F,2,FALSE) -> GDN (WS) | C64: 96768779.8
A65: Drakelow Power Station | B65: =VLOOKUP(A65,'Locations & Types'!$E:$F,2,FALSE) -> DC | C65: 0
A66: Drointon | B66: =VLOOKUP(A66,'Locations & Types'!$E:$F,2,FALSE) -> GDN (EM) | C66: 52458546.51
A67: Drum | B67: =VLOOKUP(A67,'Locations & Types'!$E:$F,2,FALSE) -> GDN (SC) | C67: 62384242.73
A68: Dyffryn Clydach | B68: =VLOOKUP(A68,'Locations & Types'!$E:$F,2,FALSE) -> GDN (WS) | C68: 36761327.18
A69: Dynevor Max Refill | B69: =VLOOKUP(A69,'Locations & Types'!$E:$F,2,FALSE) -> STORAGE SITE | C69: 23931
A70: Eastoft (Keadby Blackstart) | B70: =VLOOKUP(A70,'Locations & Types'!$E:$F,2,FALSE) -> DC | C70: 332.2506994
A71: Eastoft (Keadby) | B71: =VLOOKUP(A71,'Locations & Types'!$E:$F,2,FALSE) -> DC | C71: 12822647.15
A72: Easton Grey | B72: =VLOOKUP(A72,'Locations & Types'!$E:$F,2,FALSE) -> GDN (SW) | C72: 25994879.48
A73: Ecclestone | B73: =VLOOKUP(A73,'Locations & Types'!$E:$F,2,FALSE) -> GDN (NW) | C73: 16233269.99
A74: Elton | B74: =VLOOKUP(A74,'Locations & Types'!$E:$F,2,FALSE) -> GDN (NO) | C74: 48861248.8
A75: Enron Billingham | B75: =VLOOKUP(A75,'Locations & Types'!$E:$F,2,FALSE) -> DC | C75: 0
A76: Epping Green (Enfield Energy, aka Brimsdown) | B76: =VLOOKUP(A76,'Locations & Types'!$E:$F,2,FALSE) -> DC | C76: 9949884.003
A77: Evesham | B77: =VLOOKUP(A77,'Locations & Types'!$E:$F,2,FALSE) -> GDN (SW) | C77: 5692484.027
A78: Farningham | B78: =VLOOKUP(A78,'Locations & Types'!$E:$F,2,FALSE) -> GDN (SE) | C78: 80874282.26
A79: Farningham B | B79: =VLOOKUP(A79,'Locations & Types'!$E:$F,2,FALSE) -> GDN (SE) | C79: 75039616.22
A80: Ferny Knoll (AM Paper) | B80: =VLOOKUP(A80,'Locations & Types'!$E:$F,2,FALSE) -> DC | C80: 0
A81: Fiddington | B81: =VLOOKUP(A81,'Locations & Types'!$E:$F,2,FALSE) -> GDN (SW) | C81: 18880319.39
A82: Ganstead | B82: =VLOOKUP(A82,'Locations & Types'!$E:$F,2,FALSE) -> GDN (NE) | C82: 14740819.37
A83: Garton Max Refill (Aldbrough) | B83: =VLOOKUP(A83,'Locations & Types'!$E:$F,2,FALSE) -> STORAGE SITE | C83: 105510000
A84: Gilwern | B84: =VLOOKUP(A84,'Locations & Types'!$E:$F,2,FALSE) -> GDN (WS) | C84: 74555469.31
A85: Glenmavis | B85: =VLOOKUP(A85,'Locations & Types'!$E:$F,2,FALSE) -> GDN (SC) | C85: 119503194.2
A86: Glenmavis Max Refill | B86: =VLOOKUP(A86,'Locations & Types'!$E:$F,2,FALSE) -> STORAGE SITE | C86: 128720
A87: Goole (Guardian Glass) | B87: =VLOOKUP(A87,'Locations & Types'!$E:$F,2,FALSE) -> DC | C87: 1531803.311
A88: Gosberton | B88: =VLOOKUP(A88,'Locations & Types'!$E:$F,2,FALSE) -> GDN (EM) | C88: 12555100.21
A89: Gowkhall (Longannet) | B89: =VLOOKUP(A89,'Locations & Types'!$E:$F,2,FALSE) -> DC | C89: 238482.6811
A90: Grain Power Station | B90: =VLOOKUP(A90,'Locations & Types'!$E:$F,2,FALSE) -> DC | C90: 28749841.74
A91: Great Wilbraham | B91: =VLOOKUP(A91,'Locations & Types'!$E:$F,2,FALSE) -> GDN (EA) | C91: 22555850.43
A92: Guyzance | B92: =VLOOKUP(A92,'Locations & Types'!$E:$F,2,FALSE) -> GDN (NO) | C92: 1576637.326
A93: Hardwick | B93: =VLOOKUP(A93,'Locations & Types'!$E:$F,2,FALSE) -> GDN (SO) | C93: 92925335.67
A94: Harwarden (Shotton, aka Shotton Paper) | B94: =VLOOKUP(A94,'Locations & Types'!$E:$F,2,FALSE) -> DC | C94: 0
A95: Hatfield Moor Max Refill | B95: =VLOOKUP(A95,'Locations & Types'!$E:$F,2,FALSE) -> STORAGE SITE | C95: 30210000
A96: Hatfield Power Station | B96: =VLOOKUP(A96,'Locations & Types'!$E:$F,2,FALSE) -> DC | C96: 0
A97: Hill Top Farm (Hole House Farm) | B97: =VLOOKUP(A97,'Locations & Types'!$E:$F,2,FALSE) -> STORAGE SITE | C97: 5382569.585
A98: Hole House Max Refill | B98: =VLOOKUP(A98,'Locations & Types'!$E:$F,2,FALSE) -> STORAGE SITE | C98: 2346671.036
A99: Holford | B99: =VLOOKUP(A99,'Locations & Types'!$E:$F,2,FALSE) -> STORAGE SITE | C99: 35603909.78
A100: Hollingsgreen (Hays Chemicals) | B100: =VLOOKUP(A100,'Locations & Types'!$E:$F,2,FALSE) -> DC | C100: 0
A101: Holmes Chapel | B101: =VLOOKUP(A101,'Locations & Types'!$E:$F,2,FALSE) -> GDN (NW) | C101: 21496536.82
A102: Horndon | B102: =VLOOKUP(A102,'Locations & Types'!$E:$F,2,FALSE) -> GDN (NT) | C102: 34999098.3
A103: Hornsea Max Refill | B103: =VLOOKUP(A103,'Locations & Types'!$E:$F,2,FALSE) -> STORAGE SITE | C103: 9872159.694
A104: Humbleton | B104: =VLOOKUP(A104,'Locations & Types'!$E:$F,2,FALSE) -> GDN (NO) | C104: 129544.2584
A105: Hume | B105: =VLOOKUP(A105,'Locations & Types'!$E:$F,2,FALSE) -> GDN (SC) | C105: 1569356.847
A106: Ilchester | B106: =VLOOKUP(A106,'Locations & Types'!$E:$F,2,FALSE) -> GDN (SW) | C106: 28794812.03
A107: Ipsden | B107: =VLOOKUP(A107,'Locations & Types'!$E:$F,2,FALSE) -> GDN (SO) | C107: 7327741.324
A108: Ipsden 2 | B108: =VLOOKUP(A108,'Locations & Types'!$E:$F,2,FALSE) -> GDN (SO) | C108: 10528402.29
A109: Keld | B109: =VLOOKUP(A109,'Locations & Types'!$E:$F,2,FALSE) -> GDN (NO) | C109: 1008791.088
A110: Kenn | B110: =VLOOKUP(A110,'Locations & Types'!$E:$F,2,FALSE) -> GDN (SW) | C110: 13837265.39
A111: Kinknockie | B111: =VLOOKUP(A111,'Locations & Types'!$E:$F,2,FALSE) -> GDN (SC) | C111: 2858848.775
A112: Kirkstead | B112: =VLOOKUP(A112,'Locations & Types'!$E:$F,2,FALSE) -> GDN (EM) | C112: 875009.919
A113: Langage Power Station | B113: =VLOOKUP(A113,'Locations & Types'!$E:$F,2,FALSE) -> DC | C113: 11827573.87
A114: Langholm | B114: =VLOOKUP(A114,'Locations & Types'!$E:$F,2,FALSE) -> GDN (SC) | C114: 144712.127
A115: Lauderhill | B115: =VLOOKUP(A115,'Locations & Types'!$E:$F,2,FALSE) -> GDN (SC) | C115: 0
A116: Leamington | B116: =VLOOKUP(A116,'Locations & Types'!$E:$F,2,FALSE) -> GDN (WM) | C116: 3892379.601
A117: Little Burdon | B117: =VLOOKUP(A117,'Locations & Types'!$E:$F,2,FALSE) -> GDN (NO) | C117: 12293246.76
A118: Littleton Drew | B118: =VLOOKUP(A118,'Locations & Types'!$E:$F,2,FALSE) -> GDN (SW) | C118: 2674326.582
A119: Lockerbie | B119: =VLOOKUP(A119,'Locations & Types'!$E:$F,2,FALSE) -> GDN (SC) | C119: 6447799.714
A120: Lower Quinton | B120: =VLOOKUP(A120,'Locations & Types'!$E:$F,2,FALSE) -> GDN (WM) | C120: 30646082.82
A121: Lupton | B121: =VLOOKUP(A121,'Locations & Types'!$E:$F,2,FALSE) -> GDN (NW) | C121: 19649402.84
A122: Luxborough Lane | B122: =VLOOKUP(A122,'Locations & Types'!$E:$F,2,FALSE) -> GDN (NT) | C122: 80014619.23
A123: Lyneham (Choakford) | B123: =VLOOKUP(A123,'Locations & Types'!$E:$F,2,FALSE) -> GDN (SW) | C123: 40860199.08
A124: Maelor | B124: =VLOOKUP(A124,'Locations & Types'!$E:$F,2,FALSE) -> GDN (WN) | C124: 42804531.36
A125: Malpas | B125: =VLOOKUP(A125,'Locations & Types'!$E:$F,2,FALSE) -> GDN (NW) | C125: 679461.8844
A126: Mappowder | B126: =VLOOKUP(A126,'Locations & Types'!$E:$F,2,FALSE) -> GDN (SO) | C126: 33578045.95
A127: Marchwood Power Station | B127: =VLOOKUP(A127,'Locations & Types'!$E:$F,2,FALSE) -> DC | C127: 31312314.24
A128: Market Harborough | B128: =VLOOKUP(A128,'Locations & Types'!$E:$F,2,FALSE) -> GDN (EM) | C128: 7098267.207
A129: Matching Green | B129: =VLOOKUP(A129,'Locations & Types'!$E:$F,2,FALSE) -> GDN (EA) | C129: 48079574.7
A130: Medway (aka Isle of Grain Power Station, NOT Grain Power) | B130: =VLOOKUP(A130,'Locations & Types'!$E:$F,2,FALSE) -> DC | C130: 10959257.33
A131: Melkinthorpe | B131: =VLOOKUP(A131,'Locations & Types'!$E:$F,2,FALSE) -> GDN (NO) | C131: 915593.4908
A132: Mickle Trafford | B132: =VLOOKUP(A132,'Locations & Types'!$E:$F,2,FALSE) -> GDN (NW) | C132: 28963870.74
A133: Middle Stoke (Damhead Creek, aka Kingsnorth Power Station) | B133: =VLOOKUP(A133,'Locations & Types'!$E:$F,2,FALSE) -> DC | C133: 17378798.41
A134: Milwich | B134: =VLOOKUP(A134,'Locations & Types'!$E:$F,2,FALSE) -> GDN (WM) | C134: 20293166.6
A135: Moffat (Irish Interconnector) | B135: =VLOOKUP(A135,'Locations & Types'!$E:$F,2,FALSE) -> INTERCONNECTOR | C135: 150215629.7
A136: Netherhowcleugh | B136: =VLOOKUP(A136,'Locations & Types'!$E:$F,2,FALSE) -> GDN (SC) | C136: 300114.6843
A137: Pannal | B137: =VLOOKUP(A137,'Locations & Types'!$E:$F,2,FALSE) -> GDN (NE) | C137: 106653574.5
A138: Partington | B138: =VLOOKUP(A138,'Locations & Types'!$E:$F,2,FALSE) -> GDN (NW) | C138: 39658019.45
A139: Partington Max Refill | B139: =VLOOKUP(A139,'Locations & Types'!$E:$F,2,FALSE) -> STORAGE SITE | C139: 0
A140: Paull | B140: =VLOOKUP(A140,'Locations & Types'!$E:$F,2,FALSE) -> GDN (NE) | C140: 41584579.22
A141: Pembroke Power Station | B141: =VLOOKUP(A141,'Locations & Types'!$E:$F,2,FALSE) -> DC | C141: 58401573.13
A142: Peterborough (Peterborough Power Station) | B142: =VLOOKUP(A142,'Locations & Types'!$E:$F,2,FALSE) -> DC | C142: 241585.9454
A143: Peterborough Eye (Tee) | B143: =VLOOKUP(A143,'Locations & Types'!$E:$F,2,FALSE) -> GDN (EA) | C143: 20375043.08
A144: Peters Green | B144: =VLOOKUP(A144,'Locations & Types'!$E:$F,2,FALSE) -> GDN (NT) | C144: 117648853.9
A145: Peters Green South Mimms | B145: =VLOOKUP(A145,'Locations & Types'!$E:$F,2,FALSE) -> GDN (NT) | C145: 174194480.4
A146: Phillips Petroleum, Teesside | B146: =VLOOKUP(A146,'Locations & Types'!$E:$F,2,FALSE) -> DC | C146: 158905.6101
A147: Pickering | B147: =VLOOKUP(A147,'Locations & Types'!$E:$F,2,FALSE) -> GDN (NE) | C147: 7394854.467
A148: Pickmere (Winnington Power, aka Brunner Mond) | B148: =VLOOKUP(A148,'Locations & Types'!$E:$F,2,FALSE) -> DC | C148: 8000000
A149: Pitcairngreen | B149: =VLOOKUP(A149,'Locations & Types'!$E:$F,2,FALSE) -> GDN (SC) | C149: 1784959.925
A150: Pucklechurch | B150: =VLOOKUP(A150,'Locations & Types'!$E:$F,2,FALSE) -> GDN (SW) | C150: 23475128.38
A151: Rawcliffe | B151: =VLOOKUP(A151,'Locations & Types'!$E:$F,2,FALSE) -> GDN (NE) | C151: 4508641.627
A152: Glasgoforest | B152: =VLOOKUP(A152,'Locations & Types'!$E:$F,2,FALSE) -> DC | C152: 0
A153: Roosecote Power Station (Barrow) | B153: =VLOOKUP(A153,'Locations & Types'!$E:$F,2,FALSE) -> DC | C153: 0
A154: Rosehill (Saltend Power Station) | B154: =VLOOKUP(A154,'Locations & Types'!$E:$F,2,FALSE) -> DC | C154: 31445094.69
A155: Ross (SW) | B155: =VLOOKUP(A155,'Locations & Types'!$E:$F,2,FALSE) -> GDN (SW) | C155: 3863265.69
A156: Ross (WM) | B156: =VLOOKUP(A156,'Locations & Types'!$E:$F,2,FALSE) -> GDN (WM) | C156: 10642090.27
A157: Roudham Heath | B157: =VLOOKUP(A157,'Locations & Types'!$E:$F,2,FALSE) -> GDN (EA) | C157: 19175522.37
A158: Royston | B158: =VLOOKUP(A158,'Locations & Types'!$E:$F,2,FALSE) -> GDN (EA) | C158: 2255611.622
A159: Rugby | B159: =VLOOKUP(A159,'Locations & Types'!$E:$F,2,FALSE) -> GDN (WM) | C159: 64660710.27
A160: Ryehouse | B160: =VLOOKUP(A160,'Locations & Types'!$E:$F,2,FALSE) -> DC | C160: 4016687.759
A161: Saddle Bow (Kings Lynn) | B161: =VLOOKUP(A161,'Locations & Types'!$E:$F,2,FALSE) -> DC | C161: 1425244.347
A162: Saltend BPHP (BP Saltend HP) | B162: =VLOOKUP(A162,'Locations & Types'!$E:$F,2,FALSE) -> DC | C162: 7914868.632
A163: Saltfleetby Storage (Theddlethorpe) | B163: =VLOOKUP(A163,'Locations & Types'!$E:$F,2,FALSE) -> STORAGE SITE | C163: 0
A164: Saltwick Pressure Controlled | B164: =VLOOKUP(A164,'Locations & Types'!$E:$F,2,FALSE) -> GDN (NO) | C164: 34470694.88
A165: Saltwick Volumetric Controlled | B165: =VLOOKUP(A165,'Locations & Types'!$E:$F,2,FALSE) -> GDN (NO) | C165: 0
A166: Samlesbury | B166: =VLOOKUP(A166,'Locations & Types'!$E:$F,2,FALSE) -> GDN (NW) | C166: 99019219.84
A167: Sandy Lane (Blackburn CHP, aka Sappi Paper Mill) | B167: =VLOOKUP(A167,'Locations & Types'!$E:$F,2,FALSE) -> DC | C167: 838607.7966
A168: Seabank (DN) | B168: =VLOOKUP(A168,'Locations & Types'!$E:$F,2,FALSE) -> GDN (SW) | C168: 54104041.41
A169: Seabank (Seabank Power Station phase II) | B169: =VLOOKUP(A169,'Locations & Types'!$E:$F,2,FALSE) -> DC | C169: 4244580.02
A170: Seal Sands TGPP | B170: =VLOOKUP(A170,'Locations & Types'!$E:$F,2,FALSE) -> DC | C170: 0
A171: Sellafield Power Station | B171: =VLOOKUP(A171,'Locations & Types'!$E:$F,2,FALSE) -> DC | C171: 4353990.624
A172: Shellstar (aka Kemira, not Kemira CHP) | B172: =VLOOKUP(A172,'Locations & Types'!$E:$F,2,FALSE) -> DC | C172: 11732444
A173: Shorne | B173: =VLOOKUP(A173,'Locations & Types'!$E:$F,2,FALSE) -> GDN (SE) | C173: 18510264.48
A174: Shotwick (Bridgewater Paper) | B174: =VLOOKUP(A174,'Locations & Types'!$E:$F,2,FALSE) -> DC | C174: 188795.9264
A175: Shustoke | B175: =VLOOKUP(A175,'Locations & Types'!$E:$F,2,FALSE) -> GDN (WM) | C175: 107088.0182
A176: Silk Willoughby | B176: =VLOOKUP(A176,'Locations & Types'!$E:$F,2,FALSE) -> GDN (EM) | C176: 2398325.753
A177: Soutra | B177: =VLOOKUP(A177,'Locations & Types'!$E:$F,2,FALSE) -> GDN (SC) | C177: 9994438.948
A178: Spalding 2 (South Holland) Power Station | B178: =VLOOKUP(A178,'Locations & Types'!$E:$F,2,FALSE) -> DC | C178: 64435.83942
A179: St Fergus | B179: =VLOOKUP(A179,'Locations & Types'!$E:$F,2,FALSE) -> GDN (SC) | C179: 1173254.695
A180: St. Fergus (Peterhead) | B180: =VLOOKUP(A180,'Locations & Types'!$E:$F,2,FALSE) -> DC | C180: 16089056.98
A181: St. Fergus (Shell Blackstart) | B181: =VLOOKUP(A181,'Locations & Types'!$E:$F,2,FALSE) -> DC | C181: 10661.26452
A182: St. Neots (Little Barford) | B182: =VLOOKUP(A182,'Locations & Types'!$E:$F,2,FALSE) -> DC | C182: 15332892.44
A183: Stallingborough | B183: =VLOOKUP(A183,'Locations & Types'!$E:$F,2,FALSE) -> DC | C183: 20396921.15
A184: Stanford Le Hope (Coryton) | B184: =VLOOKUP(A184,'Locations & Types'!$E:$F,2,FALSE) -> DC | C184: 10117912.19
A185: Staythorpe | B185: =VLOOKUP(A185,'Locations & Types'!$E:$F,2,FALSE) -> DC | C185: 82000000
A186: Stranraer | B186: =VLOOKUP(A186,'Locations & Types'!$E:$F,2,FALSE) -> GDN (SC) | C186: 691733.452
A187: Stratford-upon-Avon | B187: =VLOOKUP(A187,'Locations & Types'!$E:$F,2,FALSE) -> GDN (WM) | C187: 3999780.316
A188: Stublach (Cheshire) | B188: =VLOOKUP(A188,'Locations & Types'!$E:$F,2,FALSE) -> STORAGE SITE | C188: 24527159.13
A189: Sutton Bridge | B189: =VLOOKUP(A189,'Locations & Types'!$E:$F,2,FALSE) -> GDN (EM) | C189: 1099764.506
A190: Sutton Bridge Power Station | B190: =VLOOKUP(A190,'Locations & Types'!$E:$F,2,FALSE) -> DC | C190: 9372740.643
A191: Tatsfield | B191: =VLOOKUP(A191,'Locations & Types'!$E:$F,2,FALSE) -> GDN (SE) | C191: 179980338.1
A192: Teesside (BASF, aka BASF Teesside) | B192: =VLOOKUP(A192,'Locations & Types'!$E:$F,2,FALSE) -> DC | C192: 5052501.844
A193: Teesside Hydrogen | B193: =VLOOKUP(A193,'Locations & Types'!$E:$F,2,FALSE) -> DC | C193: 11488400
A194: Terra Nitrogen (aka ICI, Terra Severnside) | B194: =VLOOKUP(A194,'Locations & Types'!$E:$F,2,FALSE) -> DC | C194: 0
A195: Thornton Curtis (DN) | B195: =VLOOKUP(A195,'Locations & Types'!$E:$F,2,FALSE) -> GDN (EM) | C195: 120434867.4
A196: Thornton Curtis (Humber Refinery, aka Immingham) | B196: =VLOOKUP(A196,'Locations & Types'!$E:$F,2,FALSE) -> DC | C196: 37765589.73
A197: Thornton Curtis (Killingholme) | B197: =VLOOKUP(A197,'Locations & Types'!$E:$F,2,FALSE) -> DC | C197: 12324422.16
A198: Thrintoft | B198: =VLOOKUP(A198,'Locations & Types'!$E:$F,2,FALSE) -> GDN (NO) | C198: 3918162.601
A199: Tilbury Power Station | B199: =VLOOKUP(A199,'Locations & Types'!$E:$F,2,FALSE) -> DC | C199: 0
A200: Tonna (Baglan Bay) | B200: =VLOOKUP(A200,'Locations & Types'!$E:$F,2,FALSE) -> DC | C200: 6084995.276
... 32 more rows

Sheet 23-24 FCC - Exit
A1: Exit Point | B1: Exit Point Type | C1: Forecasted Contracted Capacity
C2: (kWh/d)
A3: Aberdeen | B3: =VLOOKUP(A3,'Locations & Types'!$E:$F,2,FALSE) -> GDN (SC) | C3: 20089295.84
A4: Abson (Seabank Power Station phase I) | B4: =VLOOKUP(A4,'Locations & Types'!$E:$F,2,FALSE) -> DC | C4: 14351284.61
A5: Alrewas (EM) | B5: =VLOOKUP(A5,'Locations & Types'!$E:$F,2,FALSE) -> GDN (EM) | C5: 66156142.04
A6: Alrewas (WM) | B6: =VLOOKUP(A6,'Locations & Types'!$E:$F,2,FALSE) -> GDN (WM) | C6: 77614496.66
A7: Apache (Sage Black Start) | B7: =VLOOKUP(A7,'Locations & Types'!$E:$F,2,FALSE) -> DC | C7: 1182.499823
A8: Armadale | B8: =VLOOKUP(A8,'Locations & Types'!$E:$F,2,FALSE) -> GDN (SC) | C8: 7614063.249
A9: Aspley | B9: =VLOOKUP(A9,'Locations & Types'!$E:$F,2,FALSE) -> GDN (WM) | C9: 58161116.06
A10: Asselby | B10: =VLOOKUP(A10,'Locations & Types'!$E:$F,2,FALSE) -> GDN (NE) | C10: 3171111.569
A11: Audley (NW) | B11: =VLOOKUP(A11,'Locations & Types'!$E:$F,2,FALSE) -> GDN (NW) | C11: 7981631.2
A12: Audley (WM) | B12: =VLOOKUP(A12,'Locations & Types'!$E:$F,2,FALSE) -> GDN (WM) | C12: 14537436.31
A13: Austrey | B13: =VLOOKUP(A13,'Locations & Types'!$E:$F,2,FALSE) -> GDN (WM) | C13: 63838970.48
A14: Avonmouth Max Refill | B14: =VLOOKUP(A14,'Locations & Types'!$E:$F,2,FALSE) -> STORAGE SITE | C14: 0
A15: Aylesbeare | B15: =VLOOKUP(A15,'Locations & Types'!$E:$F,2,FALSE) -> GDN (SW) | C15: 17773593.16
A16: Bacton | B16: =VLOOKUP(A16,'Locations & Types'!$E:$F,2,FALSE) -> GDN (EA) | C16: 2848209.167
A17: Bacton (Baird) | B17: =VLOOKUP(A17,'Locations & Types'!$E:$F,2,FALSE) -> STORAGE SITE | C17: 0
A18: Bacton (BBL) | B18: =VLOOKUP(A18,'Locations & Types'!$E:$F,2,FALSE) -> INTERCONNECTOR | C18: 47195138.4
A19: Bacton (Great Yarmouth) | B19: =VLOOKUP(A19,'Locations & Types'!$E:$F,2,FALSE) -> DC | C19: 7986273.052
A20: Bacton (IUK) | B20: =VLOOKUP(A20,'Locations & Types'!$E:$F,2,FALSE) -> INTERCONNECTOR | C20: 222472236.5
A21: Baldersby | B21: =VLOOKUP(A21,'Locations & Types'!$E:$F,2,FALSE) -> GDN (NE) | C21: 996237.3778
A22: Balgray | B22: =VLOOKUP(A22,'Locations & Types'!$E:$F,2,FALSE) -> GDN (SC) | C22: 13886523.09
A23: Barking (Horndon) | B23: =VLOOKUP(A23,'Locations & Types'!$E:$F,2,FALSE) -> DC | C23: 0
A24: Barrow (Bains) | B24: =VLOOKUP(A24,'Locations & Types'!$E:$F,2,FALSE) -> STORAGE SITE | C24: 0
A25: Barrow (Black Start) | B25: =VLOOKUP(A25,'Locations & Types'!$E:$F,2,FALSE) -> DC | C25: 11309.43515
A26: Barrow (Gateway) | B26: =VLOOKUP(A26,'Locations & Types'!$E:$F,2,FALSE) -> STORAGE SITE | C26: 0
A27: Barton Stacey Max Refill (Humbly Grove) | B27: =VLOOKUP(A27,'Locations & Types'!$E:$F,2,FALSE) -> STORAGE SITE | C27: 8958267.465
A28: Bathgate | B28: =VLOOKUP(A28,'Locations & Types'!$E:$F,2,FALSE) -> GDN (SC) | C28: 19571654.1
A29: Billingham ICI (Terra Billingham) | B29: =VLOOKUP(A29,'Locations & Types'!$E:$F,2,FALSE) -> DC | C29: 17362194.62
A30: Bishop Auckland | B30: =VLOOKUP(A30,'Locations & Types'!$E:$F,2,FALSE) -> GDN (NO) | C30: 48269266.52
A31: Bishop Auckland (test facility) | B31: =VLOOKUP(A31,'Locations & Types'!$E:$F,2,FALSE) -> DC | C31: 1253596.648
A32: Blaby | B32: =VLOOKUP(A32,'Locations & Types'!$E:$F,2,FALSE) -> GDN (EM) | C32: 10086304.51
A33: Blackness (BP Grangemouth) | B33: =VLOOKUP(A33,'Locations & Types'!$E:$F,2,FALSE) -> DC | C33: 24028058.09
A34: Blackrod | B34: =VLOOKUP(A34,'Locations & Types'!$E:$F,2,FALSE) -> GDN (NW) | C34: 130098852.5
A35: Blyborough | B35: =VLOOKUP(A35,'Locations & Types'!$E:$F,2,FALSE) -> GDN (EM) | C35: 64750643.04
A36: Blyborough (Brigg) | B36: =VLOOKUP(A36,'Locations & Types'!$E:$F,2,FALSE) -> DC | C36: 237464.5624
A37: Blyborough (Cottam) | B37: =VLOOKUP(A37,'Locations & Types'!$E:$F,2,FALSE) -> DC | C37: 10145266.65
A38: Braishfield A | B38: =VLOOKUP(A38,'Locations & Types'!$E:$F,2,FALSE) -> GDN (SO) | C38: 78447233.27
A39: Braishfield B | B39: =VLOOKUP(A39,'Locations & Types'!$E:$F,2,FALSE) -> GDN (SO) | C39: 51193381.14
A40: Brine Field (Teesside) Power Station | B40: =VLOOKUP(A40,'Locations & Types'!$E:$F,2,FALSE) -> DC | C40: 56662.64772
A41: Brisley | B41: =VLOOKUP(A41,'Locations & Types'!$E:$F,2,FALSE) -> GDN (EA) | C41: 1975168.213
A42: Broxburn | B42: =VLOOKUP(A42,'Locations & Types'!$E:$F,2,FALSE) -> GDN (SC) | C42: 52221260.12
A43: Burley Bank | B43: =VLOOKUP(A43,'Locations & Types'!$E:$F,2,FALSE) -> GDN (NE) | C43: 12262964.09
A44: Burnhervie | B44: =VLOOKUP(A44,'Locations & Types'!$E:$F,2,FALSE) -> GDN (SC) | C44: 19147082.27
A45: Burton Point (Connahs Quay) | B45: =VLOOKUP(A45,'Locations & Types'!$E:$F,2,FALSE) -> DC | C45: 11885514.49
A46: Caldecott | B46: =VLOOKUP(A46,'Locations & Types'!$E:$F,2,FALSE) -> GDN (EM) | C46: 9176926.332
A47: Caldecott (Corby Power Station) | B47: =VLOOKUP(A47,'Locations & Types'!$E:$F,2,FALSE) -> DC | C47: 209634.6305
A48: Cambridge | B48: =VLOOKUP(A48,'Locations & Types'!$E:$F,2,FALSE) -> GDN (EA) | C48: 0
A49: Careston | B49: =VLOOKUP(A49,'Locations & Types'!$E:$F,2,FALSE) -> GDN (SC) | C49: 3578304.758
A50: Carrington (Partington) Power Station | B50: =VLOOKUP(A50,'Locations & Types'!$E:$F,2,FALSE) -> DC | C50: 14700865.42
A51: Caythorpe | B51: =VLOOKUP(A51,'Locations & Types'!$E:$F,2,FALSE) -> STORAGE SITE | C51: 0
A52: Centrax Industrial | B52: =VLOOKUP(A52,'Locations & Types'!$E:$F,2,FALSE) -> DC | C52: 28431.99093
A53: Cirencester | B53: =VLOOKUP(A53,'Locations & Types'!$E:$F,2,FALSE) -> GDN (SW) | C53: 7778613.343
A54: Cockenzie Power Station | B54: =VLOOKUP(A54,'Locations & Types'!$E:$F,2,FALSE) -> DC | C54: 0
A55: Coffinswell | B55: =VLOOKUP(A55,'Locations & Types'!$E:$F,2,FALSE) -> GDN (SW) | C55: 4747147.264
A56: Coldstream | B56: =VLOOKUP(A56,'Locations & Types'!$E:$F,2,FALSE) -> GDN (NO) | C56: 2473115.195
A57: Corbridge | B57: =VLOOKUP(A57,'Locations & Types'!$E:$F,2,FALSE) -> GDN (NO) | C57: 137023.9887
A58: Coryton 2 (Thames Haven) Power Station | B58: =VLOOKUP(A58,'Locations & Types'!$E:$F,2,FALSE) -> DC | C58: 0
A59: Cowpen Bewley | B59: =VLOOKUP(A59,'Locations & Types'!$E:$F,2,FALSE) -> GDN (NO) | C59: 34725959.27
A60: Crawley Down | B60: =VLOOKUP(A60,'Locations & Types'!$E:$F,2,FALSE) -> GDN (SO) | C60: 0
A61: Deborah Storage (Bacton) | B61: =VLOOKUP(A61,'Locations & Types'!$E:$F,2,FALSE) -> STORAGE SITE | C61: 0
A62: Deeside | B62: =VLOOKUP(A62,'Locations & Types'!$E:$F,2,FALSE) -> DC | C62: 1841006.037
A63: Didcot | B63: =VLOOKUP(A63,'Locations & Types'!$E:$F,2,FALSE) -> DC | C63: 26963708.68
A64: Dowlais | B64: =VLOOKUP(A64,'Locations & Types'!$E:$F,2,FALSE) -> GDN (WS) | C64: 96563885.79
A65: Drakelow Power Station | B65: =VLOOKUP(A65,'Locations & Types'!$E:$F,2,FALSE) -> DC | C65: 0
A66: Drointon | B66: =VLOOKUP(A66,'Locations & Types'!$E:$F,2,FALSE) -> GDN (EM) | C66: 52622396.86
A67: Drum | B67: =VLOOKUP(A67,'Locations & Types'!$E:$F,2,FALSE) -> GDN (SC) | C67: 62160587.39
A68: Dyffryn Clydach | B68: =VLOOKUP(A68,'Locations & Types'!$E:$F,2,FALSE) -> GDN (WS) | C68: 36683490.34
A69: Dynevor Max Refill | B69: =VLOOKUP(A69,'Locations & Types'!$E:$F,2,FALSE) -> STORAGE SITE | C69: 23996.56438
A70: Eastoft (Keadby Blackstart) | B70: =VLOOKUP(A70,'Locations & Types'!$E:$F,2,FALSE) -> DC | C70: 327.5267067
A71: Eastoft (Keadby) | B71: =VLOOKUP(A71,'Locations & Types'!$E:$F,2,FALSE) -> DC | C71: 12640332.74
A72: Easton Grey | B72: =VLOOKUP(A72,'Locations & Types'!$E:$F,2,FALSE) -> GDN (SW) | C72: 25954728.74
A73: Ecclestone | B73: =VLOOKUP(A73,'Locations & Types'!$E:$F,2,FALSE) -> GDN (NW) | C73: 16256943.01
A74: Elton | B74: =VLOOKUP(A74,'Locations & Types'!$E:$F,2,FALSE) -> GDN (NO) | C74: 48612846.5
A75: Enron Billingham | B75: =VLOOKUP(A75,'Locations & Types'!$E:$F,2,FALSE) -> DC | C75: 0
A76: Epping Green (Enfield Energy, aka Brimsdown) | B76: =VLOOKUP(A76,'Locations & Types'!$E:$F,2,FALSE) -> DC | C76: 9808414.988
A77: Evesham | B77: =VLOOKUP(A77,'Locations & Types'!$E:$F,2,FALSE) -> GDN (SW) | C77: 5683691.626
A78: Farningham | B78: =VLOOKUP(A78,'Locations & Types'!$E:$F,2,FALSE) -> GDN (SE) | C78: 80605217.89
A79: Farningham B | B79: =VLOOKUP(A79,'Locations & Types'!$E:$F,2,FALSE) -> GDN (SE) | C79: 74789963.47
A80: Ferny Knoll (AM Paper) | B80: =VLOOKUP(A80,'Locations & Types'!$E:$F,2,FALSE) -> DC | C80: 0
A81: Fiddington | B81: =VLOOKUP(A81,'Locations & Types'!$E:$F,2,FALSE) -> GDN (SW) | C81: 18851157.54
A82: Ganstead | B82: =VLOOKUP(A82,'Locations & Types'!$E:$F,2,FALSE) -> GDN (NE) | C82: 14687746.07
A83: Garton Max Refill (Aldbrough) | B83: =VLOOKUP(A83,'Locations & Types'!$E:$F,2,FALSE) -> STORAGE SITE | C83: 105799068.5
A84: Gilwern | B84: =VLOOKUP(A84,'Locations & Types'!$E:$F,2,FALSE) -> GDN (WS) | C84: 74397608.8
A85: Glenmavis | B85: =VLOOKUP(A85,'Locations & Types'!$E:$F,2,FALSE) -> GDN (SC) | C85: 119074760.2
A86: Glenmavis Max Refill | B86: =VLOOKUP(A86,'Locations & Types'!$E:$F,2,FALSE) -> STORAGE SITE | C86: 129072.6575
A87: Goole (Guardian Glass) | B87: =VLOOKUP(A87,'Locations & Types'!$E:$F,2,FALSE) -> DC | C87: 1537870.84
A88: Gosberton | B88: =VLOOKUP(A88,'Locations & Types'!$E:$F,2,FALSE) -> GDN (EM) | C88: 12594315.12
A89: Gowkhall (Longannet) | B89: =VLOOKUP(A89,'Locations & Types'!$E:$F,2,FALSE) -> DC | C89: 235091.8968
A90: Grain Power Station | B90: =VLOOKUP(A90,'Locations & Types'!$E:$F,2,FALSE) -> DC | C90: 28341071.96
A91: Great Wilbraham | B91: =VLOOKUP(A91,'Locations & Types'!$E:$F,2,FALSE) -> GDN (EA) | C91: 22507582.08
A92: Guyzance | B92: =VLOOKUP(A92,'Locations & Types'!$E:$F,2,FALSE) -> GDN (NO) | C92: 1568621.969
A93: Hardwick | B93: =VLOOKUP(A93,'Locations & Types'!$E:$F,2,FALSE) -> GDN (SO) | C93: 92752816.89
A94: Harwarden (Shotton, aka Shotton Paper) | B94: =VLOOKUP(A94,'Locations & Types'!$E:$F,2,FALSE) -> DC | C94: 0
A95: Hatfield Moor Max Refill | B95: =VLOOKUP(A95,'Locations & Types'!$E:$F,2,FALSE) -> STORAGE SITE | C95: 30292767.12
A96: Hatfield Power Station | B96: =VLOOKUP(A96,'Locations & Types'!$E:$F,2,FALSE) -> DC | C96: 0
A97: Hill Top Farm (Hole House Farm) | B97: =VLOOKUP(A97,'Locations & Types'!$E:$F,2,FALSE) -> STORAGE SITE | C97: 5382569.585
A98: Hole House Max Refill | B98: =VLOOKUP(A98,'Locations & Types'!$E:$F,2,FALSE) -> STORAGE SITE | C98: 2346671.036
A99: Holford | B99: =VLOOKUP(A99,'Locations & Types'!$E:$F,2,FALSE) -> STORAGE SITE | C99: 35603909.78
A100: Hollingsgreen (Hays Chemicals) | B100: =VLOOKUP(A100,'Locations & Types'!$E:$F,2,FALSE) -> DC | C100: 0
A101: Holmes Chapel | B101: =VLOOKUP(A101,'Locations & Types'!$E:$F,2,FALSE) -> GDN (NW) | C101: 21527885.27
A102: Horndon | B102: =VLOOKUP(A102,'Locations & Types'!$E:$F,2,FALSE) -> GDN (NT) | C102: 34913147.03
A103: Hornsea Max Refill | B103: =VLOOKUP(A103,'Locations & Types'!$E:$F,2,FALSE) -> STORAGE SITE | C103: 9872159.694
A104: Humbleton | B104: =VLOOKUP(A104,'Locations & Types'!$E:$F,2,FALSE) -> GDN (NO) | C104: 128885.6774
A105: Hume | B105: =VLOOKUP(A105,'Locations & Types'!$E:$F,2,FALSE) -> GDN (SC) | C105: 1563730.505
A106: Ilchester | B106: =VLOOKUP(A106,'Locations & Types'!$E:$F,2,FALSE) -> GDN (SW) | C106: 28750336.62
A107: Ipsden | B107: =VLOOKUP(A107,'Locations & Types'!$E:$F,2,FALSE) -> GDN (SO) | C107: 7314137.144
A108: Ipsden 2 | B108: =VLOOKUP(A108,'Locations & Types'!$E:$F,2,FALSE) -> GDN (SO) | C108: 10508855.98
A109: Keld | B109: =VLOOKUP(A109,'Locations & Types'!$E:$F,2,FALSE) -> GDN (NO) | C109: 1003662.565
A110: Kenn | B110: =VLOOKUP(A110,'Locations & Types'!$E:$F,2,FALSE) -> GDN (SW) | C110: 13815892.86
A111: Kinknockie | B111: =VLOOKUP(A111,'Locations & Types'!$E:$F,2,FALSE) -> GDN (SC) | C111: 2848599.443
A112: Kirkstead | B112: =VLOOKUP(A112,'Locations & Types'!$E:$F,2,FALSE) -> GDN (EM) | C112: 877742.947
A113: Langage Power Station | B113: =VLOOKUP(A113,'Locations & Types'!$E:$F,2,FALSE) -> DC | C113: 11659407.57
A114: Langholm | B114: =VLOOKUP(A114,'Locations & Types'!$E:$F,2,FALSE) -> GDN (SC) | C114: 144193.3159
A115: Lauderhill | B115: =VLOOKUP(A115,'Locations & Types'!$E:$F,2,FALSE) -> GDN (SC) | C115: 0
A116: Leamington | B116: =VLOOKUP(A116,'Locations & Types'!$E:$F,2,FALSE) -> GDN (WM) | C116: 3893185.497
A117: Little Burdon | B117: =VLOOKUP(A117,'Locations & Types'!$E:$F,2,FALSE) -> GDN (NO) | C117: 12230749.98
A118: Littleton Drew | B118: =VLOOKUP(A118,'Locations & Types'!$E:$F,2,FALSE) -> GDN (SW) | C118: 2670195.915
A119: Lockerbie | B119: =VLOOKUP(A119,'Locations & Types'!$E:$F,2,FALSE) -> GDN (SC) | C119: 6424683.542
A120: Lower Quinton | B120: =VLOOKUP(A120,'Locations & Types'!$E:$F,2,FALSE) -> GDN (WM) | C120: 30652427.92
A121: Lupton | B121: =VLOOKUP(A121,'Locations & Types'!$E:$F,2,FALSE) -> GDN (NW) | C121: 19678057.61
A122: Luxborough Lane | B122: =VLOOKUP(A122,'Locations & Types'!$E:$F,2,FALSE) -> GDN (NT) | C122: 79818118.22
A123: Lyneham (Choakford) | B123: =VLOOKUP(A123,'Locations & Types'!$E:$F,2,FALSE) -> GDN (SW) | C123: 40797087.92
A124: Maelor | B124: =VLOOKUP(A124,'Locations & Types'!$E:$F,2,FALSE) -> GDN (WN) | C124: 42714616.33
A125: Malpas | B125: =VLOOKUP(A125,'Locations & Types'!$E:$F,2,FALSE) -> GDN (NW) | C125: 680452.7453
A126: Mappowder | B126: =VLOOKUP(A126,'Locations & Types'!$E:$F,2,FALSE) -> GDN (SO) | C126: 33515707.26
A127: Marchwood Power Station | B127: =VLOOKUP(A127,'Locations & Types'!$E:$F,2,FALSE) -> DC | C127: 30867110.83
A128: Market Harborough | B128: =VLOOKUP(A128,'Locations & Types'!$E:$F,2,FALSE) -> GDN (EM) | C128: 7120438.114
A129: Matching Green | B129: =VLOOKUP(A129,'Locations & Types'!$E:$F,2,FALSE) -> GDN (EA) | C129: 47976686.9
A130: Medway (aka Isle of Grain Power Station, NOT Grain Power) | B130: =VLOOKUP(A130,'Locations & Types'!$E:$F,2,FALSE) -> DC | C130: 10803436.89
A131: Melkinthorpe | B131: =VLOOKUP(A131,'Locations & Types'!$E:$F,2,FALSE) -> GDN (NO) | C131: 910938.7688
A132: Mickle Trafford | B132: =VLOOKUP(A132,'Locations & Types'!$E:$F,2,FALSE) -> GDN (NW) | C132: 29006108.83
A133: Middle Stoke (Damhead Creek, aka Kingsnorth Power Station) | B133: =VLOOKUP(A133,'Locations & Types'!$E:$F,2,FALSE) -> DC | C133: 17131703.93
A134: Milwich | B134: =VLOOKUP(A134,'Locations & Types'!$E:$F,2,FALSE) -> GDN (WM) | C134: 20297368.19
A135: Moffat (Irish Interconnector) | B135: =VLOOKUP(A135,'Locations & Types'!$E:$F,2,FALSE) -> INTERCONNECTOR | C135: 152491562.7
A136: Netherhowcleugh | B136: =VLOOKUP(A136,'Locations & Types'!$E:$F,2,FALSE) -> GDN (SC) | C136: 299038.7355
A137: Pannal | B137: =VLOOKUP(A137,'Locations & Types'!$E:$F,2,FALSE) -> GDN (NE) | C137: 106269575.6
A138: Partington | B138: =VLOOKUP(A138,'Locations & Types'!$E:$F,2,FALSE) -> GDN (NW) | C138: 39715852.84
A139: Partington Max Refill | B139: =VLOOKUP(A139,'Locations & Types'!$E:$F,2,FALSE) -> STORAGE SITE | C139: 0
A140: Paull | B140: =VLOOKUP(A140,'Locations & Types'!$E:$F,2,FALSE) -> GDN (NE) | C140: 41434856.8
A141: Pembroke Power Station | B141: =VLOOKUP(A141,'Locations & Types'!$E:$F,2,FALSE) -> DC | C141: 57571210.38
A142: Peterborough (Peterborough Power Station) | B142: =VLOOKUP(A142,'Locations & Types'!$E:$F,2,FALSE) -> DC | C142: 238151.0384
A143: Peterborough Eye (Tee) | B143: =VLOOKUP(A143,'Locations & Types'!$E:$F,2,FALSE) -> GDN (EA) | C143: 20331441.54
A144: Peters Green | B144: =VLOOKUP(A144,'Locations & Types'!$E:$F,2,FALSE) -> GDN (NT) | C144: 117359930.2
A145: Peters Green South Mimms | B145: =VLOOKUP(A145,'Locations & Types'!$E:$F,2,FALSE) -> GDN (NT) | C145: 173766691.2
A146: Phillips Petroleum, Teesside | B146: =VLOOKUP(A146,'Locations & Types'!$E:$F,2,FALSE) -> DC | C146: 159535.0411
A147: Pickering | B147: =VLOOKUP(A147,'Locations & Types'!$E:$F,2,FALSE) -> GDN (NE) | C147: 7368229.802
A148: Pickmere (Winnington Power, aka Brunner Mond) | B148: =VLOOKUP(A148,'Locations & Types'!$E:$F,2,FALSE) -> DC | C148: 8021917.808
A149: Pitcairngreen | B149: =VLOOKUP(A149,'Locations & Types'!$E:$F,2,FALSE) -> GDN (SC) | C149: 1778560.619
A150: Pucklechurch | B150: =VLOOKUP(A150,'Locations & Types'!$E:$F,2,FALSE) -> GDN (SW) | C150: 23438869.56
A151: Rawcliffe | B151: =VLOOKUP(A151,'Locations & Types'!$E:$F,2,FALSE) -> GDN (NE) | C151: 4492408.572
A152: Glasgoforest | B152: =VLOOKUP(A152,'Locations & Types'!$E:$F,2,FALSE) -> DC | C152: 0
A153: Roosecote Power Station (Barrow) | B153: =VLOOKUP(A153,'Locations & Types'!$E:$F,2,FALSE) -> DC | C153: 0
A154: Rosehill (Saltend Power Station) | B154: =VLOOKUP(A154,'Locations & Types'!$E:$F,2,FALSE) -> DC | C154: 30998003.38
A155: Ross (SW) | B155: =VLOOKUP(A155,'Locations & Types'!$E:$F,2,FALSE) -> GDN (SW) | C155: 3857298.632
A156: Ross (WM) | B156: =VLOOKUP(A156,'Locations & Types'!$E:$F,2,FALSE) -> GDN (WM) | C156: 10644293.66
A157: Roudham Heath | B157: =VLOOKUP(A157,'Locations & Types'!$E:$F,2,FALSE) -> GDN (EA) | C157: 19134487.75
A158: Royston | B158: =VLOOKUP(A158,'Locations & Types'!$E:$F,2,FALSE) -> GDN (EA) | C158: 2250784.73
A159: Rugby | B159: =VLOOKUP(A159,'Locations & Types'!$E:$F,2,FALSE) -> GDN (WM) | C159: 64674097.92
A160: Ryehouse | B160: =VLOOKUP(A160,'Locations & Types'!$E:$F,2,FALSE) -> DC | C160: 3959577.861
A161: Saddle Bow (Kings Lynn) | B161: =VLOOKUP(A161,'Locations & Types'!$E:$F,2,FALSE) -> DC | C161: 1404979.999
A162: Saltend BPHP (BP Saltend HP) | B162: =VLOOKUP(A162,'Locations & Types'!$E:$F,2,FALSE) -> DC | C162: 7946219.717
A163: Saltfleetby Storage (Theddlethorpe) | B163: =VLOOKUP(A163,'Locations & Types'!$E:$F,2,FALSE) -> STORAGE SITE | C163: 0
A164: Saltwick Pressure Controlled | B164: =VLOOKUP(A164,'Locations & Types'!$E:$F,2,FALSE) -> GDN (NO) | C164: 34295451.71
A165: Saltwick Volumetric Controlled | B165: =VLOOKUP(A165,'Locations & Types'!$E:$F,2,FALSE) -> GDN (NO) | C165: 0
A166: Samlesbury | B166: =VLOOKUP(A166,'Locations & Types'!$E:$F,2,FALSE) -> GDN (NW) | C166: 99163619.82
A167: Sandy Lane (Blackburn CHP, aka Sappi Paper Mill) | B167: =VLOOKUP(A167,'Locations & Types'!$E:$F,2,FALSE) -> DC | C167: 841929.5528
A168: Seabank (DN) | B168: =VLOOKUP(A168,'Locations & Types'!$E:$F,2,FALSE) -> GDN (SW) | C168: 54020474.3
A169: Seabank (Seabank Power Station phase II) | B169: =VLOOKUP(A169,'Locations & Types'!$E:$F,2,FALSE) -> DC | C169: 4184229.914
A170: Seal Sands TGPP | B170: =VLOOKUP(A170,'Locations & Types'!$E:$F,2,FALSE) -> DC | C170: 0
A171: Sellafield Power Station | B171: =VLOOKUP(A171,'Locations & Types'!$E:$F,2,FALSE) -> DC | C171: 4292084.901
A172: Shellstar (aka Kemira, not Kemira CHP) | B172: =VLOOKUP(A172,'Locations & Types'!$E:$F,2,FALSE) -> DC | C172: 11764587.68
A173: Shorne | B173: =VLOOKUP(A173,'Locations & Types'!$E:$F,2,FALSE) -> GDN (SE) | C173: 18448681.83
A174: Shotwick (Bridgewater Paper) | B174: =VLOOKUP(A174,'Locations & Types'!$E:$F,2,FALSE) -> DC | C174: 189543.754
A175: Shustoke | B175: =VLOOKUP(A175,'Locations & Types'!$E:$F,2,FALSE) -> GDN (WM) | C175: 107110.1902
A176: Silk Willoughby | B176: =VLOOKUP(A176,'Locations & Types'!$E:$F,2,FALSE) -> GDN (EM) | C176: 2405816.744
A177: Soutra | B177: =VLOOKUP(A177,'Locations & Types'!$E:$F,2,FALSE) -> GDN (SC) | C177: 9958607.629
A178: Spalding 2 (South Holland) Power Station | B178: =VLOOKUP(A178,'Locations & Types'!$E:$F,2,FALSE) -> DC | C178: 63519.68052
A179: St Fergus | B179: =VLOOKUP(A179,'Locations & Types'!$E:$F,2,FALSE) -> GDN (SC) | C179: 1169048.429
A180: St. Fergus (Peterhead) | B180: =VLOOKUP(A180,'Locations & Types'!$E:$F,2,FALSE) -> DC | C180: 15860300.23
A181: St. Fergus (Shell Blackstart) | B181: =VLOOKUP(A181,'Locations & Types'!$E:$F,2,FALSE) -> DC | C181: 10703.49418
A182: St. Neots (Little Barford) | B182: =VLOOKUP(A182,'Locations & Types'!$E:$F,2,FALSE) -> DC | C182: 15114886.96
A183: Stallingborough | B183: =VLOOKUP(A183,'Locations & Types'!$E:$F,2,FALSE) -> DC | C183: 20106914.52
A184: Stanford Le Hope (Coryton) | B184: =VLOOKUP(A184,'Locations & Types'!$E:$F,2,FALSE) -> DC | C184: 9974054.119
A185: Staythorpe | B185: =VLOOKUP(A185,'Locations & Types'!$E:$F,2,FALSE) -> DC | C185: 82224657.53
A186: Stranraer | B186: =VLOOKUP(A186,'Locations & Types'!$E:$F,2,FALSE) -> GDN (SC) | C186: 689253.5006
A187: Stratford-upon-Avon | B187: =VLOOKUP(A187,'Locations & Types'!$E:$F,2,FALSE) -> GDN (WM) | C187: 4000608.449
A188: Stublach (Cheshire) | B188: =VLOOKUP(A188,'Locations & Types'!$E:$F,2,FALSE) -> STORAGE SITE | C188: 24527159.13
A189: Sutton Bridge | B189: =VLOOKUP(A189,'Locations & Types'!$E:$F,2,FALSE) -> GDN (EM) | C189: 1103199.538
A190: Sutton Bridge Power Station | B190: =VLOOKUP(A190,'Locations & Types'!$E:$F,2,FALSE) -> DC | C190: 9239477.542
A191: Tatsfield | B191: =VLOOKUP(A191,'Locations & Types'!$E:$F,2,FALSE) -> GDN (SE) | C191: 179381553.3
A192: Teesside (BASF, aka BASF Teesside) | B192: =VLOOKUP(A192,'Locations & Types'!$E:$F,2,FALSE) -> DC | C192: 5072514.989
A193: Teesside Hydrogen | B193: =VLOOKUP(A193,'Locations & Types'!$E:$F,2,FALSE) -> DC | C193: 11519875.07
A194: Terra Nitrogen (aka ICI, Terra Severnside) | B194: =VLOOKUP(A194,'Locations & Types'!$E:$F,2,FALSE) -> DC | C194: 0
A195: Thornton Curtis (DN) | B195: =VLOOKUP(A195,'Locations & Types'!$E:$F,2,FALSE) -> GDN (EM) | C195: 120811036.7
A196: Thornton Curtis (Humber Refinery, aka Immingham) | B196: =VLOOKUP(A196,'Locations & Types'!$E:$F,2,FALSE) -> DC | C196: 37228632.64
A197: Thornton Curtis (Killingholme) | B197: =VLOOKUP(A197,'Locations & Types'!$E:$F,2,FALSE) -> DC | C197: 12149191.59
A198: Thrintoft | B198: =VLOOKUP(A198,'Locations & Types'!$E:$F,2,FALSE) -> GDN (NO) | C198: 3898243.327
A199: Tilbury Power Station | B199: =VLOOKUP(A199,'Locations & Types'!$E:$F,2,FALSE) -> DC | C199: 0
A200: Tonna (Baglan Bay) | B200: =VLOOKUP(A200,'Locations & Types'!$E:$F,2,FALSE) -> DC | C200: 5998477.857
... 32 more rows

Sheet 24-25 FCC - Exit
A1: Exit Point | B1: Exit Point Type | C1: Forecasted Contracted Capacity
C2: (kWh/d)
A3: Aberdeen | B3: =VLOOKUP(A3,'Locations & Types'!$E:$F,2,FALSE) -> GDN (SC) | C3: 20151267.89
A4: Abson (Seabank Power Station phase I) | B4: =VLOOKUP(A4,'Locations & Types'!$E:$F,2,FALSE) -> DC | C4: 11719324.81
A5: Alrewas (EM) | B5: =VLOOKUP(A5,'Locations & Types'!$E:$F,2,FALSE) -> GDN (EM) | C5: 66774879.29
A6: Alrewas (WM) | B6: =VLOOKUP(A6,'Locations & Types'!$E:$F,2,FALSE) -> GDN (WM) | C6: 78034322.75
A7: Apache (Sage Black Start) | B7: =VLOOKUP(A7,'Locations & Types'!$E:$F,2,FALSE) -> DC | C7: 1178.648811
A8: Armadale | B8: =VLOOKUP(A8,'Locations & Types'!$E:$F,2,FALSE) -> GDN (SC) | C8: 7637551.334
A9: Aspley | B9: =VLOOKUP(A9,'Locations & Types'!$E:$F,2,FALSE) -> GDN (WM) | C9: 58475716.49
A10: Asselby | B10: =VLOOKUP(A10,'Locations & Types'!$E:$F,2,FALSE) -> GDN (NE) | C10: 3189349.952
A11: Audley (NW) | B11: =VLOOKUP(A11,'Locations & Types'!$E:$F,2,FALSE) -> GDN (NW) | C11: 8055881.188
A12: Audley (WM) | B12: =VLOOKUP(A12,'Locations & Types'!$E:$F,2,FALSE) -> GDN (WM) | C12: 14616071.04
A13: Austrey | B13: =VLOOKUP(A13,'Locations & Types'!$E:$F,2,FALSE) -> GDN (WM) | C13: 64184283.1
A14: Avonmouth Max Refill | B14: =VLOOKUP(A14,'Locations & Types'!$E:$F,2,FALSE) -> STORAGE SITE | C14: 0
A15: Aylesbeare | B15: =VLOOKUP(A15,'Locations & Types'!$E:$F,2,FALSE) -> GDN (SW) | C15: 17891055.59
A16: Bacton | B16: =VLOOKUP(A16,'Locations & Types'!$E:$F,2,FALSE) -> GDN (EA) | C16: 2872150.464
A17: Bacton (Baird) | B17: =VLOOKUP(A17,'Locations & Types'!$E:$F,2,FALSE) -> STORAGE SITE | C17: 0
A18: Bacton (BBL) | B18: =VLOOKUP(A18,'Locations & Types'!$E:$F,2,FALSE) -> INTERCONNECTOR | C18: 44816654.4
A19: Bacton (Great Yarmouth) | B19: =VLOOKUP(A19,'Locations & Types'!$E:$F,2,FALSE) -> DC | C19: 6521627.189
A20: Bacton (IUK) | B20: =VLOOKUP(A20,'Locations & Types'!$E:$F,2,FALSE) -> INTERCONNECTOR | C20: 211260347.4
A21: Baldersby | B21: =VLOOKUP(A21,'Locations & Types'!$E:$F,2,FALSE) -> GDN (NE) | C21: 1001967.154
A22: Balgray | B22: =VLOOKUP(A22,'Locations & Types'!$E:$F,2,FALSE) -> GDN (SC) | C22: 13929360.64
A23: Barking (Horndon) | B23: =VLOOKUP(A23,'Locations & Types'!$E:$F,2,FALSE) -> DC | C23: 0
A24: Barrow (Bains) | B24: =VLOOKUP(A24,'Locations & Types'!$E:$F,2,FALSE) -> STORAGE SITE | C24: 0
A25: Barrow (Black Start) | B25: =VLOOKUP(A25,'Locations & Types'!$E:$F,2,FALSE) -> DC | C25: 11272.60405
A26: Barrow (Gateway) | B26: =VLOOKUP(A26,'Locations & Types'!$E:$F,2,FALSE) -> STORAGE SITE | C26: 0
A27: Barton Stacey Max Refill (Humbly Grove) | B27: =VLOOKUP(A27,'Locations & Types'!$E:$F,2,FALSE) -> STORAGE SITE | C27: 8958267.465
A28: Bathgate | B28: =VLOOKUP(A28,'Locations & Types'!$E:$F,2,FALSE) -> GDN (SC) | C28: 19632029.32
A29: Billingham ICI (Terra Billingham) | B29: =VLOOKUP(A29,'Locations & Types'!$E:$F,2,FALSE) -> DC | C29: 17305651.68
A30: Bishop Auckland | B30: =VLOOKUP(A30,'Locations & Types'!$E:$F,2,FALSE) -> GDN (NO) | C30: 48573411.43
A31: Bishop Auckland (test facility) | B31: =VLOOKUP(A31,'Locations & Types'!$E:$F,2,FALSE) -> DC | C31: 1249514.098
A32: Blaby | B32: =VLOOKUP(A32,'Locations & Types'!$E:$F,2,FALSE) -> GDN (EM) | C32: 10180638.49
A33: Blackness (BP Grangemouth) | B33: =VLOOKUP(A33,'Locations & Types'!$E:$F,2,FALSE) -> DC | C33: 23949806.64
A34: Blackrod | B34: =VLOOKUP(A34,'Locations & Types'!$E:$F,2,FALSE) -> GDN (NW) | C34: 131309111.2
A35: Blyborough | B35: =VLOOKUP(A35,'Locations & Types'!$E:$F,2,FALSE) -> GDN (EM) | C35: 65356235.11
A36: Blyborough (Brigg) | B36: =VLOOKUP(A36,'Locations & Types'!$E:$F,2,FALSE) -> DC | C36: 193914.6504
A37: Blyborough (Cottam) | B37: =VLOOKUP(A37,'Locations & Types'!$E:$F,2,FALSE) -> DC | C37: 8284671.26
A38: Braishfield A | B38: =VLOOKUP(A38,'Locations & Types'!$E:$F,2,FALSE) -> GDN (SO) | C38: 79126266.88
A39: Braishfield B | B39: =VLOOKUP(A39,'Locations & Types'!$E:$F,2,FALSE) -> GDN (SO) | C39: 51636507.37
A40: Brine Field (Teesside) Power Station | B40: =VLOOKUP(A40,'Locations & Types'!$E:$F,2,FALSE) -> DC | C40: 46270.97791
A41: Brisley | B41: =VLOOKUP(A41,'Locations & Types'!$E:$F,2,FALSE) -> GDN (EA) | C41: 1991770.957
A42: Broxburn | B42: =VLOOKUP(A42,'Locations & Types'!$E:$F,2,FALSE) -> GDN (SC) | C42: 52382353.79
A43: Burley Bank | B43: =VLOOKUP(A43,'Locations & Types'!$E:$F,2,FALSE) -> GDN (NE) | C43: 12333493.5
A44: Burnhervie | B44: =VLOOKUP(A44,'Locations & Types'!$E:$F,2,FALSE) -> GDN (SC) | C44: 19206147.75
A45: Burton Point (Connahs Quay) | B45: =VLOOKUP(A45,'Locations & Types'!$E:$F,2,FALSE) -> DC | C45: 9705765.626
A46: Caldecott | B46: =VLOOKUP(A46,'Locations & Types'!$E:$F,2,FALSE) -> GDN (EM) | C46: 9262755.191
A47: Caldecott (Corby Power Station) | B47: =VLOOKUP(A47,'Locations & Types'!$E:$F,2,FALSE) -> DC | C47: 171188.6004
A48: Cambridge | B48: =VLOOKUP(A48,'Locations & Types'!$E:$F,2,FALSE) -> GDN (EA) | C48: 0
A49: Careston | B49: =VLOOKUP(A49,'Locations & Types'!$E:$F,2,FALSE) -> GDN (SC) | C49: 3589343.217
A50: Carrington (Partington) Power Station | B50: =VLOOKUP(A50,'Locations & Types'!$E:$F,2,FALSE) -> DC | C50: 12004794.1
A51: Caythorpe | B51: =VLOOKUP(A51,'Locations & Types'!$E:$F,2,FALSE) -> STORAGE SITE | C51: 0
A52: Centrax Industrial | B52: =VLOOKUP(A52,'Locations & Types'!$E:$F,2,FALSE) -> DC | C52: 28339.39732
A53: Cirencester | B53: =VLOOKUP(A53,'Locations & Types'!$E:$F,2,FALSE) -> GDN (SW) | C53: 7830020.779
A54: Cockenzie Power Station | B54: =VLOOKUP(A54,'Locations & Types'!$E:$F,2,FALSE) -> DC | C54: 0
A55: Coffinswell | B55: =VLOOKUP(A55,'Locations & Types'!$E:$F,2,FALSE) -> GDN (SW) | C55: 4778520.294
A56: Coldstream | B56: =VLOOKUP(A56,'Locations & Types'!$E:$F,2,FALSE) -> GDN (NO) | C56: 2488698.307
A57: Corbridge | B57: =VLOOKUP(A57,'Locations & Types'!$E:$F,2,FALSE) -> GDN (NO) | C57: 137887.3776
A58: Coryton 2 (Thames Haven) Power Station | B58: =VLOOKUP(A58,'Locations & Types'!$E:$F,2,FALSE) -> DC | C58: 0
A59: Cowpen Bewley | B59: =VLOOKUP(A59,'Locations & Types'!$E:$F,2,FALSE) -> GDN (NO) | C59: 34944767.72
A60: Crawley Down | B60: =VLOOKUP(A60,'Locations & Types'!$E:$F,2,FALSE) -> GDN (SO) | C60: 0
A61: Deborah Storage (Bacton) | B61: =VLOOKUP(A61,'Locations & Types'!$E:$F,2,FALSE) -> STORAGE SITE | C61: 0
A62: Deeside | B62: =VLOOKUP(A62,'Locations & Types'!$E:$F,2,FALSE) -> DC | C62: 1503373.971
A63: Didcot | B63: =VLOOKUP(A63,'Locations & Types'!$E:$F,2,FALSE) -> DC | C63: 22018688.13
A64: Dowlais | B64: =VLOOKUP(A64,'Locations & Types'!$E:$F,2,FALSE) -> GDN (WS) | C64: 97035686.43
A65: Drakelow Power Station | B65: =VLOOKUP(A65,'Locations & Types'!$E:$F,2,FALSE) -> DC | C65: 0
A66: Drointon | B66: =VLOOKUP(A66,'Locations & Types'!$E:$F,2,FALSE) -> GDN (EM) | C66: 53114557.32
A67: Drum | B67: =VLOOKUP(A67,'Locations & Types'!$E:$F,2,FALSE) -> GDN (SC) | C67: 62352342.19
A68: Dyffryn Clydach | B68: =VLOOKUP(A68,'Locations & Types'!$E:$F,2,FALSE) -> GDN (WS) | C68: 36862721.88
A69: Dynevor Max Refill | B69: =VLOOKUP(A69,'Locations & Types'!$E:$F,2,FALSE) -> STORAGE SITE | C69: 23931
A70: Eastoft (Keadby Blackstart) | B70: =VLOOKUP(A70,'Locations & Types'!$E:$F,2,FALSE) -> DC | C70: 267.4598103
A71: Eastoft (Keadby) | B71: =VLOOKUP(A71,'Locations & Types'!$E:$F,2,FALSE) -> DC | C71: 10322153.67
A72: Easton Grey | B72: =VLOOKUP(A72,'Locations & Types'!$E:$F,2,FALSE) -> GDN (SW) | C72: 26126258.81
A73: Ecclestone | B73: =VLOOKUP(A73,'Locations & Types'!$E:$F,2,FALSE) -> GDN (NW) | C73: 16408174.98
A74: Elton | B74: =VLOOKUP(A74,'Locations & Types'!$E:$F,2,FALSE) -> GDN (NO) | C74: 48919156.3
A75: Enron Billingham | B75: =VLOOKUP(A75,'Locations & Types'!$E:$F,2,FALSE) -> DC | C75: 0
A76: Epping Green (Enfield Energy, aka Brimsdown) | B76: =VLOOKUP(A76,'Locations & Types'!$E:$F,2,FALSE) -> DC | C76: 8009596.648
A77: Evesham | B77: =VLOOKUP(A77,'Locations & Types'!$E:$F,2,FALSE) -> GDN (SW) | C77: 5721254.106
A78: Farningham | B78: =VLOOKUP(A78,'Locations & Types'!$E:$F,2,FALSE) -> GDN (SE) | C78: 81216401.47
A79: Farningham B | B79: =VLOOKUP(A79,'Locations & Types'!$E:$F,2,FALSE) -> GDN (SE) | C79: 75357053.28
A80: Ferny Knoll (AM Paper) | B80: =VLOOKUP(A80,'Locations & Types'!$E:$F,2,FALSE) -> DC | C80: 0
A81: Fiddington | B81: =VLOOKUP(A81,'Locations & Types'!$E:$F,2,FALSE) -> GDN (SW) | C81: 18975741.4
A82: Ganstead | B82: =VLOOKUP(A82,'Locations & Types'!$E:$F,2,FALSE) -> GDN (NE) | C82: 14772221.41
A83: Garton Max Refill (Aldbrough) | B83: =VLOOKUP(A83,'Locations & Types'!$E:$F,2,FALSE) -> STORAGE SITE | C83: 105510000
A84: Gilwern | B84: =VLOOKUP(A84,'Locations & Types'!$E:$F,2,FALSE) -> GDN (WS) | C84: 74761107.42
A85: Glenmavis | B85: =VLOOKUP(A85,'Locations & Types'!$E:$F,2,FALSE) -> GDN (SC) | C85: 119442085.5
A86: Glenmavis Max Refill | B86: =VLOOKUP(A86,'Locations & Types'!$E:$F,2,FALSE) -> STORAGE SITE | C86: 128720
A87: Goole (Guardian Glass) | B87: =VLOOKUP(A87,'Locations & Types'!$E:$F,2,FALSE) -> DC | C87: 1532862.502
A88: Gosberton | B88: =VLOOKUP(A88,'Locations & Types'!$E:$F,2,FALSE) -> GDN (EM) | C88: 12712105.73
A89: Gowkhall (Longannet) | B89: =VLOOKUP(A89,'Locations & Types'!$E:$F,2,FALSE) -> DC | C89: 191977.1207
A90: Grain Power Station | B90: =VLOOKUP(A90,'Locations & Types'!$E:$F,2,FALSE) -> DC | C90: 23143449.3
A91: Great Wilbraham | B91: =VLOOKUP(A91,'Locations & Types'!$E:$F,2,FALSE) -> GDN (EA) | C91: 22696774.89
A92: Guyzance | B92: =VLOOKUP(A92,'Locations & Types'!$E:$F,2,FALSE) -> GDN (NO) | C92: 1578505.864
A93: Hardwick | B93: =VLOOKUP(A93,'Locations & Types'!$E:$F,2,FALSE) -> GDN (SO) | C93: 93555678.6
A94: Harwarden (Shotton, aka Shotton Paper) | B94: =VLOOKUP(A94,'Locations & Types'!$E:$F,2,FALSE) -> DC | C94: 0
A95: Hatfield Moor Max Refill | B95: =VLOOKUP(A95,'Locations & Types'!$E:$F,2,FALSE) -> STORAGE SITE | C95: 30210000
A96: Hatfield Power Station | B96: =VLOOKUP(A96,'Locations & Types'!$E:$F,2,FALSE) -> DC | C96: 0
A97: Hill Top Farm (Hole House Farm) | B97: =VLOOKUP(A97,'Locations & Types'!$E:$F,2,FALSE) -> STORAGE SITE | C97: 5382569.585
A98: Hole House Max Refill | B98: =VLOOKUP(A98,'Locations & Types'!$E:$F,2,FALSE) -> STORAGE SITE | C98: 2346671.036
A99: Holford | B99: =VLOOKUP(A99,'Locations & Types'!$E:$F,2,FALSE) -> STORAGE SITE | C99: 35603909.78
A100: Hollingsgreen (Hays Chemicals) | B100: =VLOOKUP(A100,'Locations & Types'!$E:$F,2,FALSE) -> DC | C100: 0
A101: Holmes Chapel | B101: =VLOOKUP(A101,'Locations & Types'!$E:$F,2,FALSE) -> GDN (NW) | C101: 21728150.76
A102: Horndon | B102: =VLOOKUP(A102,'Locations & Types'!$E:$F,2,FALSE) -> GDN (NT) | C102: 35149622.52
A103: Hornsea Max Refill | B103: =VLOOKUP(A103,'Locations & Types'!$E:$F,2,FALSE) -> STORAGE SITE | C103: 9872159.694
A104: Humbleton | B104: =VLOOKUP(A104,'Locations & Types'!$E:$F,2,FALSE) -> GDN (NO) | C104: 129697.7867
A105: Hume | B105: =VLOOKUP(A105,'Locations & Types'!$E:$F,2,FALSE) -> GDN (SC) | C105: 1568554.347
A106: Ilchester | B106: =VLOOKUP(A106,'Locations & Types'!$E:$F,2,FALSE) -> GDN (SW) | C106: 28940342.34
A107: Ipsden | B107: =VLOOKUP(A107,'Locations & Types'!$E:$F,2,FALSE) -> GDN (SO) | C107: 7377447.789
A108: Ipsden 2 | B108: =VLOOKUP(A108,'Locations & Types'!$E:$F,2,FALSE) -> GDN (SO) | C108: 10599819.88
A109: Keld | B109: =VLOOKUP(A109,'Locations & Types'!$E:$F,2,FALSE) -> GDN (NO) | C109: 1009986.648
A110: Kenn | B110: =VLOOKUP(A110,'Locations & Types'!$E:$F,2,FALSE) -> GDN (SW) | C110: 13907199.57
A111: Kinknockie | B111: =VLOOKUP(A111,'Locations & Types'!$E:$F,2,FALSE) -> GDN (SC) | C111: 2857386.886
A112: Kirkstead | B112: =VLOOKUP(A112,'Locations & Types'!$E:$F,2,FALSE) -> GDN (EM) | C112: 885952.1963
A113: Langage Power Station | B113: =VLOOKUP(A113,'Locations & Types'!$E:$F,2,FALSE) -> DC | C113: 9521125.673
A114: Langholm | B114: =VLOOKUP(A114,'Locations & Types'!$E:$F,2,FALSE) -> GDN (SC) | C114: 144638.1276
A115: Lauderhill | B115: =VLOOKUP(A115,'Locations & Types'!$E:$F,2,FALSE) -> GDN (SC) | C115: 0
A116: Leamington | B116: =VLOOKUP(A116,'Locations & Types'!$E:$F,2,FALSE) -> GDN (WM) | C116: 3914244.203
A117: Little Burdon | B117: =VLOOKUP(A117,'Locations & Types'!$E:$F,2,FALSE) -> GDN (NO) | C117: 12307816
A118: Littleton Drew | B118: =VLOOKUP(A118,'Locations & Types'!$E:$F,2,FALSE) -> GDN (SW) | C118: 2687842.752
A119: Lockerbie | B119: =VLOOKUP(A119,'Locations & Types'!$E:$F,2,FALSE) -> GDN (SC) | C119: 6444502.594
A120: Lower Quinton | B120: =VLOOKUP(A120,'Locations & Types'!$E:$F,2,FALSE) -> GDN (WM) | C120: 30818230.57
A121: Lupton | B121: =VLOOKUP(A121,'Locations & Types'!$E:$F,2,FALSE) -> GDN (NW) | C121: 19861114.87
A122: Luxborough Lane | B122: =VLOOKUP(A122,'Locations & Types'!$E:$F,2,FALSE) -> GDN (NT) | C122: 80358746.34
A123: Lyneham (Choakford) | B123: =VLOOKUP(A123,'Locations & Types'!$E:$F,2,FALSE) -> GDN (SW) | C123: 41066708.42
A124: Maelor | B124: =VLOOKUP(A124,'Locations & Types'!$E:$F,2,FALSE) -> GDN (WN) | C124: 42869441.03
A125: Malpas | B125: =VLOOKUP(A125,'Locations & Types'!$E:$F,2,FALSE) -> GDN (NW) | C125: 686782.7306
A126: Mappowder | B126: =VLOOKUP(A126,'Locations & Types'!$E:$F,2,FALSE) -> GDN (SO) | C126: 33805816.82
A127: Marchwood Power Station | B127: =VLOOKUP(A127,'Locations & Types'!$E:$F,2,FALSE) -> DC | C127: 25206224.22
A128: Market Harborough | B128: =VLOOKUP(A128,'Locations & Types'!$E:$F,2,FALSE) -> GDN (EM) | C128: 7187033.296
A129: Matching Green | B129: =VLOOKUP(A129,'Locations & Types'!$E:$F,2,FALSE) -> GDN (EA) | C129: 48379966.3
A130: Medway (aka Isle of Grain Power Station, NOT Grain Power) | B130: =VLOOKUP(A130,'Locations & Types'!$E:$F,2,FALSE) -> DC | C130: 8822136.092
A131: Melkinthorpe | B131: =VLOOKUP(A131,'Locations & Types'!$E:$F,2,FALSE) -> GDN (NO) | C131: 916678.5988
A132: Mickle Trafford | B132: =VLOOKUP(A132,'Locations & Types'!$E:$F,2,FALSE) -> GDN (NW) | C132: 29275941.29
A133: Middle Stoke (Damhead Creek, aka Kingsnorth Power Station) | B133: =VLOOKUP(A133,'Locations & Types'!$E:$F,2,FALSE) -> DC | C133: 13989827.97
A134: Milwich | B134: =VLOOKUP(A134,'Locations & Types'!$E:$F,2,FALSE) -> GDN (WM) | C134: 20407159.09
A135: Moffat (Irish Interconnector) | B135: =VLOOKUP(A135,'Locations & Types'!$E:$F,2,FALSE) -> INTERCONNECTOR | C135: 144806475.8
A136: Netherhowcleugh | B136: =VLOOKUP(A136,'Locations & Types'!$E:$F,2,FALSE) -> GDN (SC) | C136: 299961.219
A137: Pannal | B137: =VLOOKUP(A137,'Locations & Types'!$E:$F,2,FALSE) -> GDN (NE) | C137: 106880776.2
A138: Partington | B138: =VLOOKUP(A138,'Locations & Types'!$E:$F,2,FALSE) -> GDN (NW) | C138: 40085313.86
A139: Partington Max Refill | B139: =VLOOKUP(A139,'Locations & Types'!$E:$F,2,FALSE) -> STORAGE SITE | C139: 0
A140: Paull | B140: =VLOOKUP(A140,'Locations & Types'!$E:$F,2,FALSE) -> GDN (NE) | C140: 41673165.91
A141: Pembroke Power Station | B141: =VLOOKUP(A141,'Locations & Types'!$E:$F,2,FALSE) -> DC | C141: 47012914.34
A142: Peterborough (Peterborough Power Station) | B142: =VLOOKUP(A142,'Locations & Types'!$E:$F,2,FALSE) -> DC | C142: 194475.2298
A143: Peterborough Eye (Tee) | B143: =VLOOKUP(A143,'Locations & Types'!$E:$F,2,FALSE) -> GDN (EA) | C143: 20502342.29
A144: Peters Green | B144: =VLOOKUP(A144,'Locations & Types'!$E:$F,2,FALSE) -> GDN (NT) | C144: 118154838.4
A145: Peters Green South Mimms | B145: =VLOOKUP(A145,'Locations & Types'!$E:$F,2,FALSE) -> GDN (NT) | C145: 174943656.5
A146: Phillips Petroleum, Teesside | B146: =VLOOKUP(A146,'Locations & Types'!$E:$F,2,FALSE) -> DC | C146: 159015.4881
A147: Pickering | B147: =VLOOKUP(A147,'Locations & Types'!$E:$F,2,FALSE) -> GDN (NE) | C147: 7410607.558
A148: Pickmere (Winnington Power, aka Brunner Mond) | B148: =VLOOKUP(A148,'Locations & Types'!$E:$F,2,FALSE) -> DC | C148: 8000000
A149: Pitcairngreen | B149: =VLOOKUP(A149,'Locations & Types'!$E:$F,2,FALSE) -> GDN (SC) | C149: 1784047.175
A150: Pucklechurch | B150: =VLOOKUP(A150,'Locations & Types'!$E:$F,2,FALSE) -> GDN (SW) | C150: 23593772.77
A151: Rawcliffe | B151: =VLOOKUP(A151,'Locations & Types'!$E:$F,2,FALSE) -> GDN (NE) | C151: 4518246.284
A152: Glasgoforest | B152: =VLOOKUP(A152,'Locations & Types'!$E:$F,2,FALSE) -> DC | C152: 0
A153: Roosecote Power Station (Barrow) | B153: =VLOOKUP(A153,'Locations & Types'!$E:$F,2,FALSE) -> DC | C153: 0
A154: Rosehill (Saltend Power Station) | B154: =VLOOKUP(A154,'Locations & Types'!$E:$F,2,FALSE) -> DC | C154: 25313111.68
A155: Ross (SW) | B155: =VLOOKUP(A155,'Locations & Types'!$E:$F,2,FALSE) -> GDN (SW) | C155: 3882790.814
A156: Ross (WM) | B156: =VLOOKUP(A156,'Locations & Types'!$E:$F,2,FALSE) -> GDN (WM) | C156: 10701869.92
A157: Roudham Heath | B157: =VLOOKUP(A157,'Locations & Types'!$E:$F,2,FALSE) -> GDN (EA) | C157: 19295327.22
A158: Royston | B158: =VLOOKUP(A158,'Locations & Types'!$E:$F,2,FALSE) -> GDN (EA) | C158: 2269704.234
A159: Rugby | B159: =VLOOKUP(A159,'Locations & Types'!$E:$F,2,FALSE) -> GDN (WM) | C159: 65023927.85
A160: Ryehouse | B160: =VLOOKUP(A160,'Locations & Types'!$E:$F,2,FALSE) -> DC | C160: 3233409.435
A161: Saddle Bow (Kings Lynn) | B161: =VLOOKUP(A161,'Locations & Types'!$E:$F,2,FALSE) -> DC | C161: 1147313.109
A162: Saltend BPHP (BP Saltend HP) | B162: =VLOOKUP(A162,'Locations & Types'!$E:$F,2,FALSE) -> DC | C162: 7920341.503
A163: Saltfleetby Storage (Theddlethorpe) | B163: =VLOOKUP(A163,'Locations & Types'!$E:$F,2,FALSE) -> STORAGE SITE | C163: 0
A164: Saltwick Pressure Controlled | B164: =VLOOKUP(A164,'Locations & Types'!$E:$F,2,FALSE) -> GDN (NO) | C164: 34511547.54
A165: Saltwick Volumetric Controlled | B165: =VLOOKUP(A165,'Locations & Types'!$E:$F,2,FALSE) -> GDN (NO) | C165: 0
A166: Samlesbury | B166: =VLOOKUP(A166,'Locations & Types'!$E:$F,2,FALSE) -> GDN (NW) | C166: 100086100.1
A167: Sandy Lane (Blackburn CHP, aka Sappi Paper Mill) | B167: =VLOOKUP(A167,'Locations & Types'!$E:$F,2,FALSE) -> DC | C167: 839187.6662
A168: Seabank (DN) | B168: =VLOOKUP(A168,'Locations & Types'!$E:$F,2,FALSE) -> GDN (SW) | C168: 54377485.75
A169: Seabank (Seabank Power Station phase II) | B169: =VLOOKUP(A169,'Locations & Types'!$E:$F,2,FALSE) -> DC | C169: 3416861.331
A170: Seal Sands TGPP | B170: =VLOOKUP(A170,'Locations & Types'!$E:$F,2,FALSE) -> DC | C170: 0
A171: Sellafield Power Station | B171: =VLOOKUP(A171,'Locations & Types'!$E:$F,2,FALSE) -> DC | C171: 3504936.208
A172: Shellstar (aka Kemira, not Kemira CHP) | B172: =VLOOKUP(A172,'Locations & Types'!$E:$F,2,FALSE) -> DC | C172: 11732444
A173: Shorne | B173: =VLOOKUP(A173,'Locations & Types'!$E:$F,2,FALSE) -> GDN (SE) | C173: 18588567.7
A174: Shotwick (Bridgewater Paper) | B174: =VLOOKUP(A174,'Locations & Types'!$E:$F,2,FALSE) -> DC | C174: 188926.4726
A175: Shustoke | B175: =VLOOKUP(A175,'Locations & Types'!$E:$F,2,FALSE) -> GDN (WM) | C175: 107689.562
A176: Silk Willoughby | B176: =VLOOKUP(A176,'Locations & Types'!$E:$F,2,FALSE) -> GDN (EM) | C176: 2428317.579
A177: Soutra | B177: =VLOOKUP(A177,'Locations & Types'!$E:$F,2,FALSE) -> GDN (SC) | C177: 9989328.233
A178: Spalding 2 (South Holland) Power Station | B178: =VLOOKUP(A178,'Locations & Types'!$E:$F,2,FALSE) -> DC | C178: 51870.46233
A179: St Fergus | B179: =VLOOKUP(A179,'Locations & Types'!$E:$F,2,FALSE) -> GDN (SC) | C179: 1172654.744
A180: St. Fergus (Peterhead) | B180: =VLOOKUP(A180,'Locations & Types'!$E:$F,2,FALSE) -> DC | C180: 12951593.89
A181: St. Fergus (Shell Blackstart) | B181: =VLOOKUP(A181,'Locations & Types'!$E:$F,2,FALSE) -> DC | C181: 10668.63643
A182: St. Neots (Little Barford) | B182: =VLOOKUP(A182,'Locations & Types'!$E:$F,2,FALSE) -> DC | C182: 12342885.99
A183: Stallingborough | B183: =VLOOKUP(A183,'Locations & Types'!$E:$F,2,FALSE) -> DC | C183: 16419398.58
A184: Stanford Le Hope (Coryton) | B184: =VLOOKUP(A184,'Locations & Types'!$E:$F,2,FALSE) -> DC | C184: 8144858.322
A185: Staythorpe | B185: =VLOOKUP(A185,'Locations & Types'!$E:$F,2,FALSE) -> DC | C185: 82000000
A186: Stranraer | B186: =VLOOKUP(A186,'Locations & Types'!$E:$F,2,FALSE) -> GDN (SC) | C186: 691379.73
A187: Stratford-upon-Avon | B187: =VLOOKUP(A187,'Locations & Types'!$E:$F,2,FALSE) -> GDN (WM) | C187: 4022248.218
A188: Stublach (Cheshire) | B188: =VLOOKUP(A188,'Locations & Types'!$E:$F,2,FALSE) -> STORAGE SITE | C188: 24527159.13
A189: Sutton Bridge | B189: =VLOOKUP(A189,'Locations & Types'!$E:$F,2,FALSE) -> GDN (EM) | C189: 1113517.41
A190: Sutton Bridge Power Station | B190: =VLOOKUP(A190,'Locations & Types'!$E:$F,2,FALSE) -> DC | C190: 7544999.721
A191: Tatsfield | B191: =VLOOKUP(A191,'Locations & Types'!$E:$F,2,FALSE) -> GDN (SE) | C191: 180741701.7
A192: Teesside (BASF, aka BASF Teesside) | B192: =VLOOKUP(A192,'Locations & Types'!$E:$F,2,FALSE) -> DC | C192: 5055995.482
A193: Teesside Hydrogen | B193: =VLOOKUP(A193,'Locations & Types'!$E:$F,2,FALSE) -> DC | C193: 11488400
A194: Terra Nitrogen (aka ICI, Terra Severnside) | B194: =VLOOKUP(A194,'Locations & Types'!$E:$F,2,FALSE) -> DC | C194: 0
A195: Thornton Curtis (DN) | B195: =VLOOKUP(A195,'Locations & Types'!$E:$F,2,FALSE) -> GDN (EM) | C195: 121940943.7
A196: Thornton Curtis (Humber Refinery, aka Immingham) | B196: =VLOOKUP(A196,'Locations & Types'!$E:$F,2,FALSE) -> DC | C196: 30401072.09
A197: Thornton Curtis (Killingholme) | B197: =VLOOKUP(A197,'Locations & Types'!$E:$F,2,FALSE) -> DC | C197: 9921085.555
A198: Thrintoft | B198: =VLOOKUP(A198,'Locations & Types'!$E:$F,2,FALSE) -> GDN (NO) | C198: 3922806.178
A199: Tilbury Power Station | B199: =VLOOKUP(A199,'Locations & Types'!$E:$F,2,FALSE) -> DC | C199: 0
A200: Tonna (Baglan Bay) | B200: =VLOOKUP(A200,'Locations & Types'!$E:$F,2,FALSE) -> DC | C200: 4898384.519
... 32 more rows

Sheet Distance Matrix (hidden)
C1: Non-IP | D1: IP | E1: Non-IP | F1: Non-IP | G1: Non-IP | H1: Non-IP | I1: Non-IP | J1: Non-IP | K1: Non-IP | L1: Non-IP | M1: Non-IP | N1: Non-IP | O1: Non-IP | P1: Non-IP | Q1: Non-IP | R1: Non-IP | S1: Non-IP | T1: Non-IP | U1: Non-IP | V1: Non-IP | W1: Non-IP | X1: Non-IP | Y1: Non-IP | Z1: Non-IP | AA1: Non-IP | AB1: Non-IP | AC1: Non-IP
B2: DISTANCES (KM) | C2: Avonmouth | D2: Bacton IP | E2: Bacton UKCS | F2: Burton Point | G2: Barrow | H2: Barton Stacey | I2: Canonbie | J2: Cheshire | K2: Caythorpe | L2: Dynevor Arms | M2: Easington | N2: Fleetwood | O2: Glenmavis | P2: Garton | Q2: Hole House Farm | R2: Hatfield Moor (onshore) | S2: Hornsea | T2: Hatfield Moor (storage) | U2: Isle of Grain | V2: Milford Haven | W2: Partington | X2: Moffat (Irish Interconnector) | Y2: Murrow | Z2: St Fergus | AA2: Teesside | AB2: Theddlethorpe | AC2: Wytch Farm | AD2: Average
A3: Non-IP | B3: Aberdeen | C3: 891.91 | D3: 761.13 | E3: 761.13 | F3: 642.74 | G3: 491.71 | H3: 888.26 | I3: 337.77 | J3: 583.23 | K3: 497.14 | L3: 910.95 | M3: 558.13 | N3: 484.7 | O3: 223.72 | P3: 539.45 | Q3: 592.67 | R3: 536.87 | S3: 513.68 | T3: 536.87 | U3: 883.09 | V3: 1062.15 | W3: 565.54 | X3: 291.53 | Y3: 683.45 | Z3: 63.9 | AA3: 407.03 | AB3: 621.87 | AC3: 957.2 | AD3: =AVERAGE(C3:AC3) -> 603.2525926
A4: Non-IP | B4: Abson (Seabank Power Station phase I) | C4: 25.62 | D4: 341.05 | E4: 341.05 | F4: 326.26 | G4: 477.08 | H4: 183.26 | I4: 528.72 | J4: 286.71 | K4: 396.82 | L4: 201.7 | M4: 377.32 | N4: 387.76 | O4: 679.37 | P4: 370.39 | Q4: 277.27 | R4: 348.83 | S4: 387.06 | T4: 348.83 | U4: 428.55 | V4: 352.9 | W4: 307.81 | X4: 574.96 | Y4: 268.31 | Z4: 930.39 | AA4: 513.18 | AB4: 333.05 | AC4: 90.71 | AD4: =AVERAGE(C4:AC4) -> 373.517037
A5: Non-IP | B5: Alrewas (EM) | C5: 221.51 | D5: 241.82 | E5: 241.82 | F5: 130.17 | G5: 280.99 | H5: 334.49 | I5: 332.63 | J5: 90.62 | K5: 297.59 | L5: 240.55 | M5: 278.09 | N5: 191.67 | O5: 483.28 | P5: 271.16 | Q5: 81.18 | R5: 249.6 | S5: 287.83 | T5: 249.6 | U5: 329.32 | V5: 391.75 | W5: 111.72 | X5: 378.87 | Y5: 169.08 | Z5: 734.3 | AA5: 407.8 | AB5: 233.82 | AC5: 286.8 | AD5: 279.5577778
A6: Non-IP | B6: Alrewas (WM) | C6: 221.51 | D6: 241.82 | E6: 241.82 | F6: 130.17 | G6: 280.99 | H6: 334.49 | I6: 332.63 | J6: 90.62 | K6: 297.59 | L6: 240.55 | M6: 278.09 | N6: 191.67 | O6: 483.28 | P6: 271.16 | Q6: 81.18 | R6: 249.6 | S6: 287.83 | T6: 249.6 | U6: 329.32 | V6: 391.75 | W6: 111.72 | X6: 378.87 | Y6: 169.08 | Z6: 734.3 | AA6: 407.8 | AB6: 233.82 | AC6: 286.8 | AD6: 279.5577778
A7: Non-IP | B7: Apache (Sage Black Start) | C7: 955.81 | D7: 825.03 | E7: 825.03 | F7: 706.64 | G7: 555.61 | H7: 952.16 | I7: 401.67 | J7: 647.13 | K7: 561.04 | L7: 974.85 | M7: 622.03 | N7: 548.6 | O7: 287.62 | P7: 603.35 | Q7: 656.57 | R7: 600.77 | S7: 577.58 | T7: 600.77 | U7: 946.99 | V7: 1126.05 | W7: 629.44 | X7: 355.43 | Y7: 747.35 | Z7: 0 | AA7: 470.93 | AB7: 685.77 | AC7: 1021.1 | AD7: 662.4192593
A8: Non-IP | B8: Armadale | C8: 692.32 | D8: 632.6 | E8: 632.6 | F8: 443.15 | G8: 292.12 | H8: 759.73 | I8: 138.18 | J8: 383.64 | K8: 368.61 | L8: 711.36 | M8: 429.6 | N8: 285.11 | O8: 24.13 | P8: 410.92 | Q8: 393.08 | R8: 408.34 | S8: 385.15 | T8: 408.34 | U8: 754.56 | V8: 862.56 | W8: 365.95 | X8: 91.94 | Y8: 554.92 | Z8: 275.15 | AA8: 278.5 | AB8: 493.34 | AC8: 757.61 | AD8: 453.092963
A9: Non-IP | B9: Aspley | C9: 265.13 | D9: 285.44 | E9: 285.44 | F9: 86.55 | G9: 237.37 | H9: 378.11 | I9: 289.01 | J9: 47 | K9: 341.21 | L9: 284.17 | M9: 321.71 | N9: 148.05 | O9: 439.66 | P9: 314.78 | Q9: 37.56 | R9: 293.22 | S9: 331.45 | T9: 293.22 | U9: 372.94 | V9: 435.37 | W9: 68.1 | X9: 335.25 | Y9: 212.7 | Z9: 690.68 | AA9: 364.18 | AB9: 277.44 | AC9: 330.42 | AD9: 287.6355556
A10: Non-IP | B10: Asselby | C10: 401.64 | D10: 251.65 | E10: 251.65 | F10: 338.89 | G10: 217.86 | H10: 378.78 | I10: 242.77 | J10: 279.38 | K10: 81.18 | L10: 420.68 | M10: 84.51 | N10: 180.85 | O10: 393.42 | P10: 65.83 | Q10: 288.82 | R10: 27.39 | S10: 71.42 | T10: 27.39 | U10: 373.61 | V10: 571.88 | W10: 261.69 | X10: 289.01 | Y10: 173.97 | Z10: 573.38 | AA10: 136.96 | AB10: 112.39 | AC10: 466.93 | AD10: 257.9233333
A11: Non-IP | B11: Audley (NW) | C11: 288.91 | D11: 309.22 | E11: 309.22 | F11: 62.77 | G11: 213.59 | H11: 401.89 | I11: 265.23 | J11: 23.22 | K11: 364.99 | L11: 307.95 | M11: 345.49 | N11: 124.27 | O11: 415.88 | P11: 338.56 | Q11: 13.78 | R11: 317 | S11: 355.23 | T11: 317 | U11: 396.72 | V11: 459.15 | W11: 44.32 | X11: 311.47 | Y11: 236.48 | Z11: 666.9 | AA11: 340.4 | AB11: 301.22 | AC11: 354.2 | AD11: 292.0392593
A12: Non-IP | B12: Audley (WM) | C12: 288.91 | D12: 309.22 | E12: 309.22 | F12: 62.77 | G12: 213.59 | H12: 401.89 | I12: 265.23 | J12: 23.22 | K12: 364.99 | L12: 307.95 | M12: 345.49 | N12: 124.27 | O12: 415.88 | P12: 338.56 | Q12: 13.78 | R12: 317 | S12: 355.23 | T12: 317 | U12: 396.72 | V12: 459.15 | W12: 44.32 | X12: 311.47 | Y12: 236.48 | Z12: 666.9 | AA12: 340.4 | AB12: 301.22 | AC12: 354.2 | AD12: 292.0392593
A13: Non-IP | B13: Austrey | C13: 203.6 | D13: 232.43 | E13: 232.43 | F13: 148.08 | G13: 298.9 | H13: 325.1 | I13: 350.54 | J13: 108.53 | K13: 288.2 | L13: 222.64 | M13: 268.7 | N13: 209.58 | O13: 501.19 | P13: 261.77 | Q13: 99.09 | R13: 240.21 | S13: 278.44 | T13: 240.21 | U13: 319.93 | V13: 373.84 | W13: 129.63 | X13: 396.78 | Y13: 159.69 | Z13: 752.21 | AA13: 404.56 | AB13: 224.43 | AC13: 268.89 | AD13: 279.2444444
A14: Non-IP | B14: Avonmouth Max Refill | C14: 0 | D14: 366.47 | E14: 366.47 | F14: 351.68 | G14: 502.5 | H14: 208.88 | I14: 554.14 | J14: 312.13 | K14: 422.24 | L14: 227.12 | M14: 402.74 | N14: 413.18 | O14: 704.79 | P14: 395.81 | Q14: 302.69 | R14: 374.25 | S14: 412.48 | T14: 374.25 | U14: 453.97 | V14: 378.32 | W14: 333.23 | X14: 600.38 | Y14: 293.73 | Z14: 955.81 | AA14: 538.6 | AB14: 358.47 | AC14: 116.33 | AD14: 397.0614815
A15: Non-IP | B15: Aylesbeare | C15: 147.94 | D15: 463.37 | E15: 463.37 | F15: 448.58 | G15: 599.4 | H15: 184.84 | I15: 651.04 | J15: 409.03 | K15: 519.14 | L15: 324.02 | M15: 499.64 | N15: 510.08 | O15: 801.69 | P15: 492.71 | Q15: 399.59 | R15: 471.15 | S15: 509.38 | T15: 471.15 | U15: 504.28 | V15: 475.22 | W15: 430.13 | X15: 697.28 | Y15: 390.63 | Z15: 1052.71 | AA15: 635.5 | AB15: 455.37 | AC15: 92.29 | AD15: 485.1677778
A16: Non-IP | B16: Bacton | C16: 366.47 | D16: 0 | E16: 0 | F16: 371.99 | G16: 469.51 | H16: 333.81 | I16: 494.42 | J16: 332.44 | K16: 272.25 | L16: 385.51 | M16: 252.75 | N16: 432.5 | O16: 645.07 | P16: 245.82 | Q16: 323 | R16: 224.26 | S16: 262.49 | T16: 224.26 | U16: 216.9 | V16: 536.71 | W16: 353.54 | X16: 540.66 | Y16: 111.1 | Z16: 825.03 | AA16: 388.61 | AB16: 208.48 | AC16: 426.36 | AD16: 342.3681481
A17: Non-IP | B17: Bacton (Baird) | C17: 366.47 | D17: 0 | E17: 0 | F17: 371.99 | G17: 469.51 | H17: 333.81 | I17: 494.42 | J17: 332.44 | K17: 272.25 | L17: 385.51 | M17: 252.75 | N17: 432.5 | O17: 645.07 | P17: 245.82 | Q17: 323 | R17: 224.26 | S17: 262.49 | T17: 224.26 | U17: 216.9 | V17: 536.71 | W17: 353.54 | X17: 540.66 | Y17: 111.1 | Z17: 825.03 | AA17: 388.61 | AB17: 208.48 | AC17: 426.36 | AD17: 342.3681481
A18: IP | B18: Bacton (BBL) | C18: 366.47 | D18: 0 | E18: 0 | F18: 371.99 | G18: 469.51 | H18: 333.81 | I18: 494.42 | J18: 332.44 | K18: 272.25 | L18: 385.51 | M18: 252.75 | N18: 432.5 | O18: 645.07 | P18: 245.82 | Q18: 323 | R18: 224.26 | S18: 262.49 | T18: 224.26 | U18: 216.9 | V18: 536.71 | W18: 353.54 | X18: 540.66 | Y18: 111.1 | Z18: 825.03 | AA18: 388.61 | AB18: 208.48 | AC18: 426.36 | AD18: 342.3681481
A19: Non-IP | B19: Bacton (Great Yarmouth) | C19: 366.47 | D19: 0 | E19: 0 | F19: 371.99 | G19: 469.51 | H19: 333.81 | I19: 494.42 | J19: 332.44 | K19: 272.25 | L19: 385.51 | M19: 252.75 | N19: 432.5 | O19: 645.07 | P19: 245.82 | Q19: 323 | R19: 224.26 | S19: 262.49 | T19: 224.26 | U19: 216.9 | V19: 536.71 | W19: 353.54 | X19: 540.66 | Y19: 111.1 | Z19: 825.03 | AA19: 388.61 | AB19: 208.48 | AC19: 426.36 | AD19: 342.3681481
A20: IP | B20: Bacton (IUK) | C20: 366.47 | D20: 0 | E20: 0 | F20: 371.99 | G20: 469.51 | H20: 333.81 | I20: 494.42 | J20: 332.44 | K20: 272.25 | L20: 385.51 | M20: 252.75 | N20: 432.5 | O20: 645.07 | P20: 245.82 | Q20: 323 | R20: 224.26 | S20: 262.49 | T20: 224.26 | U20: 216.9 | V20: 536.71 | W20: 353.54 | X20: 540.66 | Y20: 111.1 | Z20: 825.03 | AA20: 388.61 | AB20: 208.48 | AC20: 426.36 | AD20: 342.3681481
A21: Non-IP | B21: Baldersby | C21: 476.14 | D21: 326.15 | E21: 326.15 | F21: 349.93 | G21: 228.9 | H21: 453.28 | I21: 168.27 | J21: 290.42 | K21: 142.64 | L21: 495.18 | M21: 159.01 | N21: 191.89 | O21: 318.92 | P21: 140.33 | Q21: 299.86 | R21: 101.89 | S21: 145.92 | T21: 101.89 | U21: 448.11 | V21: 646.38 | W21: 272.73 | X21: 214.51 | Y21: 248.47 | Z21: 498.88 | AA21: 62.46 | AB21: 186.89 | AC21: 541.43 | AD21: 290.2455556
A22: Non-IP | B22: Balgray | C22: 800.36 | D22: 740.64 | E22: 740.64 | F22: 551.19 | G22: 400.16 | H22: 867.77 | I22: 246.22 | J22: 491.68 | K22: 476.65 | L22: 819.4 | M22: 537.64 | N22: 393.15 | O22: 132.17 | P22: 518.96 | Q22: 501.12 | R22: 516.38 | S22: 493.19 | T22: 516.38 | U22: 862.6 | V22: 970.6 | W22: 473.99 | X22: 199.98 | Y22: 662.96 | Z22: 155.45 | AA22: 386.54 | AB22: 601.38 | AC22: 865.65 | AD22: 552.6981481
A23: Non-IP | B23: Barking (Horndon) | C23: 421.4 | D23: 184.33 | E23: 184.33 | F23: 426.92 | G23: 558.9 | H23: 286.87 | I23: 583.81 | J23: 387.37 | K23: 361.64 | L23: 440.44 | M23: 342.14 | N23: 488.42 | O23: 734.46 | P23: 335.21 | Q23: 377.93 | R23: 313.65 | S23: 351.88 | T23: 313.65 | U23: 32.57 | V23: 591.64 | W23: 408.47 | X23: 630.05 | Y23: 189.13 | Z23: 914.42 | AA23: 478 | AB23: 297.87 | AC23: 379.42 | AD23: 407.96
A24: Non-IP | B24: Barrow (Bains) | C24: 502.5 | D24: 469.51 | E24: 469.51 | F24: 253.33 | G24: 0 | H24: 596.64 | I24: 153.94 | J24: 193.82 | K24: 299.04 | L24: 521.54 | M24: 302.37 | N24: 95.29 | O24: 304.59 | P24: 283.69 | Q24: 203.26 | R24: 245.25 | S24: 289.28 | T24: 245.25 | U24: 591.47 | V24: 672.74 | W24: 176.13 | X24: 200.18 | Y24: 391.83 | Z24: 555.61 | AA24: 259.11 | AB24: 330.25 | AC24: 567.79 | AD24: 339.7748148
A25: Non-IP | B25: Barrow (Black Start) | C25: 502.5 | D25: 469.51 | E25: 469.51 | F25: 253.33 | G25: 0 | H25: 596.64 | I25: 153.94 | J25: 193.82 | K25: 299.04 | L25: 521.54 | M25: 302.37 | N25: 95.29 | O25: 304.59 | P25: 283.69 | Q25: 203.26 | R25: 245.25 | S25: 289.28 | T25: 245.25 | U25: 591.47 | V25: 672.74 | W25: 176.13 | X25: 200.18 | Y25: 391.83 | Z25: 555.61 | AA25: 259.11 | AB25: 330.25 | AC25: 567.79 | AD25: 339.7748148
A26: Non-IP | B26: Barrow (Gateway) | C26: 502.5 | D26: 469.51 | E26: 469.51 | F26: 253.33 | G26: 0 | H26: 596.64 | I26: 153.94 | J26: 193.82 | K26: 299.04 | L26: 521.54 | M26: 302.37 | N26: 95.29 | O26: 304.59 | P26: 283.69 | Q26: 203.26 | R26: 245.25 | S26: 289.28 | T26: 245.25 | U26: 591.47 | V26: 672.74 | W26: 176.13 | X26: 200.18 | Y26: 391.83 | Z26: 555.61 | AA26: 259.11 | AB26: 330.25 | AC26: 567.79 | AD26: 339.7748148
A27: Non-IP | B27: Barton Stacey Max Refill (Humbly Grove) | C27: 208.88 | D27: 333.81 | E27: 333.81 | F27: 464.66 | G27: 596.64 | H27: 0 | I27: 621.55 | J27: 425.11 | K27: 399.38 | L27: 384.96 | M27: 379.88 | N27: 526.16 | O27: 772.2 | P27: 372.95 | Q27: 415.67 | R27: 351.39 | S27: 389.62 | T27: 351.39 | U27: 319.44 | V27: 536.16 | W27: 446.21 | X27: 667.79 | Y27: 226.87 | Z27: 952.16 | AA27: 515.74 | AB27: 335.61 | AC27: 92.55 | AD27: 422.9848148
A28: Non-IP | B28: Bathgate | C28: 686.49 | D28: 626.77 | E28: 626.77 | F28: 437.32 | G28: 286.29 | H28: 753.9 | I28: 132.35 | J28: 377.81 | K28: 362.78 | L28: 705.53 | M28: 423.77 | N28: 279.28 | O28: 18.3 | P28: 405.09 | Q28: 387.25 | R28: 402.51 | S28: 379.32 | T28: 402.51 | U28: 748.73 | V28: 856.73 | W28: 360.12 | X28: 86.11 | Y28: 549.09 | Z28: 269.32 | AA28: 272.67 | AB28: 487.51 | AC28: 751.78 | AD28: 447.262963
A29: Non-IP | B29: Billingham ICI (Terra Billingham) | C29: 535.88 | D29: 385.89 | E29: 385.89 | F29: 377.42 | G29: 256.39 | H29: 513.02 | I29: 137.6 | J29: 317.91 | K29: 121.9 | L29: 554.92 | M29: 182.89 | N29: 219.38 | O29: 288.25 | P29: 164.21 | Q29: 327.35 | R29: 161.63 | S29: 138.44 | T29: 161.63 | U29: 507.85 | V29: 706.12 | W29: 300.22 | X29: 183.84 | Y29: 308.21 | Z29: 468.21 | AA29: 8.78 | AB29: 246.63 | AC29: 601.17 | AD29: 317.0974074
A30: Non-IP | B30: Bishop Auckland | C30: 538.34 | D30: 388.35 | E30: 388.35 | F30: 369.55 | G30: 248.52 | H30: 515.48 | I30: 106.07 | J30: 310.04 | K30: 124.36 | L30: 557.38 | M30: 185.35 | N30: 211.51 | O30: 256.72 | P30: 166.67 | Q30: 319.48 | R30: 164.09 | S30: 140.9 | T30: 164.09 | U30: 510.31 | V30: 708.58 | W30: 292.35 | X30: 152.31 | Y30: 310.67 | Z30: 436.68 | AA30: 34.25 | AB30: 249.09 | AC30: 603.63 | AD30: 313.0785185
A31: Non-IP | B31: Bishop Auckland (test facility) | C31: 538.34 | D31: 388.35 | E31: 388.35 | F31: 369.55 | G31: 248.52 | H31: 515.48 | I31: 106.07 | J31: 310.04 | K31: 124.36 | L31: 557.38 | M31: 185.35 | N31: 211.51 | O31: 256.72 | P31: 166.67 | Q31: 319.48 | R31: 164.09 | S31: 140.9 | T31: 164.09 | U31: 510.31 | V31: 708.58 | W31: 292.35 | X31: 152.31 | Y31: 310.67 | Z31: 436.68 | AA31: 34.25 | AB31: 249.09 | AC31: 603.63 | AD31: 313.0785185
A32: Non-IP | B32: Blaby | C32: 272.41 | D32: 190.92 | E32: 190.92 | F32: 181.07 | G32: 331.89 | H32: 283.59 | I32: 383.53 | J32: 141.52 | K32: 246.69 | L32: 291.45 | M32: 227.19 | N32: 242.57 | O32: 534.18 | P32: 220.26 | Q32: 132.08 | R32: 198.7 | S32: 236.93 | T32: 198.7 | U32: 278.42 | V32: 442.65 | W32: 162.62 | X32: 429.77 | Y32: 118.18 | Z32: 785.2 | AA32: 363.05 | AB32: 182.92 | AC32: 337.7 | AD32: 281.6707407
A33: Non-IP | B33: Blackness (BP Grangemouth) | C33: 706.06 | D33: 646.34 | E33: 646.34 | F33: 456.89 | G33: 305.86 | H33: 773.47 | I33: 151.92 | J33: 397.38 | K33: 382.35 | L33: 725.1 | M33: 443.34 | N33: 298.85 | O33: 37.87 | P33: 424.66 | Q33: 406.82 | R33: 422.08 | S33: 398.89 | T33: 422.08 | U33: 768.3 | V33: 876.3 | W33: 379.69 | X33: 105.68 | Y33: 568.66 | Z33: 249.75 | AA33: 292.24 | AB33: 507.08 | AC33: 771.35 | AD33: 465.3833333
A34: Non-IP | B34: Blackrod | C34: 504.02 | D34: 471.03 | E34: 471.03 | F34: 254.85 | G34: 133.82 | H34: 598.16 | I34: 185.46 | J34: 195.34 | K34: 300.56 | L34: 523.06 | M34: 303.89 | N34: 96.81 | O34: 336.11 | P34: 285.21 | Q34: 204.78 | R34: 246.77 | S34: 290.8 | T34: 246.77 | U34: 592.99 | V34: 674.26 | W34: 177.65 | X34: 231.7 | Y34: 393.35 | Z34: 587.13 | AA34: 260.63 | AB34: 331.77 | AC34: 569.31 | AD34: 350.6392593
A35: Non-IP | B35: Blyborough | C35: 355.59 | D35: 205.6 | E35: 205.6 | F35: 361.11 | G35: 263.91 | H35: 332.73 | I35: 288.82 | J35: 321.56 | K35: 127.23 | L35: 374.63 | M35: 110.61 | N35: 226.9 | O35: 439.47 | P35: 103.68 | Q35: 312.12 | R35: 18.66 | S35: 117.47 | T35: 18.66 | U35: 327.56 | V35: 525.83 | W35: 307.74 | X35: 335.06 | Y35: 127.92 | Z35: 619.43 | AA35: 183.01 | AB35: 66.34 | AC35: 420.88 | AD35: 262.8933333
A36: Non-IP | B36: Blyborough (Brigg) | C36: 355.59 | D36: 205.6 | E36: 205.6 | F36: 361.11 | G36: 263.91 | H36: 332.73 | I36: 288.82 | J36: 321.56 | K36: 127.23 | L36: 374.63 | M36: 110.61 | N36: 226.9 | O36: 439.47 | P36: 103.68 | Q36: 312.12 | R36: 18.66 | S36: 117.47 | T36: 18.66 | U36: 327.56 | V36: 525.83 | W36: 307.74 | X36: 335.06 | Y36: 127.92 | Z36: 619.43 | AA36: 183.01 | AB36: 66.34 | AC36: 420.88 | AD36: 262.8933333
A37: Non-IP | B37: Blyborough (Cottam) | C37: 355.59 | D37: 205.6 | E37: 205.6 | F37: 361.11 | G37: 263.91 | H37: 332.73 | I37: 288.82 | J37: 321.56 | K37: 127.23 | L37: 374.63 | M37: 110.61 | N37: 226.9 | O37: 439.47 | P37: 103.68 | Q37: 312.12 | R37: 18.66 | S37: 117.47 | T37: 18.66 | U37: 327.56 | V37: 525.83 | W37: 307.74 | X37: 335.06 | Y37: 127.92 | Z37: 619.43 | AA37: 183.01 | AB37: 66.34 | AC37: 420.88 | AD37: 262.8933333
A38: Non-IP | B38: Braishfield A | C38: 191.64 | D38: 356.01 | E38: 356.01 | F38: 486.86 | G38: 618.84 | H38: 22.2 | I38: 643.75 | J38: 447.31 | K38: 421.58 | L38: 367.72 | M38: 402.08 | N38: 548.36 | O38: 794.4 | P38: 395.15 | Q38: 437.87 | R38: 373.59 | S38: 411.82 | T38: 373.59 | U38: 341.64 | V38: 518.92 | W38: 468.41 | X38: 689.99 | Y38: 249.07 | Z38: 974.36 | AA38: 537.94 | AB38: 357.81 | AC38: 75.31 | AD38: 439.3418519
A39: Non-IP | B39: Braishfield B | C39: 191.64 | D39: 356.01 | E39: 356.01 | F39: 486.86 | G39: 618.84 | H39: 22.2 | I39: 643.75 | J39: 447.31 | K39: 421.58 | L39: 367.72 | M39: 402.08 | N39: 548.36 | O39: 794.4 | P39: 395.15 | Q39: 437.87 | R39: 373.59 | S39: 411.82 | T39: 373.59 | U39: 341.64 | V39: 518.92 | W39: 468.41 | X39: 689.99 | Y39: 249.07 | Z39: 974.36 | AA39: 537.94 | AB39: 357.81 | AC39: 75.31 | AD39: 439.3418519
A40: Non-IP | B40: Brine Field (Teesside) Power Station | C40: 538.6 | D40: 388.61 | E40: 388.61 | F40: 380.14 | G40: 259.11 | H40: 515.74 | I40: 140.32 | J40: 320.63 | K40: 124.62 | L40: 557.64 | M40: 185.61 | N40: 222.1 | O40: 290.97 | P40: 166.93 | Q40: 330.07 | R40: 164.35 | S40: 141.16 | T40: 164.35 | U40: 510.57 | V40: 708.84 | W40: 302.94 | X40: 186.56 | Y40: 310.93 | Z40: 470.93 | AA40: 0 | AB40: 249.35 | AC40: 603.89 | AD40: 319.3914815
A41: Non-IP | B41: Brisley | C41: 325.64 | D41: 40.83 | E41: 40.83 | F41: 331.16 | G41: 428.68 | H41: 297.14 | I41: 453.59 | J41: 291.61 | K41: 231.42 | L41: 344.68 | M41: 211.92 | N41: 391.67 | O41: 604.24 | P41: 204.99 | Q41: 282.17 | R41: 183.43 | S41: 221.66 | T41: 183.43 | U41: 257.73 | V41: 495.88 | W41: 312.71 | X41: 499.83 | Y41: 70.27 | Z41: 784.2 | AA41: 347.78 | AB41: 167.65 | AC41: 389.69 | AD41: 310.9196296
A42: Non-IP | B42: Broxburn | C42: 708.93 | D42: 639.72 | E42: 639.72 | F42: 459.76 | G42: 308.73 | H42: 766.85 | I42: 154.79 | J42: 400.25 | K42: 375.73 | L42: 727.97 | M42: 436.72 | N42: 301.72 | O42: 40.74 | P42: 418.04 | Q42: 409.69 | R42: 415.46 | S42: 392.27 | T42: 415.46 | U42: 761.68 | V42: 879.17 | W42: 382.56 | X42: 108.55 | Y42: 562.04 | Z42: 291.76 | AA42: 285.62 | AB42: 500.46 | AC42: 774.22 | AD42: 465.1337037
A43: Non-IP | B43: Burley Bank | C43: 464.86 | D43: 314.87 | E43: 314.87 | F43: 288.23 | G43: 167.2 | H43: 442 | I43: 187.39 | J43: 228.72 | K43: 144.4 | L43: 483.9 | M43: 147.73 | N43: 130.19 | O43: 338.04 | P43: 129.05 | Q43: 238.16 | R43: 90.61 | S43: 134.64 | T43: 90.61 | U43: 436.83 | V43: 635.1 | W43: 211.03 | X43: 233.63 | Y43: 237.19 | Z43: 518 | AA43: 91.91 | AB43: 175.61 | AC43: 530.15 | AD43: 274.2562963
A44: Non-IP | B44: Burnhervie | C44: 912.35 | D44: 781.57 | E44: 781.57 | F44: 663.18 | G44: 512.15 | H44: 908.7 | I44: 358.21 | J44: 603.67 | K44: 517.58 | L44: 931.39 | M44: 578.57 | N44: 505.14 | O44: 244.16 | P44: 559.89 | Q44: 613.11 | R44: 557.31 | S44: 534.12 | T44: 557.31 | U44: 903.53 | V44: 1082.59 | W44: 585.98 | X44: 311.97 | Y44: 703.89 | Z44: 57.93 | AA44: 427.47 | AB44: 642.31 | AC44: 977.64 | AD44: 622.7144444
A45: Non-IP | B45: Burton Point (Connahs Quay) | C45: 351.68 | D45: 371.99 | E45: 371.99 | F45: 0 | G45: 253.33 | H45: 464.66 | I45: 304.97 | J45: 59.51 | K45: 420.07 | L45: 370.72 | M45: 408.26 | N45: 164.01 | O45: 455.62 | P45: 401.33 | Q45: 52.06 | R45: 366.28 | S45: 410.31 | T45: 366.28 | U45: 459.49 | V45: 521.92 | W45: 84.06 | X45: 351.21 | Y45: 299.25 | Z45: 706.64 | AA45: 380.14 | AB45: 363.99 | AC45: 416.97 | AD45: 339.8792593
A46: Non-IP | B46: Caldecott | C46: 209.49 | D46: 156.98 | E46: 156.98 | F46: 223.53 | G46: 374.35 | H46: 249.65 | I46: 425.99 | J46: 183.98 | K46: 212.75 | L46: 228.53 | M46: 193.25 | N46: 285.03 | O46: 576.64 | P46: 186.32 | Q46: 174.54 | R46: 164.76 | S46: 202.99 | T46: 164.76 | U46: 244.48 | V46: 379.73 | W46: 205.08 | X46: 472.23 | Y46: 84.24 | Z46: 765.53 | AA46: 329.11 | AB46: 148.98 | AC46: 274.78 | AD46: 269.4325926
A47: Non-IP | B47: Caldecott (Corby Power Station) | C47: 209.49 | D47: 156.98 | E47: 156.98 | F47: 223.53 | G47: 374.35 | H47: 249.65 | I47: 425.99 | J47: 183.98 | K47: 212.75 | L47: 228.53 | M47: 193.25 | N47: 285.03 | O47: 576.64 | P47: 186.32 | Q47: 174.54 | R47: 164.76 | S47: 202.99 | T47: 164.76 | U47: 244.48 | V47: 379.73 | W47: 205.08 | X47: 472.23 | Y47: 84.24 | Z47: 765.53 | AA47: 329.11 | AB47: 148.98 | AC47: 274.78 | AD47: 269.4325926
A48: Non-IP | B48: Cambridge | C48: 336.26 | D48: 132.08 | E48: 132.08 | F48: 341.78 | G48: 473.76 | H48: 201.73 | I48: 498.67 | J48: 302.23 | K48: 276.5 | L48: 355.3 | M48: 257 | N48: 403.28 | O48: 649.32 | P48: 250.07 | Q48: 292.79 | R48: 228.51 | S48: 266.74 | T48: 228.51 | U48: 117.71 | V48: 506.5 | W48: 323.33 | X48: 544.91 | Y48: 103.99 | Z48: 829.28 | AA48: 392.86 | AB48: 212.73 | AC48: 294.28 | AD48: 331.562963
A49: Non-IP | B49: Careston | C49: 831.41 | D49: 771.69 | E49: 771.69 | F49: 582.24 | G49: 431.21 | H49: 898.82 | I49: 277.27 | J49: 522.73 | K49: 507.7 | L49: 850.45 | M49: 568.69 | N49: 424.2 | O49: 163.22 | P49: 550.01 | Q49: 532.17 | R49: 547.43 | S49: 524.24 | T49: 547.43 | U49: 893.65 | V49: 1001.65 | W49: 505.04 | X49: 231.03 | Y49: 694.01 | Z49: 125.76 | AA49: 417.59 | AB49: 632.43 | AC49: 896.7 | AD49: 581.4985185
A50: Non-IP | B50: Carrington (Partington) Power Station | C50: 333.23 | D50: 353.54 | E50: 353.54 | F50: 84.06 | G50: 176.13 | H50: 446.21 | I50: 227.77 | J50: 24.55 | K50: 342.87 | L50: 352.27 | M50: 346.2 | N50: 86.81 | O50: 378.42 | P50: 327.52 | Q50: 33.99 | R50: 289.08 | S50: 333.11 | T50: 289.08 | U50: 441.04 | V50: 503.47 | W50: 0 | X50: 274.01 | Y50: 280.8 | Z50: 629.44 | AA50: 302.94 | AB50: 345.54 | AC50: 398.52 | AD50: 294.5977778
A51: Non-IP | B51: Caythorpe | C51: 422.24 | D51: 272.25 | E51: 272.25 | F51: 420.07 | G51: 299.04 | H51: 399.38 | I51: 230.43 | J51: 360.56 | K51: 0 | L51: 441.28 | M51: 60.99 | N51: 262.03 | O51: 381.08 | P51: 42.31 | Q51: 370 | R51: 108.57 | S51: 16.54 | T51: 108.57 | U51: 394.21 | V51: 592.48 | W51: 342.87 | X51: 276.67 | Y51: 194.57 | Z51: 561.04 | AA51: 124.62 | AB51: 132.99 | AC51: 487.53 | AD51: 280.5396296
A52: Non-IP | B52: Centrax Industrial | C52: 183.65 | D52: 499.08 | E52: 499.08 | F52: 484.29 | G52: 635.11 | H52: 220.55 | I52: 686.75 | J52: 444.74 | K52: 554.85 | L52: 359.73 | M52: 535.35 | N52: 545.79 | O52: 837.4 | P52: 528.42 | Q52: 435.3 | R52: 506.86 | S52: 545.09 | T52: 506.86 | U52: 539.99 | V52: 510.93 | W52: 465.84 | X52: 732.99 | Y52: 426.34 | Z52: 1088.42 | AA52: 671.21 | AB52: 491.08 | AC52: 128 | AD52: 520.8777778
A53: Non-IP | B53: Cirencester | C53: 74.6 | D53: 309.67 | E53: 309.67 | F53: 294.88 | G53: 445.7 | H53: 232.44 | I53: 497.34 | J53: 255.33 | K53: 365.44 | L53: 170.32 | M53: 345.94 | N53: 356.38 | O53: 647.99 | P53: 339.01 | Q53: 245.89 | R53: 317.45 | S53: 355.68 | T53: 317.45 | U53: 397.17 | V53: 321.52 | W53: 276.43 | X53: 543.58 | Y53: 236.93 | Z53: 899.01 | AA53: 481.8 | AB53: 301.67 | AC53: 139.89 | AD53: 351.0807407
A54: Non-IP | B54: Cockenzie Power Station | C54: 751.94 | D54: 601.95 | E54: 601.95 | F54: 583.15 | G54: 462.12 | H54: 729.08 | I54: 319.67 | J54: 523.64 | K54: 337.96 | L54: 770.98 | M54: 398.95 | N54: 425.11 | O54: 217.35 | P54: 380.27 | Q54: 533.08 | R54: 377.69 | S54: 354.5 | T54: 377.69 | U54: 723.91 | V54: 922.18 | W54: 505.95 | X54: 285.16 | Y54: 524.27 | Z54: 223.08 | AA54: 247.85 | AB54: 462.69 | AC54: 817.23 | AD54: 498.4962963
A55: Non-IP | B55: Coffinswell | C55: 186.54 | D55: 501.97 | E55: 501.97 | F55: 487.18 | G55: 638 | H55: 223.44 | I55: 689.64 | J55: 447.63 | K55: 557.74 | L55: 362.62 | M55: 538.24 | N55: 548.68 | O55: 840.29 | P55: 531.31 | Q55: 438.19 | R55: 509.75 | S55: 547.98 | T55: 509.75 | U55: 542.88 | V55: 513.82 | W55: 468.73 | X55: 735.88 | Y55: 429.23 | Z55: 1091.31 | AA55: 674.1 | AB55: 493.97 | AC55: 130.89 | AD55: 523.7677778
A56: Non-IP | B56: Coldstream | C56: 694 | D56: 544.01 | E56: 544.01 | F56: 525.21 | G56: 404.18 | H56: 671.14 | I56: 250.5 | J56: 465.7 | K56: 280.02 | L56: 713.04 | M56: 341.01 | N56: 367.17 | O56: 136.45 | P56: 322.33 | Q56: 475.14 | R56: 319.75 | S56: 296.56 | T56: 319.75 | U56: 665.97 | V56: 864.24 | W56: 448.01 | X56: 204.26 | Y56: 466.33 | Z56: 303.98 | AA56: 189.91 | AB56: 404.75 | AC56: 759.29 | AD56: 443.5818519
A57: Non-IP | B57: Corbridge | C57: 603.77 | D57: 453.78 | E57: 453.78 | F57: 434.98 | G57: 313.95 | H57: 580.91 | I57: 171.5 | J57: 375.47 | K57: 189.79 | L57: 622.81 | M57: 250.78 | N57: 276.94 | O57: 226.68 | P57: 232.1 | Q57: 384.91 | R57: 229.52 | S57: 206.33 | T57: 229.52 | U57: 575.74 | V57: 774.01 | W57: 357.78 | X57: 217.74 | Y57: 376.1 | Z57: 371.25 | AA57: 99.68 | AB57: 314.52 | AC57: 669.06 | AD57: 370.1259259
A58: Non-IP | B58: Coryton 2 (Thames Haven) Power Station | C58: 425.46 | D58: 188.39 | E58: 188.39 | F58: 430.98 | G58: 562.96 | H58: 290.93 | I58: 587.87 | J58: 391.43 | K58: 365.7 | L58: 444.5 | M58: 346.2 | N58: 492.48 | O58: 738.52 | P58: 339.27 | Q58: 381.99 | R58: 317.71 | S58: 355.94 | T58: 317.71 | U58: 28.51 | V58: 595.7 | W58: 412.53 | X58: 634.11 | Y58: 193.19 | Z58: 918.48 | AA58: 482.06 | AB58: 301.93 | AC58: 383.48 | AD58: 411.7192593
A59: Non-IP | B59: Cowpen Bewley | C59: 532.85 | D59: 382.86 | E59: 382.86 | F59: 374.39 | G59: 253.36 | H59: 509.99 | I59: 134.57 | J59: 314.88 | K59: 118.87 | L59: 551.89 | M59: 179.86 | N59: 216.35 | O59: 285.22 | P59: 161.18 | Q59: 324.32 | R59: 158.6 | S59: 135.41 | T59: 158.6 | U59: 504.82 | V59: 703.09 | W59: 297.19 | X59: 180.81 | Y59: 305.18 | Z59: 465.18 | AA59: 5.75 | AB59: 243.6 | AC59: 598.14 | AD59: 314.0674074
A60: Non-IP | B60: Crawley Down | C60: 205.4 | D60: 341.36 | E60: 341.36 | F60: 472.21 | G60: 604.19 | H60: 7.55 | I60: 629.1 | J60: 432.66 | K60: 406.93 | L60: 381.48 | M60: 387.43 | N60: 533.71 | O60: 779.75 | P60: 380.5 | Q60: 423.22 | R60: 358.94 | S60: 397.17 | T60: 358.94 | U60: 326.99 | V60: 532.68 | W60: 453.76 | X60: 675.34 | Y60: 234.42 | Z60: 959.71 | AA60: 523.29 | AB60: 343.16 | AC60: 89.07 | AD60: 428.9007407
A61: Non-IP | B61: Deborah Storage (Bacton) | C61: 366.47 | D61: 0 | E61: 0 | F61: 371.99 | G61: 469.51 | H61: 333.81 | I61: 494.42 | J61: 332.44 | K61: 272.25 | L61: 385.51 | M61: 252.75 | N61: 432.5 | O61: 645.07 | P61: 245.82 | Q61: 323 | R61: 224.26 | S61: 262.49 | T61: 224.26 | U61: 216.9 | V61: 536.71 | W61: 353.54 | X61: 540.66 | Y61: 111.1 | Z61: 825.03 | AA61: 388.61 | AB61: 208.48 | AC61: 426.36 | AD61: 342.3681481
A62: Non-IP | B62: Deeside | C62: 351.71 | D62: 372.02 | E62: 372.02 | F62: 0.57 | G62: 253.36 | H62: 464.69 | I62: 305 | J62: 59.54 | K62: 420.1 | L62: 370.75 | M62: 408.29 | N62: 164.04 | O62: 455.65 | P62: 401.36 | Q62: 52.09 | R62: 366.31 | S62: 410.34 | T62: 366.31 | U62: 459.52 | V62: 521.95 | W62: 84.09 | X62: 351.24 | Y62: 299.28 | Z62: 706.67 | AA62: 380.17 | AB62: 364.02 | AC62: 417 | AD62: 339.9292593
A63: Non-IP | B63: Didcot | C63: 298.17 | D63: 279.48 | E63: 279.48 | F63: 410.33 | G63: 542.31 | H63: 89.29 | I63: 567.22 | J63: 370.78 | K63: 345.05 | L63: 423.85 | M63: 325.55 | N63: 471.83 | O63: 717.87 | P63: 318.62 | Q63: 361.34 | R63: 297.06 | S63: 335.29 | T63: 297.06 | U63: 265.11 | V63: 575.05 | W63: 391.88 | X63: 613.46 | Y63: 172.54 | Z63: 897.83 | AA63: 461.41 | AB63: 281.28 | AC63: 181.84 | AD63: 391.5177778
A64: Non-IP | B64: Dowlais | C64: 219.06 | D64: 377.45 | E64: 377.45 | F64: 362.66 | G64: 513.48 | H64: 376.9 | I64: 565.12 | J64: 323.11 | K64: 433.22 | L64: 8.06 | M64: 413.72 | N64: 424.16 | O64: 715.77 | P64: 406.79 | Q64: 313.67 | R64: 385.23 | S64: 423.46 | T64: 385.23 | U64: 464.95 | V64: 159.26 | W64: 344.21 | X64: 611.36 | Y64: 304.71 | Z64: 966.79 | AA64: 549.58 | AB64: 369.45 | AC64: 284.35 | AD64: 410.3407407
A65: Non-IP | B65: Drakelow Power Station | C65: 228.51 | D65: 234.82 | E65: 234.82 | F65: 137.17 | G65: 287.99 | H65: 327.49 | I65: 339.63 | J65: 97.62 | K65: 290.59 | L65: 247.55 | M65: 271.09 | N65: 198.67 | O65: 490.28 | P65: 264.16 | Q65: 88.18 | R65: 242.6 | S65: 280.83 | T65: 242.6 | U65: 322.32 | V65: 398.75 | W65: 118.72 | X65: 385.87 | Y65: 162.08 | Z65: 741.3 | AA65: 406.95 | AB65: 226.82 | AC65: 293.8 | AD65: 280.0448148
A66: Non-IP | B66: Drointon | C66: 237.72 | D66: 258.03 | E66: 258.03 | F66: 113.96 | G66: 264.78 | H66: 350.7 | I66: 316.42 | J66: 74.41 | K66: 313.8 | L66: 256.76 | M66: 294.3 | N66: 175.46 | O66: 467.07 | P66: 287.37 | Q66: 64.97 | R66: 265.81 | S66: 304.04 | T66: 265.81 | U66: 345.53 | V66: 407.96 | W66: 95.51 | X66: 362.66 | Y66: 185.29 | Z66: 718.09 | AA66: 391.59 | AB66: 250.03 | AC66: 303.01 | AD66: 282.5596296
A67: Non-IP | B67: Drum | C67: 726.68 | D67: 666.96 | E67: 666.96 | F67: 477.51 | G67: 326.48 | H67: 794.09 | I67: 172.54 | J67: 418 | K67: 402.97 | L67: 745.72 | M67: 463.96 | N67: 319.47 | O67: 58.49 | P67: 445.28 | Q67: 427.44 | R67: 442.7 | S67: 419.51 | T67: 442.7 | U67: 788.92 | V67: 896.92 | W67: 400.31 | X67: 126.3 | Y67: 589.28 | Z67: 229.13 | AA67: 312.86 | AB67: 527.7 | AC67: 791.97 | AD67: 484.4759259
A68: Non-IP | B68: Dyffryn Clydach | C68: 261.26 | D68: 419.65 | E68: 419.65 | F68: 404.86 | G68: 555.68 | H68: 419.1 | I68: 607.32 | J68: 365.31 | K68: 475.42 | L68: 34.14 | M68: 455.92 | N68: 466.36 | O68: 757.97 | P68: 448.99 | Q68: 355.87 | R68: 427.43 | S68: 465.66 | T68: 427.43 | U68: 507.15 | V68: 125.2 | W68: 386.41 | X68: 653.56 | Y68: 346.91 | Z68: 1008.99 | AA68: 591.78 | AB68: 411.65 | AC68: 326.55 | AD68: =AVERAGE(C68:AC68) -> 449.1192593
A69: Non-IP | B69: Dynevor Max Refill | C69: 227.12 | D69: 385.51 | E69: 385.51 | F69: 370.72 | G69: 521.54 | H69: 384.96 | I69: 573.18 | J69: 331.17 | K69: 441.28 | L69: 0 | M69: 421.78 | N69: 432.22 | O69: 723.83 | P69: 414.85 | Q69: 321.73 | R69: 393.29 | S69: 431.52 | T69: 393.29 | U69: 473.01 | V69: 151.2 | W69: 352.27 | X69: 619.42 | Y69: 312.77 | Z69: 974.85 | AA69: 557.64 | AB69: 377.51 | AC69: 292.41 | AD69: 417.2066667
A70: Non-IP | B70: Eastoft (Keadby Blackstart) | C70: 380.94 | D70: 230.95 | E70: 230.95 | F70: 359.59 | G70: 238.56 | H70: 358.08 | I70: 263.47 | J70: 300.08 | K70: 101.88 | L70: 399.98 | M70: 105.21 | N70: 201.55 | O70: 414.12 | P70: 86.53 | Q70: 309.52 | R70: 6.69 | S70: 92.12 | T70: 6.69 | U70: 352.91 | V70: 551.18 | W70: 282.39 | X70: 309.71 | Y70: 153.27 | Z70: 594.08 | AA70: 157.66 | AB70: 91.69 | AC70: 446.23 | AD70: 260.2233333
A71: Non-IP | B71: Eastoft (Keadby) | C71: 380.94 | D71: 230.95 | E71: 230.95 | F71: 359.59 | G71: 238.56 | H71: 358.08 | I71: 263.47 | J71: 300.08 | K71: 101.88 | L71: 399.98 | M71: 105.21 | N71: 201.55 | O71: 414.12 | P71: 86.53 | Q71: 309.52 | R71: 6.69 | S71: 92.12 | T71: 6.69 | U71: 352.91 | V71: 551.18 | W71: 282.39 | X71: 309.71 | Y71: 153.27 | Z71: 594.08 | AA71: 157.66 | AB71: 91.69 | AC71: 446.23 | AD71: 260.2233333
A72: Non-IP | B72: Easton Grey | C72: 49.23 | D72: 317.24 | E72: 317.24 | F72: 302.45 | G72: 453.27 | H72: 207.07 | I72: 504.91 | J72: 262.9 | K72: 373.01 | L72: 177.89 | M72: 353.51 | N72: 363.95 | O72: 655.56 | P72: 346.58 | Q72: 253.46 | R72: 325.02 | S72: 363.25 | T72: 325.02 | U72: 404.74 | V72: 329.09 | W72: 284 | X72: 551.15 | Y72: 244.5 | Z72: 906.58 | AA72: 489.37 | AB72: 309.24 | AC72: 114.52 | AD72: 354.9907407
A73: Non-IP | B73: Ecclestone | C73: 336.14 | D73: 356.45 | E73: 356.45 | F73: 27.39 | G73: 245.28 | H73: 449.12 | I73: 296.92 | J73: 51.46 | K73: 412.02 | L73: 355.18 | M73: 392.72 | N73: 155.96 | O73: 447.57 | P73: 385.79 | Q73: 44.01 | R73: 358.23 | S73: 402.26 | T73: 358.23 | U73: 443.95 | V73: 506.38 | W73: 76.01 | X73: 343.16 | Y73: 283.71 | Z73: 698.59 | AA73: 372.09 | AB73: 348.45 | AC73: 401.43 | AD73: 329.812963
A74: Non-IP | B74: Elton | C74: 516.38 | D74: 366.39 | E74: 366.39 | F74: 357.92 | G74: 236.89 | H74: 493.52 | I74: 128.03 | J74: 298.41 | K74: 102.4 | L74: 535.42 | M74: 163.39 | N74: 199.88 | O74: 278.68 | P74: 144.71 | Q74: 307.85 | R74: 142.13 | S74: 118.94 | T74: 142.13 | U74: 488.35 | V74: 686.62 | W74: 280.72 | X74: 174.27 | Y74: 288.71 | Z74: 458.64 | AA74: 22.22 | AB74: 227.13 | AC74: 581.67 | AD74: 300.2885185
A75: Non-IP | B75: Enron Billingham | C75: 536 | D75: 386.01 | E75: 386.01 | F75: 377.54 | G75: 256.51 | H75: 513.14 | I75: 137.72 | J75: 318.03 | K75: 122.02 | L75: 555.04 | M75: 183.01 | N75: 219.5 | O75: 288.37 | P75: 164.33 | Q75: 327.47 | R75: 161.75 | S75: 138.56 | T75: 161.75 | U75: 507.97 | V75: 706.24 | W75: 300.34 | X75: 183.96 | Y75: 308.33 | Z75: 468.33 | AA75: 8.9 | AB75: 246.75 | AC75: 601.29 | AD75: 317.2174074
A76: Non-IP | B76: Epping Green (Enfield Energy, aka Brimsdown) | C76: 395.55 | D76: 191.37 | E76: 191.37 | F76: 401.07 | G76: 533.05 | H76: 261.02 | I76: 557.96 | J76: 361.52 | K76: 335.79 | L76: 414.59 | M76: 316.29 | N76: 462.57 | O76: 708.61 | P76: 309.36 | Q76: 352.08 | R76: 287.8 | S76: 326.03 | T76: 287.8 | U76: 85.78 | V76: 565.79 | W76: 382.62 | X76: 604.2 | Y76: 163.28 | Z76: 888.57 | AA76: 452.15 | AB76: 272.02 | AC76: 353.57 | AD76: 387.4744444
A77: Non-IP | B77: Evesham | C77: 108.14 | D77: 258.33 | E77: 258.33 | F77: 243.54 | G77: 394.36 | H77: 265.98 | I77: 446 | J77: 203.99 | K77: 314.1 | L77: 127.18 | M77: 294.6 | N77: 305.04 | O77: 596.65 | P77: 287.67 | Q77: 194.55 | R77: 266.11 | S77: 304.34 | T77: 266.11 | U77: 345.83 | V77: 278.38 | W77: 225.09 | X77: 492.24 | Y77: 185.59 | Z77: 847.67 | AA77: 430.46 | AB77: 250.33 | AC77: 173.43 | AD77: 309.7792593
A78: Non-IP | B78: Farningham | C78: 448.88 | D78: 211.81 | E78: 211.81 | F78: 454.4 | G78: 586.38 | H78: 314.35 | I78: 611.29 | J78: 414.85 | K78: 389.12 | L78: 467.92 | M78: 369.62 | N78: 515.9 | O78: 761.94 | P78: 362.69 | Q78: 405.41 | R78: 341.13 | S78: 379.36 | T78: 341.13 | U78: 34.13 | V78: 619.12 | W78: 435.95 | X78: 657.53 | Y78: 216.61 | Z78: 941.9 | AA78: 505.48 | AB78: 325.35 | AC78: 406.9 | AD78: 434.48
A79: Non-IP | B79: Farningham B | C79: 448.88 | D79: 211.81 | E79: 211.81 | F79: 454.4 | G79: 586.38 | H79: 314.35 | I79: 611.29 | J79: 414.85 | K79: 389.12 | L79: 467.92 | M79: 369.62 | N79: 515.9 | O79: 761.94 | P79: 362.69 | Q79: 405.41 | R79: 341.13 | S79: 379.36 | T79: 341.13 | U79: 34.13 | V79: 619.12 | W79: 435.95 | X79: 657.53 | Y79: 216.61 | Z79: 941.9 | AA79: 505.48 | AB79: 325.35 | AC79: 406.9 | AD79: 434.48
A80: Non-IP | B80: Ferny Knoll (AM Paper) | C80: 365.17 | D80: 385.48 | E80: 385.48 | F80: 116 | G80: 137.33 | H80: 478.15 | I80: 188.97 | J80: 56.49 | K80: 304.07 | L80: 384.21 | M80: 307.4 | N80: 48.01 | O80: 339.62 | P80: 288.72 | Q80: 65.93 | R80: 250.28 | S80: 294.31 | T80: 250.28 | U80: 472.98 | V80: 535.41 | W80: 38.8 | X80: 235.21 | Y80: 312.74 | Z80: 590.64 | AA80: 264.14 | AB80: 335.28 | AC80: 430.46 | AD80: 291.1688889
A81: Non-IP | B81: Fiddington | C81: 118.37 | D81: 276.76 | E81: 276.76 | F81: 261.97 | G81: 412.79 | H81: 276.21 | I81: 464.43 | J81: 222.42 | K81: 332.53 | L81: 109.07 | M81: 313.03 | N81: 323.47 | O81: 615.08 | P81: 306.1 | Q81: 212.98 | R81: 284.54 | S81: 322.77 | T81: 284.54 | U81: 364.26 | V81: 260.27 | W81: 243.52 | X81: 510.67 | Y81: 204.02 | Z81: 866.1 | AA81: 448.89 | AB81: 268.76 | AC81: 183.66 | AD81: 324.5914815
A82: Non-IP | B82: Ganstead | C82: 393.41 | D82: 243.42 | E82: 243.42 | F82: 391.24 | G82: 270.21 | H82: 370.55 | I82: 259.26 | J82: 331.73 | K82: 28.83 | L82: 412.45 | M82: 32.16 | N82: 233.2 | O82: 409.91 | P82: 13.48 | Q82: 341.17 | R82: 79.74 | S82: 19.07 | T82: 79.74 | U82: 365.38 | V82: 563.65 | W82: 314.04 | X82: 305.5 | Y82: 165.74 | Z82: 589.87 | AA82: 153.45 | AB82: 104.16 | AC82: 458.7 | AD82: 265.6844444
A83: Non-IP | B83: Garton Max Refill (Aldbrough) | C83: 395.81 | D83: 245.82 | E83: 245.82 | F83: 401.33 | G83: 283.69 | H83: 372.95 | I83: 272.74 | J83: 345.21 | K83: 42.31 | L83: 414.85 | M83: 39.63 | N83: 246.68 | O83: 423.39 | P83: 0 | Q83: 352.34 | R83: 93.22 | S83: 32.55 | T83: 93.22 | U83: 367.78 | V83: 566.05 | W83: 327.52 | X83: 318.98 | Y83: 168.14 | Z83: 603.35 | AA83: 166.93 | AB83: 106.56 | AC83: 461.1 | AD83: 273.6285185
A84: Non-IP | B84: Gilwern | C84: 202.29 | D84: 360.68 | E84: 360.68 | F84: 345.89 | G84: 496.71 | H84: 360.13 | I84: 548.35 | J84: 306.34 | K84: 416.45 | L84: 24.83 | M84: 396.95 | N84: 407.39 | O84: 699 | P84: 390.02 | Q84: 296.9 | R84: 368.46 | S84: 406.69 | T84: 368.46 | U84: 448.18 | V84: 176.03 | W84: 327.44 | X84: 594.59 | Y84: 287.94 | Z84: 950.02 | AA84: 532.81 | AB84: 352.68 | AC84: 267.58 | AD84: 396.0551852
A85: Non-IP | B85: Glenmavis | C85: 704.79 | D85: 645.07 | E85: 645.07 | F85: 455.62 | G85: 304.59 | H85: 772.2 | I85: 150.65 | J85: 396.11 | K85: 381.08 | L85: 723.83 | M85: 442.07 | N85: 297.58 | O85: 0 | P85: 423.39 | Q85: 405.55 | R85: 420.81 | S85: 397.62 | T85: 420.81 | U85: 767.03 | V85: 875.03 | W85: 378.42 | X85: 104.41 | Y85: 567.39 | Z85: 287.62 | AA85: 290.97 | AB85: 505.81 | AC85: 770.08 | AD85: 464.2074074
A86: Non-IP | B86: Glenmavis Max Refill | C86: 704.79 | D86: 645.07 | E86: 645.07 | F86: 455.62 | G86: 304.59 | H86: 772.2 | I86: 150.65 | J86: 396.11 | K86: 381.08 | L86: 723.83 | M86: 442.07 | N86: 297.58 | O86: 0 | P86: 423.39 | Q86: 405.55 | R86: 420.81 | S86: 397.62 | T86: 420.81 | U86: 767.03 | V86: 875.03 | W86: 378.42 | X86: 104.41 | Y86: 567.39 | Z86: 287.62 | AA86: 290.97 | AB86: 505.81 | AC86: 770.08 | AD86: 464.2074074
A87: Non-IP | B87: Goole (Guardian Glass) | C87: 395.94 | D87: 245.95 | E87: 245.95 | F87: 344.59 | G87: 223.56 | H87: 373.08 | I87: 248.47 | J87: 285.08 | K87: 86.88 | L87: 414.98 | M87: 90.21 | N87: 186.55 | O87: 399.12 | P87: 71.53 | Q87: 294.52 | R87: 21.69 | S87: 77.12 | T87: 21.69 | U87: 367.91 | V87: 566.18 | W87: 267.39 | X87: 294.71 | Y87: 168.27 | Z87: 579.08 | AA87: 142.66 | AB87: 106.69 | AC87: 461.23 | AD87: 258.5566667
A88: Non-IP | B88: Gosberton | C88: 309.43 | D88: 126.8 | E88: 126.8 | F88: 314.95 | G88: 342.71 | H88: 275.99 | I88: 367.62 | J88: 275.4 | K88: 145.45 | L88: 328.47 | M88: 125.95 | N88: 305.7 | O88: 518.27 | P88: 119.02 | Q88: 265.96 | R88: 97.46 | S88: 135.69 | T88: 97.46 | U88: 270.82 | V88: 479.67 | W88: 296.5 | X88: 413.86 | Y88: 49.12 | Z88: 698.23 | AA88: 261.81 | AB88: 81.68 | AC88: 368.54 | AD88: 266.642963
A89: Non-IP | B89: Gowkhall (Longannet) | C89: 715.74 | D89: 656.02 | E89: 656.02 | F89: 466.57 | G89: 315.54 | H89: 783.15 | I89: 161.6 | J89: 407.06 | K89: 392.03 | L89: 734.78 | M89: 453.02 | N89: 308.53 | O89: 47.55 | P89: 434.34 | Q89: 416.5 | R89: 431.76 | S89: 408.57 | T89: 431.76 | U89: 777.98 | V89: 885.98 | W89: 389.37 | X89: 115.36 | Y89: 578.34 | Z89: 240.21 | AA89: 301.92 | AB89: 516.76 | AC89: 781.03 | AD89: 474.3514815
A90: Non-IP | B90: Grain Power Station | C90: 453.97 | D90: 216.9 | E90: 216.9 | F90: 459.49 | G90: 591.47 | H90: 319.44 | I90: 616.38 | J90: 419.94 | K90: 394.21 | L90: 473.01 | M90: 374.71 | N90: 520.99 | O90: 767.03 | P90: 367.78 | Q90: 410.5 | R90: 346.22 | S90: 384.45 | T90: 346.22 | U90: 0 | V90: 624.21 | W90: 441.04 | X90: 662.62 | Y90: 221.7 | Z90: 946.99 | AA90: 510.57 | AB90: 330.44 | AC90: 411.99 | AD90: 438.1174074
A91: Non-IP | B91: Great Wilbraham | C91: 350.05 | D91: 118.29 | E91: 118.29 | F91: 355.57 | G91: 487.55 | H91: 215.52 | I91: 512.46 | J91: 316.02 | K91: 290.29 | L91: 369.09 | M91: 270.79 | N91: 417.07 | O91: 663.11 | P91: 263.86 | Q91: 306.58 | R91: 242.3 | S91: 280.53 | T91: 242.3 | U91: 131.5 | V91: 520.29 | W91: 337.12 | X91: 558.7 | Y91: 117.78 | Z91: 843.07 | AA91: 406.65 | AB91: 226.52 | AC91: 308.07 | AD91: 343.31
A92: Non-IP | B92: Guyzance | C92: 640.28 | D92: 490.29 | E92: 490.29 | F92: 471.49 | G92: 350.46 | H92: 617.42 | I92: 208.01 | J92: 411.98 | K92: 226.3 | L92: 659.32 | M92: 287.29 | N92: 313.45 | O92: 190.17 | P92: 268.61 | Q92: 421.42 | R92: 266.03 | S92: 242.84 | T92: 266.03 | U92: 612.25 | V92: 810.52 | W92: 394.29 | X92: 254.25 | Y92: 412.61 | Z92: 334.74 | AA92: 136.19 | AB92: 351.03 | AC92: 705.57 | AD92: 401.227037
A93: Non-IP | B93: Hardwick | C93: 313.84 | D93: 228.85 | E93: 228.85 | F93: 359.7 | G93: 491.68 | H93: 104.96 | I93: 516.59 | J93: 320.15 | K93: 294.42 | L93: 373.22 | M93: 274.92 | N93: 421.2 | O93: 667.24 | P93: 267.99 | Q93: 310.71 | R93: 246.43 | S93: 284.66 | T93: 246.43 | U93: 214.48 | V93: 524.42 | W93: 341.25 | X93: 562.83 | Y93: 121.91 | Z93: 847.2 | AA93: 410.78 | AB93: 230.65 | AC93: 197.51 | AD93: 348.2544444
A94: Non-IP | B94: Harwarden (Shotton, aka Shotton Paper) | C94: 350.29 | D94: 370.6 | E94: 370.6 | F94: 1.39 | G94: 251.94 | H94: 463.27 | I94: 303.58 | J94: 58.12 | K94: 418.68 | L94: 369.33 | M94: 406.87 | N94: 162.62 | O94: 454.23 | P94: 399.94 | Q94: 50.67 | R94: 364.89 | S94: 408.92 | T94: 364.89 | U94: 458.1 | V94: 520.53 | W94: 82.67 | X94: 349.82 | Y94: 297.86 | Z94: 705.25 | AA94: 378.75 | AB94: 362.6 | AC94: 415.58 | AD94: 338.5922222
A95: Non-IP | B95: Hatfield Moor Max Refill | C95: 374.25 | D95: 224.26 | E95: 224.26 | F95: 366.28 | G95: 245.25 | H95: 351.39 | I95: 270.16 | J95: 306.77 | K95: 108.57 | L95: 393.29 | M95: 111.9 | N95: 208.24 | O95: 420.81 | P95: 93.22 | Q95: 316.21 | R95: 0 | S95: 98.81 | T95: 0 | U95: 346.22 | V95: 544.49 | W95: 289.08 | X95: 316.4 | Y95: 146.58 | Z95: 600.77 | AA95: 164.35 | AB95: 85 | AC95: 439.54 | AD95: 260.9666667
A96: Non-IP | B96: Hatfield Power Station | C96: 374.25 | D96: 224.26 | E96: 224.26 | F96: 366.28 | G96: 245.25 | H96: 351.39 | I96: 270.16 | J96: 306.77 | K96: 108.57 | L96: 393.29 | M96: 111.9 | N96: 208.24 | O96: 420.81 | P96: 93.22 | Q96: 316.21 | R96: 0 | S96: 98.81 | T96: 0 | U96: 346.22 | V96: 544.49 | W96: 289.08 | X96: 316.4 | Y96: 146.58 | Z96: 600.77 | AA96: 164.35 | AB96: 85 | AC96: 439.54 | AD96: 260.9666667
A97: Non-IP | B97: Hill Top Farm (Hole House Farm) | C97: 302.69 | D97: 323 | E97: 323 | F97: 52.06 | G97: 203.26 | H97: 415.67 | I97: 254.9 | J97: 9.44 | K97: 370 | L97: 321.73 | M97: 359.27 | N97: 113.94 | O97: 405.55 | P97: 352.34 | Q97: 0 | R97: 316.21 | S97: 360.24 | T97: 316.21 | U97: 410.5 | V97: 472.93 | W97: 33.99 | X97: 301.14 | Y97: 250.26 | Z97: 656.57 | AA97: 330.07 | AB97: 315 | AC97: 367.98 | AD97: 293.9981481
A98: Non-IP | B98: Hole House Max Refill | C98: 302.69 | D98: 323 | E98: 323 | F98: 52.06 | G98: 203.26 | H98: 415.67 | I98: 254.9 | J98: 9.44 | K98: 370 | L98: 321.73 | M98: 359.27 | N98: 113.94 | O98: 405.55 | P98: 352.34 | Q98: 0 | R98: 316.21 | S98: 360.24 | T98: 316.21 | U98: 410.5 | V98: 472.93 | W98: 33.99 | X98: 301.14 | Y98: 250.26 | Z98: 656.57 | AA98: 330.07 | AB98: 315 | AC98: 367.98 | AD98: 293.9981481
A99: Non-IP | B99: Holford | C99: 312.13 | D99: 332.44 | E99: 332.44 | F99: 59.51 | G99: 193.82 | H99: 425.11 | I99: 245.46 | J99: 0 | K99: 360.56 | L99: 331.17 | M99: 363.89 | N99: 104.5 | O99: 396.11 | P99: 345.21 | Q99: 9.44 | R99: 306.77 | S99: 350.8 | T99: 306.77 | U99: 419.94 | V99: 482.37 | W99: 24.55 | X99: 291.7 | Y99: 259.7 | Z99: 647.13 | AA99: 320.63 | AB99: 324.44 | AC99: 377.42 | AD99: 293.4818519
A100: Non-IP | B100: Hollingsgreen (Hays Chemicals) | C100: 304.26 | D100: 324.57 | E100: 324.57 | F100: 51.64 | G100: 201.69 | H100: 417.24 | I100: 253.33 | J100: 7.87 | K100: 368.43 | L100: 323.3 | M100: 360.84 | N100: 112.37 | O100: 403.98 | P100: 353.08 | Q100: 1.57 | R100: 314.64 | S100: 358.67 | T100: 314.64 | U100: 412.07 | V100: 474.5 | W100: 32.42 | X100: 299.57 | Y100: 251.83 | Z100: 655 | AA100: 328.5 | AB100: 316.57 | AC100: 369.55 | AD100: 293.9518519
A101: Non-IP | B101: Holmes Chapel | C101: 306.86 | D101: 327.17 | E101: 327.17 | F101: 80.72 | G101: 195.64 | H101: 419.84 | I101: 247.28 | J101: 41.17 | K101: 362.38 | L101: 325.9 | M101: 363.44 | N101: 106.32 | O101: 397.93 | P101: 347.03 | Q101: 31.73 | R101: 308.59 | S101: 352.62 | T101: 308.59 | U101: 414.67 | V101: 477.1 | W101: 26.37 | X101: 293.52 | Y101: 254.43 | Z101: 648.95 | AA101: 322.45 | AB101: 319.17 | AC101: 372.15 | AD101: 295.5255556
A102: Non-IP | B102: Horndon | C102: 421.4 | D102: 184.33 | E102: 184.33 | F102: 426.92 | G102: 558.9 | H102: 286.87 | I102: 583.81 | J102: 387.37 | K102: 361.64 | L102: 440.44 | M102: 342.14 | N102: 488.42 | O102: 734.46 | P102: 335.21 | Q102: 377.93 | R102: 313.65 | S102: 351.88 | T102: 313.65 | U102: 32.57 | V102: 591.64 | W102: 408.47 | X102: 630.05 | Y102: 189.13 | Z102: 914.42 | AA102: 478 | AB102: 297.87 | AC102: 379.42 | AD102: 407.96
A103: Non-IP | B103: Hornsea Max Refill | C103: 412.48 | D103: 262.49 | E103: 262.49 | F103: 410.31 | G103: 289.28 | H103: 389.62 | I103: 246.97 | J103: 350.8 | K103: 16.54 | L103: 431.52 | M103: 51.23 | N103: 252.27 | O103: 397.62 | P103: 32.55 | Q103: 360.24 | R103: 98.81 | S103: 0 | T103: 98.81 | U103: 384.45 | V103: 582.72 | W103: 333.11 | X103: 293.21 | Y103: 184.81 | Z103: 577.58 | AA103: 141.16 | AB103: 123.23 | AC103: 477.77 | AD103: 276.372963
A104: Non-IP | B104: Humbleton | C104: 686.7 | D104: 536.71 | E104: 536.71 | F104: 517.91 | G104: 396.88 | H104: 663.84 | I104: 254.43 | J104: 458.4 | K104: 272.72 | L104: 705.74 | M104: 333.71 | N104: 359.87 | O104: 152.11 | P104: 315.03 | Q104: 467.84 | R104: 312.45 | S104: 289.26 | T104: 312.45 | U104: 658.67 | V104: 856.94 | W104: 440.71 | X104: 219.92 | Y104: 459.03 | Z104: 296.68 | AA104: 182.61 | AB104: 397.45 | AC104: 751.99 | AD104: 438.3985185
A105: Non-IP | B105: Hume | C105: 707.94 | D105: 557.95 | E105: 557.95 | F105: 539.15 | G105: 390.5 | H105: 685.08 | I105: 236.56 | J105: 479.64 | K105: 293.96 | L105: 726.98 | M105: 354.95 | N105: 381.11 | O105: 122.51 | P105: 336.27 | Q105: 489.08 | R105: 333.69 | S105: 310.5 | T105: 333.69 | U105: 679.91 | V105: 878.18 | W105: 461.95 | X105: 190.32 | Y105: 480.27 | Z105: 317.92 | AA105: 203.85 | AB105: 418.69 | AC105: 773.23 | AD105: 453.4011111
A106: Non-IP | B106: Ilchester | C106: 85.99 | D106: 401.42 | E106: 401.42 | F106: 386.63 | G106: 537.45 | H106: 122.89 | I106: 589.09 | J106: 347.08 | K106: 457.19 | L106: 262.07 | M106: 437.69 | N106: 448.13 | O106: 739.74 | P106: 430.76 | Q106: 337.64 | R106: 409.2 | S106: 447.43 | T106: 409.2 | U106: 442.33 | V106: 413.27 | W106: 368.18 | X106: 635.33 | Y106: 328.68 | Z106: 990.76 | AA106: 573.55 | AB106: 393.42 | AC106: 30.34 | AD106: 423.2177778
A107: Non-IP | B107: Ipsden | C107: 269.76 | D107: 275.46 | E107: 275.46 | F107: 406.31 | G107: 538.29 | H107: 60.88 | I107: 563.2 | J107: 366.76 | K107: 341.03 | L107: 419.83 | M107: 321.53 | N107: 467.81 | O107: 713.85 | P107: 314.6 | Q107: 357.32 | R107: 293.04 | S107: 331.27 | T107: 293.04 | U107: 261.09 | V107: 571.03 | W107: 387.86 | X107: 609.44 | Y107: 168.52 | Z107: 893.81 | AA107: 457.39 | AB107: 277.26 | AC107: 153.43 | AD107: 384.7877778
A108: Non-IP | B108: Ipsden 2 | C108: 269.76 | D108: 275.46 | E108: 275.46 | F108: 406.31 | G108: 538.29 | H108: 60.88 | I108: 563.2 | J108: 366.76 | K108: 341.03 | L108: 419.83 | M108: 321.53 | N108: 467.81 | O108: 713.85 | P108: 314.6 | Q108: 357.32 | R108: 293.04 | S108: 331.27 | T108: 293.04 | U108: 261.09 | V108: 571.03 | W108: 387.86 | X108: 609.44 | Y108: 168.52 | Z108: 893.81 | AA108: 457.39 | AB108: 277.26 | AC108: 153.43 | AD108: 384.7877778
A109: Non-IP | B109: Keld | C109: 489.66 | D109: 456.67 | E109: 456.67 | F109: 240.49 | G109: 89.46 | H109: 583.8 | I109: 65.79 | J109: 180.98 | K109: 286.2 | L109: 508.7 | M109: 289.53 | N109: 82.45 | O109: 216.44 | P109: 270.85 | Q109: 190.42 | R109: 232.41 | S109: 276.44 | T109: 232.41 | U109: 578.63 | V109: 659.9 | W109: 163.29 | X109: 112.03 | Y109: 378.99 | Z109: 467.46 | AA109: 206.11 | AB109: 317.41 | AC109: 554.95 | AD109: 318.0792593
A110: Non-IP | B110: Kenn | C110: 163.62 | D110: 479.05 | E110: 479.05 | F110: 464.26 | G110: 615.08 | H110: 200.52 | I110: 666.72 | J110: 424.71 | K110: 534.82 | L110: 339.7 | M110: 515.32 | N110: 525.76 | O110: 817.37 | P110: 508.39 | Q110: 415.27 | R110: 486.83 | S110: 525.06 | T110: 486.83 | U110: 519.96 | V110: 490.9 | W110: 445.81 | X110: 712.96 | Y110: 406.31 | Z110: 1068.39 | AA110: 651.18 | AB110: 471.05 | AC110: 107.97 | AD110: 500.8477778
A111: Non-IP | B111: Kinknockie | C111: 940.27 | D111: 809.49 | E111: 809.49 | F111: 691.1 | G111: 540.07 | H111: 936.62 | I111: 386.13 | J111: 631.59 | K111: 545.5 | L111: 959.31 | M111: 606.49 | N111: 533.06 | O111: 272.08 | P111: 587.81 | Q111: 641.03 | R111: 585.23 | S111: 562.04 | T111: 585.23 | U111: 931.45 | V111: 1110.51 | W111: 613.9 | X111: 339.89 | Y111: 731.81 | Z111: 15.54 | AA111: 455.39 | AB111: 670.23 | AC111: 1005.56 | AD111: 648.0303704
A112: Non-IP | B112: Kirkstead | C112: 339.08 | D112: 156.45 | E112: 156.45 | F112: 344.6 | G112: 313.06 | H112: 305.64 | I112: 337.97 | J112: 305.05 | K112: 115.8 | L112: 358.12 | M112: 96.3 | N112: 276.05 | O112: 488.62 | P112: 89.37 | Q112: 295.61 | R112: 67.81 | S112: 106.04 | T112: 67.81 | U112: 300.47 | V112: 509.32 | W112: 326.15 | X112: 384.21 | Y112: 78.77 | Z112: 668.58 | AA112: 232.16 | AB112: 52.03 | AC112: 398.19 | AD112: 265.5448148
A113: Non-IP | B113: Langage Power Station | C113: 226.18 | D113: 541.61 | E113: 541.61 | F113: 526.82 | G113: 677.64 | H113: 263.08 | I113: 729.28 | J113: 487.27 | K113: 597.38 | L113: 402.26 | M113: 577.88 | N113: 588.32 | O113: 879.93 | P113: 570.95 | Q113: 477.83 | R113: 549.39 | S113: 587.62 | T113: 549.39 | U113: 582.52 | V113: 553.46 | W113: 508.37 | X113: 775.52 | Y113: 468.87 | Z113: 1130.95 | AA113: 713.74 | AB113: 533.61 | AC113: 170.53 | AD113: 563.4077778
A114: Non-IP | B114: Langholm | C114: 570.61 | D114: 510.89 | E114: 510.89 | F114: 321.44 | G114: 170.41 | H114: 638.02 | I114: 16.47 | J114: 261.93 | K114: 246.9 | L114: 589.65 | M114: 307.89 | N114: 163.4 | O114: 134.18 | P114: 289.21 | Q114: 271.37 | R114: 286.63 | S114: 263.44 | T114: 286.63 | U114: 632.85 | V114: 740.85 | W114: 244.24 | X114: 29.77 | Y114: 433.21 | Z114: 385.2 | AA114: 156.79 | AB114: 371.63 | AC114: 635.9 | AD114: 350.7555556
A115: Non-IP | B115: Lauderhill | C115: 724.14 | D115: 574.15 | E115: 574.15 | F115: 525.33 | G115: 374.3 | H115: 701.28 | I115: 220.36 | J115: 465.82 | K115: 310.16 | L115: 743.18 | M115: 371.15 | N115: 367.29 | O115: 106.31 | P115: 352.47 | Q115: 475.26 | R115: 349.89 | S115: 326.7 | T115: 349.89 | U115: 696.11 | V115: 894.38 | W115: 448.13 | X115: 174.12 | Y115: 496.47 | Z115: 334.12 | AA115: 220.05 | AB115: 434.89 | AC115: 789.43 | AD115: 459.2418519
